{"text_format":"1","workbook":"xlsx","n_sheets":2,"sheets":["Poročilo o izplačani DP","Kode"],"not_rendered":{"charts":0,"images":0,"macros":1,"external_links":0,"defined_names":2,"comments":1,"pivot_tables":0},"unopened":[],"bounds":{"document_bytes":16777216,"sheet_cells":100000,"rows_first":2000,"rows_last":500,"rows_between":2000,"halvings":0,"cell_chars":16384,"cell_head_chars":4096},"cells_cut":0,"cells_raw":0,"read":"whole","date_system":"1900"}

{"sheet":"Poročilo o izplačani DP","index":0,"n_rows":1000,"n_cols":25,"rows_kept":1000,"cut":false,"hidden":false,"merged":[]}
["Matična številka dajalca pomoči","Evropska identifikacijska številka sheme državne pomoči","Naziv sheme državne pomoči","Matična številka upravičenca","Ime in priimek upravičenca ali naziv pravne osebe, ki je upravičena do pomoči","Davčna št.  upravičenca","KMG-MID-številka upravičenca","Naslov upravičenca (ime ulice in hišna številka, poštna številka in naziv pošte)","Šifra občine upravičenca","Datum odobritve pomoči","Datum nakazila pomoči upravičencu","Šifra instrumenta pomoči","Šifra namena pomoči","Opis ukrepa","Naložba\n(da/ne)","Vrednost celotne naložbe (EUR)","Pravna podlaga za odobritev pomoči","Naziv, številka in datum pravnega akta, s katerim je upravičencu pomoč dodeljena","Znesek upravičenih stroškov (EUR)","Bruto znesek pomoči \n(EUR)","Neto znesek \npomoči (EUR)","Število udeležencev","Člen Uredbe EU št. 702/2014 ali 2022/2472 ali oddelek smernic","Šifra dejavnosti, za katero je pomoč dodeljena","Stopnja intenzivnosti pomoči (%)"]
[{"$f":"VLOOKUP(B2,Kode!A2:C215,3,FALSE)","v":{"$error":"#N/A"}},null,{"$f":"VLOOKUP(B2,Kode!A2:D215,4,FALSE)","v":{"$error":"#N/A"}},null,null,null,null,null,null,null,null,null,null,null,null,null,{"$f":"VLOOKUP(B2,Kode!A2:E215,5,FALSE)","v":{"$error":"#N/A"}},null,null,null,null,null,null,null,{"$f":"U2/S2*100","v":{"$error":"#DIV/0!"}}]
[{"$f":"VLOOKUP(B3,Kode!A2:C215,3,FALSE)","v":{"$error":"#N/A"}},null,{"$f":"VLOOKUP(B3,Kode!A2:D215,4,FALSE)","v":{"$error":"#N/A"}},null,null,null,null,null,null,null,null,null,null,null,null,null,{"$f":"VLOOKUP(B3,Kode!A2:E215,5,FALSE)","v":{"$error":"#N/A"}},null,null,null,null,null,null,null,{"$f":"U3/S3*100","v":{"$error":"#DIV/0!"}}]
[{"$f":"VLOOKUP(B4,Kode!A2:C215,3,FALSE)","v":{"$error":"#N/A"}},null,{"$f":"VLOOKUP(B4,Kode!A2:D215,4,FALSE)","v":{"$error":"#N/A"}},null,null,null,null,null,null,null,null,null,null,null,null,null,{"$f":"VLOOKUP(B4,Kode!A2:E215,5,FALSE)","v":{"$error":"#N/A"}},null,null,null,null,null,null,null,{"$error":"#DIV/0!"}]
[{"$f":"VLOOKUP(B5,Kode!A2:C215,3,FALSE)","v":{"$error":"#N/A"}},null,{"$f":"VLOOKUP(B5,Kode!A2:D215,4,FALSE)","v":{"$error":"#N/A"}},null,null,null,null,null,null,null,null,null,null,null,null,null,{"$f":"VLOOKUP(B5,Kode!A2:E215,5,FALSE)","v":{"$error":"#N/A"}},null,null,null,null,null,null,null,{"$error":"#DIV/0!"}]
[{"$f":"VLOOKUP(B6,Kode!A2:C215,3,FALSE)","v":{"$error":"#N/A"}},null,{"$f":"VLOOKUP(B6,Kode!A2:D215,4,FALSE)","v":{"$error":"#N/A"}},null,null,null,null,null,null,null,null,null,null,null,null,null,{"$f":"VLOOKUP(B6,Kode!A2:E215,5,FALSE)","v":{"$error":"#N/A"}},null,null,null,null,null,null,null,{"$error":"#DIV/0!"}]
[{"$f":"VLOOKUP(B7,Kode!A2:C215,3,FALSE)","v":{"$error":"#N/A"}},null,{"$f":"VLOOKUP(B7,Kode!A2:D215,4,FALSE)","v":{"$error":"#N/A"}},null,null,null,null,null,null,null,null,null,null,null,null,null,{"$f":"VLOOKUP(B7,Kode!A2:E215,5,FALSE)","v":{"$error":"#N/A"}},null,null,null,null,null,null,null,{"$error":"#DIV/0!"}]
[{"$f":"VLOOKUP(B8,Kode!A2:C215,3,FALSE)","v":{"$error":"#N/A"}},null,{"$f":"VLOOKUP(B8,Kode!A2:D215,4,FALSE)","v":{"$error":"#N/A"}},null,null,null,null,null,null,null,null,null,null,null,null,null,{"$f":"VLOOKUP(B8,Kode!A2:E215,5,FALSE)","v":{"$error":"#N/A"}},null,null,null,null,null,null,null,{"$error":"#DIV/0!"}]
[{"$f":"VLOOKUP(B9,Kode!A2:C215,3,FALSE)","v":{"$error":"#N/A"}},null,{"$f":"VLOOKUP(B9,Kode!A2:D215,4,FALSE)","v":{"$error":"#N/A"}},null,null,null,null,null,null,null,null,null,null,null,null,null,{"$f":"VLOOKUP(B9,Kode!A2:E215,5,FALSE)","v":{"$error":"#N/A"}},null,null,null,null,null,null,null,{"$error":"#DIV/0!"}]
[{"$f":"VLOOKUP(B10,Kode!A2:C215,3,FALSE)","v":{"$error":"#N/A"}},null,{"$f":"VLOOKUP(B10,Kode!A2:D215,4,FALSE)","v":{"$error":"#N/A"}},null,null,null,null,null,null,null,null,null,null,null,null,null,{"$f":"VLOOKUP(B10,Kode!A2:E215,5,FALSE)","v":{"$error":"#N/A"}},null,null,null,null,null,null,null,{"$error":"#DIV/0!"}]
[{"$f":"VLOOKUP(B11,Kode!A2:C215,3,FALSE)","v":{"$error":"#N/A"}},null,{"$f":"VLOOKUP(B11,Kode!A2:D215,4,FALSE)","v":{"$error":"#N/A"}},null,null,null,null,null,null,null,null,null,null,null,null,null,{"$f":"VLOOKUP(B11,Kode!A2:E215,5,FALSE)","v":{"$error":"#N/A"}},null,null,null,null,null,null,null,{"$error":"#DIV/0!"}]
[{"$f":"VLOOKUP(B12,Kode!A2:C215,3,FALSE)","v":{"$error":"#N/A"}},null,{"$f":"VLOOKUP(B12,Kode!A2:D215,4,FALSE)","v":{"$error":"#N/A"}},null,null,null,null,null,null,null,null,null,null,null,null,null,{"$f":"VLOOKUP(B12,Kode!A2:E215,5,FALSE)","v":{"$error":"#N/A"}},null,null,null,null,null,null,null,{"$error":"#DIV/0!"}]
[{"$f":"VLOOKUP(B13,Kode!A2:C215,3,FALSE)","v":{"$error":"#N/A"}},null,{"$f":"VLOOKUP(B13,Kode!A2:D215,4,FALSE)","v":{"$error":"#N/A"}},null,null,null,null,null,null,null,null,null,null,null,null,null,{"$f":"VLOOKUP(B13,Kode!A2:E215,5,FALSE)","v":{"$error":"#N/A"}},null,null,null,null,null,null,null,{"$error":"#DIV/0!"}]
[{"$f":"VLOOKUP(B14,Kode!A2:C215,3,FALSE)","v":{"$error":"#N/A"}},null,{"$f":"VLOOKUP(B14,Kode!A2:D215,4,FALSE)","v":{"$error":"#N/A"}},null,null,null,null,null,null,null,null,null,null,null,null,null,{"$f":"VLOOKUP(B14,Kode!A2:E215,5,FALSE)","v":{"$error":"#N/A"}},null,null,null,null,null,null,null,{"$error":"#DIV/0!"}]
[{"$f":"VLOOKUP(B15,Kode!A2:C215,3,FALSE)","v":{"$error":"#N/A"}},null,{"$f":"VLOOKUP(B15,Kode!A2:D215,4,FALSE)","v":{"$error":"#N/A"}},null,null,null,null,null,null,null,null,null,null,null,null,null,{"$f":"VLOOKUP(B15,Kode!A2:E215,5,FALSE)","v":{"$error":"#N/A"}},null,null,null,null,null,null,null,{"$error":"#DIV/0!"}]
[{"$f":"VLOOKUP(B16,Kode!A2:C215,3,FALSE)","v":{"$error":"#N/A"}},null,{"$f":"VLOOKUP(B16,Kode!A2:D215,4,FALSE)","v":{"$error":"#N/A"}},null,null,null,null,null,null,null,null,null,null,null,null,null,{"$f":"VLOOKUP(B16,Kode!A2:E215,5,FALSE)","v":{"$error":"#N/A"}},null,null,null,null,null,null,null,{"$error":"#DIV/0!"}]
[{"$f":"VLOOKUP(B17,Kode!A2:C215,3,FALSE)","v":{"$error":"#N/A"}},null,{"$f":"VLOOKUP(B17,Kode!A2:D215,4,FALSE)","v":{"$error":"#N/A"}},null,null,null,null,null,null,null,null,null,null,null,null,null,{"$f":"VLOOKUP(B17,Kode!A2:E215,5,FALSE)","v":{"$error":"#N/A"}},null,null,null,null,null,null,null,{"$error":"#DIV/0!"}]
[{"$f":"VLOOKUP(B18,Kode!A2:C215,3,FALSE)","v":{"$error":"#N/A"}},null,{"$f":"VLOOKUP(B18,Kode!A2:D215,4,FALSE)","v":{"$error":"#N/A"}},null,null,null,null,null,null,null,null,null,null,null,null,null,{"$f":"VLOOKUP(B18,Kode!A2:E215,5,FALSE)","v":{"$error":"#N/A"}},null,null,null,null,null,null,null,{"$error":"#DIV/0!"}]
[{"$f":"VLOOKUP(B19,Kode!A2:C215,3,FALSE)","v":{"$error":"#N/A"}},null,{"$f":"VLOOKUP(B19,Kode!A2:D215,4,FALSE)","v":{"$error":"#N/A"}},null,null,null,null,null,null,null,null,null,null,null,null,null,{"$f":"VLOOKUP(B19,Kode!A2:E215,5,FALSE)","v":{"$error":"#N/A"}},null,null,null,null,null,null,null,{"$error":"#DIV/0!"}]
[{"$f":"VLOOKUP(B20,Kode!A2:C215,3,FALSE)","v":{"$error":"#N/A"}},null,{"$f":"VLOOKUP(B20,Kode!A2:D215,4,FALSE)","v":{"$error":"#N/A"}},null,null,null,null,null,null,null,null,null,null,null,null,null,{"$f":"VLOOKUP(B20,Kode!A2:E215,5,FALSE)","v":{"$error":"#N/A"}},null,null,null,null,null,null,null,{"$error":"#DIV/0!"}]
[{"$f":"VLOOKUP(B21,Kode!A2:C215,3,FALSE)","v":{"$error":"#N/A"}},null,{"$f":"VLOOKUP(B21,Kode!A2:D215,4,FALSE)","v":{"$error":"#N/A"}},null,null,null,null,null,null,null,null,null,null,null,null,null,{"$f":"VLOOKUP(B21,Kode!A2:E215,5,FALSE)","v":{"$error":"#N/A"}},null,null,null,null,null,null,null,{"$error":"#DIV/0!"}]
[{"$f":"VLOOKUP(B22,Kode!A2:C215,3,FALSE)","v":{"$error":"#N/A"}},null,{"$f":"VLOOKUP(B22,Kode!A2:D215,4,FALSE)","v":{"$error":"#N/A"}},null,null,null,null,null,null,null,null,null,null,null,null,null,{"$f":"VLOOKUP(B22,Kode!A2:E215,5,FALSE)","v":{"$error":"#N/A"}},null,null,null,null,null,null,null,{"$error":"#DIV/0!"}]
[{"$f":"VLOOKUP(B23,Kode!A2:C215,3,FALSE)","v":{"$error":"#N/A"}},null,{"$f":"VLOOKUP(B23,Kode!A2:D215,4,FALSE)","v":{"$error":"#N/A"}},null,null,null,null,null,null,null,null,null,null,null,null,null,{"$f":"VLOOKUP(B23,Kode!A2:E215,5,FALSE)","v":{"$error":"#N/A"}},null,null,null,null,null,null,null,{"$error":"#DIV/0!"}]
[{"$f":"VLOOKUP(B24,Kode!A2:C215,3,FALSE)","v":{"$error":"#N/A"}},null,{"$f":"VLOOKUP(B24,Kode!A2:D215,4,FALSE)","v":{"$error":"#N/A"}},null,null,null,null,null,null,null,null,null,null,null,null,null,{"$f":"VLOOKUP(B24,Kode!A2:E215,5,FALSE)","v":{"$error":"#N/A"}},null,null,null,null,null,null,null,{"$error":"#DIV/0!"}]
[{"$f":"VLOOKUP(B25,Kode!A2:C215,3,FALSE)","v":{"$error":"#N/A"}},null,{"$f":"VLOOKUP(B25,Kode!A2:D215,4,FALSE)","v":{"$error":"#N/A"}},null,null,null,null,null,null,null,null,null,null,null,null,null,{"$f":"VLOOKUP(B25,Kode!A2:E215,5,FALSE)","v":{"$error":"#N/A"}},null,null,null,null,null,null,null,{"$error":"#DIV/0!"}]
[{"$f":"VLOOKUP(B26,Kode!A2:C215,3,FALSE)","v":{"$error":"#N/A"}},null,{"$f":"VLOOKUP(B26,Kode!A2:D215,4,FALSE)","v":{"$error":"#N/A"}},null,null,null,null,null,null,null,null,null,null,null,null,null,{"$f":"VLOOKUP(B26,Kode!A2:E215,5,FALSE)","v":{"$error":"#N/A"}},null,null,null,null,null,null,null,{"$error":"#DIV/0!"}]
[{"$f":"VLOOKUP(B27,Kode!A2:C215,3,FALSE)","v":{"$error":"#N/A"}},null,{"$f":"VLOOKUP(B27,Kode!A2:D215,4,FALSE)","v":{"$error":"#N/A"}},null,null,null,null,null,null,null,null,null,null,null,null,null,{"$f":"VLOOKUP(B27,Kode!A2:E215,5,FALSE)","v":{"$error":"#N/A"}},null,null,null,null,null,null,null,{"$error":"#DIV/0!"}]
[{"$f":"VLOOKUP(B28,Kode!A2:C215,3,FALSE)","v":{"$error":"#N/A"}},null,{"$f":"VLOOKUP(B28,Kode!A2:D215,4,FALSE)","v":{"$error":"#N/A"}},null,null,null,null,null,null,null,null,null,null,null,null,null,{"$f":"VLOOKUP(B28,Kode!A2:E215,5,FALSE)","v":{"$error":"#N/A"}},null,null,null,null,null,null,null,{"$error":"#DIV/0!"}]
[{"$f":"VLOOKUP(B29,Kode!A2:C215,3,FALSE)","v":{"$error":"#N/A"}},null,{"$f":"VLOOKUP(B29,Kode!A2:D215,4,FALSE)","v":{"$error":"#N/A"}},null,null,null,null,null,null,null,null,null,null,null,null,null,{"$f":"VLOOKUP(B29,Kode!A2:E215,5,FALSE)","v":{"$error":"#N/A"}},null,null,null,null,null,null,null,{"$error":"#DIV/0!"}]
[{"$f":"VLOOKUP(B30,Kode!A2:C215,3,FALSE)","v":{"$error":"#N/A"}},null,{"$f":"VLOOKUP(B30,Kode!A2:D215,4,FALSE)","v":{"$error":"#N/A"}},null,null,null,null,null,null,null,null,null,null,null,null,null,{"$f":"VLOOKUP(B30,Kode!A2:E215,5,FALSE)","v":{"$error":"#N/A"}},null,null,null,null,null,null,null,{"$error":"#DIV/0!"}]
[{"$f":"VLOOKUP(B31,Kode!A2:C215,3,FALSE)","v":{"$error":"#N/A"}},null,{"$f":"VLOOKUP(B31,Kode!A2:D215,4,FALSE)","v":{"$error":"#N/A"}},null,null,null,null,null,null,null,null,null,null,null,null,null,{"$f":"VLOOKUP(B31,Kode!A2:E215,5,FALSE)","v":{"$error":"#N/A"}},null,null,null,null,null,null,null,{"$error":"#DIV/0!"}]
[{"$f":"VLOOKUP(B32,Kode!A2:C215,3,FALSE)","v":{"$error":"#N/A"}},null,{"$f":"VLOOKUP(B32,Kode!A2:D215,4,FALSE)","v":{"$error":"#N/A"}},null,null,null,null,null,null,null,null,null,null,null,null,null,{"$f":"VLOOKUP(B32,Kode!A2:E215,5,FALSE)","v":{"$error":"#N/A"}},null,null,null,null,null,null,null,{"$error":"#DIV/0!"}]
[{"$f":"VLOOKUP(B33,Kode!A2:C215,3,FALSE)","v":{"$error":"#N/A"}},null,{"$f":"VLOOKUP(B33,Kode!A2:D215,4,FALSE)","v":{"$error":"#N/A"}},null,null,null,null,null,null,null,null,null,null,null,null,null,{"$f":"VLOOKUP(B33,Kode!A2:E215,5,FALSE)","v":{"$error":"#N/A"}},null,null,null,null,null,null,null,{"$error":"#DIV/0!"}]
[{"$f":"VLOOKUP(B34,Kode!A2:C215,3,FALSE)","v":{"$error":"#N/A"}},null,{"$f":"VLOOKUP(B34,Kode!A2:D215,4,FALSE)","v":{"$error":"#N/A"}},null,null,null,null,null,null,null,null,null,null,null,null,null,{"$f":"VLOOKUP(B34,Kode!A2:E215,5,FALSE)","v":{"$error":"#N/A"}},null,null,null,null,null,null,null,{"$error":"#DIV/0!"}]
[{"$f":"VLOOKUP(B35,Kode!A2:C215,3,FALSE)","v":{"$error":"#N/A"}},null,{"$f":"VLOOKUP(B35,Kode!A2:D215,4,FALSE)","v":{"$error":"#N/A"}},null,null,null,null,null,null,null,null,null,null,null,null,null,{"$f":"VLOOKUP(B35,Kode!A2:E215,5,FALSE)","v":{"$error":"#N/A"}},null,null,null,null,null,null,null,{"$error":"#DIV/0!"}]
[{"$f":"VLOOKUP(B36,Kode!A2:C215,3,FALSE)","v":{"$error":"#N/A"}},null,{"$f":"VLOOKUP(B36,Kode!A2:D215,4,FALSE)","v":{"$error":"#N/A"}},null,null,null,null,null,null,null,null,null,null,null,null,null,{"$f":"VLOOKUP(B36,Kode!A2:E215,5,FALSE)","v":{"$error":"#N/A"}},null,null,null,null,null,null,null,{"$error":"#DIV/0!"}]
[{"$f":"VLOOKUP(B37,Kode!A2:C215,3,FALSE)","v":{"$error":"#N/A"}},null,{"$f":"VLOOKUP(B37,Kode!A2:D215,4,FALSE)","v":{"$error":"#N/A"}},null,null,null,null,null,null,null,null,null,null,null,null,null,{"$f":"VLOOKUP(B37,Kode!A2:E215,5,FALSE)","v":{"$error":"#N/A"}},null,null,null,null,null,null,null,{"$error":"#DIV/0!"}]
[{"$f":"VLOOKUP(B38,Kode!A2:C215,3,FALSE)","v":{"$error":"#N/A"}},null,{"$f":"VLOOKUP(B38,Kode!A2:D215,4,FALSE)","v":{"$error":"#N/A"}},null,null,null,null,null,null,null,null,null,null,null,null,null,{"$f":"VLOOKUP(B38,Kode!A2:E215,5,FALSE)","v":{"$error":"#N/A"}},null,null,null,null,null,null,null,{"$error":"#DIV/0!"}]
[{"$f":"VLOOKUP(B39,Kode!A2:C215,3,FALSE)","v":{"$error":"#N/A"}},null,{"$f":"VLOOKUP(B39,Kode!A2:D215,4,FALSE)","v":{"$error":"#N/A"}},null,null,null,null,null,null,null,null,null,null,null,null,null,{"$f":"VLOOKUP(B39,Kode!A2:E215,5,FALSE)","v":{"$error":"#N/A"}},null,null,null,null,null,null,null,{"$error":"#DIV/0!"}]
[{"$f":"VLOOKUP(B40,Kode!A2:C215,3,FALSE)","v":{"$error":"#N/A"}},null,{"$f":"VLOOKUP(B40,Kode!A2:D215,4,FALSE)","v":{"$error":"#N/A"}},null,null,null,null,null,null,null,null,null,null,null,null,null,{"$f":"VLOOKUP(B40,Kode!A2:E215,5,FALSE)","v":{"$error":"#N/A"}},null,null,null,null,null,null,null,{"$error":"#DIV/0!"}]
[{"$f":"VLOOKUP(B41,Kode!A2:C215,3,FALSE)","v":{"$error":"#N/A"}},null,{"$f":"VLOOKUP(B41,Kode!A2:D215,4,FALSE)","v":{"$error":"#N/A"}},null,null,null,null,null,null,null,null,null,null,null,null,null,{"$f":"VLOOKUP(B41,Kode!A2:E215,5,FALSE)","v":{"$error":"#N/A"}},null,null,null,null,null,null,null,{"$error":"#DIV/0!"}]
[{"$f":"VLOOKUP(B42,Kode!A2:C215,3,FALSE)","v":{"$error":"#N/A"}},null,{"$f":"VLOOKUP(B42,Kode!A2:D215,4,FALSE)","v":{"$error":"#N/A"}},null,null,null,null,null,null,null,null,null,null,null,null,null,{"$f":"VLOOKUP(B42,Kode!A2:E215,5,FALSE)","v":{"$error":"#N/A"}},null,null,null,null,null,null,null,{"$error":"#DIV/0!"}]
[{"$f":"VLOOKUP(B43,Kode!A2:C215,3,FALSE)","v":{"$error":"#N/A"}},null,{"$f":"VLOOKUP(B43,Kode!A2:D215,4,FALSE)","v":{"$error":"#N/A"}},null,null,null,null,null,null,null,null,null,null,null,null,null,{"$f":"VLOOKUP(B43,Kode!A2:E215,5,FALSE)","v":{"$error":"#N/A"}},null,null,null,null,null,null,null,{"$error":"#DIV/0!"}]
[{"$f":"VLOOKUP(B44,Kode!A2:C215,3,FALSE)","v":{"$error":"#N/A"}},null,{"$f":"VLOOKUP(B44,Kode!A2:D215,4,FALSE)","v":{"$error":"#N/A"}},null,null,null,null,null,null,null,null,null,null,null,null,null,{"$f":"VLOOKUP(B44,Kode!A2:E215,5,FALSE)","v":{"$error":"#N/A"}},null,null,null,null,null,null,null,{"$error":"#DIV/0!"}]
[{"$f":"VLOOKUP(B45,Kode!A2:C215,3,FALSE)","v":{"$error":"#N/A"}},null,{"$f":"VLOOKUP(B45,Kode!A2:D215,4,FALSE)","v":{"$error":"#N/A"}},null,null,null,null,null,null,null,null,null,null,null,null,null,{"$f":"VLOOKUP(B45,Kode!A2:E215,5,FALSE)","v":{"$error":"#N/A"}},null,null,null,null,null,null,null,{"$error":"#DIV/0!"}]
[{"$f":"VLOOKUP(B46,Kode!A2:C215,3,FALSE)","v":{"$error":"#N/A"}},null,{"$f":"VLOOKUP(B46,Kode!A2:D215,4,FALSE)","v":{"$error":"#N/A"}},null,null,null,null,null,null,null,null,null,null,null,null,null,{"$f":"VLOOKUP(B46,Kode!A2:E215,5,FALSE)","v":{"$error":"#N/A"}},null,null,null,null,null,null,null,{"$error":"#DIV/0!"}]
[{"$f":"VLOOKUP(B47,Kode!A2:C215,3,FALSE)","v":{"$error":"#N/A"}},null,{"$f":"VLOOKUP(B47,Kode!A2:D215,4,FALSE)","v":{"$error":"#N/A"}},null,null,null,null,null,null,null,null,null,null,null,null,null,{"$f":"VLOOKUP(B47,Kode!A2:E215,5,FALSE)","v":{"$error":"#N/A"}},null,null,null,null,null,null,null,{"$error":"#DIV/0!"}]
[{"$f":"VLOOKUP(B48,Kode!A2:C215,3,FALSE)","v":{"$error":"#N/A"}},null,{"$f":"VLOOKUP(B48,Kode!A2:D215,4,FALSE)","v":{"$error":"#N/A"}},null,null,null,null,null,null,null,null,null,null,null,null,null,{"$f":"VLOOKUP(B48,Kode!A2:E215,5,FALSE)","v":{"$error":"#N/A"}},null,null,null,null,null,null,null,{"$error":"#DIV/0!"}]
[{"$f":"VLOOKUP(B49,Kode!A2:C215,3,FALSE)","v":{"$error":"#N/A"}},null,{"$f":"VLOOKUP(B49,Kode!A2:D215,4,FALSE)","v":{"$error":"#N/A"}},null,null,null,null,null,null,null,null,null,null,null,null,null,{"$f":"VLOOKUP(B49,Kode!A2:E215,5,FALSE)","v":{"$error":"#N/A"}},null,null,null,null,null,null,null,{"$error":"#DIV/0!"}]
[{"$f":"VLOOKUP(B50,Kode!A2:C215,3,FALSE)","v":{"$error":"#N/A"}},null,{"$f":"VLOOKUP(B50,Kode!A2:D215,4,FALSE)","v":{"$error":"#N/A"}},null,null,null,null,null,null,null,null,null,null,null,null,null,{"$f":"VLOOKUP(B50,Kode!A2:E215,5,FALSE)","v":{"$error":"#N/A"}},null,null,null,null,null,null,null,{"$error":"#DIV/0!"}]
[{"$f":"VLOOKUP(B51,Kode!A2:C215,3,FALSE)","v":{"$error":"#N/A"}},null,{"$f":"VLOOKUP(B51,Kode!A2:D215,4,FALSE)","v":{"$error":"#N/A"}},null,null,null,null,null,null,null,null,null,null,null,null,null,{"$f":"VLOOKUP(B51,Kode!A2:E215,5,FALSE)","v":{"$error":"#N/A"}},null,null,null,null,null,null,null,{"$error":"#DIV/0!"}]
[{"$f":"VLOOKUP(B52,Kode!A2:C215,3,FALSE)","v":{"$error":"#N/A"}},null,{"$f":"VLOOKUP(B52,Kode!A2:D215,4,FALSE)","v":{"$error":"#N/A"}},null,null,null,null,null,null,null,null,null,null,null,null,null,{"$f":"VLOOKUP(B52,Kode!A2:E215,5,FALSE)","v":{"$error":"#N/A"}},null,null,null,null,null,null,null,{"$error":"#DIV/0!"}]
[{"$f":"VLOOKUP(B53,Kode!A2:C215,3,FALSE)","v":{"$error":"#N/A"}},null,{"$f":"VLOOKUP(B53,Kode!A2:D215,4,FALSE)","v":{"$error":"#N/A"}},null,null,null,null,null,null,null,null,null,null,null,null,null,{"$f":"VLOOKUP(B53,Kode!A2:E215,5,FALSE)","v":{"$error":"#N/A"}},null,null,null,null,null,null,null,{"$error":"#DIV/0!"}]
[{"$f":"VLOOKUP(B54,Kode!A2:C215,3,FALSE)","v":{"$error":"#N/A"}},null,{"$f":"VLOOKUP(B54,Kode!A2:D215,4,FALSE)","v":{"$error":"#N/A"}},null,null,null,null,null,null,null,null,null,null,null,null,null,{"$f":"VLOOKUP(B54,Kode!A2:E215,5,FALSE)","v":{"$error":"#N/A"}},null,null,null,null,null,null,null,{"$error":"#DIV/0!"}]
[{"$f":"VLOOKUP(B55,Kode!A2:C215,3,FALSE)","v":{"$error":"#N/A"}},null,{"$f":"VLOOKUP(B55,Kode!A2:D215,4,FALSE)","v":{"$error":"#N/A"}},null,null,null,null,null,null,null,null,null,null,null,null,null,{"$f":"VLOOKUP(B55,Kode!A2:E215,5,FALSE)","v":{"$error":"#N/A"}},null,null,null,null,null,null,null,{"$error":"#DIV/0!"}]
[{"$f":"VLOOKUP(B56,Kode!A2:C215,3,FALSE)","v":{"$error":"#N/A"}},null,{"$f":"VLOOKUP(B56,Kode!A2:D215,4,FALSE)","v":{"$error":"#N/A"}},null,null,null,null,null,null,null,null,null,null,null,null,null,{"$f":"VLOOKUP(B56,Kode!A2:E215,5,FALSE)","v":{"$error":"#N/A"}},null,null,null,null,null,null,null,{"$error":"#DIV/0!"}]
[{"$f":"VLOOKUP(B57,Kode!A2:C215,3,FALSE)","v":{"$error":"#N/A"}},null,{"$f":"VLOOKUP(B57,Kode!A2:D215,4,FALSE)","v":{"$error":"#N/A"}},null,null,null,null,null,null,null,null,null,null,null,null,null,{"$f":"VLOOKUP(B57,Kode!A2:E215,5,FALSE)","v":{"$error":"#N/A"}},null,null,null,null,null,null,null,{"$error":"#DIV/0!"}]
[{"$f":"VLOOKUP(B58,Kode!A2:C215,3,FALSE)","v":{"$error":"#N/A"}},null,{"$f":"VLOOKUP(B58,Kode!A2:D215,4,FALSE)","v":{"$error":"#N/A"}},null,null,null,null,null,null,null,null,null,null,null,null,null,{"$f":"VLOOKUP(B58,Kode!A2:E215,5,FALSE)","v":{"$error":"#N/A"}},null,null,null,null,null,null,null,{"$error":"#DIV/0!"}]
[{"$f":"VLOOKUP(B59,Kode!A2:C215,3,FALSE)","v":{"$error":"#N/A"}},null,{"$f":"VLOOKUP(B59,Kode!A2:D215,4,FALSE)","v":{"$error":"#N/A"}},null,null,null,null,null,null,null,null,null,null,null,null,null,{"$f":"VLOOKUP(B59,Kode!A2:E215,5,FALSE)","v":{"$error":"#N/A"}},null,null,null,null,null,null,null,{"$error":"#DIV/0!"}]
[{"$f":"VLOOKUP(B60,Kode!A2:C215,3,FALSE)","v":{"$error":"#N/A"}},null,{"$f":"VLOOKUP(B60,Kode!A2:D215,4,FALSE)","v":{"$error":"#N/A"}},null,null,null,null,null,null,null,null,null,null,null,null,null,{"$f":"VLOOKUP(B60,Kode!A2:E215,5,FALSE)","v":{"$error":"#N/A"}},null,null,null,null,null,null,null,{"$error":"#DIV/0!"}]
[{"$f":"VLOOKUP(B61,Kode!A2:C215,3,FALSE)","v":{"$error":"#N/A"}},null,{"$f":"VLOOKUP(B61,Kode!A2:D215,4,FALSE)","v":{"$error":"#N/A"}},null,null,null,null,null,null,null,null,null,null,null,null,null,{"$f":"VLOOKUP(B61,Kode!A2:E215,5,FALSE)","v":{"$error":"#N/A"}},null,null,null,null,null,null,null,{"$error":"#DIV/0!"}]
[{"$f":"VLOOKUP(B62,Kode!A2:C215,3,FALSE)","v":{"$error":"#N/A"}},null,{"$f":"VLOOKUP(B62,Kode!A2:D215,4,FALSE)","v":{"$error":"#N/A"}},null,null,null,null,null,null,null,null,null,null,null,null,null,{"$f":"VLOOKUP(B62,Kode!A2:E215,5,FALSE)","v":{"$error":"#N/A"}},null,null,null,null,null,null,null,{"$error":"#DIV/0!"}]
[{"$f":"VLOOKUP(B63,Kode!A2:C215,3,FALSE)","v":{"$error":"#N/A"}},null,{"$f":"VLOOKUP(B63,Kode!A2:D215,4,FALSE)","v":{"$error":"#N/A"}},null,null,null,null,null,null,null,null,null,null,null,null,null,{"$f":"VLOOKUP(B63,Kode!A2:E215,5,FALSE)","v":{"$error":"#N/A"}},null,null,null,null,null,null,null,{"$error":"#DIV/0!"}]
[{"$f":"VLOOKUP(B64,Kode!A2:C215,3,FALSE)","v":{"$error":"#N/A"}},null,{"$f":"VLOOKUP(B64,Kode!A2:D215,4,FALSE)","v":{"$error":"#N/A"}},null,null,null,null,null,null,null,null,null,null,null,null,null,{"$f":"VLOOKUP(B64,Kode!A2:E215,5,FALSE)","v":{"$error":"#N/A"}},null,null,null,null,null,null,null,{"$error":"#DIV/0!"}]
[{"$f":"VLOOKUP(B65,Kode!A2:C215,3,FALSE)","v":{"$error":"#N/A"}},null,{"$f":"VLOOKUP(B65,Kode!A2:D215,4,FALSE)","v":{"$error":"#N/A"}},null,null,null,null,null,null,null,null,null,null,null,null,null,{"$f":"VLOOKUP(B65,Kode!A2:E215,5,FALSE)","v":{"$error":"#N/A"}},null,null,null,null,null,null,null,{"$error":"#DIV/0!"}]
[{"$f":"VLOOKUP(B66,Kode!A2:C215,3,FALSE)","v":{"$error":"#N/A"}},null,{"$f":"VLOOKUP(B66,Kode!A2:D215,4,FALSE)","v":{"$error":"#N/A"}},null,null,null,null,null,null,null,null,null,null,null,null,null,{"$f":"VLOOKUP(B66,Kode!A2:E215,5,FALSE)","v":{"$error":"#N/A"}},null,null,null,null,null,null,null,{"$error":"#DIV/0!"}]
[{"$f":"VLOOKUP(B67,Kode!A2:C215,3,FALSE)","v":{"$error":"#N/A"}},null,{"$f":"VLOOKUP(B67,Kode!A2:D215,4,FALSE)","v":{"$error":"#N/A"}},null,null,null,null,null,null,null,null,null,null,null,null,null,{"$f":"VLOOKUP(B67,Kode!A2:E215,5,FALSE)","v":{"$error":"#N/A"}},null,null,null,null,null,null,null,{"$f":"U67/S67*100","v":{"$error":"#DIV/0!"}}]
[{"$f":"VLOOKUP(B68,Kode!A2:C215,3,FALSE)","v":{"$error":"#N/A"}},null,{"$f":"VLOOKUP(B68,Kode!A2:D215,4,FALSE)","v":{"$error":"#N/A"}},null,null,null,null,null,null,null,null,null,null,null,null,null,{"$f":"VLOOKUP(B68,Kode!A2:E215,5,FALSE)","v":{"$error":"#N/A"}},null,null,null,null,null,null,null,{"$error":"#DIV/0!"}]
[{"$f":"VLOOKUP(B69,Kode!A2:C215,3,FALSE)","v":{"$error":"#N/A"}},null,{"$f":"VLOOKUP(B69,Kode!A2:D215,4,FALSE)","v":{"$error":"#N/A"}},null,null,null,null,null,null,null,null,null,null,null,null,null,{"$f":"VLOOKUP(B69,Kode!A2:E215,5,FALSE)","v":{"$error":"#N/A"}},null,null,null,null,null,null,null,{"$error":"#DIV/0!"}]
[{"$f":"VLOOKUP(B70,Kode!A2:C215,3,FALSE)","v":{"$error":"#N/A"}},null,{"$f":"VLOOKUP(B70,Kode!A2:D215,4,FALSE)","v":{"$error":"#N/A"}},null,null,null,null,null,null,null,null,null,null,null,null,null,{"$f":"VLOOKUP(B70,Kode!A2:E215,5,FALSE)","v":{"$error":"#N/A"}},null,null,null,null,null,null,null,{"$error":"#DIV/0!"}]
[{"$f":"VLOOKUP(B71,Kode!A2:C215,3,FALSE)","v":{"$error":"#N/A"}},null,{"$f":"VLOOKUP(B71,Kode!A2:D215,4,FALSE)","v":{"$error":"#N/A"}},null,null,null,null,null,null,null,null,null,null,null,null,null,{"$f":"VLOOKUP(B71,Kode!A2:E215,5,FALSE)","v":{"$error":"#N/A"}},null,null,null,null,null,null,null,{"$error":"#DIV/0!"}]
[{"$f":"VLOOKUP(B72,Kode!A2:C215,3,FALSE)","v":{"$error":"#N/A"}},null,{"$f":"VLOOKUP(B72,Kode!A2:D215,4,FALSE)","v":{"$error":"#N/A"}},null,null,null,null,null,null,null,null,null,null,null,null,null,{"$f":"VLOOKUP(B72,Kode!A2:E215,5,FALSE)","v":{"$error":"#N/A"}},null,null,null,null,null,null,null,{"$error":"#DIV/0!"}]
[{"$f":"VLOOKUP(B73,Kode!A2:C215,3,FALSE)","v":{"$error":"#N/A"}},null,{"$f":"VLOOKUP(B73,Kode!A2:D215,4,FALSE)","v":{"$error":"#N/A"}},null,null,null,null,null,null,null,null,null,null,null,null,null,{"$f":"VLOOKUP(B73,Kode!A2:E215,5,FALSE)","v":{"$error":"#N/A"}},null,null,null,null,null,null,null,{"$error":"#DIV/0!"}]
[{"$f":"VLOOKUP(B74,Kode!A2:C215,3,FALSE)","v":{"$error":"#N/A"}},null,{"$f":"VLOOKUP(B74,Kode!A2:D215,4,FALSE)","v":{"$error":"#N/A"}},null,null,null,null,null,null,null,null,null,null,null,null,null,{"$f":"VLOOKUP(B74,Kode!A2:E215,5,FALSE)","v":{"$error":"#N/A"}},null,null,null,null,null,null,null,{"$error":"#DIV/0!"}]
[{"$f":"VLOOKUP(B75,Kode!A2:C215,3,FALSE)","v":{"$error":"#N/A"}},null,{"$f":"VLOOKUP(B75,Kode!A2:D215,4,FALSE)","v":{"$error":"#N/A"}},null,null,null,null,null,null,null,null,null,null,null,null,null,{"$f":"VLOOKUP(B75,Kode!A2:E215,5,FALSE)","v":{"$error":"#N/A"}},null,null,null,null,null,null,null,{"$error":"#DIV/0!"}]
[{"$f":"VLOOKUP(B76,Kode!A2:C215,3,FALSE)","v":{"$error":"#N/A"}},null,{"$f":"VLOOKUP(B76,Kode!A2:D215,4,FALSE)","v":{"$error":"#N/A"}},null,null,null,null,null,null,null,null,null,null,null,null,null,{"$f":"VLOOKUP(B76,Kode!A2:E215,5,FALSE)","v":{"$error":"#N/A"}},null,null,null,null,null,null,null,{"$error":"#DIV/0!"}]
[{"$f":"VLOOKUP(B77,Kode!A2:C215,3,FALSE)","v":{"$error":"#N/A"}},null,{"$f":"VLOOKUP(B77,Kode!A2:D215,4,FALSE)","v":{"$error":"#N/A"}},null,null,null,null,null,null,null,null,null,null,null,null,null,{"$f":"VLOOKUP(B77,Kode!A2:E215,5,FALSE)","v":{"$error":"#N/A"}},null,null,null,null,null,null,null,{"$error":"#DIV/0!"}]
[{"$f":"VLOOKUP(B78,Kode!A2:C215,3,FALSE)","v":{"$error":"#N/A"}},null,{"$f":"VLOOKUP(B78,Kode!A2:D215,4,FALSE)","v":{"$error":"#N/A"}},null,null,null,null,null,null,null,null,null,null,null,null,null,{"$f":"VLOOKUP(B78,Kode!A2:E215,5,FALSE)","v":{"$error":"#N/A"}},null,null,null,null,null,null,null,{"$error":"#DIV/0!"}]
[{"$f":"VLOOKUP(B79,Kode!A2:C215,3,FALSE)","v":{"$error":"#N/A"}},null,{"$f":"VLOOKUP(B79,Kode!A2:D215,4,FALSE)","v":{"$error":"#N/A"}},null,null,null,null,null,null,null,null,null,null,null,null,null,{"$f":"VLOOKUP(B79,Kode!A2:E215,5,FALSE)","v":{"$error":"#N/A"}},null,null,null,null,null,null,null,{"$error":"#DIV/0!"}]
[{"$f":"VLOOKUP(B80,Kode!A2:C215,3,FALSE)","v":{"$error":"#N/A"}},null,{"$f":"VLOOKUP(B80,Kode!A2:D215,4,FALSE)","v":{"$error":"#N/A"}},null,null,null,null,null,null,null,null,null,null,null,null,null,{"$f":"VLOOKUP(B80,Kode!A2:E215,5,FALSE)","v":{"$error":"#N/A"}},null,null,null,null,null,null,null,{"$error":"#DIV/0!"}]
[{"$f":"VLOOKUP(B81,Kode!A2:C215,3,FALSE)","v":{"$error":"#N/A"}},null,{"$f":"VLOOKUP(B81,Kode!A2:D215,4,FALSE)","v":{"$error":"#N/A"}},null,null,null,null,null,null,null,null,null,null,null,null,null,{"$f":"VLOOKUP(B81,Kode!A2:E215,5,FALSE)","v":{"$error":"#N/A"}},null,null,null,null,null,null,null,{"$error":"#DIV/0!"}]
[{"$f":"VLOOKUP(B82,Kode!A2:C215,3,FALSE)","v":{"$error":"#N/A"}},null,{"$f":"VLOOKUP(B82,Kode!A2:D215,4,FALSE)","v":{"$error":"#N/A"}},null,null,null,null,null,null,null,null,null,null,null,null,null,{"$f":"VLOOKUP(B82,Kode!A2:E215,5,FALSE)","v":{"$error":"#N/A"}},null,null,null,null,null,null,null,{"$error":"#DIV/0!"}]
[{"$f":"VLOOKUP(B83,Kode!A2:C215,3,FALSE)","v":{"$error":"#N/A"}},null,{"$f":"VLOOKUP(B83,Kode!A2:D215,4,FALSE)","v":{"$error":"#N/A"}},null,null,null,null,null,null,null,null,null,null,null,null,null,{"$f":"VLOOKUP(B83,Kode!A2:E215,5,FALSE)","v":{"$error":"#N/A"}},null,null,null,null,null,null,null,{"$error":"#DIV/0!"}]
[{"$f":"VLOOKUP(B84,Kode!A2:C215,3,FALSE)","v":{"$error":"#N/A"}},null,{"$f":"VLOOKUP(B84,Kode!A2:D215,4,FALSE)","v":{"$error":"#N/A"}},null,null,null,null,null,null,null,null,null,null,null,null,null,{"$f":"VLOOKUP(B84,Kode!A2:E215,5,FALSE)","v":{"$error":"#N/A"}},null,null,null,null,null,null,null,{"$error":"#DIV/0!"}]
[{"$f":"VLOOKUP(B85,Kode!A2:C215,3,FALSE)","v":{"$error":"#N/A"}},null,{"$f":"VLOOKUP(B85,Kode!A2:D215,4,FALSE)","v":{"$error":"#N/A"}},null,null,null,null,null,null,null,null,null,null,null,null,null,{"$f":"VLOOKUP(B85,Kode!A2:E215,5,FALSE)","v":{"$error":"#N/A"}},null,null,null,null,null,null,null,{"$error":"#DIV/0!"}]
[{"$f":"VLOOKUP(B86,Kode!A2:C215,3,FALSE)","v":{"$error":"#N/A"}},null,{"$f":"VLOOKUP(B86,Kode!A2:D215,4,FALSE)","v":{"$error":"#N/A"}},null,null,null,null,null,null,null,null,null,null,null,null,null,{"$f":"VLOOKUP(B86,Kode!A2:E215,5,FALSE)","v":{"$error":"#N/A"}},null,null,null,null,null,null,null,{"$error":"#DIV/0!"}]
[{"$f":"VLOOKUP(B87,Kode!A2:C215,3,FALSE)","v":{"$error":"#N/A"}},null,{"$f":"VLOOKUP(B87,Kode!A2:D215,4,FALSE)","v":{"$error":"#N/A"}},null,null,null,null,null,null,null,null,null,null,null,null,null,{"$f":"VLOOKUP(B87,Kode!A2:E215,5,FALSE)","v":{"$error":"#N/A"}},null,null,null,null,null,null,null,{"$error":"#DIV/0!"}]
[{"$f":"VLOOKUP(B88,Kode!A2:C215,3,FALSE)","v":{"$error":"#N/A"}},null,{"$f":"VLOOKUP(B88,Kode!A2:D215,4,FALSE)","v":{"$error":"#N/A"}},null,null,null,null,null,null,null,null,null,null,null,null,null,{"$f":"VLOOKUP(B88,Kode!A2:E215,5,FALSE)","v":{"$error":"#N/A"}},null,null,null,null,null,null,null,{"$error":"#DIV/0!"}]
[{"$f":"VLOOKUP(B89,Kode!A2:C215,3,FALSE)","v":{"$error":"#N/A"}},null,{"$f":"VLOOKUP(B89,Kode!A2:D215,4,FALSE)","v":{"$error":"#N/A"}},null,null,null,null,null,null,null,null,null,null,null,null,null,{"$f":"VLOOKUP(B89,Kode!A2:E215,5,FALSE)","v":{"$error":"#N/A"}},null,null,null,null,null,null,null,{"$error":"#DIV/0!"}]
[{"$f":"VLOOKUP(B90,Kode!A2:C215,3,FALSE)","v":{"$error":"#N/A"}},null,{"$f":"VLOOKUP(B90,Kode!A2:D215,4,FALSE)","v":{"$error":"#N/A"}},null,null,null,null,null,null,null,null,null,null,null,null,null,{"$f":"VLOOKUP(B90,Kode!A2:E215,5,FALSE)","v":{"$error":"#N/A"}},null,null,null,null,null,null,null,{"$error":"#DIV/0!"}]
[{"$f":"VLOOKUP(B91,Kode!A2:C215,3,FALSE)","v":{"$error":"#N/A"}},null,{"$f":"VLOOKUP(B91,Kode!A2:D215,4,FALSE)","v":{"$error":"#N/A"}},null,null,null,null,null,null,null,null,null,null,null,null,null,{"$f":"VLOOKUP(B91,Kode!A2:E215,5,FALSE)","v":{"$error":"#N/A"}},null,null,null,null,null,null,null,{"$error":"#DIV/0!"}]
[{"$f":"VLOOKUP(B92,Kode!A2:C215,3,FALSE)","v":{"$error":"#N/A"}},null,{"$f":"VLOOKUP(B92,Kode!A2:D215,4,FALSE)","v":{"$error":"#N/A"}},null,null,null,null,null,null,null,null,null,null,null,null,null,{"$f":"VLOOKUP(B92,Kode!A2:E215,5,FALSE)","v":{"$error":"#N/A"}},null,null,null,null,null,null,null,{"$error":"#DIV/0!"}]
[{"$f":"VLOOKUP(B93,Kode!A2:C215,3,FALSE)","v":{"$error":"#N/A"}},null,{"$f":"VLOOKUP(B93,Kode!A2:D215,4,FALSE)","v":{"$error":"#N/A"}},null,null,null,null,null,null,null,null,null,null,null,null,null,{"$f":"VLOOKUP(B93,Kode!A2:E215,5,FALSE)","v":{"$error":"#N/A"}},null,null,null,null,null,null,null,{"$error":"#DIV/0!"}]
[{"$f":"VLOOKUP(B94,Kode!A2:C215,3,FALSE)","v":{"$error":"#N/A"}},null,{"$f":"VLOOKUP(B94,Kode!A2:D215,4,FALSE)","v":{"$error":"#N/A"}},null,null,null,null,null,null,null,null,null,null,null,null,null,{"$f":"VLOOKUP(B94,Kode!A2:E215,5,FALSE)","v":{"$error":"#N/A"}},null,null,null,null,null,null,null,{"$error":"#DIV/0!"}]
[{"$f":"VLOOKUP(B95,Kode!A2:C215,3,FALSE)","v":{"$error":"#N/A"}},null,{"$f":"VLOOKUP(B95,Kode!A2:D215,4,FALSE)","v":{"$error":"#N/A"}},null,null,null,null,null,null,null,null,null,null,null,null,null,{"$f":"VLOOKUP(B95,Kode!A2:E215,5,FALSE)","v":{"$error":"#N/A"}},null,null,null,null,null,null,null,{"$error":"#DIV/0!"}]
[{"$f":"VLOOKUP(B96,Kode!A2:C215,3,FALSE)","v":{"$error":"#N/A"}},null,{"$f":"VLOOKUP(B96,Kode!A2:D215,4,FALSE)","v":{"$error":"#N/A"}},null,null,null,null,null,null,null,null,null,null,null,null,null,{"$f":"VLOOKUP(B96,Kode!A2:E215,5,FALSE)","v":{"$error":"#N/A"}},null,null,null,null,null,null,null,{"$error":"#DIV/0!"}]
[{"$f":"VLOOKUP(B97,Kode!A2:C215,3,FALSE)","v":{"$error":"#N/A"}},null,{"$f":"VLOOKUP(B97,Kode!A2:D215,4,FALSE)","v":{"$error":"#N/A"}},null,null,null,null,null,null,null,null,null,null,null,null,null,{"$f":"VLOOKUP(B97,Kode!A2:E215,5,FALSE)","v":{"$error":"#N/A"}},null,null,null,null,null,null,null,{"$error":"#DIV/0!"}]
[{"$f":"VLOOKUP(B98,Kode!A2:C215,3,FALSE)","v":{"$error":"#N/A"}},null,{"$f":"VLOOKUP(B98,Kode!A2:D215,4,FALSE)","v":{"$error":"#N/A"}},null,null,null,null,null,null,null,null,null,null,null,null,null,{"$f":"VLOOKUP(B98,Kode!A2:E215,5,FALSE)","v":{"$error":"#N/A"}},null,null,null,null,null,null,null,{"$error":"#DIV/0!"}]
[{"$f":"VLOOKUP(B99,Kode!A2:C215,3,FALSE)","v":{"$error":"#N/A"}},null,{"$f":"VLOOKUP(B99,Kode!A2:D215,4,FALSE)","v":{"$error":"#N/A"}},null,null,null,null,null,null,null,null,null,null,null,null,null,{"$f":"VLOOKUP(B99,Kode!A2:E215,5,FALSE)","v":{"$error":"#N/A"}},null,null,null,null,null,null,null,{"$error":"#DIV/0!"}]
[{"$f":"VLOOKUP(B100,Kode!A2:C215,3,FALSE)","v":{"$error":"#N/A"}},null,{"$f":"VLOOKUP(B100,Kode!A2:D215,4,FALSE)","v":{"$error":"#N/A"}},null,null,null,null,null,null,null,null,null,null,null,null,null,{"$f":"VLOOKUP(B100,Kode!A2:E215,5,FALSE)","v":{"$error":"#N/A"}},null,null,null,null,null,null,null,{"$error":"#DIV/0!"}]
[{"$f":"VLOOKUP(B101,Kode!A2:C215,3,FALSE)","v":{"$error":"#N/A"}},null,{"$f":"VLOOKUP(B101,Kode!A2:D215,4,FALSE)","v":{"$error":"#N/A"}},null,null,null,null,null,null,null,null,null,null,null,null,null,{"$f":"VLOOKUP(B101,Kode!A2:E215,5,FALSE)","v":{"$error":"#N/A"}},null,null,null,null,null,null,null,{"$error":"#DIV/0!"}]
[{"$f":"VLOOKUP(B102,Kode!A2:C215,3,FALSE)","v":{"$error":"#N/A"}},null,{"$f":"VLOOKUP(B102,Kode!A2:D215,4,FALSE)","v":{"$error":"#N/A"}},null,null,null,null,null,null,null,null,null,null,null,null,null,{"$f":"VLOOKUP(B102,Kode!A2:E215,5,FALSE)","v":{"$error":"#N/A"}},null,null,null,null,null,null,null,{"$error":"#DIV/0!"}]
[{"$f":"VLOOKUP(B103,Kode!A2:C215,3,FALSE)","v":{"$error":"#N/A"}},null,{"$f":"VLOOKUP(B103,Kode!A2:D215,4,FALSE)","v":{"$error":"#N/A"}},null,null,null,null,null,null,null,null,null,null,null,null,null,{"$f":"VLOOKUP(B103,Kode!A2:E215,5,FALSE)","v":{"$error":"#N/A"}},null,null,null,null,null,null,null,{"$error":"#DIV/0!"}]
[{"$f":"VLOOKUP(B104,Kode!A2:C215,3,FALSE)","v":{"$error":"#N/A"}},null,{"$f":"VLOOKUP(B104,Kode!A2:D215,4,FALSE)","v":{"$error":"#N/A"}},null,null,null,null,null,null,null,null,null,null,null,null,null,{"$f":"VLOOKUP(B104,Kode!A2:E215,5,FALSE)","v":{"$error":"#N/A"}},null,null,null,null,null,null,null,{"$error":"#DIV/0!"}]
[{"$f":"VLOOKUP(B105,Kode!A2:C215,3,FALSE)","v":{"$error":"#N/A"}},null,{"$f":"VLOOKUP(B105,Kode!A2:D215,4,FALSE)","v":{"$error":"#N/A"}},null,null,null,null,null,null,null,null,null,null,null,null,null,{"$f":"VLOOKUP(B105,Kode!A2:E215,5,FALSE)","v":{"$error":"#N/A"}},null,null,null,null,null,null,null,{"$error":"#DIV/0!"}]
[{"$f":"VLOOKUP(B106,Kode!A2:C215,3,FALSE)","v":{"$error":"#N/A"}},null,{"$f":"VLOOKUP(B106,Kode!A2:D215,4,FALSE)","v":{"$error":"#N/A"}},null,null,null,null,null,null,null,null,null,null,null,null,null,{"$f":"VLOOKUP(B106,Kode!A2:E215,5,FALSE)","v":{"$error":"#N/A"}},null,null,null,null,null,null,null,{"$error":"#DIV/0!"}]
[{"$f":"VLOOKUP(B107,Kode!A2:C215,3,FALSE)","v":{"$error":"#N/A"}},null,{"$f":"VLOOKUP(B107,Kode!A2:D215,4,FALSE)","v":{"$error":"#N/A"}},null,null,null,null,null,null,null,null,null,null,null,null,null,{"$f":"VLOOKUP(B107,Kode!A2:E215,5,FALSE)","v":{"$error":"#N/A"}},null,null,null,null,null,null,null,{"$error":"#DIV/0!"}]
[{"$f":"VLOOKUP(B108,Kode!A2:C215,3,FALSE)","v":{"$error":"#N/A"}},null,{"$f":"VLOOKUP(B108,Kode!A2:D215,4,FALSE)","v":{"$error":"#N/A"}},null,null,null,null,null,null,null,null,null,null,null,null,null,{"$f":"VLOOKUP(B108,Kode!A2:E215,5,FALSE)","v":{"$error":"#N/A"}},null,null,null,null,null,null,null,{"$error":"#DIV/0!"}]
[{"$f":"VLOOKUP(B109,Kode!A2:C215,3,FALSE)","v":{"$error":"#N/A"}},null,{"$f":"VLOOKUP(B109,Kode!A2:D215,4,FALSE)","v":{"$error":"#N/A"}},null,null,null,null,null,null,null,null,null,null,null,null,null,{"$f":"VLOOKUP(B109,Kode!A2:E215,5,FALSE)","v":{"$error":"#N/A"}},null,null,null,null,null,null,null,{"$error":"#DIV/0!"}]
[{"$f":"VLOOKUP(B110,Kode!A2:C215,3,FALSE)","v":{"$error":"#N/A"}},null,{"$f":"VLOOKUP(B110,Kode!A2:D215,4,FALSE)","v":{"$error":"#N/A"}},null,null,null,null,null,null,null,null,null,null,null,null,null,{"$f":"VLOOKUP(B110,Kode!A2:E215,5,FALSE)","v":{"$error":"#N/A"}},null,null,null,null,null,null,null,{"$error":"#DIV/0!"}]
[{"$f":"VLOOKUP(B111,Kode!A2:C215,3,FALSE)","v":{"$error":"#N/A"}},null,{"$f":"VLOOKUP(B111,Kode!A2:D215,4,FALSE)","v":{"$error":"#N/A"}},null,null,null,null,null,null,null,null,null,null,null,null,null,{"$f":"VLOOKUP(B111,Kode!A2:E215,5,FALSE)","v":{"$error":"#N/A"}},null,null,null,null,null,null,null,{"$error":"#DIV/0!"}]
[{"$f":"VLOOKUP(B112,Kode!A2:C215,3,FALSE)","v":{"$error":"#N/A"}},null,{"$f":"VLOOKUP(B112,Kode!A2:D215,4,FALSE)","v":{"$error":"#N/A"}},null,null,null,null,null,null,null,null,null,null,null,null,null,{"$f":"VLOOKUP(B112,Kode!A2:E215,5,FALSE)","v":{"$error":"#N/A"}},null,null,null,null,null,null,null,{"$error":"#DIV/0!"}]
[{"$f":"VLOOKUP(B113,Kode!A2:C215,3,FALSE)","v":{"$error":"#N/A"}},null,{"$f":"VLOOKUP(B113,Kode!A2:D215,4,FALSE)","v":{"$error":"#N/A"}},null,null,null,null,null,null,null,null,null,null,null,null,null,{"$f":"VLOOKUP(B113,Kode!A2:E215,5,FALSE)","v":{"$error":"#N/A"}},null,null,null,null,null,null,null,{"$error":"#DIV/0!"}]
[{"$f":"VLOOKUP(B114,Kode!A2:C215,3,FALSE)","v":{"$error":"#N/A"}},null,{"$f":"VLOOKUP(B114,Kode!A2:D215,4,FALSE)","v":{"$error":"#N/A"}},null,null,null,null,null,null,null,null,null,null,null,null,null,{"$f":"VLOOKUP(B114,Kode!A2:E215,5,FALSE)","v":{"$error":"#N/A"}},null,null,null,null,null,null,null,{"$error":"#DIV/0!"}]
[{"$f":"VLOOKUP(B115,Kode!A2:C215,3,FALSE)","v":{"$error":"#N/A"}},null,{"$f":"VLOOKUP(B115,Kode!A2:D215,4,FALSE)","v":{"$error":"#N/A"}},null,null,null,null,null,null,null,null,null,null,null,null,null,{"$f":"VLOOKUP(B115,Kode!A2:E215,5,FALSE)","v":{"$error":"#N/A"}},null,null,null,null,null,null,null,{"$error":"#DIV/0!"}]
[{"$f":"VLOOKUP(B116,Kode!A2:C215,3,FALSE)","v":{"$error":"#N/A"}},null,{"$f":"VLOOKUP(B116,Kode!A2:D215,4,FALSE)","v":{"$error":"#N/A"}},null,null,null,null,null,null,null,null,null,null,null,null,null,{"$f":"VLOOKUP(B116,Kode!A2:E215,5,FALSE)","v":{"$error":"#N/A"}},null,null,null,null,null,null,null,{"$error":"#DIV/0!"}]
[{"$f":"VLOOKUP(B117,Kode!A2:C215,3,FALSE)","v":{"$error":"#N/A"}},null,{"$f":"VLOOKUP(B117,Kode!A2:D215,4,FALSE)","v":{"$error":"#N/A"}},null,null,null,null,null,null,null,null,null,null,null,null,null,{"$f":"VLOOKUP(B117,Kode!A2:E215,5,FALSE)","v":{"$error":"#N/A"}},null,null,null,null,null,null,null,{"$error":"#DIV/0!"}]
[{"$f":"VLOOKUP(B118,Kode!A2:C215,3,FALSE)","v":{"$error":"#N/A"}},null,{"$f":"VLOOKUP(B118,Kode!A2:D215,4,FALSE)","v":{"$error":"#N/A"}},null,null,null,null,null,null,null,null,null,null,null,null,null,{"$f":"VLOOKUP(B118,Kode!A2:E215,5,FALSE)","v":{"$error":"#N/A"}},null,null,null,null,null,null,null,{"$error":"#DIV/0!"}]
[{"$f":"VLOOKUP(B119,Kode!A2:C215,3,FALSE)","v":{"$error":"#N/A"}},null,{"$f":"VLOOKUP(B119,Kode!A2:D215,4,FALSE)","v":{"$error":"#N/A"}},null,null,null,null,null,null,null,null,null,null,null,null,null,{"$f":"VLOOKUP(B119,Kode!A2:E215,5,FALSE)","v":{"$error":"#N/A"}},null,null,null,null,null,null,null,{"$error":"#DIV/0!"}]
[{"$f":"VLOOKUP(B120,Kode!A2:C215,3,FALSE)","v":{"$error":"#N/A"}},null,{"$f":"VLOOKUP(B120,Kode!A2:D215,4,FALSE)","v":{"$error":"#N/A"}},null,null,null,null,null,null,null,null,null,null,null,null,null,{"$f":"VLOOKUP(B120,Kode!A2:E215,5,FALSE)","v":{"$error":"#N/A"}},null,null,null,null,null,null,null,{"$error":"#DIV/0!"}]
[{"$f":"VLOOKUP(B121,Kode!A2:C215,3,FALSE)","v":{"$error":"#N/A"}},null,{"$f":"VLOOKUP(B121,Kode!A2:D215,4,FALSE)","v":{"$error":"#N/A"}},null,null,null,null,null,null,null,null,null,null,null,null,null,{"$f":"VLOOKUP(B121,Kode!A2:E215,5,FALSE)","v":{"$error":"#N/A"}},null,null,null,null,null,null,null,{"$error":"#DIV/0!"}]
[{"$f":"VLOOKUP(B122,Kode!A2:C215,3,FALSE)","v":{"$error":"#N/A"}},null,{"$f":"VLOOKUP(B122,Kode!A2:D215,4,FALSE)","v":{"$error":"#N/A"}},null,null,null,null,null,null,null,null,null,null,null,null,null,{"$f":"VLOOKUP(B122,Kode!A2:E215,5,FALSE)","v":{"$error":"#N/A"}},null,null,null,null,null,null,null,{"$error":"#DIV/0!"}]
[{"$f":"VLOOKUP(B123,Kode!A2:C215,3,FALSE)","v":{"$error":"#N/A"}},null,{"$f":"VLOOKUP(B123,Kode!A2:D215,4,FALSE)","v":{"$error":"#N/A"}},null,null,null,null,null,null,null,null,null,null,null,null,null,{"$f":"VLOOKUP(B123,Kode!A2:E215,5,FALSE)","v":{"$error":"#N/A"}},null,null,null,null,null,null,null,{"$error":"#DIV/0!"}]
[{"$f":"VLOOKUP(B124,Kode!A2:C215,3,FALSE)","v":{"$error":"#N/A"}},null,{"$f":"VLOOKUP(B124,Kode!A2:D215,4,FALSE)","v":{"$error":"#N/A"}},null,null,null,null,null,null,null,null,null,null,null,null,null,{"$f":"VLOOKUP(B124,Kode!A2:E215,5,FALSE)","v":{"$error":"#N/A"}},null,null,null,null,null,null,null,{"$error":"#DIV/0!"}]
[{"$f":"VLOOKUP(B125,Kode!A2:C215,3,FALSE)","v":{"$error":"#N/A"}},null,{"$f":"VLOOKUP(B125,Kode!A2:D215,4,FALSE)","v":{"$error":"#N/A"}},null,null,null,null,null,null,null,null,null,null,null,null,null,{"$f":"VLOOKUP(B125,Kode!A2:E215,5,FALSE)","v":{"$error":"#N/A"}},null,null,null,null,null,null,null,{"$error":"#DIV/0!"}]
[{"$f":"VLOOKUP(B126,Kode!A2:C215,3,FALSE)","v":{"$error":"#N/A"}},null,{"$f":"VLOOKUP(B126,Kode!A2:D215,4,FALSE)","v":{"$error":"#N/A"}},null,null,null,null,null,null,null,null,null,null,null,null,null,{"$f":"VLOOKUP(B126,Kode!A2:E215,5,FALSE)","v":{"$error":"#N/A"}},null,null,null,null,null,null,null,{"$error":"#DIV/0!"}]
[{"$f":"VLOOKUP(B127,Kode!A2:C215,3,FALSE)","v":{"$error":"#N/A"}},null,{"$f":"VLOOKUP(B127,Kode!A2:D215,4,FALSE)","v":{"$error":"#N/A"}},null,null,null,null,null,null,null,null,null,null,null,null,null,{"$f":"VLOOKUP(B127,Kode!A2:E215,5,FALSE)","v":{"$error":"#N/A"}},null,null,null,null,null,null,null,{"$error":"#DIV/0!"}]
[{"$f":"VLOOKUP(B128,Kode!A2:C215,3,FALSE)","v":{"$error":"#N/A"}},null,{"$f":"VLOOKUP(B128,Kode!A2:D215,4,FALSE)","v":{"$error":"#N/A"}},null,null,null,null,null,null,null,null,null,null,null,null,null,{"$f":"VLOOKUP(B128,Kode!A2:E215,5,FALSE)","v":{"$error":"#N/A"}},null,null,null,null,null,null,null,{"$error":"#DIV/0!"}]
[{"$f":"VLOOKUP(B129,Kode!A2:C215,3,FALSE)","v":{"$error":"#N/A"}},null,{"$f":"VLOOKUP(B129,Kode!A2:D215,4,FALSE)","v":{"$error":"#N/A"}},null,null,null,null,null,null,null,null,null,null,null,null,null,{"$f":"VLOOKUP(B129,Kode!A2:E215,5,FALSE)","v":{"$error":"#N/A"}},null,null,null,null,null,null,null,{"$error":"#DIV/0!"}]
[{"$f":"VLOOKUP(B130,Kode!A2:C215,3,FALSE)","v":{"$error":"#N/A"}},null,{"$f":"VLOOKUP(B130,Kode!A2:D215,4,FALSE)","v":{"$error":"#N/A"}},null,null,null,null,null,null,null,null,null,null,null,null,null,{"$f":"VLOOKUP(B130,Kode!A2:E215,5,FALSE)","v":{"$error":"#N/A"}},null,null,null,null,null,null,null,{"$error":"#DIV/0!"}]
[{"$f":"VLOOKUP(B131,Kode!A2:C215,3,FALSE)","v":{"$error":"#N/A"}},null,{"$f":"VLOOKUP(B131,Kode!A2:D215,4,FALSE)","v":{"$error":"#N/A"}},null,null,null,null,null,null,null,null,null,null,null,null,null,{"$f":"VLOOKUP(B131,Kode!A2:E215,5,FALSE)","v":{"$error":"#N/A"}},null,null,null,null,null,null,null,{"$f":"U131/S131*100","v":{"$error":"#DIV/0!"}}]
[{"$f":"VLOOKUP(B132,Kode!A2:C215,3,FALSE)","v":{"$error":"#N/A"}},null,{"$f":"VLOOKUP(B132,Kode!A2:D215,4,FALSE)","v":{"$error":"#N/A"}},null,null,null,null,null,null,null,null,null,null,null,null,null,{"$f":"VLOOKUP(B132,Kode!A2:E215,5,FALSE)","v":{"$error":"#N/A"}},null,null,null,null,null,null,null,{"$error":"#DIV/0!"}]
[{"$f":"VLOOKUP(B133,Kode!A2:C215,3,FALSE)","v":{"$error":"#N/A"}},null,{"$f":"VLOOKUP(B133,Kode!A2:D215,4,FALSE)","v":{"$error":"#N/A"}},null,null,null,null,null,null,null,null,null,null,null,null,null,{"$f":"VLOOKUP(B133,Kode!A2:E215,5,FALSE)","v":{"$error":"#N/A"}},null,null,null,null,null,null,null,{"$error":"#DIV/0!"}]
[{"$f":"VLOOKUP(B134,Kode!A2:C215,3,FALSE)","v":{"$error":"#N/A"}},null,{"$f":"VLOOKUP(B134,Kode!A2:D215,4,FALSE)","v":{"$error":"#N/A"}},null,null,null,null,null,null,null,null,null,null,null,null,null,{"$f":"VLOOKUP(B134,Kode!A2:E215,5,FALSE)","v":{"$error":"#N/A"}},null,null,null,null,null,null,null,{"$error":"#DIV/0!"}]
[{"$f":"VLOOKUP(B135,Kode!A2:C215,3,FALSE)","v":{"$error":"#N/A"}},null,{"$f":"VLOOKUP(B135,Kode!A2:D215,4,FALSE)","v":{"$error":"#N/A"}},null,null,null,null,null,null,null,null,null,null,null,null,null,{"$f":"VLOOKUP(B135,Kode!A2:E215,5,FALSE)","v":{"$error":"#N/A"}},null,null,null,null,null,null,null,{"$error":"#DIV/0!"}]
[{"$f":"VLOOKUP(B136,Kode!A2:C215,3,FALSE)","v":{"$error":"#N/A"}},null,{"$f":"VLOOKUP(B136,Kode!A2:D215,4,FALSE)","v":{"$error":"#N/A"}},null,null,null,null,null,null,null,null,null,null,null,null,null,{"$f":"VLOOKUP(B136,Kode!A2:E215,5,FALSE)","v":{"$error":"#N/A"}},null,null,null,null,null,null,null,{"$error":"#DIV/0!"}]
[{"$f":"VLOOKUP(B137,Kode!A2:C215,3,FALSE)","v":{"$error":"#N/A"}},null,{"$f":"VLOOKUP(B137,Kode!A2:D215,4,FALSE)","v":{"$error":"#N/A"}},null,null,null,null,null,null,null,null,null,null,null,null,null,{"$f":"VLOOKUP(B137,Kode!A2:E215,5,FALSE)","v":{"$error":"#N/A"}},null,null,null,null,null,null,null,{"$error":"#DIV/0!"}]
[{"$f":"VLOOKUP(B138,Kode!A2:C215,3,FALSE)","v":{"$error":"#N/A"}},null,{"$f":"VLOOKUP(B138,Kode!A2:D215,4,FALSE)","v":{"$error":"#N/A"}},null,null,null,null,null,null,null,null,null,null,null,null,null,{"$f":"VLOOKUP(B138,Kode!A2:E215,5,FALSE)","v":{"$error":"#N/A"}},null,null,null,null,null,null,null,{"$error":"#DIV/0!"}]
[{"$f":"VLOOKUP(B139,Kode!A2:C215,3,FALSE)","v":{"$error":"#N/A"}},null,{"$f":"VLOOKUP(B139,Kode!A2:D215,4,FALSE)","v":{"$error":"#N/A"}},null,null,null,null,null,null,null,null,null,null,null,null,null,{"$f":"VLOOKUP(B139,Kode!A2:E215,5,FALSE)","v":{"$error":"#N/A"}},null,null,null,null,null,null,null,{"$error":"#DIV/0!"}]
[{"$f":"VLOOKUP(B140,Kode!A2:C215,3,FALSE)","v":{"$error":"#N/A"}},null,{"$f":"VLOOKUP(B140,Kode!A2:D215,4,FALSE)","v":{"$error":"#N/A"}},null,null,null,null,null,null,null,null,null,null,null,null,null,{"$f":"VLOOKUP(B140,Kode!A2:E215,5,FALSE)","v":{"$error":"#N/A"}},null,null,null,null,null,null,null,{"$error":"#DIV/0!"}]
[{"$f":"VLOOKUP(B141,Kode!A2:C215,3,FALSE)","v":{"$error":"#N/A"}},null,{"$f":"VLOOKUP(B141,Kode!A2:D215,4,FALSE)","v":{"$error":"#N/A"}},null,null,null,null,null,null,null,null,null,null,null,null,null,{"$f":"VLOOKUP(B141,Kode!A2:E215,5,FALSE)","v":{"$error":"#N/A"}},null,null,null,null,null,null,null,{"$error":"#DIV/0!"}]
[{"$f":"VLOOKUP(B142,Kode!A2:C215,3,FALSE)","v":{"$error":"#N/A"}},null,{"$f":"VLOOKUP(B142,Kode!A2:D215,4,FALSE)","v":{"$error":"#N/A"}},null,null,null,null,null,null,null,null,null,null,null,null,null,{"$f":"VLOOKUP(B142,Kode!A2:E215,5,FALSE)","v":{"$error":"#N/A"}},null,null,null,null,null,null,null,{"$error":"#DIV/0!"}]
[{"$f":"VLOOKUP(B143,Kode!A2:C215,3,FALSE)","v":{"$error":"#N/A"}},null,{"$f":"VLOOKUP(B143,Kode!A2:D215,4,FALSE)","v":{"$error":"#N/A"}},null,null,null,null,null,null,null,null,null,null,null,null,null,{"$f":"VLOOKUP(B143,Kode!A2:E215,5,FALSE)","v":{"$error":"#N/A"}},null,null,null,null,null,null,null,{"$error":"#DIV/0!"}]
[{"$f":"VLOOKUP(B144,Kode!A2:C215,3,FALSE)","v":{"$error":"#N/A"}},null,{"$f":"VLOOKUP(B144,Kode!A2:D215,4,FALSE)","v":{"$error":"#N/A"}},null,null,null,null,null,null,null,null,null,null,null,null,null,{"$f":"VLOOKUP(B144,Kode!A2:E215,5,FALSE)","v":{"$error":"#N/A"}},null,null,null,null,null,null,null,{"$error":"#DIV/0!"}]
[{"$f":"VLOOKUP(B145,Kode!A2:C215,3,FALSE)","v":{"$error":"#N/A"}},null,{"$f":"VLOOKUP(B145,Kode!A2:D215,4,FALSE)","v":{"$error":"#N/A"}},null,null,null,null,null,null,null,null,null,null,null,null,null,{"$f":"VLOOKUP(B145,Kode!A2:E215,5,FALSE)","v":{"$error":"#N/A"}},null,null,null,null,null,null,null,{"$error":"#DIV/0!"}]
[{"$f":"VLOOKUP(B146,Kode!A2:C215,3,FALSE)","v":{"$error":"#N/A"}},null,{"$f":"VLOOKUP(B146,Kode!A2:D215,4,FALSE)","v":{"$error":"#N/A"}},null,null,null,null,null,null,null,null,null,null,null,null,null,{"$f":"VLOOKUP(B146,Kode!A2:E215,5,FALSE)","v":{"$error":"#N/A"}},null,null,null,null,null,null,null,{"$error":"#DIV/0!"}]
[{"$f":"VLOOKUP(B147,Kode!A2:C215,3,FALSE)","v":{"$error":"#N/A"}},null,{"$f":"VLOOKUP(B147,Kode!A2:D215,4,FALSE)","v":{"$error":"#N/A"}},null,null,null,null,null,null,null,null,null,null,null,null,null,{"$f":"VLOOKUP(B147,Kode!A2:E215,5,FALSE)","v":{"$error":"#N/A"}},null,null,null,null,null,null,null,{"$error":"#DIV/0!"}]
[{"$f":"VLOOKUP(B148,Kode!A2:C215,3,FALSE)","v":{"$error":"#N/A"}},null,{"$f":"VLOOKUP(B148,Kode!A2:D215,4,FALSE)","v":{"$error":"#N/A"}},null,null,null,null,null,null,null,null,null,null,null,null,null,{"$f":"VLOOKUP(B148,Kode!A2:E215,5,FALSE)","v":{"$error":"#N/A"}},null,null,null,null,null,null,null,{"$error":"#DIV/0!"}]
[{"$f":"VLOOKUP(B149,Kode!A2:C215,3,FALSE)","v":{"$error":"#N/A"}},null,{"$f":"VLOOKUP(B149,Kode!A2:D215,4,FALSE)","v":{"$error":"#N/A"}},null,null,null,null,null,null,null,null,null,null,null,null,null,{"$f":"VLOOKUP(B149,Kode!A2:E215,5,FALSE)","v":{"$error":"#N/A"}},null,null,null,null,null,null,null,{"$error":"#DIV/0!"}]
[{"$f":"VLOOKUP(B150,Kode!A2:C215,3,FALSE)","v":{"$error":"#N/A"}},null,{"$f":"VLOOKUP(B150,Kode!A2:D215,4,FALSE)","v":{"$error":"#N/A"}},null,null,null,null,null,null,null,null,null,null,null,null,null,{"$f":"VLOOKUP(B150,Kode!A2:E215,5,FALSE)","v":{"$error":"#N/A"}},null,null,null,null,null,null,null,{"$error":"#DIV/0!"}]
[{"$f":"VLOOKUP(B151,Kode!A2:C215,3,FALSE)","v":{"$error":"#N/A"}},null,{"$f":"VLOOKUP(B151,Kode!A2:D215,4,FALSE)","v":{"$error":"#N/A"}},null,null,null,null,null,null,null,null,null,null,null,null,null,{"$f":"VLOOKUP(B151,Kode!A2:E215,5,FALSE)","v":{"$error":"#N/A"}},null,null,null,null,null,null,null,{"$error":"#DIV/0!"}]
[{"$f":"VLOOKUP(B152,Kode!A2:C215,3,FALSE)","v":{"$error":"#N/A"}},null,{"$f":"VLOOKUP(B152,Kode!A2:D215,4,FALSE)","v":{"$error":"#N/A"}},null,null,null,null,null,null,null,null,null,null,null,null,null,{"$f":"VLOOKUP(B152,Kode!A2:E215,5,FALSE)","v":{"$error":"#N/A"}},null,null,null,null,null,null,null,{"$error":"#DIV/0!"}]
[{"$f":"VLOOKUP(B153,Kode!A2:C215,3,FALSE)","v":{"$error":"#N/A"}},null,{"$f":"VLOOKUP(B153,Kode!A2:D215,4,FALSE)","v":{"$error":"#N/A"}},null,null,null,null,null,null,null,null,null,null,null,null,null,{"$f":"VLOOKUP(B153,Kode!A2:E215,5,FALSE)","v":{"$error":"#N/A"}},null,null,null,null,null,null,null,{"$error":"#DIV/0!"}]
[{"$f":"VLOOKUP(B154,Kode!A2:C215,3,FALSE)","v":{"$error":"#N/A"}},null,{"$f":"VLOOKUP(B154,Kode!A2:D215,4,FALSE)","v":{"$error":"#N/A"}},null,null,null,null,null,null,null,null,null,null,null,null,null,{"$f":"VLOOKUP(B154,Kode!A2:E215,5,FALSE)","v":{"$error":"#N/A"}},null,null,null,null,null,null,null,{"$error":"#DIV/0!"}]
[{"$f":"VLOOKUP(B155,Kode!A2:C215,3,FALSE)","v":{"$error":"#N/A"}},null,{"$f":"VLOOKUP(B155,Kode!A2:D215,4,FALSE)","v":{"$error":"#N/A"}},null,null,null,null,null,null,null,null,null,null,null,null,null,{"$f":"VLOOKUP(B155,Kode!A2:E215,5,FALSE)","v":{"$error":"#N/A"}},null,null,null,null,null,null,null,{"$error":"#DIV/0!"}]
[{"$f":"VLOOKUP(B156,Kode!A2:C215,3,FALSE)","v":{"$error":"#N/A"}},null,{"$f":"VLOOKUP(B156,Kode!A2:D215,4,FALSE)","v":{"$error":"#N/A"}},null,null,null,null,null,null,null,null,null,null,null,null,null,{"$f":"VLOOKUP(B156,Kode!A2:E215,5,FALSE)","v":{"$error":"#N/A"}},null,null,null,null,null,null,null,{"$error":"#DIV/0!"}]
[{"$f":"VLOOKUP(B157,Kode!A2:C215,3,FALSE)","v":{"$error":"#N/A"}},null,{"$f":"VLOOKUP(B157,Kode!A2:D215,4,FALSE)","v":{"$error":"#N/A"}},null,null,null,null,null,null,null,null,null,null,null,null,null,{"$f":"VLOOKUP(B157,Kode!A2:E215,5,FALSE)","v":{"$error":"#N/A"}},null,null,null,null,null,null,null,{"$error":"#DIV/0!"}]
[{"$f":"VLOOKUP(B158,Kode!A2:C215,3,FALSE)","v":{"$error":"#N/A"}},null,{"$f":"VLOOKUP(B158,Kode!A2:D215,4,FALSE)","v":{"$error":"#N/A"}},null,null,null,null,null,null,null,null,null,null,null,null,null,{"$f":"VLOOKUP(B158,Kode!A2:E215,5,FALSE)","v":{"$error":"#N/A"}},null,null,null,null,null,null,null,{"$error":"#DIV/0!"}]
[{"$f":"VLOOKUP(B159,Kode!A2:C215,3,FALSE)","v":{"$error":"#N/A"}},null,{"$f":"VLOOKUP(B159,Kode!A2:D215,4,FALSE)","v":{"$error":"#N/A"}},null,null,null,null,null,null,null,null,null,null,null,null,null,{"$f":"VLOOKUP(B159,Kode!A2:E215,5,FALSE)","v":{"$error":"#N/A"}},null,null,null,null,null,null,null,{"$error":"#DIV/0!"}]
[{"$f":"VLOOKUP(B160,Kode!A2:C215,3,FALSE)","v":{"$error":"#N/A"}},null,{"$f":"VLOOKUP(B160,Kode!A2:D215,4,FALSE)","v":{"$error":"#N/A"}},null,null,null,null,null,null,null,null,null,null,null,null,null,{"$f":"VLOOKUP(B160,Kode!A2:E215,5,FALSE)","v":{"$error":"#N/A"}},null,null,null,null,null,null,null,{"$error":"#DIV/0!"}]
[{"$f":"VLOOKUP(B161,Kode!A2:C215,3,FALSE)","v":{"$error":"#N/A"}},null,{"$f":"VLOOKUP(B161,Kode!A2:D215,4,FALSE)","v":{"$error":"#N/A"}},null,null,null,null,null,null,null,null,null,null,null,null,null,{"$f":"VLOOKUP(B161,Kode!A2:E215,5,FALSE)","v":{"$error":"#N/A"}},null,null,null,null,null,null,null,{"$error":"#DIV/0!"}]
[{"$f":"VLOOKUP(B162,Kode!A2:C215,3,FALSE)","v":{"$error":"#N/A"}},null,{"$f":"VLOOKUP(B162,Kode!A2:D215,4,FALSE)","v":{"$error":"#N/A"}},null,null,null,null,null,null,null,null,null,null,null,null,null,{"$f":"VLOOKUP(B162,Kode!A2:E215,5,FALSE)","v":{"$error":"#N/A"}},null,null,null,null,null,null,null,{"$error":"#DIV/0!"}]
[{"$f":"VLOOKUP(B163,Kode!A2:C215,3,FALSE)","v":{"$error":"#N/A"}},null,{"$f":"VLOOKUP(B163,Kode!A2:D215,4,FALSE)","v":{"$error":"#N/A"}},null,null,null,null,null,null,null,null,null,null,null,null,null,{"$f":"VLOOKUP(B163,Kode!A2:E215,5,FALSE)","v":{"$error":"#N/A"}},null,null,null,null,null,null,null,{"$error":"#DIV/0!"}]
[{"$f":"VLOOKUP(B164,Kode!A2:C215,3,FALSE)","v":{"$error":"#N/A"}},null,{"$f":"VLOOKUP(B164,Kode!A2:D215,4,FALSE)","v":{"$error":"#N/A"}},null,null,null,null,null,null,null,null,null,null,null,null,null,{"$f":"VLOOKUP(B164,Kode!A2:E215,5,FALSE)","v":{"$error":"#N/A"}},null,null,null,null,null,null,null,{"$error":"#DIV/0!"}]
[{"$f":"VLOOKUP(B165,Kode!A2:C215,3,FALSE)","v":{"$error":"#N/A"}},null,{"$f":"VLOOKUP(B165,Kode!A2:D215,4,FALSE)","v":{"$error":"#N/A"}},null,null,null,null,null,null,null,null,null,null,null,null,null,{"$f":"VLOOKUP(B165,Kode!A2:E215,5,FALSE)","v":{"$error":"#N/A"}},null,null,null,null,null,null,null,{"$error":"#DIV/0!"}]
[{"$f":"VLOOKUP(B166,Kode!A2:C215,3,FALSE)","v":{"$error":"#N/A"}},null,{"$f":"VLOOKUP(B166,Kode!A2:D215,4,FALSE)","v":{"$error":"#N/A"}},null,null,null,null,null,null,null,null,null,null,null,null,null,{"$f":"VLOOKUP(B166,Kode!A2:E215,5,FALSE)","v":{"$error":"#N/A"}},null,null,null,null,null,null,null,{"$error":"#DIV/0!"}]
[{"$f":"VLOOKUP(B167,Kode!A2:C215,3,FALSE)","v":{"$error":"#N/A"}},null,{"$f":"VLOOKUP(B167,Kode!A2:D215,4,FALSE)","v":{"$error":"#N/A"}},null,null,null,null,null,null,null,null,null,null,null,null,null,{"$f":"VLOOKUP(B167,Kode!A2:E215,5,FALSE)","v":{"$error":"#N/A"}},null,null,null,null,null,null,null,{"$error":"#DIV/0!"}]
[{"$f":"VLOOKUP(B168,Kode!A2:C215,3,FALSE)","v":{"$error":"#N/A"}},null,{"$f":"VLOOKUP(B168,Kode!A2:D215,4,FALSE)","v":{"$error":"#N/A"}},null,null,null,null,null,null,null,null,null,null,null,null,null,{"$f":"VLOOKUP(B168,Kode!A2:E215,5,FALSE)","v":{"$error":"#N/A"}},null,null,null,null,null,null,null,{"$error":"#DIV/0!"}]
[{"$f":"VLOOKUP(B169,Kode!A2:C215,3,FALSE)","v":{"$error":"#N/A"}},null,{"$f":"VLOOKUP(B169,Kode!A2:D215,4,FALSE)","v":{"$error":"#N/A"}},null,null,null,null,null,null,null,null,null,null,null,null,null,{"$f":"VLOOKUP(B169,Kode!A2:E215,5,FALSE)","v":{"$error":"#N/A"}},null,null,null,null,null,null,null,{"$error":"#DIV/0!"}]
[{"$f":"VLOOKUP(B170,Kode!A2:C215,3,FALSE)","v":{"$error":"#N/A"}},null,{"$f":"VLOOKUP(B170,Kode!A2:D215,4,FALSE)","v":{"$error":"#N/A"}},null,null,null,null,null,null,null,null,null,null,null,null,null,{"$f":"VLOOKUP(B170,Kode!A2:E215,5,FALSE)","v":{"$error":"#N/A"}},null,null,null,null,null,null,null,{"$error":"#DIV/0!"}]
[{"$f":"VLOOKUP(B171,Kode!A2:C215,3,FALSE)","v":{"$error":"#N/A"}},null,{"$f":"VLOOKUP(B171,Kode!A2:D215,4,FALSE)","v":{"$error":"#N/A"}},null,null,null,null,null,null,null,null,null,null,null,null,null,{"$f":"VLOOKUP(B171,Kode!A2:E215,5,FALSE)","v":{"$error":"#N/A"}},null,null,null,null,null,null,null,{"$error":"#DIV/0!"}]
[{"$f":"VLOOKUP(B172,Kode!A2:C215,3,FALSE)","v":{"$error":"#N/A"}},null,{"$f":"VLOOKUP(B172,Kode!A2:D215,4,FALSE)","v":{"$error":"#N/A"}},null,null,null,null,null,null,null,null,null,null,null,null,null,{"$f":"VLOOKUP(B172,Kode!A2:E215,5,FALSE)","v":{"$error":"#N/A"}},null,null,null,null,null,null,null,{"$error":"#DIV/0!"}]
[{"$f":"VLOOKUP(B173,Kode!A2:C215,3,FALSE)","v":{"$error":"#N/A"}},null,{"$f":"VLOOKUP(B173,Kode!A2:D215,4,FALSE)","v":{"$error":"#N/A"}},null,null,null,null,null,null,null,null,null,null,null,null,null,{"$f":"VLOOKUP(B173,Kode!A2:E215,5,FALSE)","v":{"$error":"#N/A"}},null,null,null,null,null,null,null,{"$error":"#DIV/0!"}]
[{"$f":"VLOOKUP(B174,Kode!A2:C215,3,FALSE)","v":{"$error":"#N/A"}},null,{"$f":"VLOOKUP(B174,Kode!A2:D215,4,FALSE)","v":{"$error":"#N/A"}},null,null,null,null,null,null,null,null,null,null,null,null,null,{"$f":"VLOOKUP(B174,Kode!A2:E215,5,FALSE)","v":{"$error":"#N/A"}},null,null,null,null,null,null,null,{"$error":"#DIV/0!"}]
[{"$f":"VLOOKUP(B175,Kode!A2:C215,3,FALSE)","v":{"$error":"#N/A"}},null,{"$f":"VLOOKUP(B175,Kode!A2:D215,4,FALSE)","v":{"$error":"#N/A"}},null,null,null,null,null,null,null,null,null,null,null,null,null,{"$f":"VLOOKUP(B175,Kode!A2:E215,5,FALSE)","v":{"$error":"#N/A"}},null,null,null,null,null,null,null,{"$error":"#DIV/0!"}]
[{"$f":"VLOOKUP(B176,Kode!A2:C215,3,FALSE)","v":{"$error":"#N/A"}},null,{"$f":"VLOOKUP(B176,Kode!A2:D215,4,FALSE)","v":{"$error":"#N/A"}},null,null,null,null,null,null,null,null,null,null,null,null,null,{"$f":"VLOOKUP(B176,Kode!A2:E215,5,FALSE)","v":{"$error":"#N/A"}},null,null,null,null,null,null,null,{"$error":"#DIV/0!"}]
[{"$f":"VLOOKUP(B177,Kode!A2:C215,3,FALSE)","v":{"$error":"#N/A"}},null,{"$f":"VLOOKUP(B177,Kode!A2:D215,4,FALSE)","v":{"$error":"#N/A"}},null,null,null,null,null,null,null,null,null,null,null,null,null,{"$f":"VLOOKUP(B177,Kode!A2:E215,5,FALSE)","v":{"$error":"#N/A"}},null,null,null,null,null,null,null,{"$error":"#DIV/0!"}]
[{"$f":"VLOOKUP(B178,Kode!A2:C215,3,FALSE)","v":{"$error":"#N/A"}},null,{"$f":"VLOOKUP(B178,Kode!A2:D215,4,FALSE)","v":{"$error":"#N/A"}},null,null,null,null,null,null,null,null,null,null,null,null,null,{"$f":"VLOOKUP(B178,Kode!A2:E215,5,FALSE)","v":{"$error":"#N/A"}},null,null,null,null,null,null,null,{"$error":"#DIV/0!"}]
[{"$f":"VLOOKUP(B179,Kode!A2:C215,3,FALSE)","v":{"$error":"#N/A"}},null,{"$f":"VLOOKUP(B179,Kode!A2:D215,4,FALSE)","v":{"$error":"#N/A"}},null,null,null,null,null,null,null,null,null,null,null,null,null,{"$f":"VLOOKUP(B179,Kode!A2:E215,5,FALSE)","v":{"$error":"#N/A"}},null,null,null,null,null,null,null,{"$error":"#DIV/0!"}]
[{"$f":"VLOOKUP(B180,Kode!A2:C215,3,FALSE)","v":{"$error":"#N/A"}},null,{"$f":"VLOOKUP(B180,Kode!A2:D215,4,FALSE)","v":{"$error":"#N/A"}},null,null,null,null,null,null,null,null,null,null,null,null,null,{"$f":"VLOOKUP(B180,Kode!A2:E215,5,FALSE)","v":{"$error":"#N/A"}},null,null,null,null,null,null,null,{"$error":"#DIV/0!"}]
[{"$f":"VLOOKUP(B181,Kode!A2:C215,3,FALSE)","v":{"$error":"#N/A"}},null,{"$f":"VLOOKUP(B181,Kode!A2:D215,4,FALSE)","v":{"$error":"#N/A"}},null,null,null,null,null,null,null,null,null,null,null,null,null,{"$f":"VLOOKUP(B181,Kode!A2:E215,5,FALSE)","v":{"$error":"#N/A"}},null,null,null,null,null,null,null,{"$error":"#DIV/0!"}]
[{"$f":"VLOOKUP(B182,Kode!A2:C215,3,FALSE)","v":{"$error":"#N/A"}},null,{"$f":"VLOOKUP(B182,Kode!A2:D215,4,FALSE)","v":{"$error":"#N/A"}},null,null,null,null,null,null,null,null,null,null,null,null,null,{"$f":"VLOOKUP(B182,Kode!A2:E215,5,FALSE)","v":{"$error":"#N/A"}},null,null,null,null,null,null,null,{"$error":"#DIV/0!"}]
[{"$f":"VLOOKUP(B183,Kode!A2:C215,3,FALSE)","v":{"$error":"#N/A"}},null,{"$f":"VLOOKUP(B183,Kode!A2:D215,4,FALSE)","v":{"$error":"#N/A"}},null,null,null,null,null,null,null,null,null,null,null,null,null,{"$f":"VLOOKUP(B183,Kode!A2:E215,5,FALSE)","v":{"$error":"#N/A"}},null,null,null,null,null,null,null,{"$error":"#DIV/0!"}]
[{"$f":"VLOOKUP(B184,Kode!A2:C215,3,FALSE)","v":{"$error":"#N/A"}},null,{"$f":"VLOOKUP(B184,Kode!A2:D215,4,FALSE)","v":{"$error":"#N/A"}},null,null,null,null,null,null,null,null,null,null,null,null,null,{"$f":"VLOOKUP(B184,Kode!A2:E215,5,FALSE)","v":{"$error":"#N/A"}},null,null,null,null,null,null,null,{"$error":"#DIV/0!"}]
[{"$f":"VLOOKUP(B185,Kode!A2:C215,3,FALSE)","v":{"$error":"#N/A"}},null,{"$f":"VLOOKUP(B185,Kode!A2:D215,4,FALSE)","v":{"$error":"#N/A"}},null,null,null,null,null,null,null,null,null,null,null,null,null,{"$f":"VLOOKUP(B185,Kode!A2:E215,5,FALSE)","v":{"$error":"#N/A"}},null,null,null,null,null,null,null,{"$error":"#DIV/0!"}]
[{"$f":"VLOOKUP(B186,Kode!A2:C215,3,FALSE)","v":{"$error":"#N/A"}},null,{"$f":"VLOOKUP(B186,Kode!A2:D215,4,FALSE)","v":{"$error":"#N/A"}},null,null,null,null,null,null,null,null,null,null,null,null,null,{"$f":"VLOOKUP(B186,Kode!A2:E215,5,FALSE)","v":{"$error":"#N/A"}},null,null,null,null,null,null,null,{"$error":"#DIV/0!"}]
[{"$f":"VLOOKUP(B187,Kode!A2:C215,3,FALSE)","v":{"$error":"#N/A"}},null,{"$f":"VLOOKUP(B187,Kode!A2:D215,4,FALSE)","v":{"$error":"#N/A"}},null,null,null,null,null,null,null,null,null,null,null,null,null,{"$f":"VLOOKUP(B187,Kode!A2:E215,5,FALSE)","v":{"$error":"#N/A"}},null,null,null,null,null,null,null,{"$error":"#DIV/0!"}]
[{"$f":"VLOOKUP(B188,Kode!A2:C215,3,FALSE)","v":{"$error":"#N/A"}},null,{"$f":"VLOOKUP(B188,Kode!A2:D215,4,FALSE)","v":{"$error":"#N/A"}},null,null,null,null,null,null,null,null,null,null,null,null,null,{"$f":"VLOOKUP(B188,Kode!A2:E215,5,FALSE)","v":{"$error":"#N/A"}},null,null,null,null,null,null,null,{"$error":"#DIV/0!"}]
[{"$f":"VLOOKUP(B189,Kode!A2:C215,3,FALSE)","v":{"$error":"#N/A"}},null,{"$f":"VLOOKUP(B189,Kode!A2:D215,4,FALSE)","v":{"$error":"#N/A"}},null,null,null,null,null,null,null,null,null,null,null,null,null,{"$f":"VLOOKUP(B189,Kode!A2:E215,5,FALSE)","v":{"$error":"#N/A"}},null,null,null,null,null,null,null,{"$error":"#DIV/0!"}]
[{"$f":"VLOOKUP(B190,Kode!A2:C215,3,FALSE)","v":{"$error":"#N/A"}},null,{"$f":"VLOOKUP(B190,Kode!A2:D215,4,FALSE)","v":{"$error":"#N/A"}},null,null,null,null,null,null,null,null,null,null,null,null,null,{"$f":"VLOOKUP(B190,Kode!A2:E215,5,FALSE)","v":{"$error":"#N/A"}},null,null,null,null,null,null,null,{"$error":"#DIV/0!"}]
[{"$f":"VLOOKUP(B191,Kode!A2:C215,3,FALSE)","v":{"$error":"#N/A"}},null,{"$f":"VLOOKUP(B191,Kode!A2:D215,4,FALSE)","v":{"$error":"#N/A"}},null,null,null,null,null,null,null,null,null,null,null,null,null,{"$f":"VLOOKUP(B191,Kode!A2:E215,5,FALSE)","v":{"$error":"#N/A"}},null,null,null,null,null,null,null,{"$error":"#DIV/0!"}]
[{"$f":"VLOOKUP(B192,Kode!A2:C215,3,FALSE)","v":{"$error":"#N/A"}},null,{"$f":"VLOOKUP(B192,Kode!A2:D215,4,FALSE)","v":{"$error":"#N/A"}},null,null,null,null,null,null,null,null,null,null,null,null,null,{"$f":"VLOOKUP(B192,Kode!A2:E215,5,FALSE)","v":{"$error":"#N/A"}},null,null,null,null,null,null,null,{"$error":"#DIV/0!"}]
[{"$f":"VLOOKUP(B193,Kode!A2:C215,3,FALSE)","v":{"$error":"#N/A"}},null,{"$f":"VLOOKUP(B193,Kode!A2:D215,4,FALSE)","v":{"$error":"#N/A"}},null,null,null,null,null,null,null,null,null,null,null,null,null,{"$f":"VLOOKUP(B193,Kode!A2:E215,5,FALSE)","v":{"$error":"#N/A"}},null,null,null,null,null,null,null,{"$error":"#DIV/0!"}]
[{"$f":"VLOOKUP(B194,Kode!A2:C215,3,FALSE)","v":{"$error":"#N/A"}},null,{"$f":"VLOOKUP(B194,Kode!A2:D215,4,FALSE)","v":{"$error":"#N/A"}},null,null,null,null,null,null,null,null,null,null,null,null,null,{"$f":"VLOOKUP(B194,Kode!A2:E215,5,FALSE)","v":{"$error":"#N/A"}},null,null,null,null,null,null,null,{"$error":"#DIV/0!"}]
[{"$f":"VLOOKUP(B195,Kode!A2:C215,3,FALSE)","v":{"$error":"#N/A"}},null,{"$f":"VLOOKUP(B195,Kode!A2:D215,4,FALSE)","v":{"$error":"#N/A"}},null,null,null,null,null,null,null,null,null,null,null,null,null,{"$f":"VLOOKUP(B195,Kode!A2:E215,5,FALSE)","v":{"$error":"#N/A"}},null,null,null,null,null,null,null,{"$f":"U195/S195*100","v":{"$error":"#DIV/0!"}}]
[{"$f":"VLOOKUP(B196,Kode!A2:C215,3,FALSE)","v":{"$error":"#N/A"}},null,{"$f":"VLOOKUP(B196,Kode!A2:D215,4,FALSE)","v":{"$error":"#N/A"}},null,null,null,null,null,null,null,null,null,null,null,null,null,{"$f":"VLOOKUP(B196,Kode!A2:E215,5,FALSE)","v":{"$error":"#N/A"}},null,null,null,null,null,null,null,{"$error":"#DIV/0!"}]
[{"$f":"VLOOKUP(B197,Kode!A2:C215,3,FALSE)","v":{"$error":"#N/A"}},null,{"$f":"VLOOKUP(B197,Kode!A2:D215,4,FALSE)","v":{"$error":"#N/A"}},null,null,null,null,null,null,null,null,null,null,null,null,null,{"$f":"VLOOKUP(B197,Kode!A2:E215,5,FALSE)","v":{"$error":"#N/A"}},null,null,null,null,null,null,null,{"$error":"#DIV/0!"}]
[{"$f":"VLOOKUP(B198,Kode!A2:C215,3,FALSE)","v":{"$error":"#N/A"}},null,{"$f":"VLOOKUP(B198,Kode!A2:D215,4,FALSE)","v":{"$error":"#N/A"}},null,null,null,null,null,null,null,null,null,null,null,null,null,{"$f":"VLOOKUP(B198,Kode!A2:E215,5,FALSE)","v":{"$error":"#N/A"}},null,null,null,null,null,null,null,{"$error":"#DIV/0!"}]
[{"$f":"VLOOKUP(B199,Kode!A2:C215,3,FALSE)","v":{"$error":"#N/A"}},null,{"$f":"VLOOKUP(B199,Kode!A2:D215,4,FALSE)","v":{"$error":"#N/A"}},null,null,null,null,null,null,null,null,null,null,null,null,null,{"$f":"VLOOKUP(B199,Kode!A2:E215,5,FALSE)","v":{"$error":"#N/A"}},null,null,null,null,null,null,null,{"$error":"#DIV/0!"}]
[{"$f":"VLOOKUP(B200,Kode!A2:C215,3,FALSE)","v":{"$error":"#N/A"}},null,{"$f":"VLOOKUP(B200,Kode!A2:D215,4,FALSE)","v":{"$error":"#N/A"}},null,null,null,null,null,null,null,null,null,null,null,null,null,{"$f":"VLOOKUP(B200,Kode!A2:E215,5,FALSE)","v":{"$error":"#N/A"}},null,null,null,null,null,null,null,{"$error":"#DIV/0!"}]
[{"$f":"VLOOKUP(B201,Kode!A2:C215,3,FALSE)","v":{"$error":"#N/A"}},null,{"$f":"VLOOKUP(B201,Kode!A2:D215,4,FALSE)","v":{"$error":"#N/A"}},null,null,null,null,null,null,null,null,null,null,null,null,null,{"$f":"VLOOKUP(B201,Kode!A2:E215,5,FALSE)","v":{"$error":"#N/A"}},null,null,null,null,null,null,null,{"$error":"#DIV/0!"}]
[{"$f":"VLOOKUP(B202,Kode!A2:C215,3,FALSE)","v":{"$error":"#N/A"}},null,{"$f":"VLOOKUP(B202,Kode!A2:D215,4,FALSE)","v":{"$error":"#N/A"}},null,null,null,null,null,null,null,null,null,null,null,null,null,{"$f":"VLOOKUP(B202,Kode!A2:E215,5,FALSE)","v":{"$error":"#N/A"}},null,null,null,null,null,null,null,{"$error":"#DIV/0!"}]
[{"$f":"VLOOKUP(B203,Kode!A2:C215,3,FALSE)","v":{"$error":"#N/A"}},null,{"$f":"VLOOKUP(B203,Kode!A2:D215,4,FALSE)","v":{"$error":"#N/A"}},null,null,null,null,null,null,null,null,null,null,null,null,null,{"$f":"VLOOKUP(B203,Kode!A2:E215,5,FALSE)","v":{"$error":"#N/A"}},null,null,null,null,null,null,null,{"$error":"#DIV/0!"}]
[{"$f":"VLOOKUP(B204,Kode!A2:C215,3,FALSE)","v":{"$error":"#N/A"}},null,{"$f":"VLOOKUP(B204,Kode!A2:D215,4,FALSE)","v":{"$error":"#N/A"}},null,null,null,null,null,null,null,null,null,null,null,null,null,{"$f":"VLOOKUP(B204,Kode!A2:E215,5,FALSE)","v":{"$error":"#N/A"}},null,null,null,null,null,null,null,{"$error":"#DIV/0!"}]
[{"$f":"VLOOKUP(B205,Kode!A2:C215,3,FALSE)","v":{"$error":"#N/A"}},null,{"$f":"VLOOKUP(B205,Kode!A2:D215,4,FALSE)","v":{"$error":"#N/A"}},null,null,null,null,null,null,null,null,null,null,null,null,null,{"$f":"VLOOKUP(B205,Kode!A2:E215,5,FALSE)","v":{"$error":"#N/A"}},null,null,null,null,null,null,null,{"$error":"#DIV/0!"}]
[{"$f":"VLOOKUP(B206,Kode!A2:C215,3,FALSE)","v":{"$error":"#N/A"}},null,{"$f":"VLOOKUP(B206,Kode!A2:D215,4,FALSE)","v":{"$error":"#N/A"}},null,null,null,null,null,null,null,null,null,null,null,null,null,{"$f":"VLOOKUP(B206,Kode!A2:E215,5,FALSE)","v":{"$error":"#N/A"}},null,null,null,null,null,null,null,{"$error":"#DIV/0!"}]
[{"$f":"VLOOKUP(B207,Kode!A2:C215,3,FALSE)","v":{"$error":"#N/A"}},null,{"$f":"VLOOKUP(B207,Kode!A2:D215,4,FALSE)","v":{"$error":"#N/A"}},null,null,null,null,null,null,null,null,null,null,null,null,null,{"$f":"VLOOKUP(B207,Kode!A2:E215,5,FALSE)","v":{"$error":"#N/A"}},null,null,null,null,null,null,null,{"$error":"#DIV/0!"}]
[{"$f":"VLOOKUP(B208,Kode!A2:C215,3,FALSE)","v":{"$error":"#N/A"}},null,{"$f":"VLOOKUP(B208,Kode!A2:D215,4,FALSE)","v":{"$error":"#N/A"}},null,null,null,null,null,null,null,null,null,null,null,null,null,{"$f":"VLOOKUP(B208,Kode!A2:E215,5,FALSE)","v":{"$error":"#N/A"}},null,null,null,null,null,null,null,{"$error":"#DIV/0!"}]
[{"$f":"VLOOKUP(B209,Kode!A2:C215,3,FALSE)","v":{"$error":"#N/A"}},null,{"$f":"VLOOKUP(B209,Kode!A2:D215,4,FALSE)","v":{"$error":"#N/A"}},null,null,null,null,null,null,null,null,null,null,null,null,null,{"$f":"VLOOKUP(B209,Kode!A2:E215,5,FALSE)","v":{"$error":"#N/A"}},null,null,null,null,null,null,null,{"$error":"#DIV/0!"}]
[{"$f":"VLOOKUP(B210,Kode!A2:C215,3,FALSE)","v":{"$error":"#N/A"}},null,{"$f":"VLOOKUP(B210,Kode!A2:D215,4,FALSE)","v":{"$error":"#N/A"}},null,null,null,null,null,null,null,null,null,null,null,null,null,{"$f":"VLOOKUP(B210,Kode!A2:E215,5,FALSE)","v":{"$error":"#N/A"}},null,null,null,null,null,null,null,{"$error":"#DIV/0!"}]
[{"$f":"VLOOKUP(B211,Kode!A2:C215,3,FALSE)","v":{"$error":"#N/A"}},null,{"$f":"VLOOKUP(B211,Kode!A2:D215,4,FALSE)","v":{"$error":"#N/A"}},null,null,null,null,null,null,null,null,null,null,null,null,null,{"$f":"VLOOKUP(B211,Kode!A2:E215,5,FALSE)","v":{"$error":"#N/A"}},null,null,null,null,null,null,null,{"$error":"#DIV/0!"}]
[{"$f":"VLOOKUP(B212,Kode!A2:C215,3,FALSE)","v":{"$error":"#N/A"}},null,{"$f":"VLOOKUP(B212,Kode!A2:D215,4,FALSE)","v":{"$error":"#N/A"}},null,null,null,null,null,null,null,null,null,null,null,null,null,{"$f":"VLOOKUP(B212,Kode!A2:E215,5,FALSE)","v":{"$error":"#N/A"}},null,null,null,null,null,null,null,{"$error":"#DIV/0!"}]
[{"$f":"VLOOKUP(B213,Kode!A2:C215,3,FALSE)","v":{"$error":"#N/A"}},null,{"$f":"VLOOKUP(B213,Kode!A2:D215,4,FALSE)","v":{"$error":"#N/A"}},null,null,null,null,null,null,null,null,null,null,null,null,null,{"$f":"VLOOKUP(B213,Kode!A2:E215,5,FALSE)","v":{"$error":"#N/A"}},null,null,null,null,null,null,null,{"$error":"#DIV/0!"}]
[{"$f":"VLOOKUP(B214,Kode!A2:C215,3,FALSE)","v":{"$error":"#N/A"}},null,{"$f":"VLOOKUP(B214,Kode!A2:D215,4,FALSE)","v":{"$error":"#N/A"}},null,null,null,null,null,null,null,null,null,null,null,null,null,{"$f":"VLOOKUP(B214,Kode!A2:E215,5,FALSE)","v":{"$error":"#N/A"}},null,null,null,null,null,null,null,{"$error":"#DIV/0!"}]
[{"$f":"VLOOKUP(B215,Kode!A2:C215,3,FALSE)","v":{"$error":"#N/A"}},null,{"$f":"VLOOKUP(B215,Kode!A2:D215,4,FALSE)","v":{"$error":"#N/A"}},null,null,null,null,null,null,null,null,null,null,null,null,null,{"$f":"VLOOKUP(B215,Kode!A2:E215,5,FALSE)","v":{"$error":"#N/A"}},null,null,null,null,null,null,null,{"$error":"#DIV/0!"}]
[{"$f":"VLOOKUP(B216,Kode!A2:C215,3,FALSE)","v":{"$error":"#N/A"}},null,{"$f":"VLOOKUP(B216,Kode!A2:D215,4,FALSE)","v":{"$error":"#N/A"}},null,null,null,null,null,null,null,null,null,null,null,null,null,{"$f":"VLOOKUP(B216,Kode!A2:E215,5,FALSE)","v":{"$error":"#N/A"}},null,null,null,null,null,null,null,{"$error":"#DIV/0!"}]
[{"$f":"VLOOKUP(B217,Kode!A2:C215,3,FALSE)","v":{"$error":"#N/A"}},null,{"$f":"VLOOKUP(B217,Kode!A2:D215,4,FALSE)","v":{"$error":"#N/A"}},null,null,null,null,null,null,null,null,null,null,null,null,null,{"$f":"VLOOKUP(B217,Kode!A2:E215,5,FALSE)","v":{"$error":"#N/A"}},null,null,null,null,null,null,null,{"$error":"#DIV/0!"}]
[{"$f":"VLOOKUP(B218,Kode!A2:C215,3,FALSE)","v":{"$error":"#N/A"}},null,{"$f":"VLOOKUP(B218,Kode!A2:D215,4,FALSE)","v":{"$error":"#N/A"}},null,null,null,null,null,null,null,null,null,null,null,null,null,{"$f":"VLOOKUP(B218,Kode!A2:E215,5,FALSE)","v":{"$error":"#N/A"}},null,null,null,null,null,null,null,{"$error":"#DIV/0!"}]
[{"$f":"VLOOKUP(B219,Kode!A2:C215,3,FALSE)","v":{"$error":"#N/A"}},null,{"$f":"VLOOKUP(B219,Kode!A2:D215,4,FALSE)","v":{"$error":"#N/A"}},null,null,null,null,null,null,null,null,null,null,null,null,null,{"$f":"VLOOKUP(B219,Kode!A2:E215,5,FALSE)","v":{"$error":"#N/A"}},null,null,null,null,null,null,null,{"$error":"#DIV/0!"}]
[{"$f":"VLOOKUP(B220,Kode!A2:C215,3,FALSE)","v":{"$error":"#N/A"}},null,{"$f":"VLOOKUP(B220,Kode!A2:D215,4,FALSE)","v":{"$error":"#N/A"}},null,null,null,null,null,null,null,null,null,null,null,null,null,{"$f":"VLOOKUP(B220,Kode!A2:E215,5,FALSE)","v":{"$error":"#N/A"}},null,null,null,null,null,null,null,{"$error":"#DIV/0!"}]
[{"$f":"VLOOKUP(B221,Kode!A2:C215,3,FALSE)","v":{"$error":"#N/A"}},null,{"$f":"VLOOKUP(B221,Kode!A2:D215,4,FALSE)","v":{"$error":"#N/A"}},null,null,null,null,null,null,null,null,null,null,null,null,null,{"$f":"VLOOKUP(B221,Kode!A2:E215,5,FALSE)","v":{"$error":"#N/A"}},null,null,null,null,null,null,null,{"$error":"#DIV/0!"}]
[{"$f":"VLOOKUP(B222,Kode!A2:C215,3,FALSE)","v":{"$error":"#N/A"}},null,{"$f":"VLOOKUP(B222,Kode!A2:D215,4,FALSE)","v":{"$error":"#N/A"}},null,null,null,null,null,null,null,null,null,null,null,null,null,{"$f":"VLOOKUP(B222,Kode!A2:E215,5,FALSE)","v":{"$error":"#N/A"}},null,null,null,null,null,null,null,{"$error":"#DIV/0!"}]
[{"$f":"VLOOKUP(B223,Kode!A2:C215,3,FALSE)","v":{"$error":"#N/A"}},null,{"$f":"VLOOKUP(B223,Kode!A2:D215,4,FALSE)","v":{"$error":"#N/A"}},null,null,null,null,null,null,null,null,null,null,null,null,null,{"$f":"VLOOKUP(B223,Kode!A2:E215,5,FALSE)","v":{"$error":"#N/A"}},null,null,null,null,null,null,null,{"$error":"#DIV/0!"}]
[{"$f":"VLOOKUP(B224,Kode!A2:C215,3,FALSE)","v":{"$error":"#N/A"}},null,{"$f":"VLOOKUP(B224,Kode!A2:D215,4,FALSE)","v":{"$error":"#N/A"}},null,null,null,null,null,null,null,null,null,null,null,null,null,{"$f":"VLOOKUP(B224,Kode!A2:E215,5,FALSE)","v":{"$error":"#N/A"}},null,null,null,null,null,null,null,{"$error":"#DIV/0!"}]
[{"$f":"VLOOKUP(B225,Kode!A2:C215,3,FALSE)","v":{"$error":"#N/A"}},null,{"$f":"VLOOKUP(B225,Kode!A2:D215,4,FALSE)","v":{"$error":"#N/A"}},null,null,null,null,null,null,null,null,null,null,null,null,null,{"$f":"VLOOKUP(B225,Kode!A2:E215,5,FALSE)","v":{"$error":"#N/A"}},null,null,null,null,null,null,null,{"$error":"#DIV/0!"}]
[{"$f":"VLOOKUP(B226,Kode!A2:C215,3,FALSE)","v":{"$error":"#N/A"}},null,{"$f":"VLOOKUP(B226,Kode!A2:D215,4,FALSE)","v":{"$error":"#N/A"}},null,null,null,null,null,null,null,null,null,null,null,null,null,{"$f":"VLOOKUP(B226,Kode!A2:E215,5,FALSE)","v":{"$error":"#N/A"}},null,null,null,null,null,null,null,{"$error":"#DIV/0!"}]
[{"$f":"VLOOKUP(B227,Kode!A2:C215,3,FALSE)","v":{"$error":"#N/A"}},null,{"$f":"VLOOKUP(B227,Kode!A2:D215,4,FALSE)","v":{"$error":"#N/A"}},null,null,null,null,null,null,null,null,null,null,null,null,null,{"$f":"VLOOKUP(B227,Kode!A2:E215,5,FALSE)","v":{"$error":"#N/A"}},null,null,null,null,null,null,null,{"$error":"#DIV/0!"}]
[{"$f":"VLOOKUP(B228,Kode!A2:C215,3,FALSE)","v":{"$error":"#N/A"}},null,{"$f":"VLOOKUP(B228,Kode!A2:D215,4,FALSE)","v":{"$error":"#N/A"}},null,null,null,null,null,null,null,null,null,null,null,null,null,{"$f":"VLOOKUP(B228,Kode!A2:E215,5,FALSE)","v":{"$error":"#N/A"}},null,null,null,null,null,null,null,{"$error":"#DIV/0!"}]
[{"$f":"VLOOKUP(B229,Kode!A2:C215,3,FALSE)","v":{"$error":"#N/A"}},null,{"$f":"VLOOKUP(B229,Kode!A2:D215,4,FALSE)","v":{"$error":"#N/A"}},null,null,null,null,null,null,null,null,null,null,null,null,null,{"$f":"VLOOKUP(B229,Kode!A2:E215,5,FALSE)","v":{"$error":"#N/A"}},null,null,null,null,null,null,null,{"$error":"#DIV/0!"}]
[{"$f":"VLOOKUP(B230,Kode!A2:C215,3,FALSE)","v":{"$error":"#N/A"}},null,{"$f":"VLOOKUP(B230,Kode!A2:D215,4,FALSE)","v":{"$error":"#N/A"}},null,null,null,null,null,null,null,null,null,null,null,null,null,{"$f":"VLOOKUP(B230,Kode!A2:E215,5,FALSE)","v":{"$error":"#N/A"}},null,null,null,null,null,null,null,{"$error":"#DIV/0!"}]
[{"$f":"VLOOKUP(B231,Kode!A2:C215,3,FALSE)","v":{"$error":"#N/A"}},null,{"$f":"VLOOKUP(B231,Kode!A2:D215,4,FALSE)","v":{"$error":"#N/A"}},null,null,null,null,null,null,null,null,null,null,null,null,null,{"$f":"VLOOKUP(B231,Kode!A2:E215,5,FALSE)","v":{"$error":"#N/A"}},null,null,null,null,null,null,null,{"$error":"#DIV/0!"}]
[{"$f":"VLOOKUP(B232,Kode!A2:C215,3,FALSE)","v":{"$error":"#N/A"}},null,{"$f":"VLOOKUP(B232,Kode!A2:D215,4,FALSE)","v":{"$error":"#N/A"}},null,null,null,null,null,null,null,null,null,null,null,null,null,{"$f":"VLOOKUP(B232,Kode!A2:E215,5,FALSE)","v":{"$error":"#N/A"}},null,null,null,null,null,null,null,{"$error":"#DIV/0!"}]
[{"$f":"VLOOKUP(B233,Kode!A2:C215,3,FALSE)","v":{"$error":"#N/A"}},null,{"$f":"VLOOKUP(B233,Kode!A2:D215,4,FALSE)","v":{"$error":"#N/A"}},null,null,null,null,null,null,null,null,null,null,null,null,null,{"$f":"VLOOKUP(B233,Kode!A2:E215,5,FALSE)","v":{"$error":"#N/A"}},null,null,null,null,null,null,null,{"$error":"#DIV/0!"}]
[{"$f":"VLOOKUP(B234,Kode!A2:C215,3,FALSE)","v":{"$error":"#N/A"}},null,{"$f":"VLOOKUP(B234,Kode!A2:D215,4,FALSE)","v":{"$error":"#N/A"}},null,null,null,null,null,null,null,null,null,null,null,null,null,{"$f":"VLOOKUP(B234,Kode!A2:E215,5,FALSE)","v":{"$error":"#N/A"}},null,null,null,null,null,null,null,{"$error":"#DIV/0!"}]
[{"$f":"VLOOKUP(B235,Kode!A2:C215,3,FALSE)","v":{"$error":"#N/A"}},null,{"$f":"VLOOKUP(B235,Kode!A2:D215,4,FALSE)","v":{"$error":"#N/A"}},null,null,null,null,null,null,null,null,null,null,null,null,null,{"$f":"VLOOKUP(B235,Kode!A2:E215,5,FALSE)","v":{"$error":"#N/A"}},null,null,null,null,null,null,null,{"$error":"#DIV/0!"}]
[{"$f":"VLOOKUP(B236,Kode!A2:C215,3,FALSE)","v":{"$error":"#N/A"}},null,{"$f":"VLOOKUP(B236,Kode!A2:D215,4,FALSE)","v":{"$error":"#N/A"}},null,null,null,null,null,null,null,null,null,null,null,null,null,{"$f":"VLOOKUP(B236,Kode!A2:E215,5,FALSE)","v":{"$error":"#N/A"}},null,null,null,null,null,null,null,{"$error":"#DIV/0!"}]
[{"$f":"VLOOKUP(B237,Kode!A2:C215,3,FALSE)","v":{"$error":"#N/A"}},null,{"$f":"VLOOKUP(B237,Kode!A2:D215,4,FALSE)","v":{"$error":"#N/A"}},null,null,null,null,null,null,null,null,null,null,null,null,null,{"$f":"VLOOKUP(B237,Kode!A2:E215,5,FALSE)","v":{"$error":"#N/A"}},null,null,null,null,null,null,null,{"$error":"#DIV/0!"}]
[{"$f":"VLOOKUP(B238,Kode!A2:C215,3,FALSE)","v":{"$error":"#N/A"}},null,{"$f":"VLOOKUP(B238,Kode!A2:D215,4,FALSE)","v":{"$error":"#N/A"}},null,null,null,null,null,null,null,null,null,null,null,null,null,{"$f":"VLOOKUP(B238,Kode!A2:E215,5,FALSE)","v":{"$error":"#N/A"}},null,null,null,null,null,null,null,{"$error":"#DIV/0!"}]
[{"$f":"VLOOKUP(B239,Kode!A2:C215,3,FALSE)","v":{"$error":"#N/A"}},null,{"$f":"VLOOKUP(B239,Kode!A2:D215,4,FALSE)","v":{"$error":"#N/A"}},null,null,null,null,null,null,null,null,null,null,null,null,null,{"$f":"VLOOKUP(B239,Kode!A2:E215,5,FALSE)","v":{"$error":"#N/A"}},null,null,null,null,null,null,null,{"$error":"#DIV/0!"}]
[{"$f":"VLOOKUP(B240,Kode!A2:C215,3,FALSE)","v":{"$error":"#N/A"}},null,{"$f":"VLOOKUP(B240,Kode!A2:D215,4,FALSE)","v":{"$error":"#N/A"}},null,null,null,null,null,null,null,null,null,null,null,null,null,{"$f":"VLOOKUP(B240,Kode!A2:E215,5,FALSE)","v":{"$error":"#N/A"}},null,null,null,null,null,null,null,{"$error":"#DIV/0!"}]
[{"$f":"VLOOKUP(B241,Kode!A2:C215,3,FALSE)","v":{"$error":"#N/A"}},null,{"$f":"VLOOKUP(B241,Kode!A2:D215,4,FALSE)","v":{"$error":"#N/A"}},null,null,null,null,null,null,null,null,null,null,null,null,null,{"$f":"VLOOKUP(B241,Kode!A2:E215,5,FALSE)","v":{"$error":"#N/A"}},null,null,null,null,null,null,null,{"$error":"#DIV/0!"}]
[{"$f":"VLOOKUP(B242,Kode!A2:C215,3,FALSE)","v":{"$error":"#N/A"}},null,{"$f":"VLOOKUP(B242,Kode!A2:D215,4,FALSE)","v":{"$error":"#N/A"}},null,null,null,null,null,null,null,null,null,null,null,null,null,{"$f":"VLOOKUP(B242,Kode!A2:E215,5,FALSE)","v":{"$error":"#N/A"}},null,null,null,null,null,null,null,{"$error":"#DIV/0!"}]
[{"$f":"VLOOKUP(B243,Kode!A2:C215,3,FALSE)","v":{"$error":"#N/A"}},null,{"$f":"VLOOKUP(B243,Kode!A2:D215,4,FALSE)","v":{"$error":"#N/A"}},null,null,null,null,null,null,null,null,null,null,null,null,null,{"$f":"VLOOKUP(B243,Kode!A2:E215,5,FALSE)","v":{"$error":"#N/A"}},null,null,null,null,null,null,null,{"$error":"#DIV/0!"}]
[{"$f":"VLOOKUP(B244,Kode!A2:C215,3,FALSE)","v":{"$error":"#N/A"}},null,{"$f":"VLOOKUP(B244,Kode!A2:D215,4,FALSE)","v":{"$error":"#N/A"}},null,null,null,null,null,null,null,null,null,null,null,null,null,{"$f":"VLOOKUP(B244,Kode!A2:E215,5,FALSE)","v":{"$error":"#N/A"}},null,null,null,null,null,null,null,{"$error":"#DIV/0!"}]
[{"$f":"VLOOKUP(B245,Kode!A2:C215,3,FALSE)","v":{"$error":"#N/A"}},null,{"$f":"VLOOKUP(B245,Kode!A2:D215,4,FALSE)","v":{"$error":"#N/A"}},null,null,null,null,null,null,null,null,null,null,null,null,null,{"$f":"VLOOKUP(B245,Kode!A2:E215,5,FALSE)","v":{"$error":"#N/A"}},null,null,null,null,null,null,null,{"$error":"#DIV/0!"}]
[{"$f":"VLOOKUP(B246,Kode!A2:C215,3,FALSE)","v":{"$error":"#N/A"}},null,{"$f":"VLOOKUP(B246,Kode!A2:D215,4,FALSE)","v":{"$error":"#N/A"}},null,null,null,null,null,null,null,null,null,null,null,null,null,{"$f":"VLOOKUP(B246,Kode!A2:E215,5,FALSE)","v":{"$error":"#N/A"}},null,null,null,null,null,null,null,{"$error":"#DIV/0!"}]
[{"$f":"VLOOKUP(B247,Kode!A2:C215,3,FALSE)","v":{"$error":"#N/A"}},null,{"$f":"VLOOKUP(B247,Kode!A2:D215,4,FALSE)","v":{"$error":"#N/A"}},null,null,null,null,null,null,null,null,null,null,null,null,null,{"$f":"VLOOKUP(B247,Kode!A2:E215,5,FALSE)","v":{"$error":"#N/A"}},null,null,null,null,null,null,null,{"$error":"#DIV/0!"}]
[{"$f":"VLOOKUP(B248,Kode!A2:C215,3,FALSE)","v":{"$error":"#N/A"}},null,{"$f":"VLOOKUP(B248,Kode!A2:D215,4,FALSE)","v":{"$error":"#N/A"}},null,null,null,null,null,null,null,null,null,null,null,null,null,{"$f":"VLOOKUP(B248,Kode!A2:E215,5,FALSE)","v":{"$error":"#N/A"}},null,null,null,null,null,null,null,{"$error":"#DIV/0!"}]
[{"$f":"VLOOKUP(B249,Kode!A2:C215,3,FALSE)","v":{"$error":"#N/A"}},null,{"$f":"VLOOKUP(B249,Kode!A2:D215,4,FALSE)","v":{"$error":"#N/A"}},null,null,null,null,null,null,null,null,null,null,null,null,null,{"$f":"VLOOKUP(B249,Kode!A2:E215,5,FALSE)","v":{"$error":"#N/A"}},null,null,null,null,null,null,null,{"$error":"#DIV/0!"}]
[{"$f":"VLOOKUP(B250,Kode!A2:C215,3,FALSE)","v":{"$error":"#N/A"}},null,{"$f":"VLOOKUP(B250,Kode!A2:D215,4,FALSE)","v":{"$error":"#N/A"}},null,null,null,null,null,null,null,null,null,null,null,null,null,{"$f":"VLOOKUP(B250,Kode!A2:E215,5,FALSE)","v":{"$error":"#N/A"}},null,null,null,null,null,null,null,{"$error":"#DIV/0!"}]
[{"$f":"VLOOKUP(B251,Kode!A2:C215,3,FALSE)","v":{"$error":"#N/A"}},null,{"$f":"VLOOKUP(B251,Kode!A2:D215,4,FALSE)","v":{"$error":"#N/A"}},null,null,null,null,null,null,null,null,null,null,null,null,null,{"$f":"VLOOKUP(B251,Kode!A2:E215,5,FALSE)","v":{"$error":"#N/A"}},null,null,null,null,null,null,null,{"$error":"#DIV/0!"}]
[{"$f":"VLOOKUP(B252,Kode!A2:C215,3,FALSE)","v":{"$error":"#N/A"}},null,{"$f":"VLOOKUP(B252,Kode!A2:D215,4,FALSE)","v":{"$error":"#N/A"}},null,null,null,null,null,null,null,null,null,null,null,null,null,{"$f":"VLOOKUP(B252,Kode!A2:E215,5,FALSE)","v":{"$error":"#N/A"}},null,null,null,null,null,null,null,{"$error":"#DIV/0!"}]
[{"$f":"VLOOKUP(B253,Kode!A2:C215,3,FALSE)","v":{"$error":"#N/A"}},null,{"$f":"VLOOKUP(B253,Kode!A2:D215,4,FALSE)","v":{"$error":"#N/A"}},null,null,null,null,null,null,null,null,null,null,null,null,null,{"$f":"VLOOKUP(B253,Kode!A2:E215,5,FALSE)","v":{"$error":"#N/A"}},null,null,null,null,null,null,null,{"$error":"#DIV/0!"}]
[{"$f":"VLOOKUP(B254,Kode!A2:C215,3,FALSE)","v":{"$error":"#N/A"}},null,{"$f":"VLOOKUP(B254,Kode!A2:D215,4,FALSE)","v":{"$error":"#N/A"}},null,null,null,null,null,null,null,null,null,null,null,null,null,{"$f":"VLOOKUP(B254,Kode!A2:E215,5,FALSE)","v":{"$error":"#N/A"}},null,null,null,null,null,null,null,{"$error":"#DIV/0!"}]
[{"$f":"VLOOKUP(B255,Kode!A2:C215,3,FALSE)","v":{"$error":"#N/A"}},null,{"$f":"VLOOKUP(B255,Kode!A2:D215,4,FALSE)","v":{"$error":"#N/A"}},null,null,null,null,null,null,null,null,null,null,null,null,null,{"$f":"VLOOKUP(B255,Kode!A2:E215,5,FALSE)","v":{"$error":"#N/A"}},null,null,null,null,null,null,null,{"$error":"#DIV/0!"}]
[{"$f":"VLOOKUP(B256,Kode!A2:C215,3,FALSE)","v":{"$error":"#N/A"}},null,{"$f":"VLOOKUP(B256,Kode!A2:D215,4,FALSE)","v":{"$error":"#N/A"}},null,null,null,null,null,null,null,null,null,null,null,null,null,{"$f":"VLOOKUP(B256,Kode!A2:E215,5,FALSE)","v":{"$error":"#N/A"}},null,null,null,null,null,null,null,{"$error":"#DIV/0!"}]
[{"$f":"VLOOKUP(B257,Kode!A2:C215,3,FALSE)","v":{"$error":"#N/A"}},null,{"$f":"VLOOKUP(B257,Kode!A2:D215,4,FALSE)","v":{"$error":"#N/A"}},null,null,null,null,null,null,null,null,null,null,null,null,null,{"$f":"VLOOKUP(B257,Kode!A2:E215,5,FALSE)","v":{"$error":"#N/A"}},null,null,null,null,null,null,null,{"$error":"#DIV/0!"}]
[{"$f":"VLOOKUP(B258,Kode!A2:C215,3,FALSE)","v":{"$error":"#N/A"}},null,{"$f":"VLOOKUP(B258,Kode!A2:D215,4,FALSE)","v":{"$error":"#N/A"}},null,null,null,null,null,null,null,null,null,null,null,null,null,{"$f":"VLOOKUP(B258,Kode!A2:E215,5,FALSE)","v":{"$error":"#N/A"}},null,null,null,null,null,null,null,{"$error":"#DIV/0!"}]
[{"$f":"VLOOKUP(B259,Kode!A2:C215,3,FALSE)","v":{"$error":"#N/A"}},null,{"$f":"VLOOKUP(B259,Kode!A2:D215,4,FALSE)","v":{"$error":"#N/A"}},null,null,null,null,null,null,null,null,null,null,null,null,null,{"$f":"VLOOKUP(B259,Kode!A2:E215,5,FALSE)","v":{"$error":"#N/A"}},null,null,null,null,null,null,null,{"$f":"U259/S259*100","v":{"$error":"#DIV/0!"}}]
[{"$f":"VLOOKUP(B260,Kode!A2:C215,3,FALSE)","v":{"$error":"#N/A"}},null,{"$f":"VLOOKUP(B260,Kode!A2:D215,4,FALSE)","v":{"$error":"#N/A"}},null,null,null,null,null,null,null,null,null,null,null,null,null,{"$f":"VLOOKUP(B260,Kode!A2:E215,5,FALSE)","v":{"$error":"#N/A"}},null,null,null,null,null,null,null,{"$error":"#DIV/0!"}]
[{"$f":"VLOOKUP(B261,Kode!A2:C215,3,FALSE)","v":{"$error":"#N/A"}},null,{"$f":"VLOOKUP(B261,Kode!A2:D215,4,FALSE)","v":{"$error":"#N/A"}},null,null,null,null,null,null,null,null,null,null,null,null,null,{"$f":"VLOOKUP(B261,Kode!A2:E215,5,FALSE)","v":{"$error":"#N/A"}},null,null,null,null,null,null,null,{"$error":"#DIV/0!"}]
[{"$f":"VLOOKUP(B262,Kode!A2:C215,3,FALSE)","v":{"$error":"#N/A"}},null,{"$f":"VLOOKUP(B262,Kode!A2:D215,4,FALSE)","v":{"$error":"#N/A"}},null,null,null,null,null,null,null,null,null,null,null,null,null,{"$f":"VLOOKUP(B262,Kode!A2:E215,5,FALSE)","v":{"$error":"#N/A"}},null,null,null,null,null,null,null,{"$error":"#DIV/0!"}]
[{"$f":"VLOOKUP(B263,Kode!A2:C215,3,FALSE)","v":{"$error":"#N/A"}},null,{"$f":"VLOOKUP(B263,Kode!A2:D215,4,FALSE)","v":{"$error":"#N/A"}},null,null,null,null,null,null,null,null,null,null,null,null,null,{"$f":"VLOOKUP(B263,Kode!A2:E215,5,FALSE)","v":{"$error":"#N/A"}},null,null,null,null,null,null,null,{"$error":"#DIV/0!"}]
[{"$f":"VLOOKUP(B264,Kode!A2:C215,3,FALSE)","v":{"$error":"#N/A"}},null,{"$f":"VLOOKUP(B264,Kode!A2:D215,4,FALSE)","v":{"$error":"#N/A"}},null,null,null,null,null,null,null,null,null,null,null,null,null,{"$f":"VLOOKUP(B264,Kode!A2:E215,5,FALSE)","v":{"$error":"#N/A"}},null,null,null,null,null,null,null,{"$error":"#DIV/0!"}]
[{"$f":"VLOOKUP(B265,Kode!A2:C215,3,FALSE)","v":{"$error":"#N/A"}},null,{"$f":"VLOOKUP(B265,Kode!A2:D215,4,FALSE)","v":{"$error":"#N/A"}},null,null,null,null,null,null,null,null,null,null,null,null,null,{"$f":"VLOOKUP(B265,Kode!A2:E215,5,FALSE)","v":{"$error":"#N/A"}},null,null,null,null,null,null,null,{"$error":"#DIV/0!"}]
[{"$f":"VLOOKUP(B266,Kode!A2:C215,3,FALSE)","v":{"$error":"#N/A"}},null,{"$f":"VLOOKUP(B266,Kode!A2:D215,4,FALSE)","v":{"$error":"#N/A"}},null,null,null,null,null,null,null,null,null,null,null,null,null,{"$f":"VLOOKUP(B266,Kode!A2:E215,5,FALSE)","v":{"$error":"#N/A"}},null,null,null,null,null,null,null,{"$error":"#DIV/0!"}]
[{"$f":"VLOOKUP(B267,Kode!A2:C215,3,FALSE)","v":{"$error":"#N/A"}},null,{"$f":"VLOOKUP(B267,Kode!A2:D215,4,FALSE)","v":{"$error":"#N/A"}},null,null,null,null,null,null,null,null,null,null,null,null,null,{"$f":"VLOOKUP(B267,Kode!A2:E215,5,FALSE)","v":{"$error":"#N/A"}},null,null,null,null,null,null,null,{"$error":"#DIV/0!"}]
[{"$f":"VLOOKUP(B268,Kode!A2:C215,3,FALSE)","v":{"$error":"#N/A"}},null,{"$f":"VLOOKUP(B268,Kode!A2:D215,4,FALSE)","v":{"$error":"#N/A"}},null,null,null,null,null,null,null,null,null,null,null,null,null,{"$f":"VLOOKUP(B268,Kode!A2:E215,5,FALSE)","v":{"$error":"#N/A"}},null,null,null,null,null,null,null,{"$error":"#DIV/0!"}]
[{"$f":"VLOOKUP(B269,Kode!A2:C215,3,FALSE)","v":{"$error":"#N/A"}},null,{"$f":"VLOOKUP(B269,Kode!A2:D215,4,FALSE)","v":{"$error":"#N/A"}},null,null,null,null,null,null,null,null,null,null,null,null,null,{"$f":"VLOOKUP(B269,Kode!A2:E215,5,FALSE)","v":{"$error":"#N/A"}},null,null,null,null,null,null,null,{"$error":"#DIV/0!"}]
[{"$f":"VLOOKUP(B270,Kode!A2:C215,3,FALSE)","v":{"$error":"#N/A"}},null,{"$f":"VLOOKUP(B270,Kode!A2:D215,4,FALSE)","v":{"$error":"#N/A"}},null,null,null,null,null,null,null,null,null,null,null,null,null,{"$f":"VLOOKUP(B270,Kode!A2:E215,5,FALSE)","v":{"$error":"#N/A"}},null,null,null,null,null,null,null,{"$error":"#DIV/0!"}]
[{"$f":"VLOOKUP(B271,Kode!A2:C215,3,FALSE)","v":{"$error":"#N/A"}},null,{"$f":"VLOOKUP(B271,Kode!A2:D215,4,FALSE)","v":{"$error":"#N/A"}},null,null,null,null,null,null,null,null,null,null,null,null,null,{"$f":"VLOOKUP(B271,Kode!A2:E215,5,FALSE)","v":{"$error":"#N/A"}},null,null,null,null,null,null,null,{"$error":"#DIV/0!"}]
[{"$f":"VLOOKUP(B272,Kode!A2:C215,3,FALSE)","v":{"$error":"#N/A"}},null,{"$f":"VLOOKUP(B272,Kode!A2:D215,4,FALSE)","v":{"$error":"#N/A"}},null,null,null,null,null,null,null,null,null,null,null,null,null,{"$f":"VLOOKUP(B272,Kode!A2:E215,5,FALSE)","v":{"$error":"#N/A"}},null,null,null,null,null,null,null,{"$error":"#DIV/0!"}]
[{"$f":"VLOOKUP(B273,Kode!A2:C215,3,FALSE)","v":{"$error":"#N/A"}},null,{"$f":"VLOOKUP(B273,Kode!A2:D215,4,FALSE)","v":{"$error":"#N/A"}},null,null,null,null,null,null,null,null,null,null,null,null,null,{"$f":"VLOOKUP(B273,Kode!A2:E215,5,FALSE)","v":{"$error":"#N/A"}},null,null,null,null,null,null,null,{"$error":"#DIV/0!"}]
[{"$f":"VLOOKUP(B274,Kode!A2:C215,3,FALSE)","v":{"$error":"#N/A"}},null,{"$f":"VLOOKUP(B274,Kode!A2:D215,4,FALSE)","v":{"$error":"#N/A"}},null,null,null,null,null,null,null,null,null,null,null,null,null,{"$f":"VLOOKUP(B274,Kode!A2:E215,5,FALSE)","v":{"$error":"#N/A"}},null,null,null,null,null,null,null,{"$error":"#DIV/0!"}]
[{"$f":"VLOOKUP(B275,Kode!A2:C215,3,FALSE)","v":{"$error":"#N/A"}},null,{"$f":"VLOOKUP(B275,Kode!A2:D215,4,FALSE)","v":{"$error":"#N/A"}},null,null,null,null,null,null,null,null,null,null,null,null,null,{"$f":"VLOOKUP(B275,Kode!A2:E215,5,FALSE)","v":{"$error":"#N/A"}},null,null,null,null,null,null,null,{"$error":"#DIV/0!"}]
[{"$f":"VLOOKUP(B276,Kode!A2:C215,3,FALSE)","v":{"$error":"#N/A"}},null,{"$f":"VLOOKUP(B276,Kode!A2:D215,4,FALSE)","v":{"$error":"#N/A"}},null,null,null,null,null,null,null,null,null,null,null,null,null,{"$f":"VLOOKUP(B276,Kode!A2:E215,5,FALSE)","v":{"$error":"#N/A"}},null,null,null,null,null,null,null,{"$error":"#DIV/0!"}]
[{"$f":"VLOOKUP(B277,Kode!A2:C215,3,FALSE)","v":{"$error":"#N/A"}},null,{"$f":"VLOOKUP(B277,Kode!A2:D215,4,FALSE)","v":{"$error":"#N/A"}},null,null,null,null,null,null,null,null,null,null,null,null,null,{"$f":"VLOOKUP(B277,Kode!A2:E215,5,FALSE)","v":{"$error":"#N/A"}},null,null,null,null,null,null,null,{"$error":"#DIV/0!"}]
[{"$f":"VLOOKUP(B278,Kode!A2:C215,3,FALSE)","v":{"$error":"#N/A"}},null,{"$f":"VLOOKUP(B278,Kode!A2:D215,4,FALSE)","v":{"$error":"#N/A"}},null,null,null,null,null,null,null,null,null,null,null,null,null,{"$f":"VLOOKUP(B278,Kode!A2:E215,5,FALSE)","v":{"$error":"#N/A"}},null,null,null,null,null,null,null,{"$error":"#DIV/0!"}]
[{"$f":"VLOOKUP(B279,Kode!A2:C215,3,FALSE)","v":{"$error":"#N/A"}},null,{"$f":"VLOOKUP(B279,Kode!A2:D215,4,FALSE)","v":{"$error":"#N/A"}},null,null,null,null,null,null,null,null,null,null,null,null,null,{"$f":"VLOOKUP(B279,Kode!A2:E215,5,FALSE)","v":{"$error":"#N/A"}},null,null,null,null,null,null,null,{"$error":"#DIV/0!"}]
[{"$f":"VLOOKUP(B280,Kode!A2:C215,3,FALSE)","v":{"$error":"#N/A"}},null,{"$f":"VLOOKUP(B280,Kode!A2:D215,4,FALSE)","v":{"$error":"#N/A"}},null,null,null,null,null,null,null,null,null,null,null,null,null,{"$f":"VLOOKUP(B280,Kode!A2:E215,5,FALSE)","v":{"$error":"#N/A"}},null,null,null,null,null,null,null,{"$error":"#DIV/0!"}]
[{"$f":"VLOOKUP(B281,Kode!A2:C215,3,FALSE)","v":{"$error":"#N/A"}},null,{"$f":"VLOOKUP(B281,Kode!A2:D215,4,FALSE)","v":{"$error":"#N/A"}},null,null,null,null,null,null,null,null,null,null,null,null,null,{"$f":"VLOOKUP(B281,Kode!A2:E215,5,FALSE)","v":{"$error":"#N/A"}},null,null,null,null,null,null,null,{"$error":"#DIV/0!"}]
[{"$f":"VLOOKUP(B282,Kode!A2:C215,3,FALSE)","v":{"$error":"#N/A"}},null,{"$f":"VLOOKUP(B282,Kode!A2:D215,4,FALSE)","v":{"$error":"#N/A"}},null,null,null,null,null,null,null,null,null,null,null,null,null,{"$f":"VLOOKUP(B282,Kode!A2:E215,5,FALSE)","v":{"$error":"#N/A"}},null,null,null,null,null,null,null,{"$error":"#DIV/0!"}]
[{"$f":"VLOOKUP(B283,Kode!A2:C215,3,FALSE)","v":{"$error":"#N/A"}},null,{"$f":"VLOOKUP(B283,Kode!A2:D215,4,FALSE)","v":{"$error":"#N/A"}},null,null,null,null,null,null,null,null,null,null,null,null,null,{"$f":"VLOOKUP(B283,Kode!A2:E215,5,FALSE)","v":{"$error":"#N/A"}},null,null,null,null,null,null,null,{"$error":"#DIV/0!"}]
[{"$f":"VLOOKUP(B284,Kode!A2:C215,3,FALSE)","v":{"$error":"#N/A"}},null,{"$f":"VLOOKUP(B284,Kode!A2:D215,4,FALSE)","v":{"$error":"#N/A"}},null,null,null,null,null,null,null,null,null,null,null,null,null,{"$f":"VLOOKUP(B284,Kode!A2:E215,5,FALSE)","v":{"$error":"#N/A"}},null,null,null,null,null,null,null,{"$error":"#DIV/0!"}]
[{"$f":"VLOOKUP(B285,Kode!A2:C215,3,FALSE)","v":{"$error":"#N/A"}},null,{"$f":"VLOOKUP(B285,Kode!A2:D215,4,FALSE)","v":{"$error":"#N/A"}},null,null,null,null,null,null,null,null,null,null,null,null,null,{"$f":"VLOOKUP(B285,Kode!A2:E215,5,FALSE)","v":{"$error":"#N/A"}},null,null,null,null,null,null,null,{"$error":"#DIV/0!"}]
[{"$f":"VLOOKUP(B286,Kode!A2:C215,3,FALSE)","v":{"$error":"#N/A"}},null,{"$f":"VLOOKUP(B286,Kode!A2:D215,4,FALSE)","v":{"$error":"#N/A"}},null,null,null,null,null,null,null,null,null,null,null,null,null,{"$f":"VLOOKUP(B286,Kode!A2:E215,5,FALSE)","v":{"$error":"#N/A"}},null,null,null,null,null,null,null,{"$error":"#DIV/0!"}]
[{"$f":"VLOOKUP(B287,Kode!A2:C215,3,FALSE)","v":{"$error":"#N/A"}},null,{"$f":"VLOOKUP(B287,Kode!A2:D215,4,FALSE)","v":{"$error":"#N/A"}},null,null,null,null,null,null,null,null,null,null,null,null,null,{"$f":"VLOOKUP(B287,Kode!A2:E215,5,FALSE)","v":{"$error":"#N/A"}},null,null,null,null,null,null,null,{"$error":"#DIV/0!"}]
[{"$f":"VLOOKUP(B288,Kode!A2:C215,3,FALSE)","v":{"$error":"#N/A"}},null,{"$f":"VLOOKUP(B288,Kode!A2:D215,4,FALSE)","v":{"$error":"#N/A"}},null,null,null,null,null,null,null,null,null,null,null,null,null,{"$f":"VLOOKUP(B288,Kode!A2:E215,5,FALSE)","v":{"$error":"#N/A"}},null,null,null,null,null,null,null,{"$error":"#DIV/0!"}]
[{"$f":"VLOOKUP(B289,Kode!A2:C215,3,FALSE)","v":{"$error":"#N/A"}},null,{"$f":"VLOOKUP(B289,Kode!A2:D215,4,FALSE)","v":{"$error":"#N/A"}},null,null,null,null,null,null,null,null,null,null,null,null,null,{"$f":"VLOOKUP(B289,Kode!A2:E215,5,FALSE)","v":{"$error":"#N/A"}},null,null,null,null,null,null,null,{"$error":"#DIV/0!"}]
[{"$f":"VLOOKUP(B290,Kode!A2:C215,3,FALSE)","v":{"$error":"#N/A"}},null,{"$f":"VLOOKUP(B290,Kode!A2:D215,4,FALSE)","v":{"$error":"#N/A"}},null,null,null,null,null,null,null,null,null,null,null,null,null,{"$f":"VLOOKUP(B290,Kode!A2:E215,5,FALSE)","v":{"$error":"#N/A"}},null,null,null,null,null,null,null,{"$error":"#DIV/0!"}]
[{"$f":"VLOOKUP(B291,Kode!A2:C215,3,FALSE)","v":{"$error":"#N/A"}},null,{"$f":"VLOOKUP(B291,Kode!A2:D215,4,FALSE)","v":{"$error":"#N/A"}},null,null,null,null,null,null,null,null,null,null,null,null,null,{"$f":"VLOOKUP(B291,Kode!A2:E215,5,FALSE)","v":{"$error":"#N/A"}},null,null,null,null,null,null,null,{"$error":"#DIV/0!"}]
[{"$f":"VLOOKUP(B292,Kode!A2:C215,3,FALSE)","v":{"$error":"#N/A"}},null,{"$f":"VLOOKUP(B292,Kode!A2:D215,4,FALSE)","v":{"$error":"#N/A"}},null,null,null,null,null,null,null,null,null,null,null,null,null,{"$f":"VLOOKUP(B292,Kode!A2:E215,5,FALSE)","v":{"$error":"#N/A"}},null,null,null,null,null,null,null,{"$error":"#DIV/0!"}]
[{"$f":"VLOOKUP(B293,Kode!A2:C215,3,FALSE)","v":{"$error":"#N/A"}},null,{"$f":"VLOOKUP(B293,Kode!A2:D215,4,FALSE)","v":{"$error":"#N/A"}},null,null,null,null,null,null,null,null,null,null,null,null,null,{"$f":"VLOOKUP(B293,Kode!A2:E215,5,FALSE)","v":{"$error":"#N/A"}},null,null,null,null,null,null,null,{"$error":"#DIV/0!"}]
[{"$f":"VLOOKUP(B294,Kode!A2:C215,3,FALSE)","v":{"$error":"#N/A"}},null,{"$f":"VLOOKUP(B294,Kode!A2:D215,4,FALSE)","v":{"$error":"#N/A"}},null,null,null,null,null,null,null,null,null,null,null,null,null,{"$f":"VLOOKUP(B294,Kode!A2:E215,5,FALSE)","v":{"$error":"#N/A"}},null,null,null,null,null,null,null,{"$error":"#DIV/0!"}]
[{"$f":"VLOOKUP(B295,Kode!A2:C215,3,FALSE)","v":{"$error":"#N/A"}},null,{"$f":"VLOOKUP(B295,Kode!A2:D215,4,FALSE)","v":{"$error":"#N/A"}},null,null,null,null,null,null,null,null,null,null,null,null,null,{"$f":"VLOOKUP(B295,Kode!A2:E215,5,FALSE)","v":{"$error":"#N/A"}},null,null,null,null,null,null,null,{"$error":"#DIV/0!"}]
[{"$f":"VLOOKUP(B296,Kode!A2:C215,3,FALSE)","v":{"$error":"#N/A"}},null,{"$f":"VLOOKUP(B296,Kode!A2:D215,4,FALSE)","v":{"$error":"#N/A"}},null,null,null,null,null,null,null,null,null,null,null,null,null,{"$f":"VLOOKUP(B296,Kode!A2:E215,5,FALSE)","v":{"$error":"#N/A"}},null,null,null,null,null,null,null,{"$error":"#DIV/0!"}]
[{"$f":"VLOOKUP(B297,Kode!A2:C215,3,FALSE)","v":{"$error":"#N/A"}},null,{"$f":"VLOOKUP(B297,Kode!A2:D215,4,FALSE)","v":{"$error":"#N/A"}},null,null,null,null,null,null,null,null,null,null,null,null,null,{"$f":"VLOOKUP(B297,Kode!A2:E215,5,FALSE)","v":{"$error":"#N/A"}},null,null,null,null,null,null,null,{"$error":"#DIV/0!"}]
[{"$f":"VLOOKUP(B298,Kode!A2:C215,3,FALSE)","v":{"$error":"#N/A"}},null,{"$f":"VLOOKUP(B298,Kode!A2:D215,4,FALSE)","v":{"$error":"#N/A"}},null,null,null,null,null,null,null,null,null,null,null,null,null,{"$f":"VLOOKUP(B298,Kode!A2:E215,5,FALSE)","v":{"$error":"#N/A"}},null,null,null,null,null,null,null,{"$error":"#DIV/0!"}]
[{"$f":"VLOOKUP(B299,Kode!A2:C215,3,FALSE)","v":{"$error":"#N/A"}},null,{"$f":"VLOOKUP(B299,Kode!A2:D215,4,FALSE)","v":{"$error":"#N/A"}},null,null,null,null,null,null,null,null,null,null,null,null,null,{"$f":"VLOOKUP(B299,Kode!A2:E215,5,FALSE)","v":{"$error":"#N/A"}},null,null,null,null,null,null,null,{"$error":"#DIV/0!"}]
[{"$f":"VLOOKUP(B300,Kode!A2:C215,3,FALSE)","v":{"$error":"#N/A"}},null,{"$f":"VLOOKUP(B300,Kode!A2:D215,4,FALSE)","v":{"$error":"#N/A"}},null,null,null,null,null,null,null,null,null,null,null,null,null,{"$f":"VLOOKUP(B300,Kode!A2:E215,5,FALSE)","v":{"$error":"#N/A"}},null,null,null,null,null,null,null,{"$error":"#DIV/0!"}]
[{"$f":"VLOOKUP(B301,Kode!A2:C215,3,FALSE)","v":{"$error":"#N/A"}},null,{"$f":"VLOOKUP(B301,Kode!A2:D215,4,FALSE)","v":{"$error":"#N/A"}},null,null,null,null,null,null,null,null,null,null,null,null,null,{"$f":"VLOOKUP(B301,Kode!A2:E215,5,FALSE)","v":{"$error":"#N/A"}},null,null,null,null,null,null,null,{"$error":"#DIV/0!"}]
[{"$f":"VLOOKUP(B302,Kode!A2:C215,3,FALSE)","v":{"$error":"#N/A"}},null,{"$f":"VLOOKUP(B302,Kode!A2:D215,4,FALSE)","v":{"$error":"#N/A"}},null,null,null,null,null,null,null,null,null,null,null,null,null,{"$f":"VLOOKUP(B302,Kode!A2:E215,5,FALSE)","v":{"$error":"#N/A"}},null,null,null,null,null,null,null,{"$error":"#DIV/0!"}]
[{"$f":"VLOOKUP(B303,Kode!A2:C215,3,FALSE)","v":{"$error":"#N/A"}},null,{"$f":"VLOOKUP(B303,Kode!A2:D215,4,FALSE)","v":{"$error":"#N/A"}},null,null,null,null,null,null,null,null,null,null,null,null,null,{"$f":"VLOOKUP(B303,Kode!A2:E215,5,FALSE)","v":{"$error":"#N/A"}},null,null,null,null,null,null,null,{"$error":"#DIV/0!"}]
[{"$f":"VLOOKUP(B304,Kode!A2:C215,3,FALSE)","v":{"$error":"#N/A"}},null,{"$f":"VLOOKUP(B304,Kode!A2:D215,4,FALSE)","v":{"$error":"#N/A"}},null,null,null,null,null,null,null,null,null,null,null,null,null,{"$f":"VLOOKUP(B304,Kode!A2:E215,5,FALSE)","v":{"$error":"#N/A"}},null,null,null,null,null,null,null,{"$error":"#DIV/0!"}]
[{"$f":"VLOOKUP(B305,Kode!A2:C215,3,FALSE)","v":{"$error":"#N/A"}},null,{"$f":"VLOOKUP(B305,Kode!A2:D215,4,FALSE)","v":{"$error":"#N/A"}},null,null,null,null,null,null,null,null,null,null,null,null,null,{"$f":"VLOOKUP(B305,Kode!A2:E215,5,FALSE)","v":{"$error":"#N/A"}},null,null,null,null,null,null,null,{"$error":"#DIV/0!"}]
[{"$f":"VLOOKUP(B306,Kode!A2:C215,3,FALSE)","v":{"$error":"#N/A"}},null,{"$f":"VLOOKUP(B306,Kode!A2:D215,4,FALSE)","v":{"$error":"#N/A"}},null,null,null,null,null,null,null,null,null,null,null,null,null,{"$f":"VLOOKUP(B306,Kode!A2:E215,5,FALSE)","v":{"$error":"#N/A"}},null,null,null,null,null,null,null,{"$error":"#DIV/0!"}]
[{"$f":"VLOOKUP(B307,Kode!A2:C215,3,FALSE)","v":{"$error":"#N/A"}},null,{"$f":"VLOOKUP(B307,Kode!A2:D215,4,FALSE)","v":{"$error":"#N/A"}},null,null,null,null,null,null,null,null,null,null,null,null,null,{"$f":"VLOOKUP(B307,Kode!A2:E215,5,FALSE)","v":{"$error":"#N/A"}},null,null,null,null,null,null,null,{"$error":"#DIV/0!"}]
[{"$f":"VLOOKUP(B308,Kode!A2:C215,3,FALSE)","v":{"$error":"#N/A"}},null,{"$f":"VLOOKUP(B308,Kode!A2:D215,4,FALSE)","v":{"$error":"#N/A"}},null,null,null,null,null,null,null,null,null,null,null,null,null,{"$f":"VLOOKUP(B308,Kode!A2:E215,5,FALSE)","v":{"$error":"#N/A"}},null,null,null,null,null,null,null,{"$error":"#DIV/0!"}]
[{"$f":"VLOOKUP(B309,Kode!A2:C215,3,FALSE)","v":{"$error":"#N/A"}},null,{"$f":"VLOOKUP(B309,Kode!A2:D215,4,FALSE)","v":{"$error":"#N/A"}},null,null,null,null,null,null,null,null,null,null,null,null,null,{"$f":"VLOOKUP(B309,Kode!A2:E215,5,FALSE)","v":{"$error":"#N/A"}},null,null,null,null,null,null,null,{"$error":"#DIV/0!"}]
[{"$f":"VLOOKUP(B310,Kode!A2:C215,3,FALSE)","v":{"$error":"#N/A"}},null,{"$f":"VLOOKUP(B310,Kode!A2:D215,4,FALSE)","v":{"$error":"#N/A"}},null,null,null,null,null,null,null,null,null,null,null,null,null,{"$f":"VLOOKUP(B310,Kode!A2:E215,5,FALSE)","v":{"$error":"#N/A"}},null,null,null,null,null,null,null,{"$error":"#DIV/0!"}]
[{"$f":"VLOOKUP(B311,Kode!A2:C215,3,FALSE)","v":{"$error":"#N/A"}},null,{"$f":"VLOOKUP(B311,Kode!A2:D215,4,FALSE)","v":{"$error":"#N/A"}},null,null,null,null,null,null,null,null,null,null,null,null,null,{"$f":"VLOOKUP(B311,Kode!A2:E215,5,FALSE)","v":{"$error":"#N/A"}},null,null,null,null,null,null,null,{"$error":"#DIV/0!"}]
[{"$f":"VLOOKUP(B312,Kode!A2:C215,3,FALSE)","v":{"$error":"#N/A"}},null,{"$f":"VLOOKUP(B312,Kode!A2:D215,4,FALSE)","v":{"$error":"#N/A"}},null,null,null,null,null,null,null,null,null,null,null,null,null,{"$f":"VLOOKUP(B312,Kode!A2:E215,5,FALSE)","v":{"$error":"#N/A"}},null,null,null,null,null,null,null,{"$error":"#DIV/0!"}]
[{"$f":"VLOOKUP(B313,Kode!A2:C215,3,FALSE)","v":{"$error":"#N/A"}},null,{"$f":"VLOOKUP(B313,Kode!A2:D215,4,FALSE)","v":{"$error":"#N/A"}},null,null,null,null,null,null,null,null,null,null,null,null,null,{"$f":"VLOOKUP(B313,Kode!A2:E215,5,FALSE)","v":{"$error":"#N/A"}},null,null,null,null,null,null,null,{"$error":"#DIV/0!"}]
[{"$f":"VLOOKUP(B314,Kode!A2:C215,3,FALSE)","v":{"$error":"#N/A"}},null,{"$f":"VLOOKUP(B314,Kode!A2:D215,4,FALSE)","v":{"$error":"#N/A"}},null,null,null,null,null,null,null,null,null,null,null,null,null,{"$f":"VLOOKUP(B314,Kode!A2:E215,5,FALSE)","v":{"$error":"#N/A"}},null,null,null,null,null,null,null,{"$error":"#DIV/0!"}]
[{"$f":"VLOOKUP(B315,Kode!A2:C215,3,FALSE)","v":{"$error":"#N/A"}},null,{"$f":"VLOOKUP(B315,Kode!A2:D215,4,FALSE)","v":{"$error":"#N/A"}},null,null,null,null,null,null,null,null,null,null,null,null,null,{"$f":"VLOOKUP(B315,Kode!A2:E215,5,FALSE)","v":{"$error":"#N/A"}},null,null,null,null,null,null,null,{"$error":"#DIV/0!"}]
[{"$f":"VLOOKUP(B316,Kode!A2:C215,3,FALSE)","v":{"$error":"#N/A"}},null,{"$f":"VLOOKUP(B316,Kode!A2:D215,4,FALSE)","v":{"$error":"#N/A"}},null,null,null,null,null,null,null,null,null,null,null,null,null,{"$f":"VLOOKUP(B316,Kode!A2:E215,5,FALSE)","v":{"$error":"#N/A"}},null,null,null,null,null,null,null,{"$error":"#DIV/0!"}]
[{"$f":"VLOOKUP(B317,Kode!A2:C215,3,FALSE)","v":{"$error":"#N/A"}},null,{"$f":"VLOOKUP(B317,Kode!A2:D215,4,FALSE)","v":{"$error":"#N/A"}},null,null,null,null,null,null,null,null,null,null,null,null,null,{"$f":"VLOOKUP(B317,Kode!A2:E215,5,FALSE)","v":{"$error":"#N/A"}},null,null,null,null,null,null,null,{"$error":"#DIV/0!"}]
[{"$f":"VLOOKUP(B318,Kode!A2:C215,3,FALSE)","v":{"$error":"#N/A"}},null,{"$f":"VLOOKUP(B318,Kode!A2:D215,4,FALSE)","v":{"$error":"#N/A"}},null,null,null,null,null,null,null,null,null,null,null,null,null,{"$f":"VLOOKUP(B318,Kode!A2:E215,5,FALSE)","v":{"$error":"#N/A"}},null,null,null,null,null,null,null,{"$error":"#DIV/0!"}]
[{"$f":"VLOOKUP(B319,Kode!A2:C215,3,FALSE)","v":{"$error":"#N/A"}},null,{"$f":"VLOOKUP(B319,Kode!A2:D215,4,FALSE)","v":{"$error":"#N/A"}},null,null,null,null,null,null,null,null,null,null,null,null,null,{"$f":"VLOOKUP(B319,Kode!A2:E215,5,FALSE)","v":{"$error":"#N/A"}},null,null,null,null,null,null,null,{"$error":"#DIV/0!"}]
[{"$f":"VLOOKUP(B320,Kode!A2:C215,3,FALSE)","v":{"$error":"#N/A"}},null,{"$f":"VLOOKUP(B320,Kode!A2:D215,4,FALSE)","v":{"$error":"#N/A"}},null,null,null,null,null,null,null,null,null,null,null,null,null,{"$f":"VLOOKUP(B320,Kode!A2:E215,5,FALSE)","v":{"$error":"#N/A"}},null,null,null,null,null,null,null,{"$error":"#DIV/0!"}]
[{"$f":"VLOOKUP(B321,Kode!A2:C215,3,FALSE)","v":{"$error":"#N/A"}},null,{"$f":"VLOOKUP(B321,Kode!A2:D215,4,FALSE)","v":{"$error":"#N/A"}},null,null,null,null,null,null,null,null,null,null,null,null,null,{"$f":"VLOOKUP(B321,Kode!A2:E215,5,FALSE)","v":{"$error":"#N/A"}},null,null,null,null,null,null,null,{"$error":"#DIV/0!"}]
[{"$f":"VLOOKUP(B322,Kode!A2:C215,3,FALSE)","v":{"$error":"#N/A"}},null,{"$f":"VLOOKUP(B322,Kode!A2:D215,4,FALSE)","v":{"$error":"#N/A"}},null,null,null,null,null,null,null,null,null,null,null,null,null,{"$f":"VLOOKUP(B322,Kode!A2:E215,5,FALSE)","v":{"$error":"#N/A"}},null,null,null,null,null,null,null,{"$error":"#DIV/0!"}]
[{"$f":"VLOOKUP(B323,Kode!A2:C215,3,FALSE)","v":{"$error":"#N/A"}},null,{"$f":"VLOOKUP(B323,Kode!A2:D215,4,FALSE)","v":{"$error":"#N/A"}},null,null,null,null,null,null,null,null,null,null,null,null,null,{"$f":"VLOOKUP(B323,Kode!A2:E215,5,FALSE)","v":{"$error":"#N/A"}},null,null,null,null,null,null,null,{"$f":"U323/S323*100","v":{"$error":"#DIV/0!"}}]
[{"$f":"VLOOKUP(B324,Kode!A2:C215,3,FALSE)","v":{"$error":"#N/A"}},null,{"$f":"VLOOKUP(B324,Kode!A2:D215,4,FALSE)","v":{"$error":"#N/A"}},null,null,null,null,null,null,null,null,null,null,null,null,null,{"$f":"VLOOKUP(B324,Kode!A2:E215,5,FALSE)","v":{"$error":"#N/A"}},null,null,null,null,null,null,null,{"$error":"#DIV/0!"}]
[{"$f":"VLOOKUP(B325,Kode!A2:C215,3,FALSE)","v":{"$error":"#N/A"}},null,{"$f":"VLOOKUP(B325,Kode!A2:D215,4,FALSE)","v":{"$error":"#N/A"}},null,null,null,null,null,null,null,null,null,null,null,null,null,{"$f":"VLOOKUP(B325,Kode!A2:E215,5,FALSE)","v":{"$error":"#N/A"}},null,null,null,null,null,null,null,{"$error":"#DIV/0!"}]
[{"$f":"VLOOKUP(B326,Kode!A2:C215,3,FALSE)","v":{"$error":"#N/A"}},null,{"$f":"VLOOKUP(B326,Kode!A2:D215,4,FALSE)","v":{"$error":"#N/A"}},null,null,null,null,null,null,null,null,null,null,null,null,null,{"$f":"VLOOKUP(B326,Kode!A2:E215,5,FALSE)","v":{"$error":"#N/A"}},null,null,null,null,null,null,null,{"$error":"#DIV/0!"}]
[{"$f":"VLOOKUP(B327,Kode!A2:C215,3,FALSE)","v":{"$error":"#N/A"}},null,{"$f":"VLOOKUP(B327,Kode!A2:D215,4,FALSE)","v":{"$error":"#N/A"}},null,null,null,null,null,null,null,null,null,null,null,null,null,{"$f":"VLOOKUP(B327,Kode!A2:E215,5,FALSE)","v":{"$error":"#N/A"}},null,null,null,null,null,null,null,{"$error":"#DIV/0!"}]
[{"$f":"VLOOKUP(B328,Kode!A2:C215,3,FALSE)","v":{"$error":"#N/A"}},null,{"$f":"VLOOKUP(B328,Kode!A2:D215,4,FALSE)","v":{"$error":"#N/A"}},null,null,null,null,null,null,null,null,null,null,null,null,null,{"$f":"VLOOKUP(B328,Kode!A2:E215,5,FALSE)","v":{"$error":"#N/A"}},null,null,null,null,null,null,null,{"$error":"#DIV/0!"}]
[{"$f":"VLOOKUP(B329,Kode!A2:C215,3,FALSE)","v":{"$error":"#N/A"}},null,{"$f":"VLOOKUP(B329,Kode!A2:D215,4,FALSE)","v":{"$error":"#N/A"}},null,null,null,null,null,null,null,null,null,null,null,null,null,{"$f":"VLOOKUP(B329,Kode!A2:E215,5,FALSE)","v":{"$error":"#N/A"}},null,null,null,null,null,null,null,{"$error":"#DIV/0!"}]
[{"$f":"VLOOKUP(B330,Kode!A2:C215,3,FALSE)","v":{"$error":"#N/A"}},null,{"$f":"VLOOKUP(B330,Kode!A2:D215,4,FALSE)","v":{"$error":"#N/A"}},null,null,null,null,null,null,null,null,null,null,null,null,null,{"$f":"VLOOKUP(B330,Kode!A2:E215,5,FALSE)","v":{"$error":"#N/A"}},null,null,null,null,null,null,null,{"$error":"#DIV/0!"}]
[{"$f":"VLOOKUP(B331,Kode!A2:C215,3,FALSE)","v":{"$error":"#N/A"}},null,{"$f":"VLOOKUP(B331,Kode!A2:D215,4,FALSE)","v":{"$error":"#N/A"}},null,null,null,null,null,null,null,null,null,null,null,null,null,{"$f":"VLOOKUP(B331,Kode!A2:E215,5,FALSE)","v":{"$error":"#N/A"}},null,null,null,null,null,null,null,{"$error":"#DIV/0!"}]
[{"$f":"VLOOKUP(B332,Kode!A2:C215,3,FALSE)","v":{"$error":"#N/A"}},null,{"$f":"VLOOKUP(B332,Kode!A2:D215,4,FALSE)","v":{"$error":"#N/A"}},null,null,null,null,null,null,null,null,null,null,null,null,null,{"$f":"VLOOKUP(B332,Kode!A2:E215,5,FALSE)","v":{"$error":"#N/A"}},null,null,null,null,null,null,null,{"$error":"#DIV/0!"}]
[{"$f":"VLOOKUP(B333,Kode!A2:C215,3,FALSE)","v":{"$error":"#N/A"}},null,{"$f":"VLOOKUP(B333,Kode!A2:D215,4,FALSE)","v":{"$error":"#N/A"}},null,null,null,null,null,null,null,null,null,null,null,null,null,{"$f":"VLOOKUP(B333,Kode!A2:E215,5,FALSE)","v":{"$error":"#N/A"}},null,null,null,null,null,null,null,{"$error":"#DIV/0!"}]
[{"$f":"VLOOKUP(B334,Kode!A2:C215,3,FALSE)","v":{"$error":"#N/A"}},null,{"$f":"VLOOKUP(B334,Kode!A2:D215,4,FALSE)","v":{"$error":"#N/A"}},null,null,null,null,null,null,null,null,null,null,null,null,null,{"$f":"VLOOKUP(B334,Kode!A2:E215,5,FALSE)","v":{"$error":"#N/A"}},null,null,null,null,null,null,null,{"$error":"#DIV/0!"}]
[{"$f":"VLOOKUP(B335,Kode!A2:C215,3,FALSE)","v":{"$error":"#N/A"}},null,{"$f":"VLOOKUP(B335,Kode!A2:D215,4,FALSE)","v":{"$error":"#N/A"}},null,null,null,null,null,null,null,null,null,null,null,null,null,{"$f":"VLOOKUP(B335,Kode!A2:E215,5,FALSE)","v":{"$error":"#N/A"}},null,null,null,null,null,null,null,{"$error":"#DIV/0!"}]
[{"$f":"VLOOKUP(B336,Kode!A2:C215,3,FALSE)","v":{"$error":"#N/A"}},null,{"$f":"VLOOKUP(B336,Kode!A2:D215,4,FALSE)","v":{"$error":"#N/A"}},null,null,null,null,null,null,null,null,null,null,null,null,null,{"$f":"VLOOKUP(B336,Kode!A2:E215,5,FALSE)","v":{"$error":"#N/A"}},null,null,null,null,null,null,null,{"$error":"#DIV/0!"}]
[{"$f":"VLOOKUP(B337,Kode!A2:C215,3,FALSE)","v":{"$error":"#N/A"}},null,{"$f":"VLOOKUP(B337,Kode!A2:D215,4,FALSE)","v":{"$error":"#N/A"}},null,null,null,null,null,null,null,null,null,null,null,null,null,{"$f":"VLOOKUP(B337,Kode!A2:E215,5,FALSE)","v":{"$error":"#N/A"}},null,null,null,null,null,null,null,{"$error":"#DIV/0!"}]
[{"$f":"VLOOKUP(B338,Kode!A2:C215,3,FALSE)","v":{"$error":"#N/A"}},null,{"$f":"VLOOKUP(B338,Kode!A2:D215,4,FALSE)","v":{"$error":"#N/A"}},null,null,null,null,null,null,null,null,null,null,null,null,null,{"$f":"VLOOKUP(B338,Kode!A2:E215,5,FALSE)","v":{"$error":"#N/A"}},null,null,null,null,null,null,null,{"$error":"#DIV/0!"}]
[{"$f":"VLOOKUP(B339,Kode!A2:C215,3,FALSE)","v":{"$error":"#N/A"}},null,{"$f":"VLOOKUP(B339,Kode!A2:D215,4,FALSE)","v":{"$error":"#N/A"}},null,null,null,null,null,null,null,null,null,null,null,null,null,{"$f":"VLOOKUP(B339,Kode!A2:E215,5,FALSE)","v":{"$error":"#N/A"}},null,null,null,null,null,null,null,{"$error":"#DIV/0!"}]
[{"$f":"VLOOKUP(B340,Kode!A2:C215,3,FALSE)","v":{"$error":"#N/A"}},null,{"$f":"VLOOKUP(B340,Kode!A2:D215,4,FALSE)","v":{"$error":"#N/A"}},null,null,null,null,null,null,null,null,null,null,null,null,null,{"$f":"VLOOKUP(B340,Kode!A2:E215,5,FALSE)","v":{"$error":"#N/A"}},null,null,null,null,null,null,null,{"$error":"#DIV/0!"}]
[{"$f":"VLOOKUP(B341,Kode!A2:C215,3,FALSE)","v":{"$error":"#N/A"}},null,{"$f":"VLOOKUP(B341,Kode!A2:D215,4,FALSE)","v":{"$error":"#N/A"}},null,null,null,null,null,null,null,null,null,null,null,null,null,{"$f":"VLOOKUP(B341,Kode!A2:E215,5,FALSE)","v":{"$error":"#N/A"}},null,null,null,null,null,null,null,{"$error":"#DIV/0!"}]
[{"$f":"VLOOKUP(B342,Kode!A2:C215,3,FALSE)","v":{"$error":"#N/A"}},null,{"$f":"VLOOKUP(B342,Kode!A2:D215,4,FALSE)","v":{"$error":"#N/A"}},null,null,null,null,null,null,null,null,null,null,null,null,null,{"$f":"VLOOKUP(B342,Kode!A2:E215,5,FALSE)","v":{"$error":"#N/A"}},null,null,null,null,null,null,null,{"$error":"#DIV/0!"}]
[{"$f":"VLOOKUP(B343,Kode!A2:C215,3,FALSE)","v":{"$error":"#N/A"}},null,{"$f":"VLOOKUP(B343,Kode!A2:D215,4,FALSE)","v":{"$error":"#N/A"}},null,null,null,null,null,null,null,null,null,null,null,null,null,{"$f":"VLOOKUP(B343,Kode!A2:E215,5,FALSE)","v":{"$error":"#N/A"}},null,null,null,null,null,null,null,{"$error":"#DIV/0!"}]
[{"$f":"VLOOKUP(B344,Kode!A2:C215,3,FALSE)","v":{"$error":"#N/A"}},null,{"$f":"VLOOKUP(B344,Kode!A2:D215,4,FALSE)","v":{"$error":"#N/A"}},null,null,null,null,null,null,null,null,null,null,null,null,null,{"$f":"VLOOKUP(B344,Kode!A2:E215,5,FALSE)","v":{"$error":"#N/A"}},null,null,null,null,null,null,null,{"$error":"#DIV/0!"}]
[{"$f":"VLOOKUP(B345,Kode!A2:C215,3,FALSE)","v":{"$error":"#N/A"}},null,{"$f":"VLOOKUP(B345,Kode!A2:D215,4,FALSE)","v":{"$error":"#N/A"}},null,null,null,null,null,null,null,null,null,null,null,null,null,{"$f":"VLOOKUP(B345,Kode!A2:E215,5,FALSE)","v":{"$error":"#N/A"}},null,null,null,null,null,null,null,{"$error":"#DIV/0!"}]
[{"$f":"VLOOKUP(B346,Kode!A2:C215,3,FALSE)","v":{"$error":"#N/A"}},null,{"$f":"VLOOKUP(B346,Kode!A2:D215,4,FALSE)","v":{"$error":"#N/A"}},null,null,null,null,null,null,null,null,null,null,null,null,null,{"$f":"VLOOKUP(B346,Kode!A2:E215,5,FALSE)","v":{"$error":"#N/A"}},null,null,null,null,null,null,null,{"$error":"#DIV/0!"}]
[{"$f":"VLOOKUP(B347,Kode!A2:C215,3,FALSE)","v":{"$error":"#N/A"}},null,{"$f":"VLOOKUP(B347,Kode!A2:D215,4,FALSE)","v":{"$error":"#N/A"}},null,null,null,null,null,null,null,null,null,null,null,null,null,{"$f":"VLOOKUP(B347,Kode!A2:E215,5,FALSE)","v":{"$error":"#N/A"}},null,null,null,null,null,null,null,{"$error":"#DIV/0!"}]
[{"$f":"VLOOKUP(B348,Kode!A2:C215,3,FALSE)","v":{"$error":"#N/A"}},null,{"$f":"VLOOKUP(B348,Kode!A2:D215,4,FALSE)","v":{"$error":"#N/A"}},null,null,null,null,null,null,null,null,null,null,null,null,null,{"$f":"VLOOKUP(B348,Kode!A2:E215,5,FALSE)","v":{"$error":"#N/A"}},null,null,null,null,null,null,null,{"$error":"#DIV/0!"}]
[{"$f":"VLOOKUP(B349,Kode!A2:C215,3,FALSE)","v":{"$error":"#N/A"}},null,{"$f":"VLOOKUP(B349,Kode!A2:D215,4,FALSE)","v":{"$error":"#N/A"}},null,null,null,null,null,null,null,null,null,null,null,null,null,{"$f":"VLOOKUP(B349,Kode!A2:E215,5,FALSE)","v":{"$error":"#N/A"}},null,null,null,null,null,null,null,{"$error":"#DIV/0!"}]
[{"$f":"VLOOKUP(B350,Kode!A2:C215,3,FALSE)","v":{"$error":"#N/A"}},null,{"$f":"VLOOKUP(B350,Kode!A2:D215,4,FALSE)","v":{"$error":"#N/A"}},null,null,null,null,null,null,null,null,null,null,null,null,null,{"$f":"VLOOKUP(B350,Kode!A2:E215,5,FALSE)","v":{"$error":"#N/A"}},null,null,null,null,null,null,null,{"$error":"#DIV/0!"}]
[{"$f":"VLOOKUP(B351,Kode!A2:C215,3,FALSE)","v":{"$error":"#N/A"}},null,{"$f":"VLOOKUP(B351,Kode!A2:D215,4,FALSE)","v":{"$error":"#N/A"}},null,null,null,null,null,null,null,null,null,null,null,null,null,{"$f":"VLOOKUP(B351,Kode!A2:E215,5,FALSE)","v":{"$error":"#N/A"}},null,null,null,null,null,null,null,{"$error":"#DIV/0!"}]
[{"$f":"VLOOKUP(B352,Kode!A2:C215,3,FALSE)","v":{"$error":"#N/A"}},null,{"$f":"VLOOKUP(B352,Kode!A2:D215,4,FALSE)","v":{"$error":"#N/A"}},null,null,null,null,null,null,null,null,null,null,null,null,null,{"$f":"VLOOKUP(B352,Kode!A2:E215,5,FALSE)","v":{"$error":"#N/A"}},null,null,null,null,null,null,null,{"$error":"#DIV/0!"}]
[{"$f":"VLOOKUP(B353,Kode!A2:C215,3,FALSE)","v":{"$error":"#N/A"}},null,{"$f":"VLOOKUP(B353,Kode!A2:D215,4,FALSE)","v":{"$error":"#N/A"}},null,null,null,null,null,null,null,null,null,null,null,null,null,{"$f":"VLOOKUP(B353,Kode!A2:E215,5,FALSE)","v":{"$error":"#N/A"}},null,null,null,null,null,null,null,{"$error":"#DIV/0!"}]
[{"$f":"VLOOKUP(B354,Kode!A2:C215,3,FALSE)","v":{"$error":"#N/A"}},null,{"$f":"VLOOKUP(B354,Kode!A2:D215,4,FALSE)","v":{"$error":"#N/A"}},null,null,null,null,null,null,null,null,null,null,null,null,null,{"$f":"VLOOKUP(B354,Kode!A2:E215,5,FALSE)","v":{"$error":"#N/A"}},null,null,null,null,null,null,null,{"$error":"#DIV/0!"}]
[{"$f":"VLOOKUP(B355,Kode!A2:C215,3,FALSE)","v":{"$error":"#N/A"}},null,{"$f":"VLOOKUP(B355,Kode!A2:D215,4,FALSE)","v":{"$error":"#N/A"}},null,null,null,null,null,null,null,null,null,null,null,null,null,{"$f":"VLOOKUP(B355,Kode!A2:E215,5,FALSE)","v":{"$error":"#N/A"}},null,null,null,null,null,null,null,{"$error":"#DIV/0!"}]
[{"$f":"VLOOKUP(B356,Kode!A2:C215,3,FALSE)","v":{"$error":"#N/A"}},null,{"$f":"VLOOKUP(B356,Kode!A2:D215,4,FALSE)","v":{"$error":"#N/A"}},null,null,null,null,null,null,null,null,null,null,null,null,null,{"$f":"VLOOKUP(B356,Kode!A2:E215,5,FALSE)","v":{"$error":"#N/A"}},null,null,null,null,null,null,null,{"$error":"#DIV/0!"}]
[{"$f":"VLOOKUP(B357,Kode!A2:C215,3,FALSE)","v":{"$error":"#N/A"}},null,{"$f":"VLOOKUP(B357,Kode!A2:D215,4,FALSE)","v":{"$error":"#N/A"}},null,null,null,null,null,null,null,null,null,null,null,null,null,{"$f":"VLOOKUP(B357,Kode!A2:E215,5,FALSE)","v":{"$error":"#N/A"}},null,null,null,null,null,null,null,{"$error":"#DIV/0!"}]
[{"$f":"VLOOKUP(B358,Kode!A2:C215,3,FALSE)","v":{"$error":"#N/A"}},null,{"$f":"VLOOKUP(B358,Kode!A2:D215,4,FALSE)","v":{"$error":"#N/A"}},null,null,null,null,null,null,null,null,null,null,null,null,null,{"$f":"VLOOKUP(B358,Kode!A2:E215,5,FALSE)","v":{"$error":"#N/A"}},null,null,null,null,null,null,null,{"$error":"#DIV/0!"}]
[{"$f":"VLOOKUP(B359,Kode!A2:C215,3,FALSE)","v":{"$error":"#N/A"}},null,{"$f":"VLOOKUP(B359,Kode!A2:D215,4,FALSE)","v":{"$error":"#N/A"}},null,null,null,null,null,null,null,null,null,null,null,null,null,{"$f":"VLOOKUP(B359,Kode!A2:E215,5,FALSE)","v":{"$error":"#N/A"}},null,null,null,null,null,null,null,{"$error":"#DIV/0!"}]
[{"$f":"VLOOKUP(B360,Kode!A2:C215,3,FALSE)","v":{"$error":"#N/A"}},null,{"$f":"VLOOKUP(B360,Kode!A2:D215,4,FALSE)","v":{"$error":"#N/A"}},null,null,null,null,null,null,null,null,null,null,null,null,null,{"$f":"VLOOKUP(B360,Kode!A2:E215,5,FALSE)","v":{"$error":"#N/A"}},null,null,null,null,null,null,null,{"$error":"#DIV/0!"}]
[{"$f":"VLOOKUP(B361,Kode!A2:C215,3,FALSE)","v":{"$error":"#N/A"}},null,{"$f":"VLOOKUP(B361,Kode!A2:D215,4,FALSE)","v":{"$error":"#N/A"}},null,null,null,null,null,null,null,null,null,null,null,null,null,{"$f":"VLOOKUP(B361,Kode!A2:E215,5,FALSE)","v":{"$error":"#N/A"}},null,null,null,null,null,null,null,{"$error":"#DIV/0!"}]
[{"$f":"VLOOKUP(B362,Kode!A2:C215,3,FALSE)","v":{"$error":"#N/A"}},null,{"$f":"VLOOKUP(B362,Kode!A2:D215,4,FALSE)","v":{"$error":"#N/A"}},null,null,null,null,null,null,null,null,null,null,null,null,null,{"$f":"VLOOKUP(B362,Kode!A2:E215,5,FALSE)","v":{"$error":"#N/A"}},null,null,null,null,null,null,null,{"$error":"#DIV/0!"}]
[{"$f":"VLOOKUP(B363,Kode!A2:C215,3,FALSE)","v":{"$error":"#N/A"}},null,{"$f":"VLOOKUP(B363,Kode!A2:D215,4,FALSE)","v":{"$error":"#N/A"}},null,null,null,null,null,null,null,null,null,null,null,null,null,{"$f":"VLOOKUP(B363,Kode!A2:E215,5,FALSE)","v":{"$error":"#N/A"}},null,null,null,null,null,null,null,{"$error":"#DIV/0!"}]
[{"$f":"VLOOKUP(B364,Kode!A2:C215,3,FALSE)","v":{"$error":"#N/A"}},null,{"$f":"VLOOKUP(B364,Kode!A2:D215,4,FALSE)","v":{"$error":"#N/A"}},null,null,null,null,null,null,null,null,null,null,null,null,null,{"$f":"VLOOKUP(B364,Kode!A2:E215,5,FALSE)","v":{"$error":"#N/A"}},null,null,null,null,null,null,null,{"$error":"#DIV/0!"}]
[{"$f":"VLOOKUP(B365,Kode!A2:C215,3,FALSE)","v":{"$error":"#N/A"}},null,{"$f":"VLOOKUP(B365,Kode!A2:D215,4,FALSE)","v":{"$error":"#N/A"}},null,null,null,null,null,null,null,null,null,null,null,null,null,{"$f":"VLOOKUP(B365,Kode!A2:E215,5,FALSE)","v":{"$error":"#N/A"}},null,null,null,null,null,null,null,{"$error":"#DIV/0!"}]
[{"$f":"VLOOKUP(B366,Kode!A2:C215,3,FALSE)","v":{"$error":"#N/A"}},null,{"$f":"VLOOKUP(B366,Kode!A2:D215,4,FALSE)","v":{"$error":"#N/A"}},null,null,null,null,null,null,null,null,null,null,null,null,null,{"$f":"VLOOKUP(B366,Kode!A2:E215,5,FALSE)","v":{"$error":"#N/A"}},null,null,null,null,null,null,null,{"$error":"#DIV/0!"}]
[{"$f":"VLOOKUP(B367,Kode!A2:C215,3,FALSE)","v":{"$error":"#N/A"}},null,{"$f":"VLOOKUP(B367,Kode!A2:D215,4,FALSE)","v":{"$error":"#N/A"}},null,null,null,null,null,null,null,null,null,null,null,null,null,{"$f":"VLOOKUP(B367,Kode!A2:E215,5,FALSE)","v":{"$error":"#N/A"}},null,null,null,null,null,null,null,{"$error":"#DIV/0!"}]
[{"$f":"VLOOKUP(B368,Kode!A2:C215,3,FALSE)","v":{"$error":"#N/A"}},null,{"$f":"VLOOKUP(B368,Kode!A2:D215,4,FALSE)","v":{"$error":"#N/A"}},null,null,null,null,null,null,null,null,null,null,null,null,null,{"$f":"VLOOKUP(B368,Kode!A2:E215,5,FALSE)","v":{"$error":"#N/A"}},null,null,null,null,null,null,null,{"$error":"#DIV/0!"}]
[{"$f":"VLOOKUP(B369,Kode!A2:C215,3,FALSE)","v":{"$error":"#N/A"}},null,{"$f":"VLOOKUP(B369,Kode!A2:D215,4,FALSE)","v":{"$error":"#N/A"}},null,null,null,null,null,null,null,null,null,null,null,null,null,{"$f":"VLOOKUP(B369,Kode!A2:E215,5,FALSE)","v":{"$error":"#N/A"}},null,null,null,null,null,null,null,{"$error":"#DIV/0!"}]
[{"$f":"VLOOKUP(B370,Kode!A2:C215,3,FALSE)","v":{"$error":"#N/A"}},null,{"$f":"VLOOKUP(B370,Kode!A2:D215,4,FALSE)","v":{"$error":"#N/A"}},null,null,null,null,null,null,null,null,null,null,null,null,null,{"$f":"VLOOKUP(B370,Kode!A2:E215,5,FALSE)","v":{"$error":"#N/A"}},null,null,null,null,null,null,null,{"$error":"#DIV/0!"}]
[{"$f":"VLOOKUP(B371,Kode!A2:C215,3,FALSE)","v":{"$error":"#N/A"}},null,{"$f":"VLOOKUP(B371,Kode!A2:D215,4,FALSE)","v":{"$error":"#N/A"}},null,null,null,null,null,null,null,null,null,null,null,null,null,{"$f":"VLOOKUP(B371,Kode!A2:E215,5,FALSE)","v":{"$error":"#N/A"}},null,null,null,null,null,null,null,{"$error":"#DIV/0!"}]
[{"$f":"VLOOKUP(B372,Kode!A2:C215,3,FALSE)","v":{"$error":"#N/A"}},null,{"$f":"VLOOKUP(B372,Kode!A2:D215,4,FALSE)","v":{"$error":"#N/A"}},null,null,null,null,null,null,null,null,null,null,null,null,null,{"$f":"VLOOKUP(B372,Kode!A2:E215,5,FALSE)","v":{"$error":"#N/A"}},null,null,null,null,null,null,null,{"$error":"#DIV/0!"}]
[{"$f":"VLOOKUP(B373,Kode!A2:C215,3,FALSE)","v":{"$error":"#N/A"}},null,{"$f":"VLOOKUP(B373,Kode!A2:D215,4,FALSE)","v":{"$error":"#N/A"}},null,null,null,null,null,null,null,null,null,null,null,null,null,{"$f":"VLOOKUP(B373,Kode!A2:E215,5,FALSE)","v":{"$error":"#N/A"}},null,null,null,null,null,null,null,{"$error":"#DIV/0!"}]
[{"$f":"VLOOKUP(B374,Kode!A2:C215,3,FALSE)","v":{"$error":"#N/A"}},null,{"$f":"VLOOKUP(B374,Kode!A2:D215,4,FALSE)","v":{"$error":"#N/A"}},null,null,null,null,null,null,null,null,null,null,null,null,null,{"$f":"VLOOKUP(B374,Kode!A2:E215,5,FALSE)","v":{"$error":"#N/A"}},null,null,null,null,null,null,null,{"$error":"#DIV/0!"}]
[{"$f":"VLOOKUP(B375,Kode!A2:C215,3,FALSE)","v":{"$error":"#N/A"}},null,{"$f":"VLOOKUP(B375,Kode!A2:D215,4,FALSE)","v":{"$error":"#N/A"}},null,null,null,null,null,null,null,null,null,null,null,null,null,{"$f":"VLOOKUP(B375,Kode!A2:E215,5,FALSE)","v":{"$error":"#N/A"}},null,null,null,null,null,null,null,{"$error":"#DIV/0!"}]
[{"$f":"VLOOKUP(B376,Kode!A2:C215,3,FALSE)","v":{"$error":"#N/A"}},null,{"$f":"VLOOKUP(B376,Kode!A2:D215,4,FALSE)","v":{"$error":"#N/A"}},null,null,null,null,null,null,null,null,null,null,null,null,null,{"$f":"VLOOKUP(B376,Kode!A2:E215,5,FALSE)","v":{"$error":"#N/A"}},null,null,null,null,null,null,null,{"$error":"#DIV/0!"}]
[{"$f":"VLOOKUP(B377,Kode!A2:C215,3,FALSE)","v":{"$error":"#N/A"}},null,{"$f":"VLOOKUP(B377,Kode!A2:D215,4,FALSE)","v":{"$error":"#N/A"}},null,null,null,null,null,null,null,null,null,null,null,null,null,{"$f":"VLOOKUP(B377,Kode!A2:E215,5,FALSE)","v":{"$error":"#N/A"}},null,null,null,null,null,null,null,{"$error":"#DIV/0!"}]
[{"$f":"VLOOKUP(B378,Kode!A2:C215,3,FALSE)","v":{"$error":"#N/A"}},null,{"$f":"VLOOKUP(B378,Kode!A2:D215,4,FALSE)","v":{"$error":"#N/A"}},null,null,null,null,null,null,null,null,null,null,null,null,null,{"$f":"VLOOKUP(B378,Kode!A2:E215,5,FALSE)","v":{"$error":"#N/A"}},null,null,null,null,null,null,null,{"$error":"#DIV/0!"}]
[{"$f":"VLOOKUP(B379,Kode!A2:C215,3,FALSE)","v":{"$error":"#N/A"}},null,{"$f":"VLOOKUP(B379,Kode!A2:D215,4,FALSE)","v":{"$error":"#N/A"}},null,null,null,null,null,null,null,null,null,null,null,null,null,{"$f":"VLOOKUP(B379,Kode!A2:E215,5,FALSE)","v":{"$error":"#N/A"}},null,null,null,null,null,null,null,{"$error":"#DIV/0!"}]
[{"$f":"VLOOKUP(B380,Kode!A2:C215,3,FALSE)","v":{"$error":"#N/A"}},null,{"$f":"VLOOKUP(B380,Kode!A2:D215,4,FALSE)","v":{"$error":"#N/A"}},null,null,null,null,null,null,null,null,null,null,null,null,null,{"$f":"VLOOKUP(B380,Kode!A2:E215,5,FALSE)","v":{"$error":"#N/A"}},null,null,null,null,null,null,null,{"$error":"#DIV/0!"}]
[{"$f":"VLOOKUP(B381,Kode!A2:C215,3,FALSE)","v":{"$error":"#N/A"}},null,{"$f":"VLOOKUP(B381,Kode!A2:D215,4,FALSE)","v":{"$error":"#N/A"}},null,null,null,null,null,null,null,null,null,null,null,null,null,{"$f":"VLOOKUP(B381,Kode!A2:E215,5,FALSE)","v":{"$error":"#N/A"}},null,null,null,null,null,null,null,{"$error":"#DIV/0!"}]
[{"$f":"VLOOKUP(B382,Kode!A2:C215,3,FALSE)","v":{"$error":"#N/A"}},null,{"$f":"VLOOKUP(B382,Kode!A2:D215,4,FALSE)","v":{"$error":"#N/A"}},null,null,null,null,null,null,null,null,null,null,null,null,null,{"$f":"VLOOKUP(B382,Kode!A2:E215,5,FALSE)","v":{"$error":"#N/A"}},null,null,null,null,null,null,null,{"$error":"#DIV/0!"}]
[{"$f":"VLOOKUP(B383,Kode!A2:C215,3,FALSE)","v":{"$error":"#N/A"}},null,{"$f":"VLOOKUP(B383,Kode!A2:D215,4,FALSE)","v":{"$error":"#N/A"}},null,null,null,null,null,null,null,null,null,null,null,null,null,{"$f":"VLOOKUP(B383,Kode!A2:E215,5,FALSE)","v":{"$error":"#N/A"}},null,null,null,null,null,null,null,{"$error":"#DIV/0!"}]
[{"$f":"VLOOKUP(B384,Kode!A2:C215,3,FALSE)","v":{"$error":"#N/A"}},null,{"$f":"VLOOKUP(B384,Kode!A2:D215,4,FALSE)","v":{"$error":"#N/A"}},null,null,null,null,null,null,null,null,null,null,null,null,null,{"$f":"VLOOKUP(B384,Kode!A2:E215,5,FALSE)","v":{"$error":"#N/A"}},null,null,null,null,null,null,null,{"$error":"#DIV/0!"}]
[{"$f":"VLOOKUP(B385,Kode!A2:C215,3,FALSE)","v":{"$error":"#N/A"}},null,{"$f":"VLOOKUP(B385,Kode!A2:D215,4,FALSE)","v":{"$error":"#N/A"}},null,null,null,null,null,null,null,null,null,null,null,null,null,{"$f":"VLOOKUP(B385,Kode!A2:E215,5,FALSE)","v":{"$error":"#N/A"}},null,null,null,null,null,null,null,{"$error":"#DIV/0!"}]
[{"$f":"VLOOKUP(B386,Kode!A2:C215,3,FALSE)","v":{"$error":"#N/A"}},null,{"$f":"VLOOKUP(B386,Kode!A2:D215,4,FALSE)","v":{"$error":"#N/A"}},null,null,null,null,null,null,null,null,null,null,null,null,null,{"$f":"VLOOKUP(B386,Kode!A2:E215,5,FALSE)","v":{"$error":"#N/A"}},null,null,null,null,null,null,null,{"$error":"#DIV/0!"}]
[{"$f":"VLOOKUP(B387,Kode!A2:C215,3,FALSE)","v":{"$error":"#N/A"}},null,{"$f":"VLOOKUP(B387,Kode!A2:D215,4,FALSE)","v":{"$error":"#N/A"}},null,null,null,null,null,null,null,null,null,null,null,null,null,{"$f":"VLOOKUP(B387,Kode!A2:E215,5,FALSE)","v":{"$error":"#N/A"}},null,null,null,null,null,null,null,{"$f":"U387/S387*100","v":{"$error":"#DIV/0!"}}]
[{"$f":"VLOOKUP(B388,Kode!A2:C215,3,FALSE)","v":{"$error":"#N/A"}},null,{"$f":"VLOOKUP(B388,Kode!A2:D215,4,FALSE)","v":{"$error":"#N/A"}},null,null,null,null,null,null,null,null,null,null,null,null,null,{"$f":"VLOOKUP(B388,Kode!A2:E215,5,FALSE)","v":{"$error":"#N/A"}},null,null,null,null,null,null,null,{"$error":"#DIV/0!"}]
[{"$f":"VLOOKUP(B389,Kode!A2:C215,3,FALSE)","v":{"$error":"#N/A"}},null,{"$f":"VLOOKUP(B389,Kode!A2:D215,4,FALSE)","v":{"$error":"#N/A"}},null,null,null,null,null,null,null,null,null,null,null,null,null,{"$f":"VLOOKUP(B389,Kode!A2:E215,5,FALSE)","v":{"$error":"#N/A"}},null,null,null,null,null,null,null,{"$error":"#DIV/0!"}]
[{"$f":"VLOOKUP(B390,Kode!A2:C215,3,FALSE)","v":{"$error":"#N/A"}},null,{"$f":"VLOOKUP(B390,Kode!A2:D215,4,FALSE)","v":{"$error":"#N/A"}},null,null,null,null,null,null,null,null,null,null,null,null,null,{"$f":"VLOOKUP(B390,Kode!A2:E215,5,FALSE)","v":{"$error":"#N/A"}},null,null,null,null,null,null,null,{"$error":"#DIV/0!"}]
[{"$f":"VLOOKUP(B391,Kode!A2:C215,3,FALSE)","v":{"$error":"#N/A"}},null,{"$f":"VLOOKUP(B391,Kode!A2:D215,4,FALSE)","v":{"$error":"#N/A"}},null,null,null,null,null,null,null,null,null,null,null,null,null,{"$f":"VLOOKUP(B391,Kode!A2:E215,5,FALSE)","v":{"$error":"#N/A"}},null,null,null,null,null,null,null,{"$error":"#DIV/0!"}]
[{"$f":"VLOOKUP(B392,Kode!A2:C215,3,FALSE)","v":{"$error":"#N/A"}},null,{"$f":"VLOOKUP(B392,Kode!A2:D215,4,FALSE)","v":{"$error":"#N/A"}},null,null,null,null,null,null,null,null,null,null,null,null,null,{"$f":"VLOOKUP(B392,Kode!A2:E215,5,FALSE)","v":{"$error":"#N/A"}},null,null,null,null,null,null,null,{"$error":"#DIV/0!"}]
[{"$f":"VLOOKUP(B393,Kode!A2:C215,3,FALSE)","v":{"$error":"#N/A"}},null,{"$f":"VLOOKUP(B393,Kode!A2:D215,4,FALSE)","v":{"$error":"#N/A"}},null,null,null,null,null,null,null,null,null,null,null,null,null,{"$f":"VLOOKUP(B393,Kode!A2:E215,5,FALSE)","v":{"$error":"#N/A"}},null,null,null,null,null,null,null,{"$error":"#DIV/0!"}]
[{"$f":"VLOOKUP(B394,Kode!A2:C215,3,FALSE)","v":{"$error":"#N/A"}},null,{"$f":"VLOOKUP(B394,Kode!A2:D215,4,FALSE)","v":{"$error":"#N/A"}},null,null,null,null,null,null,null,null,null,null,null,null,null,{"$f":"VLOOKUP(B394,Kode!A2:E215,5,FALSE)","v":{"$error":"#N/A"}},null,null,null,null,null,null,null,{"$error":"#DIV/0!"}]
[{"$f":"VLOOKUP(B395,Kode!A2:C215,3,FALSE)","v":{"$error":"#N/A"}},null,{"$f":"VLOOKUP(B395,Kode!A2:D215,4,FALSE)","v":{"$error":"#N/A"}},null,null,null,null,null,null,null,null,null,null,null,null,null,{"$f":"VLOOKUP(B395,Kode!A2:E215,5,FALSE)","v":{"$error":"#N/A"}},null,null,null,null,null,null,null,{"$error":"#DIV/0!"}]
[{"$f":"VLOOKUP(B396,Kode!A2:C215,3,FALSE)","v":{"$error":"#N/A"}},null,{"$f":"VLOOKUP(B396,Kode!A2:D215,4,FALSE)","v":{"$error":"#N/A"}},null,null,null,null,null,null,null,null,null,null,null,null,null,{"$f":"VLOOKUP(B396,Kode!A2:E215,5,FALSE)","v":{"$error":"#N/A"}},null,null,null,null,null,null,null,{"$error":"#DIV/0!"}]
[{"$f":"VLOOKUP(B397,Kode!A2:C215,3,FALSE)","v":{"$error":"#N/A"}},null,{"$f":"VLOOKUP(B397,Kode!A2:D215,4,FALSE)","v":{"$error":"#N/A"}},null,null,null,null,null,null,null,null,null,null,null,null,null,{"$f":"VLOOKUP(B397,Kode!A2:E215,5,FALSE)","v":{"$error":"#N/A"}},null,null,null,null,null,null,null,{"$error":"#DIV/0!"}]
[{"$f":"VLOOKUP(B398,Kode!A2:C215,3,FALSE)","v":{"$error":"#N/A"}},null,{"$f":"VLOOKUP(B398,Kode!A2:D215,4,FALSE)","v":{"$error":"#N/A"}},null,null,null,null,null,null,null,null,null,null,null,null,null,{"$f":"VLOOKUP(B398,Kode!A2:E215,5,FALSE)","v":{"$error":"#N/A"}},null,null,null,null,null,null,null,{"$error":"#DIV/0!"}]
[{"$f":"VLOOKUP(B399,Kode!A2:C215,3,FALSE)","v":{"$error":"#N/A"}},null,{"$f":"VLOOKUP(B399,Kode!A2:D215,4,FALSE)","v":{"$error":"#N/A"}},null,null,null,null,null,null,null,null,null,null,null,null,null,{"$f":"VLOOKUP(B399,Kode!A2:E215,5,FALSE)","v":{"$error":"#N/A"}},null,null,null,null,null,null,null,{"$error":"#DIV/0!"}]
[{"$f":"VLOOKUP(B400,Kode!A2:C215,3,FALSE)","v":{"$error":"#N/A"}},null,{"$f":"VLOOKUP(B400,Kode!A2:D215,4,FALSE)","v":{"$error":"#N/A"}},null,null,null,null,null,null,null,null,null,null,null,null,null,{"$f":"VLOOKUP(B400,Kode!A2:E215,5,FALSE)","v":{"$error":"#N/A"}},null,null,null,null,null,null,null,{"$error":"#DIV/0!"}]
[{"$f":"VLOOKUP(B401,Kode!A2:C215,3,FALSE)","v":{"$error":"#N/A"}},null,{"$f":"VLOOKUP(B401,Kode!A2:D215,4,FALSE)","v":{"$error":"#N/A"}},null,null,null,null,null,null,null,null,null,null,null,null,null,{"$f":"VLOOKUP(B401,Kode!A2:E215,5,FALSE)","v":{"$error":"#N/A"}},null,null,null,null,null,null,null,{"$error":"#DIV/0!"}]
[{"$f":"VLOOKUP(B402,Kode!A2:C215,3,FALSE)","v":{"$error":"#N/A"}},null,{"$f":"VLOOKUP(B402,Kode!A2:D215,4,FALSE)","v":{"$error":"#N/A"}},null,null,null,null,null,null,null,null,null,null,null,null,null,{"$f":"VLOOKUP(B402,Kode!A2:E215,5,FALSE)","v":{"$error":"#N/A"}},null,null,null,null,null,null,null,{"$error":"#DIV/0!"}]
[{"$f":"VLOOKUP(B403,Kode!A2:C215,3,FALSE)","v":{"$error":"#N/A"}},null,{"$f":"VLOOKUP(B403,Kode!A2:D215,4,FALSE)","v":{"$error":"#N/A"}},null,null,null,null,null,null,null,null,null,null,null,null,null,{"$f":"VLOOKUP(B403,Kode!A2:E215,5,FALSE)","v":{"$error":"#N/A"}},null,null,null,null,null,null,null,{"$error":"#DIV/0!"}]
[{"$f":"VLOOKUP(B404,Kode!A2:C215,3,FALSE)","v":{"$error":"#N/A"}},null,{"$f":"VLOOKUP(B404,Kode!A2:D215,4,FALSE)","v":{"$error":"#N/A"}},null,null,null,null,null,null,null,null,null,null,null,null,null,{"$f":"VLOOKUP(B404,Kode!A2:E215,5,FALSE)","v":{"$error":"#N/A"}},null,null,null,null,null,null,null,{"$error":"#DIV/0!"}]
[{"$f":"VLOOKUP(B405,Kode!A2:C215,3,FALSE)","v":{"$error":"#N/A"}},null,{"$f":"VLOOKUP(B405,Kode!A2:D215,4,FALSE)","v":{"$error":"#N/A"}},null,null,null,null,null,null,null,null,null,null,null,null,null,{"$f":"VLOOKUP(B405,Kode!A2:E215,5,FALSE)","v":{"$error":"#N/A"}},null,null,null,null,null,null,null,{"$error":"#DIV/0!"}]
[{"$f":"VLOOKUP(B406,Kode!A2:C215,3,FALSE)","v":{"$error":"#N/A"}},null,{"$f":"VLOOKUP(B406,Kode!A2:D215,4,FALSE)","v":{"$error":"#N/A"}},null,null,null,null,null,null,null,null,null,null,null,null,null,{"$f":"VLOOKUP(B406,Kode!A2:E215,5,FALSE)","v":{"$error":"#N/A"}},null,null,null,null,null,null,null,{"$error":"#DIV/0!"}]
[{"$f":"VLOOKUP(B407,Kode!A2:C215,3,FALSE)","v":{"$error":"#N/A"}},null,{"$f":"VLOOKUP(B407,Kode!A2:D215,4,FALSE)","v":{"$error":"#N/A"}},null,null,null,null,null,null,null,null,null,null,null,null,null,{"$f":"VLOOKUP(B407,Kode!A2:E215,5,FALSE)","v":{"$error":"#N/A"}},null,null,null,null,null,null,null,{"$error":"#DIV/0!"}]
[{"$f":"VLOOKUP(B408,Kode!A2:C215,3,FALSE)","v":{"$error":"#N/A"}},null,{"$f":"VLOOKUP(B408,Kode!A2:D215,4,FALSE)","v":{"$error":"#N/A"}},null,null,null,null,null,null,null,null,null,null,null,null,null,{"$f":"VLOOKUP(B408,Kode!A2:E215,5,FALSE)","v":{"$error":"#N/A"}},null,null,null,null,null,null,null,{"$error":"#DIV/0!"}]
[{"$f":"VLOOKUP(B409,Kode!A2:C215,3,FALSE)","v":{"$error":"#N/A"}},null,{"$f":"VLOOKUP(B409,Kode!A2:D215,4,FALSE)","v":{"$error":"#N/A"}},null,null,null,null,null,null,null,null,null,null,null,null,null,{"$f":"VLOOKUP(B409,Kode!A2:E215,5,FALSE)","v":{"$error":"#N/A"}},null,null,null,null,null,null,null,{"$error":"#DIV/0!"}]
[{"$f":"VLOOKUP(B410,Kode!A2:C215,3,FALSE)","v":{"$error":"#N/A"}},null,{"$f":"VLOOKUP(B410,Kode!A2:D215,4,FALSE)","v":{"$error":"#N/A"}},null,null,null,null,null,null,null,null,null,null,null,null,null,{"$f":"VLOOKUP(B410,Kode!A2:E215,5,FALSE)","v":{"$error":"#N/A"}},null,null,null,null,null,null,null,{"$error":"#DIV/0!"}]
[{"$f":"VLOOKUP(B411,Kode!A2:C215,3,FALSE)","v":{"$error":"#N/A"}},null,{"$f":"VLOOKUP(B411,Kode!A2:D215,4,FALSE)","v":{"$error":"#N/A"}},null,null,null,null,null,null,null,null,null,null,null,null,null,{"$f":"VLOOKUP(B411,Kode!A2:E215,5,FALSE)","v":{"$error":"#N/A"}},null,null,null,null,null,null,null,{"$error":"#DIV/0!"}]
[{"$f":"VLOOKUP(B412,Kode!A2:C215,3,FALSE)","v":{"$error":"#N/A"}},null,{"$f":"VLOOKUP(B412,Kode!A2:D215,4,FALSE)","v":{"$error":"#N/A"}},null,null,null,null,null,null,null,null,null,null,null,null,null,{"$f":"VLOOKUP(B412,Kode!A2:E215,5,FALSE)","v":{"$error":"#N/A"}},null,null,null,null,null,null,null,{"$error":"#DIV/0!"}]
[{"$f":"VLOOKUP(B413,Kode!A2:C215,3,FALSE)","v":{"$error":"#N/A"}},null,{"$f":"VLOOKUP(B413,Kode!A2:D215,4,FALSE)","v":{"$error":"#N/A"}},null,null,null,null,null,null,null,null,null,null,null,null,null,{"$f":"VLOOKUP(B413,Kode!A2:E215,5,FALSE)","v":{"$error":"#N/A"}},null,null,null,null,null,null,null,{"$error":"#DIV/0!"}]
[{"$f":"VLOOKUP(B414,Kode!A2:C215,3,FALSE)","v":{"$error":"#N/A"}},null,{"$f":"VLOOKUP(B414,Kode!A2:D215,4,FALSE)","v":{"$error":"#N/A"}},null,null,null,null,null,null,null,null,null,null,null,null,null,{"$f":"VLOOKUP(B414,Kode!A2:E215,5,FALSE)","v":{"$error":"#N/A"}},null,null,null,null,null,null,null,{"$error":"#DIV/0!"}]
[{"$f":"VLOOKUP(B415,Kode!A2:C215,3,FALSE)","v":{"$error":"#N/A"}},null,{"$f":"VLOOKUP(B415,Kode!A2:D215,4,FALSE)","v":{"$error":"#N/A"}},null,null,null,null,null,null,null,null,null,null,null,null,null,{"$f":"VLOOKUP(B415,Kode!A2:E215,5,FALSE)","v":{"$error":"#N/A"}},null,null,null,null,null,null,null,{"$error":"#DIV/0!"}]
[{"$f":"VLOOKUP(B416,Kode!A2:C215,3,FALSE)","v":{"$error":"#N/A"}},null,{"$f":"VLOOKUP(B416,Kode!A2:D215,4,FALSE)","v":{"$error":"#N/A"}},null,null,null,null,null,null,null,null,null,null,null,null,null,{"$f":"VLOOKUP(B416,Kode!A2:E215,5,FALSE)","v":{"$error":"#N/A"}},null,null,null,null,null,null,null,{"$error":"#DIV/0!"}]
[{"$f":"VLOOKUP(B417,Kode!A2:C215,3,FALSE)","v":{"$error":"#N/A"}},null,{"$f":"VLOOKUP(B417,Kode!A2:D215,4,FALSE)","v":{"$error":"#N/A"}},null,null,null,null,null,null,null,null,null,null,null,null,null,{"$f":"VLOOKUP(B417,Kode!A2:E215,5,FALSE)","v":{"$error":"#N/A"}},null,null,null,null,null,null,null,{"$error":"#DIV/0!"}]
[{"$f":"VLOOKUP(B418,Kode!A2:C215,3,FALSE)","v":{"$error":"#N/A"}},null,{"$f":"VLOOKUP(B418,Kode!A2:D215,4,FALSE)","v":{"$error":"#N/A"}},null,null,null,null,null,null,null,null,null,null,null,null,null,{"$f":"VLOOKUP(B418,Kode!A2:E215,5,FALSE)","v":{"$error":"#N/A"}},null,null,null,null,null,null,null,{"$error":"#DIV/0!"}]
[{"$f":"VLOOKUP(B419,Kode!A2:C215,3,FALSE)","v":{"$error":"#N/A"}},null,{"$f":"VLOOKUP(B419,Kode!A2:D215,4,FALSE)","v":{"$error":"#N/A"}},null,null,null,null,null,null,null,null,null,null,null,null,null,{"$f":"VLOOKUP(B419,Kode!A2:E215,5,FALSE)","v":{"$error":"#N/A"}},null,null,null,null,null,null,null,{"$error":"#DIV/0!"}]
[{"$f":"VLOOKUP(B420,Kode!A2:C215,3,FALSE)","v":{"$error":"#N/A"}},null,{"$f":"VLOOKUP(B420,Kode!A2:D215,4,FALSE)","v":{"$error":"#N/A"}},null,null,null,null,null,null,null,null,null,null,null,null,null,{"$f":"VLOOKUP(B420,Kode!A2:E215,5,FALSE)","v":{"$error":"#N/A"}},null,null,null,null,null,null,null,{"$error":"#DIV/0!"}]
[{"$f":"VLOOKUP(B421,Kode!A2:C215,3,FALSE)","v":{"$error":"#N/A"}},null,{"$f":"VLOOKUP(B421,Kode!A2:D215,4,FALSE)","v":{"$error":"#N/A"}},null,null,null,null,null,null,null,null,null,null,null,null,null,{"$f":"VLOOKUP(B421,Kode!A2:E215,5,FALSE)","v":{"$error":"#N/A"}},null,null,null,null,null,null,null,{"$error":"#DIV/0!"}]
[{"$f":"VLOOKUP(B422,Kode!A2:C215,3,FALSE)","v":{"$error":"#N/A"}},null,{"$f":"VLOOKUP(B422,Kode!A2:D215,4,FALSE)","v":{"$error":"#N/A"}},null,null,null,null,null,null,null,null,null,null,null,null,null,{"$f":"VLOOKUP(B422,Kode!A2:E215,5,FALSE)","v":{"$error":"#N/A"}},null,null,null,null,null,null,null,{"$error":"#DIV/0!"}]
[{"$f":"VLOOKUP(B423,Kode!A2:C215,3,FALSE)","v":{"$error":"#N/A"}},null,{"$f":"VLOOKUP(B423,Kode!A2:D215,4,FALSE)","v":{"$error":"#N/A"}},null,null,null,null,null,null,null,null,null,null,null,null,null,{"$f":"VLOOKUP(B423,Kode!A2:E215,5,FALSE)","v":{"$error":"#N/A"}},null,null,null,null,null,null,null,{"$error":"#DIV/0!"}]
[{"$f":"VLOOKUP(B424,Kode!A2:C215,3,FALSE)","v":{"$error":"#N/A"}},null,{"$f":"VLOOKUP(B424,Kode!A2:D215,4,FALSE)","v":{"$error":"#N/A"}},null,null,null,null,null,null,null,null,null,null,null,null,null,{"$f":"VLOOKUP(B424,Kode!A2:E215,5,FALSE)","v":{"$error":"#N/A"}},null,null,null,null,null,null,null,{"$error":"#DIV/0!"}]
[{"$f":"VLOOKUP(B425,Kode!A2:C215,3,FALSE)","v":{"$error":"#N/A"}},null,{"$f":"VLOOKUP(B425,Kode!A2:D215,4,FALSE)","v":{"$error":"#N/A"}},null,null,null,null,null,null,null,null,null,null,null,null,null,{"$f":"VLOOKUP(B425,Kode!A2:E215,5,FALSE)","v":{"$error":"#N/A"}},null,null,null,null,null,null,null,{"$error":"#DIV/0!"}]
[{"$f":"VLOOKUP(B426,Kode!A2:C215,3,FALSE)","v":{"$error":"#N/A"}},null,{"$f":"VLOOKUP(B426,Kode!A2:D215,4,FALSE)","v":{"$error":"#N/A"}},null,null,null,null,null,null,null,null,null,null,null,null,null,{"$f":"VLOOKUP(B426,Kode!A2:E215,5,FALSE)","v":{"$error":"#N/A"}},null,null,null,null,null,null,null,{"$error":"#DIV/0!"}]
[{"$f":"VLOOKUP(B427,Kode!A2:C215,3,FALSE)","v":{"$error":"#N/A"}},null,{"$f":"VLOOKUP(B427,Kode!A2:D215,4,FALSE)","v":{"$error":"#N/A"}},null,null,null,null,null,null,null,null,null,null,null,null,null,{"$f":"VLOOKUP(B427,Kode!A2:E215,5,FALSE)","v":{"$error":"#N/A"}},null,null,null,null,null,null,null,{"$error":"#DIV/0!"}]
[{"$f":"VLOOKUP(B428,Kode!A2:C215,3,FALSE)","v":{"$error":"#N/A"}},null,{"$f":"VLOOKUP(B428,Kode!A2:D215,4,FALSE)","v":{"$error":"#N/A"}},null,null,null,null,null,null,null,null,null,null,null,null,null,{"$f":"VLOOKUP(B428,Kode!A2:E215,5,FALSE)","v":{"$error":"#N/A"}},null,null,null,null,null,null,null,{"$error":"#DIV/0!"}]
[{"$f":"VLOOKUP(B429,Kode!A2:C215,3,FALSE)","v":{"$error":"#N/A"}},null,{"$f":"VLOOKUP(B429,Kode!A2:D215,4,FALSE)","v":{"$error":"#N/A"}},null,null,null,null,null,null,null,null,null,null,null,null,null,{"$f":"VLOOKUP(B429,Kode!A2:E215,5,FALSE)","v":{"$error":"#N/A"}},null,null,null,null,null,null,null,{"$error":"#DIV/0!"}]
[{"$f":"VLOOKUP(B430,Kode!A2:C215,3,FALSE)","v":{"$error":"#N/A"}},null,{"$f":"VLOOKUP(B430,Kode!A2:D215,4,FALSE)","v":{"$error":"#N/A"}},null,null,null,null,null,null,null,null,null,null,null,null,null,{"$f":"VLOOKUP(B430,Kode!A2:E215,5,FALSE)","v":{"$error":"#N/A"}},null,null,null,null,null,null,null,{"$error":"#DIV/0!"}]
[{"$f":"VLOOKUP(B431,Kode!A2:C215,3,FALSE)","v":{"$error":"#N/A"}},null,{"$f":"VLOOKUP(B431,Kode!A2:D215,4,FALSE)","v":{"$error":"#N/A"}},null,null,null,null,null,null,null,null,null,null,null,null,null,{"$f":"VLOOKUP(B431,Kode!A2:E215,5,FALSE)","v":{"$error":"#N/A"}},null,null,null,null,null,null,null,{"$error":"#DIV/0!"}]
[{"$f":"VLOOKUP(B432,Kode!A2:C215,3,FALSE)","v":{"$error":"#N/A"}},null,{"$f":"VLOOKUP(B432,Kode!A2:D215,4,FALSE)","v":{"$error":"#N/A"}},null,null,null,null,null,null,null,null,null,null,null,null,null,{"$f":"VLOOKUP(B432,Kode!A2:E215,5,FALSE)","v":{"$error":"#N/A"}},null,null,null,null,null,null,null,{"$error":"#DIV/0!"}]
[{"$f":"VLOOKUP(B433,Kode!A2:C215,3,FALSE)","v":{"$error":"#N/A"}},null,{"$f":"VLOOKUP(B433,Kode!A2:D215,4,FALSE)","v":{"$error":"#N/A"}},null,null,null,null,null,null,null,null,null,null,null,null,null,{"$f":"VLOOKUP(B433,Kode!A2:E215,5,FALSE)","v":{"$error":"#N/A"}},null,null,null,null,null,null,null,{"$error":"#DIV/0!"}]
[{"$f":"VLOOKUP(B434,Kode!A2:C215,3,FALSE)","v":{"$error":"#N/A"}},null,{"$f":"VLOOKUP(B434,Kode!A2:D215,4,FALSE)","v":{"$error":"#N/A"}},null,null,null,null,null,null,null,null,null,null,null,null,null,{"$f":"VLOOKUP(B434,Kode!A2:E215,5,FALSE)","v":{"$error":"#N/A"}},null,null,null,null,null,null,null,{"$error":"#DIV/0!"}]
[{"$f":"VLOOKUP(B435,Kode!A2:C215,3,FALSE)","v":{"$error":"#N/A"}},null,{"$f":"VLOOKUP(B435,Kode!A2:D215,4,FALSE)","v":{"$error":"#N/A"}},null,null,null,null,null,null,null,null,null,null,null,null,null,{"$f":"VLOOKUP(B435,Kode!A2:E215,5,FALSE)","v":{"$error":"#N/A"}},null,null,null,null,null,null,null,{"$error":"#DIV/0!"}]
[{"$f":"VLOOKUP(B436,Kode!A2:C215,3,FALSE)","v":{"$error":"#N/A"}},null,{"$f":"VLOOKUP(B436,Kode!A2:D215,4,FALSE)","v":{"$error":"#N/A"}},null,null,null,null,null,null,null,null,null,null,null,null,null,{"$f":"VLOOKUP(B436,Kode!A2:E215,5,FALSE)","v":{"$error":"#N/A"}},null,null,null,null,null,null,null,{"$error":"#DIV/0!"}]
[{"$f":"VLOOKUP(B437,Kode!A2:C215,3,FALSE)","v":{"$error":"#N/A"}},null,{"$f":"VLOOKUP(B437,Kode!A2:D215,4,FALSE)","v":{"$error":"#N/A"}},null,null,null,null,null,null,null,null,null,null,null,null,null,{"$f":"VLOOKUP(B437,Kode!A2:E215,5,FALSE)","v":{"$error":"#N/A"}},null,null,null,null,null,null,null,{"$error":"#DIV/0!"}]
[{"$f":"VLOOKUP(B438,Kode!A2:C215,3,FALSE)","v":{"$error":"#N/A"}},null,{"$f":"VLOOKUP(B438,Kode!A2:D215,4,FALSE)","v":{"$error":"#N/A"}},null,null,null,null,null,null,null,null,null,null,null,null,null,{"$f":"VLOOKUP(B438,Kode!A2:E215,5,FALSE)","v":{"$error":"#N/A"}},null,null,null,null,null,null,null,{"$error":"#DIV/0!"}]
[{"$f":"VLOOKUP(B439,Kode!A2:C215,3,FALSE)","v":{"$error":"#N/A"}},null,{"$f":"VLOOKUP(B439,Kode!A2:D215,4,FALSE)","v":{"$error":"#N/A"}},null,null,null,null,null,null,null,null,null,null,null,null,null,{"$f":"VLOOKUP(B439,Kode!A2:E215,5,FALSE)","v":{"$error":"#N/A"}},null,null,null,null,null,null,null,{"$error":"#DIV/0!"}]
[{"$f":"VLOOKUP(B440,Kode!A2:C215,3,FALSE)","v":{"$error":"#N/A"}},null,{"$f":"VLOOKUP(B440,Kode!A2:D215,4,FALSE)","v":{"$error":"#N/A"}},null,null,null,null,null,null,null,null,null,null,null,null,null,{"$f":"VLOOKUP(B440,Kode!A2:E215,5,FALSE)","v":{"$error":"#N/A"}},null,null,null,null,null,null,null,{"$error":"#DIV/0!"}]
[{"$f":"VLOOKUP(B441,Kode!A2:C215,3,FALSE)","v":{"$error":"#N/A"}},null,{"$f":"VLOOKUP(B441,Kode!A2:D215,4,FALSE)","v":{"$error":"#N/A"}},null,null,null,null,null,null,null,null,null,null,null,null,null,{"$f":"VLOOKUP(B441,Kode!A2:E215,5,FALSE)","v":{"$error":"#N/A"}},null,null,null,null,null,null,null,{"$error":"#DIV/0!"}]
[{"$f":"VLOOKUP(B442,Kode!A2:C215,3,FALSE)","v":{"$error":"#N/A"}},null,{"$f":"VLOOKUP(B442,Kode!A2:D215,4,FALSE)","v":{"$error":"#N/A"}},null,null,null,null,null,null,null,null,null,null,null,null,null,{"$f":"VLOOKUP(B442,Kode!A2:E215,5,FALSE)","v":{"$error":"#N/A"}},null,null,null,null,null,null,null,{"$error":"#DIV/0!"}]
[{"$f":"VLOOKUP(B443,Kode!A2:C215,3,FALSE)","v":{"$error":"#N/A"}},null,{"$f":"VLOOKUP(B443,Kode!A2:D215,4,FALSE)","v":{"$error":"#N/A"}},null,null,null,null,null,null,null,null,null,null,null,null,null,{"$f":"VLOOKUP(B443,Kode!A2:E215,5,FALSE)","v":{"$error":"#N/A"}},null,null,null,null,null,null,null,{"$error":"#DIV/0!"}]
[{"$f":"VLOOKUP(B444,Kode!A2:C215,3,FALSE)","v":{"$error":"#N/A"}},null,{"$f":"VLOOKUP(B444,Kode!A2:D215,4,FALSE)","v":{"$error":"#N/A"}},null,null,null,null,null,null,null,null,null,null,null,null,null,{"$f":"VLOOKUP(B444,Kode!A2:E215,5,FALSE)","v":{"$error":"#N/A"}},null,null,null,null,null,null,null,{"$error":"#DIV/0!"}]
[{"$f":"VLOOKUP(B445,Kode!A2:C215,3,FALSE)","v":{"$error":"#N/A"}},null,{"$f":"VLOOKUP(B445,Kode!A2:D215,4,FALSE)","v":{"$error":"#N/A"}},null,null,null,null,null,null,null,null,null,null,null,null,null,{"$f":"VLOOKUP(B445,Kode!A2:E215,5,FALSE)","v":{"$error":"#N/A"}},null,null,null,null,null,null,null,{"$error":"#DIV/0!"}]
[{"$f":"VLOOKUP(B446,Kode!A2:C215,3,FALSE)","v":{"$error":"#N/A"}},null,{"$f":"VLOOKUP(B446,Kode!A2:D215,4,FALSE)","v":{"$error":"#N/A"}},null,null,null,null,null,null,null,null,null,null,null,null,null,{"$f":"VLOOKUP(B446,Kode!A2:E215,5,FALSE)","v":{"$error":"#N/A"}},null,null,null,null,null,null,null,{"$error":"#DIV/0!"}]
[{"$f":"VLOOKUP(B447,Kode!A2:C215,3,FALSE)","v":{"$error":"#N/A"}},null,{"$f":"VLOOKUP(B447,Kode!A2:D215,4,FALSE)","v":{"$error":"#N/A"}},null,null,null,null,null,null,null,null,null,null,null,null,null,{"$f":"VLOOKUP(B447,Kode!A2:E215,5,FALSE)","v":{"$error":"#N/A"}},null,null,null,null,null,null,null,{"$error":"#DIV/0!"}]
[{"$f":"VLOOKUP(B448,Kode!A2:C215,3,FALSE)","v":{"$error":"#N/A"}},null,{"$f":"VLOOKUP(B448,Kode!A2:D215,4,FALSE)","v":{"$error":"#N/A"}},null,null,null,null,null,null,null,null,null,null,null,null,null,{"$f":"VLOOKUP(B448,Kode!A2:E215,5,FALSE)","v":{"$error":"#N/A"}},null,null,null,null,null,null,null,{"$error":"#DIV/0!"}]
[{"$f":"VLOOKUP(B449,Kode!A2:C215,3,FALSE)","v":{"$error":"#N/A"}},null,{"$f":"VLOOKUP(B449,Kode!A2:D215,4,FALSE)","v":{"$error":"#N/A"}},null,null,null,null,null,null,null,null,null,null,null,null,null,{"$f":"VLOOKUP(B449,Kode!A2:E215,5,FALSE)","v":{"$error":"#N/A"}},null,null,null,null,null,null,null,{"$error":"#DIV/0!"}]
[{"$f":"VLOOKUP(B450,Kode!A2:C215,3,FALSE)","v":{"$error":"#N/A"}},null,{"$f":"VLOOKUP(B450,Kode!A2:D215,4,FALSE)","v":{"$error":"#N/A"}},null,null,null,null,null,null,null,null,null,null,null,null,null,{"$f":"VLOOKUP(B450,Kode!A2:E215,5,FALSE)","v":{"$error":"#N/A"}},null,null,null,null,null,null,null,{"$error":"#DIV/0!"}]
[{"$f":"VLOOKUP(B451,Kode!A2:C215,3,FALSE)","v":{"$error":"#N/A"}},null,{"$f":"VLOOKUP(B451,Kode!A2:D215,4,FALSE)","v":{"$error":"#N/A"}},null,null,null,null,null,null,null,null,null,null,null,null,null,{"$f":"VLOOKUP(B451,Kode!A2:E215,5,FALSE)","v":{"$error":"#N/A"}},null,null,null,null,null,null,null,{"$f":"U451/S451*100","v":{"$error":"#DIV/0!"}}]
[{"$f":"VLOOKUP(B452,Kode!A2:C215,3,FALSE)","v":{"$error":"#N/A"}},null,{"$f":"VLOOKUP(B452,Kode!A2:D215,4,FALSE)","v":{"$error":"#N/A"}},null,null,null,null,null,null,null,null,null,null,null,null,null,{"$f":"VLOOKUP(B452,Kode!A2:E215,5,FALSE)","v":{"$error":"#N/A"}},null,null,null,null,null,null,null,{"$error":"#DIV/0!"}]
[{"$f":"VLOOKUP(B453,Kode!A2:C215,3,FALSE)","v":{"$error":"#N/A"}},null,{"$f":"VLOOKUP(B453,Kode!A2:D215,4,FALSE)","v":{"$error":"#N/A"}},null,null,null,null,null,null,null,null,null,null,null,null,null,{"$f":"VLOOKUP(B453,Kode!A2:E215,5,FALSE)","v":{"$error":"#N/A"}},null,null,null,null,null,null,null,{"$error":"#DIV/0!"}]
[{"$f":"VLOOKUP(B454,Kode!A2:C215,3,FALSE)","v":{"$error":"#N/A"}},null,{"$f":"VLOOKUP(B454,Kode!A2:D215,4,FALSE)","v":{"$error":"#N/A"}},null,null,null,null,null,null,null,null,null,null,null,null,null,{"$f":"VLOOKUP(B454,Kode!A2:E215,5,FALSE)","v":{"$error":"#N/A"}},null,null,null,null,null,null,null,{"$error":"#DIV/0!"}]
[{"$f":"VLOOKUP(B455,Kode!A2:C215,3,FALSE)","v":{"$error":"#N/A"}},null,{"$f":"VLOOKUP(B455,Kode!A2:D215,4,FALSE)","v":{"$error":"#N/A"}},null,null,null,null,null,null,null,null,null,null,null,null,null,{"$f":"VLOOKUP(B455,Kode!A2:E215,5,FALSE)","v":{"$error":"#N/A"}},null,null,null,null,null,null,null,{"$error":"#DIV/0!"}]
[{"$f":"VLOOKUP(B456,Kode!A2:C215,3,FALSE)","v":{"$error":"#N/A"}},null,{"$f":"VLOOKUP(B456,Kode!A2:D215,4,FALSE)","v":{"$error":"#N/A"}},null,null,null,null,null,null,null,null,null,null,null,null,null,{"$f":"VLOOKUP(B456,Kode!A2:E215,5,FALSE)","v":{"$error":"#N/A"}},null,null,null,null,null,null,null,{"$error":"#DIV/0!"}]
[{"$f":"VLOOKUP(B457,Kode!A2:C215,3,FALSE)","v":{"$error":"#N/A"}},null,{"$f":"VLOOKUP(B457,Kode!A2:D215,4,FALSE)","v":{"$error":"#N/A"}},null,null,null,null,null,null,null,null,null,null,null,null,null,{"$f":"VLOOKUP(B457,Kode!A2:E215,5,FALSE)","v":{"$error":"#N/A"}},null,null,null,null,null,null,null,{"$error":"#DIV/0!"}]
[{"$f":"VLOOKUP(B458,Kode!A2:C215,3,FALSE)","v":{"$error":"#N/A"}},null,{"$f":"VLOOKUP(B458,Kode!A2:D215,4,FALSE)","v":{"$error":"#N/A"}},null,null,null,null,null,null,null,null,null,null,null,null,null,{"$f":"VLOOKUP(B458,Kode!A2:E215,5,FALSE)","v":{"$error":"#N/A"}},null,null,null,null,null,null,null,{"$error":"#DIV/0!"}]
[{"$f":"VLOOKUP(B459,Kode!A2:C215,3,FALSE)","v":{"$error":"#N/A"}},null,{"$f":"VLOOKUP(B459,Kode!A2:D215,4,FALSE)","v":{"$error":"#N/A"}},null,null,null,null,null,null,null,null,null,null,null,null,null,{"$f":"VLOOKUP(B459,Kode!A2:E215,5,FALSE)","v":{"$error":"#N/A"}},null,null,null,null,null,null,null,{"$error":"#DIV/0!"}]
[{"$f":"VLOOKUP(B460,Kode!A2:C215,3,FALSE)","v":{"$error":"#N/A"}},null,{"$f":"VLOOKUP(B460,Kode!A2:D215,4,FALSE)","v":{"$error":"#N/A"}},null,null,null,null,null,null,null,null,null,null,null,null,null,{"$f":"VLOOKUP(B460,Kode!A2:E215,5,FALSE)","v":{"$error":"#N/A"}},null,null,null,null,null,null,null,{"$error":"#DIV/0!"}]
[{"$f":"VLOOKUP(B461,Kode!A2:C215,3,FALSE)","v":{"$error":"#N/A"}},null,{"$f":"VLOOKUP(B461,Kode!A2:D215,4,FALSE)","v":{"$error":"#N/A"}},null,null,null,null,null,null,null,null,null,null,null,null,null,{"$f":"VLOOKUP(B461,Kode!A2:E215,5,FALSE)","v":{"$error":"#N/A"}},null,null,null,null,null,null,null,{"$error":"#DIV/0!"}]
[{"$f":"VLOOKUP(B462,Kode!A2:C215,3,FALSE)","v":{"$error":"#N/A"}},null,{"$f":"VLOOKUP(B462,Kode!A2:D215,4,FALSE)","v":{"$error":"#N/A"}},null,null,null,null,null,null,null,null,null,null,null,null,null,{"$f":"VLOOKUP(B462,Kode!A2:E215,5,FALSE)","v":{"$error":"#N/A"}},null,null,null,null,null,null,null,{"$error":"#DIV/0!"}]
[{"$f":"VLOOKUP(B463,Kode!A2:C215,3,FALSE)","v":{"$error":"#N/A"}},null,{"$f":"VLOOKUP(B463,Kode!A2:D215,4,FALSE)","v":{"$error":"#N/A"}},null,null,null,null,null,null,null,null,null,null,null,null,null,{"$f":"VLOOKUP(B463,Kode!A2:E215,5,FALSE)","v":{"$error":"#N/A"}},null,null,null,null,null,null,null,{"$error":"#DIV/0!"}]
[{"$f":"VLOOKUP(B464,Kode!A2:C215,3,FALSE)","v":{"$error":"#N/A"}},null,{"$f":"VLOOKUP(B464,Kode!A2:D215,4,FALSE)","v":{"$error":"#N/A"}},null,null,null,null,null,null,null,null,null,null,null,null,null,{"$f":"VLOOKUP(B464,Kode!A2:E215,5,FALSE)","v":{"$error":"#N/A"}},null,null,null,null,null,null,null,{"$error":"#DIV/0!"}]
[{"$f":"VLOOKUP(B465,Kode!A2:C215,3,FALSE)","v":{"$error":"#N/A"}},null,{"$f":"VLOOKUP(B465,Kode!A2:D215,4,FALSE)","v":{"$error":"#N/A"}},null,null,null,null,null,null,null,null,null,null,null,null,null,{"$f":"VLOOKUP(B465,Kode!A2:E215,5,FALSE)","v":{"$error":"#N/A"}},null,null,null,null,null,null,null,{"$error":"#DIV/0!"}]
[{"$f":"VLOOKUP(B466,Kode!A2:C215,3,FALSE)","v":{"$error":"#N/A"}},null,{"$f":"VLOOKUP(B466,Kode!A2:D215,4,FALSE)","v":{"$error":"#N/A"}},null,null,null,null,null,null,null,null,null,null,null,null,null,{"$f":"VLOOKUP(B466,Kode!A2:E215,5,FALSE)","v":{"$error":"#N/A"}},null,null,null,null,null,null,null,{"$error":"#DIV/0!"}]
[{"$f":"VLOOKUP(B467,Kode!A2:C215,3,FALSE)","v":{"$error":"#N/A"}},null,{"$f":"VLOOKUP(B467,Kode!A2:D215,4,FALSE)","v":{"$error":"#N/A"}},null,null,null,null,null,null,null,null,null,null,null,null,null,{"$f":"VLOOKUP(B467,Kode!A2:E215,5,FALSE)","v":{"$error":"#N/A"}},null,null,null,null,null,null,null,{"$error":"#DIV/0!"}]
[{"$f":"VLOOKUP(B468,Kode!A2:C215,3,FALSE)","v":{"$error":"#N/A"}},null,{"$f":"VLOOKUP(B468,Kode!A2:D215,4,FALSE)","v":{"$error":"#N/A"}},null,null,null,null,null,null,null,null,null,null,null,null,null,{"$f":"VLOOKUP(B468,Kode!A2:E215,5,FALSE)","v":{"$error":"#N/A"}},null,null,null,null,null,null,null,{"$error":"#DIV/0!"}]
[{"$f":"VLOOKUP(B469,Kode!A2:C215,3,FALSE)","v":{"$error":"#N/A"}},null,{"$f":"VLOOKUP(B469,Kode!A2:D215,4,FALSE)","v":{"$error":"#N/A"}},null,null,null,null,null,null,null,null,null,null,null,null,null,{"$f":"VLOOKUP(B469,Kode!A2:E215,5,FALSE)","v":{"$error":"#N/A"}},null,null,null,null,null,null,null,{"$error":"#DIV/0!"}]
[{"$f":"VLOOKUP(B470,Kode!A2:C215,3,FALSE)","v":{"$error":"#N/A"}},null,{"$f":"VLOOKUP(B470,Kode!A2:D215,4,FALSE)","v":{"$error":"#N/A"}},null,null,null,null,null,null,null,null,null,null,null,null,null,{"$f":"VLOOKUP(B470,Kode!A2:E215,5,FALSE)","v":{"$error":"#N/A"}},null,null,null,null,null,null,null,{"$error":"#DIV/0!"}]
[{"$f":"VLOOKUP(B471,Kode!A2:C215,3,FALSE)","v":{"$error":"#N/A"}},null,{"$f":"VLOOKUP(B471,Kode!A2:D215,4,FALSE)","v":{"$error":"#N/A"}},null,null,null,null,null,null,null,null,null,null,null,null,null,{"$f":"VLOOKUP(B471,Kode!A2:E215,5,FALSE)","v":{"$error":"#N/A"}},null,null,null,null,null,null,null,{"$error":"#DIV/0!"}]
[{"$f":"VLOOKUP(B472,Kode!A2:C215,3,FALSE)","v":{"$error":"#N/A"}},null,{"$f":"VLOOKUP(B472,Kode!A2:D215,4,FALSE)","v":{"$error":"#N/A"}},null,null,null,null,null,null,null,null,null,null,null,null,null,{"$f":"VLOOKUP(B472,Kode!A2:E215,5,FALSE)","v":{"$error":"#N/A"}},null,null,null,null,null,null,null,{"$error":"#DIV/0!"}]
[{"$f":"VLOOKUP(B473,Kode!A2:C215,3,FALSE)","v":{"$error":"#N/A"}},null,{"$f":"VLOOKUP(B473,Kode!A2:D215,4,FALSE)","v":{"$error":"#N/A"}},null,null,null,null,null,null,null,null,null,null,null,null,null,{"$f":"VLOOKUP(B473,Kode!A2:E215,5,FALSE)","v":{"$error":"#N/A"}},null,null,null,null,null,null,null,{"$error":"#DIV/0!"}]
[{"$f":"VLOOKUP(B474,Kode!A2:C215,3,FALSE)","v":{"$error":"#N/A"}},null,{"$f":"VLOOKUP(B474,Kode!A2:D215,4,FALSE)","v":{"$error":"#N/A"}},null,null,null,null,null,null,null,null,null,null,null,null,null,{"$f":"VLOOKUP(B474,Kode!A2:E215,5,FALSE)","v":{"$error":"#N/A"}},null,null,null,null,null,null,null,{"$error":"#DIV/0!"}]
[{"$f":"VLOOKUP(B475,Kode!A2:C215,3,FALSE)","v":{"$error":"#N/A"}},null,{"$f":"VLOOKUP(B475,Kode!A2:D215,4,FALSE)","v":{"$error":"#N/A"}},null,null,null,null,null,null,null,null,null,null,null,null,null,{"$f":"VLOOKUP(B475,Kode!A2:E215,5,FALSE)","v":{"$error":"#N/A"}},null,null,null,null,null,null,null,{"$error":"#DIV/0!"}]
[{"$f":"VLOOKUP(B476,Kode!A2:C215,3,FALSE)","v":{"$error":"#N/A"}},null,{"$f":"VLOOKUP(B476,Kode!A2:D215,4,FALSE)","v":{"$error":"#N/A"}},null,null,null,null,null,null,null,null,null,null,null,null,null,{"$f":"VLOOKUP(B476,Kode!A2:E215,5,FALSE)","v":{"$error":"#N/A"}},null,null,null,null,null,null,null,{"$error":"#DIV/0!"}]
[{"$f":"VLOOKUP(B477,Kode!A2:C215,3,FALSE)","v":{"$error":"#N/A"}},null,{"$f":"VLOOKUP(B477,Kode!A2:D215,4,FALSE)","v":{"$error":"#N/A"}},null,null,null,null,null,null,null,null,null,null,null,null,null,{"$f":"VLOOKUP(B477,Kode!A2:E215,5,FALSE)","v":{"$error":"#N/A"}},null,null,null,null,null,null,null,{"$error":"#DIV/0!"}]
[{"$f":"VLOOKUP(B478,Kode!A2:C215,3,FALSE)","v":{"$error":"#N/A"}},null,{"$f":"VLOOKUP(B478,Kode!A2:D215,4,FALSE)","v":{"$error":"#N/A"}},null,null,null,null,null,null,null,null,null,null,null,null,null,{"$f":"VLOOKUP(B478,Kode!A2:E215,5,FALSE)","v":{"$error":"#N/A"}},null,null,null,null,null,null,null,{"$error":"#DIV/0!"}]
[{"$f":"VLOOKUP(B479,Kode!A2:C215,3,FALSE)","v":{"$error":"#N/A"}},null,{"$f":"VLOOKUP(B479,Kode!A2:D215,4,FALSE)","v":{"$error":"#N/A"}},null,null,null,null,null,null,null,null,null,null,null,null,null,{"$f":"VLOOKUP(B479,Kode!A2:E215,5,FALSE)","v":{"$error":"#N/A"}},null,null,null,null,null,null,null,{"$error":"#DIV/0!"}]
[{"$f":"VLOOKUP(B480,Kode!A2:C215,3,FALSE)","v":{"$error":"#N/A"}},null,{"$f":"VLOOKUP(B480,Kode!A2:D215,4,FALSE)","v":{"$error":"#N/A"}},null,null,null,null,null,null,null,null,null,null,null,null,null,{"$f":"VLOOKUP(B480,Kode!A2:E215,5,FALSE)","v":{"$error":"#N/A"}},null,null,null,null,null,null,null,{"$error":"#DIV/0!"}]
[{"$f":"VLOOKUP(B481,Kode!A2:C215,3,FALSE)","v":{"$error":"#N/A"}},null,{"$f":"VLOOKUP(B481,Kode!A2:D215,4,FALSE)","v":{"$error":"#N/A"}},null,null,null,null,null,null,null,null,null,null,null,null,null,{"$f":"VLOOKUP(B481,Kode!A2:E215,5,FALSE)","v":{"$error":"#N/A"}},null,null,null,null,null,null,null,{"$error":"#DIV/0!"}]
[{"$f":"VLOOKUP(B482,Kode!A2:C215,3,FALSE)","v":{"$error":"#N/A"}},null,{"$f":"VLOOKUP(B482,Kode!A2:D215,4,FALSE)","v":{"$error":"#N/A"}},null,null,null,null,null,null,null,null,null,null,null,null,null,{"$f":"VLOOKUP(B482,Kode!A2:E215,5,FALSE)","v":{"$error":"#N/A"}},null,null,null,null,null,null,null,{"$error":"#DIV/0!"}]
[{"$f":"VLOOKUP(B483,Kode!A2:C215,3,FALSE)","v":{"$error":"#N/A"}},null,{"$f":"VLOOKUP(B483,Kode!A2:D215,4,FALSE)","v":{"$error":"#N/A"}},null,null,null,null,null,null,null,null,null,null,null,null,null,{"$f":"VLOOKUP(B483,Kode!A2:E215,5,FALSE)","v":{"$error":"#N/A"}},null,null,null,null,null,null,null,{"$error":"#DIV/0!"}]
[{"$f":"VLOOKUP(B484,Kode!A2:C215,3,FALSE)","v":{"$error":"#N/A"}},null,{"$f":"VLOOKUP(B484,Kode!A2:D215,4,FALSE)","v":{"$error":"#N/A"}},null,null,null,null,null,null,null,null,null,null,null,null,null,{"$f":"VLOOKUP(B484,Kode!A2:E215,5,FALSE)","v":{"$error":"#N/A"}},null,null,null,null,null,null,null,{"$error":"#DIV/0!"}]
[{"$f":"VLOOKUP(B485,Kode!A2:C215,3,FALSE)","v":{"$error":"#N/A"}},null,{"$f":"VLOOKUP(B485,Kode!A2:D215,4,FALSE)","v":{"$error":"#N/A"}},null,null,null,null,null,null,null,null,null,null,null,null,null,{"$f":"VLOOKUP(B485,Kode!A2:E215,5,FALSE)","v":{"$error":"#N/A"}},null,null,null,null,null,null,null,{"$error":"#DIV/0!"}]
[{"$f":"VLOOKUP(B486,Kode!A2:C215,3,FALSE)","v":{"$error":"#N/A"}},null,{"$f":"VLOOKUP(B486,Kode!A2:D215,4,FALSE)","v":{"$error":"#N/A"}},null,null,null,null,null,null,null,null,null,null,null,null,null,{"$f":"VLOOKUP(B486,Kode!A2:E215,5,FALSE)","v":{"$error":"#N/A"}},null,null,null,null,null,null,null,{"$error":"#DIV/0!"}]
[{"$f":"VLOOKUP(B487,Kode!A2:C215,3,FALSE)","v":{"$error":"#N/A"}},null,{"$f":"VLOOKUP(B487,Kode!A2:D215,4,FALSE)","v":{"$error":"#N/A"}},null,null,null,null,null,null,null,null,null,null,null,null,null,{"$f":"VLOOKUP(B487,Kode!A2:E215,5,FALSE)","v":{"$error":"#N/A"}},null,null,null,null,null,null,null,{"$error":"#DIV/0!"}]
[{"$f":"VLOOKUP(B488,Kode!A2:C215,3,FALSE)","v":{"$error":"#N/A"}},null,{"$f":"VLOOKUP(B488,Kode!A2:D215,4,FALSE)","v":{"$error":"#N/A"}},null,null,null,null,null,null,null,null,null,null,null,null,null,{"$f":"VLOOKUP(B488,Kode!A2:E215,5,FALSE)","v":{"$error":"#N/A"}},null,null,null,null,null,null,null,{"$error":"#DIV/0!"}]
[{"$f":"VLOOKUP(B489,Kode!A2:C215,3,FALSE)","v":{"$error":"#N/A"}},null,{"$f":"VLOOKUP(B489,Kode!A2:D215,4,FALSE)","v":{"$error":"#N/A"}},null,null,null,null,null,null,null,null,null,null,null,null,null,{"$f":"VLOOKUP(B489,Kode!A2:E215,5,FALSE)","v":{"$error":"#N/A"}},null,null,null,null,null,null,null,{"$error":"#DIV/0!"}]
[{"$f":"VLOOKUP(B490,Kode!A2:C215,3,FALSE)","v":{"$error":"#N/A"}},null,{"$f":"VLOOKUP(B490,Kode!A2:D215,4,FALSE)","v":{"$error":"#N/A"}},null,null,null,null,null,null,null,null,null,null,null,null,null,{"$f":"VLOOKUP(B490,Kode!A2:E215,5,FALSE)","v":{"$error":"#N/A"}},null,null,null,null,null,null,null,{"$error":"#DIV/0!"}]
[{"$f":"VLOOKUP(B491,Kode!A2:C215,3,FALSE)","v":{"$error":"#N/A"}},null,{"$f":"VLOOKUP(B491,Kode!A2:D215,4,FALSE)","v":{"$error":"#N/A"}},null,null,null,null,null,null,null,null,null,null,null,null,null,{"$f":"VLOOKUP(B491,Kode!A2:E215,5,FALSE)","v":{"$error":"#N/A"}},null,null,null,null,null,null,null,{"$error":"#DIV/0!"}]
[{"$f":"VLOOKUP(B492,Kode!A2:C215,3,FALSE)","v":{"$error":"#N/A"}},null,{"$f":"VLOOKUP(B492,Kode!A2:D215,4,FALSE)","v":{"$error":"#N/A"}},null,null,null,null,null,null,null,null,null,null,null,null,null,{"$f":"VLOOKUP(B492,Kode!A2:E215,5,FALSE)","v":{"$error":"#N/A"}},null,null,null,null,null,null,null,{"$error":"#DIV/0!"}]
[{"$f":"VLOOKUP(B493,Kode!A2:C215,3,FALSE)","v":{"$error":"#N/A"}},null,{"$f":"VLOOKUP(B493,Kode!A2:D215,4,FALSE)","v":{"$error":"#N/A"}},null,null,null,null,null,null,null,null,null,null,null,null,null,{"$f":"VLOOKUP(B493,Kode!A2:E215,5,FALSE)","v":{"$error":"#N/A"}},null,null,null,null,null,null,null,{"$error":"#DIV/0!"}]
[{"$f":"VLOOKUP(B494,Kode!A2:C215,3,FALSE)","v":{"$error":"#N/A"}},null,{"$f":"VLOOKUP(B494,Kode!A2:D215,4,FALSE)","v":{"$error":"#N/A"}},null,null,null,null,null,null,null,null,null,null,null,null,null,{"$f":"VLOOKUP(B494,Kode!A2:E215,5,FALSE)","v":{"$error":"#N/A"}},null,null,null,null,null,null,null,{"$error":"#DIV/0!"}]
[{"$f":"VLOOKUP(B495,Kode!A2:C215,3,FALSE)","v":{"$error":"#N/A"}},null,{"$f":"VLOOKUP(B495,Kode!A2:D215,4,FALSE)","v":{"$error":"#N/A"}},null,null,null,null,null,null,null,null,null,null,null,null,null,{"$f":"VLOOKUP(B495,Kode!A2:E215,5,FALSE)","v":{"$error":"#N/A"}},null,null,null,null,null,null,null,{"$error":"#DIV/0!"}]
[{"$f":"VLOOKUP(B496,Kode!A2:C215,3,FALSE)","v":{"$error":"#N/A"}},null,{"$f":"VLOOKUP(B496,Kode!A2:D215,4,FALSE)","v":{"$error":"#N/A"}},null,null,null,null,null,null,null,null,null,null,null,null,null,{"$f":"VLOOKUP(B496,Kode!A2:E215,5,FALSE)","v":{"$error":"#N/A"}},null,null,null,null,null,null,null,{"$error":"#DIV/0!"}]
[{"$f":"VLOOKUP(B497,Kode!A2:C215,3,FALSE)","v":{"$error":"#N/A"}},null,{"$f":"VLOOKUP(B497,Kode!A2:D215,4,FALSE)","v":{"$error":"#N/A"}},null,null,null,null,null,null,null,null,null,null,null,null,null,{"$f":"VLOOKUP(B497,Kode!A2:E215,5,FALSE)","v":{"$error":"#N/A"}},null,null,null,null,null,null,null,{"$error":"#DIV/0!"}]
[{"$f":"VLOOKUP(B498,Kode!A2:C215,3,FALSE)","v":{"$error":"#N/A"}},null,{"$f":"VLOOKUP(B498,Kode!A2:D215,4,FALSE)","v":{"$error":"#N/A"}},null,null,null,null,null,null,null,null,null,null,null,null,null,{"$f":"VLOOKUP(B498,Kode!A2:E215,5,FALSE)","v":{"$error":"#N/A"}},null,null,null,null,null,null,null,{"$error":"#DIV/0!"}]
[{"$f":"VLOOKUP(B499,Kode!A2:C215,3,FALSE)","v":{"$error":"#N/A"}},null,{"$f":"VLOOKUP(B499,Kode!A2:D215,4,FALSE)","v":{"$error":"#N/A"}},null,null,null,null,null,null,null,null,null,null,null,null,null,{"$f":"VLOOKUP(B499,Kode!A2:E215,5,FALSE)","v":{"$error":"#N/A"}},null,null,null,null,null,null,null,{"$error":"#DIV/0!"}]
[{"$f":"VLOOKUP(B500,Kode!A2:C215,3,FALSE)","v":{"$error":"#N/A"}},null,{"$f":"VLOOKUP(B500,Kode!A2:D215,4,FALSE)","v":{"$error":"#N/A"}},null,null,null,null,null,null,null,null,null,null,null,null,null,{"$f":"VLOOKUP(B500,Kode!A2:E215,5,FALSE)","v":{"$error":"#N/A"}},null,null,null,null,null,null,null,{"$error":"#DIV/0!"}]
[{"$f":"VLOOKUP(B501,Kode!A2:C215,3,FALSE)","v":{"$error":"#N/A"}},null,{"$f":"VLOOKUP(B501,Kode!A2:D215,4,FALSE)","v":{"$error":"#N/A"}},null,null,null,null,null,null,null,null,null,null,null,null,null,{"$f":"VLOOKUP(B501,Kode!A2:E215,5,FALSE)","v":{"$error":"#N/A"}},null,null,null,null,null,null,null,{"$error":"#DIV/0!"}]
[{"$f":"VLOOKUP(B502,Kode!A2:C215,3,FALSE)","v":{"$error":"#N/A"}},null,{"$f":"VLOOKUP(B502,Kode!A2:D215,4,FALSE)","v":{"$error":"#N/A"}},null,null,null,null,null,null,null,null,null,null,null,null,null,{"$f":"VLOOKUP(B502,Kode!A2:E215,5,FALSE)","v":{"$error":"#N/A"}},null,null,null,null,null,null,null,{"$error":"#DIV/0!"}]
[{"$f":"VLOOKUP(B503,Kode!A2:C215,3,FALSE)","v":{"$error":"#N/A"}},null,{"$f":"VLOOKUP(B503,Kode!A2:D215,4,FALSE)","v":{"$error":"#N/A"}},null,null,null,null,null,null,null,null,null,null,null,null,null,{"$f":"VLOOKUP(B503,Kode!A2:E215,5,FALSE)","v":{"$error":"#N/A"}},null,null,null,null,null,null,null,{"$error":"#DIV/0!"}]
[{"$f":"VLOOKUP(B504,Kode!A2:C215,3,FALSE)","v":{"$error":"#N/A"}},null,{"$f":"VLOOKUP(B504,Kode!A2:D215,4,FALSE)","v":{"$error":"#N/A"}},null,null,null,null,null,null,null,null,null,null,null,null,null,{"$f":"VLOOKUP(B504,Kode!A2:E215,5,FALSE)","v":{"$error":"#N/A"}},null,null,null,null,null,null,null,{"$error":"#DIV/0!"}]
[{"$f":"VLOOKUP(B505,Kode!A2:C215,3,FALSE)","v":{"$error":"#N/A"}},null,{"$f":"VLOOKUP(B505,Kode!A2:D215,4,FALSE)","v":{"$error":"#N/A"}},null,null,null,null,null,null,null,null,null,null,null,null,null,{"$f":"VLOOKUP(B505,Kode!A2:E215,5,FALSE)","v":{"$error":"#N/A"}},null,null,null,null,null,null,null,{"$error":"#DIV/0!"}]
[{"$f":"VLOOKUP(B506,Kode!A2:C215,3,FALSE)","v":{"$error":"#N/A"}},null,{"$f":"VLOOKUP(B506,Kode!A2:D215,4,FALSE)","v":{"$error":"#N/A"}},null,null,null,null,null,null,null,null,null,null,null,null,null,{"$f":"VLOOKUP(B506,Kode!A2:E215,5,FALSE)","v":{"$error":"#N/A"}},null,null,null,null,null,null,null,{"$error":"#DIV/0!"}]
[{"$f":"VLOOKUP(B507,Kode!A2:C215,3,FALSE)","v":{"$error":"#N/A"}},null,{"$f":"VLOOKUP(B507,Kode!A2:D215,4,FALSE)","v":{"$error":"#N/A"}},null,null,null,null,null,null,null,null,null,null,null,null,null,{"$f":"VLOOKUP(B507,Kode!A2:E215,5,FALSE)","v":{"$error":"#N/A"}},null,null,null,null,null,null,null,{"$error":"#DIV/0!"}]
[{"$f":"VLOOKUP(B508,Kode!A2:C215,3,FALSE)","v":{"$error":"#N/A"}},null,{"$f":"VLOOKUP(B508,Kode!A2:D215,4,FALSE)","v":{"$error":"#N/A"}},null,null,null,null,null,null,null,null,null,null,null,null,null,{"$f":"VLOOKUP(B508,Kode!A2:E215,5,FALSE)","v":{"$error":"#N/A"}},null,null,null,null,null,null,null,{"$error":"#DIV/0!"}]
[{"$f":"VLOOKUP(B509,Kode!A2:C215,3,FALSE)","v":{"$error":"#N/A"}},null,{"$f":"VLOOKUP(B509,Kode!A2:D215,4,FALSE)","v":{"$error":"#N/A"}},null,null,null,null,null,null,null,null,null,null,null,null,null,{"$f":"VLOOKUP(B509,Kode!A2:E215,5,FALSE)","v":{"$error":"#N/A"}},null,null,null,null,null,null,null,{"$error":"#DIV/0!"}]
[{"$f":"VLOOKUP(B510,Kode!A2:C215,3,FALSE)","v":{"$error":"#N/A"}},null,{"$f":"VLOOKUP(B510,Kode!A2:D215,4,FALSE)","v":{"$error":"#N/A"}},null,null,null,null,null,null,null,null,null,null,null,null,null,{"$f":"VLOOKUP(B510,Kode!A2:E215,5,FALSE)","v":{"$error":"#N/A"}},null,null,null,null,null,null,null,{"$error":"#DIV/0!"}]
[{"$f":"VLOOKUP(B511,Kode!A2:C215,3,FALSE)","v":{"$error":"#N/A"}},null,{"$f":"VLOOKUP(B511,Kode!A2:D215,4,FALSE)","v":{"$error":"#N/A"}},null,null,null,null,null,null,null,null,null,null,null,null,null,{"$f":"VLOOKUP(B511,Kode!A2:E215,5,FALSE)","v":{"$error":"#N/A"}},null,null,null,null,null,null,null,{"$error":"#DIV/0!"}]
[{"$f":"VLOOKUP(B512,Kode!A2:C215,3,FALSE)","v":{"$error":"#N/A"}},null,{"$f":"VLOOKUP(B512,Kode!A2:D215,4,FALSE)","v":{"$error":"#N/A"}},null,null,null,null,null,null,null,null,null,null,null,null,null,{"$f":"VLOOKUP(B512,Kode!A2:E215,5,FALSE)","v":{"$error":"#N/A"}},null,null,null,null,null,null,null,{"$error":"#DIV/0!"}]
[{"$f":"VLOOKUP(B513,Kode!A2:C215,3,FALSE)","v":{"$error":"#N/A"}},null,{"$f":"VLOOKUP(B513,Kode!A2:D215,4,FALSE)","v":{"$error":"#N/A"}},null,null,null,null,null,null,null,null,null,null,null,null,null,{"$f":"VLOOKUP(B513,Kode!A2:E215,5,FALSE)","v":{"$error":"#N/A"}},null,null,null,null,null,null,null,{"$error":"#DIV/0!"}]
[{"$f":"VLOOKUP(B514,Kode!A2:C215,3,FALSE)","v":{"$error":"#N/A"}},null,{"$f":"VLOOKUP(B514,Kode!A2:D215,4,FALSE)","v":{"$error":"#N/A"}},null,null,null,null,null,null,null,null,null,null,null,null,null,{"$f":"VLOOKUP(B514,Kode!A2:E215,5,FALSE)","v":{"$error":"#N/A"}},null,null,null,null,null,null,null,{"$error":"#DIV/0!"}]
[{"$f":"VLOOKUP(B515,Kode!A2:C215,3,FALSE)","v":{"$error":"#N/A"}},null,{"$f":"VLOOKUP(B515,Kode!A2:D215,4,FALSE)","v":{"$error":"#N/A"}},null,null,null,null,null,null,null,null,null,null,null,null,null,{"$f":"VLOOKUP(B515,Kode!A2:E215,5,FALSE)","v":{"$error":"#N/A"}},null,null,null,null,null,null,null,{"$f":"U515/S515*100","v":{"$error":"#DIV/0!"}}]
[{"$f":"VLOOKUP(B516,Kode!A2:C215,3,FALSE)","v":{"$error":"#N/A"}},null,{"$f":"VLOOKUP(B516,Kode!A2:D215,4,FALSE)","v":{"$error":"#N/A"}},null,null,null,null,null,null,null,null,null,null,null,null,null,{"$f":"VLOOKUP(B516,Kode!A2:E215,5,FALSE)","v":{"$error":"#N/A"}},null,null,null,null,null,null,null,{"$error":"#DIV/0!"}]
[{"$f":"VLOOKUP(B517,Kode!A2:C215,3,FALSE)","v":{"$error":"#N/A"}},null,{"$f":"VLOOKUP(B517,Kode!A2:D215,4,FALSE)","v":{"$error":"#N/A"}},null,null,null,null,null,null,null,null,null,null,null,null,null,{"$f":"VLOOKUP(B517,Kode!A2:E215,5,FALSE)","v":{"$error":"#N/A"}},null,null,null,null,null,null,null,{"$error":"#DIV/0!"}]
[{"$f":"VLOOKUP(B518,Kode!A2:C215,3,FALSE)","v":{"$error":"#N/A"}},null,{"$f":"VLOOKUP(B518,Kode!A2:D215,4,FALSE)","v":{"$error":"#N/A"}},null,null,null,null,null,null,null,null,null,null,null,null,null,{"$f":"VLOOKUP(B518,Kode!A2:E215,5,FALSE)","v":{"$error":"#N/A"}},null,null,null,null,null,null,null,{"$error":"#DIV/0!"}]
[{"$f":"VLOOKUP(B519,Kode!A2:C215,3,FALSE)","v":{"$error":"#N/A"}},null,{"$f":"VLOOKUP(B519,Kode!A2:D215,4,FALSE)","v":{"$error":"#N/A"}},null,null,null,null,null,null,null,null,null,null,null,null,null,{"$f":"VLOOKUP(B519,Kode!A2:E215,5,FALSE)","v":{"$error":"#N/A"}},null,null,null,null,null,null,null,{"$error":"#DIV/0!"}]
[{"$f":"VLOOKUP(B520,Kode!A2:C215,3,FALSE)","v":{"$error":"#N/A"}},null,{"$f":"VLOOKUP(B520,Kode!A2:D215,4,FALSE)","v":{"$error":"#N/A"}},null,null,null,null,null,null,null,null,null,null,null,null,null,{"$f":"VLOOKUP(B520,Kode!A2:E215,5,FALSE)","v":{"$error":"#N/A"}},null,null,null,null,null,null,null,{"$error":"#DIV/0!"}]
[{"$f":"VLOOKUP(B521,Kode!A2:C215,3,FALSE)","v":{"$error":"#N/A"}},null,{"$f":"VLOOKUP(B521,Kode!A2:D215,4,FALSE)","v":{"$error":"#N/A"}},null,null,null,null,null,null,null,null,null,null,null,null,null,{"$f":"VLOOKUP(B521,Kode!A2:E215,5,FALSE)","v":{"$error":"#N/A"}},null,null,null,null,null,null,null,{"$error":"#DIV/0!"}]
[{"$f":"VLOOKUP(B522,Kode!A2:C215,3,FALSE)","v":{"$error":"#N/A"}},null,{"$f":"VLOOKUP(B522,Kode!A2:D215,4,FALSE)","v":{"$error":"#N/A"}},null,null,null,null,null,null,null,null,null,null,null,null,null,{"$f":"VLOOKUP(B522,Kode!A2:E215,5,FALSE)","v":{"$error":"#N/A"}},null,null,null,null,null,null,null,{"$error":"#DIV/0!"}]
[{"$f":"VLOOKUP(B523,Kode!A2:C215,3,FALSE)","v":{"$error":"#N/A"}},null,{"$f":"VLOOKUP(B523,Kode!A2:D215,4,FALSE)","v":{"$error":"#N/A"}},null,null,null,null,null,null,null,null,null,null,null,null,null,{"$f":"VLOOKUP(B523,Kode!A2:E215,5,FALSE)","v":{"$error":"#N/A"}},null,null,null,null,null,null,null,{"$error":"#DIV/0!"}]
[{"$f":"VLOOKUP(B524,Kode!A2:C215,3,FALSE)","v":{"$error":"#N/A"}},null,{"$f":"VLOOKUP(B524,Kode!A2:D215,4,FALSE)","v":{"$error":"#N/A"}},null,null,null,null,null,null,null,null,null,null,null,null,null,{"$f":"VLOOKUP(B524,Kode!A2:E215,5,FALSE)","v":{"$error":"#N/A"}},null,null,null,null,null,null,null,{"$error":"#DIV/0!"}]
[{"$f":"VLOOKUP(B525,Kode!A2:C215,3,FALSE)","v":{"$error":"#N/A"}},null,{"$f":"VLOOKUP(B525,Kode!A2:D215,4,FALSE)","v":{"$error":"#N/A"}},null,null,null,null,null,null,null,null,null,null,null,null,null,{"$f":"VLOOKUP(B525,Kode!A2:E215,5,FALSE)","v":{"$error":"#N/A"}},null,null,null,null,null,null,null,{"$error":"#DIV/0!"}]
[{"$f":"VLOOKUP(B526,Kode!A2:C215,3,FALSE)","v":{"$error":"#N/A"}},null,{"$f":"VLOOKUP(B526,Kode!A2:D215,4,FALSE)","v":{"$error":"#N/A"}},null,null,null,null,null,null,null,null,null,null,null,null,null,{"$f":"VLOOKUP(B526,Kode!A2:E215,5,FALSE)","v":{"$error":"#N/A"}},null,null,null,null,null,null,null,{"$error":"#DIV/0!"}]
[{"$f":"VLOOKUP(B527,Kode!A2:C215,3,FALSE)","v":{"$error":"#N/A"}},null,{"$f":"VLOOKUP(B527,Kode!A2:D215,4,FALSE)","v":{"$error":"#N/A"}},null,null,null,null,null,null,null,null,null,null,null,null,null,{"$f":"VLOOKUP(B527,Kode!A2:E215,5,FALSE)","v":{"$error":"#N/A"}},null,null,null,null,null,null,null,{"$error":"#DIV/0!"}]
[{"$f":"VLOOKUP(B528,Kode!A2:C215,3,FALSE)","v":{"$error":"#N/A"}},null,{"$f":"VLOOKUP(B528,Kode!A2:D215,4,FALSE)","v":{"$error":"#N/A"}},null,null,null,null,null,null,null,null,null,null,null,null,null,{"$f":"VLOOKUP(B528,Kode!A2:E215,5,FALSE)","v":{"$error":"#N/A"}},null,null,null,null,null,null,null,{"$error":"#DIV/0!"}]
[{"$f":"VLOOKUP(B529,Kode!A2:C215,3,FALSE)","v":{"$error":"#N/A"}},null,{"$f":"VLOOKUP(B529,Kode!A2:D215,4,FALSE)","v":{"$error":"#N/A"}},null,null,null,null,null,null,null,null,null,null,null,null,null,{"$f":"VLOOKUP(B529,Kode!A2:E215,5,FALSE)","v":{"$error":"#N/A"}},null,null,null,null,null,null,null,{"$error":"#DIV/0!"}]
[{"$f":"VLOOKUP(B530,Kode!A2:C215,3,FALSE)","v":{"$error":"#N/A"}},null,{"$f":"VLOOKUP(B530,Kode!A2:D215,4,FALSE)","v":{"$error":"#N/A"}},null,null,null,null,null,null,null,null,null,null,null,null,null,{"$f":"VLOOKUP(B530,Kode!A2:E215,5,FALSE)","v":{"$error":"#N/A"}},null,null,null,null,null,null,null,{"$error":"#DIV/0!"}]
[{"$f":"VLOOKUP(B531,Kode!A2:C215,3,FALSE)","v":{"$error":"#N/A"}},null,{"$f":"VLOOKUP(B531,Kode!A2:D215,4,FALSE)","v":{"$error":"#N/A"}},null,null,null,null,null,null,null,null,null,null,null,null,null,{"$f":"VLOOKUP(B531,Kode!A2:E215,5,FALSE)","v":{"$error":"#N/A"}},null,null,null,null,null,null,null,{"$error":"#DIV/0!"}]
[{"$f":"VLOOKUP(B532,Kode!A2:C215,3,FALSE)","v":{"$error":"#N/A"}},null,{"$f":"VLOOKUP(B532,Kode!A2:D215,4,FALSE)","v":{"$error":"#N/A"}},null,null,null,null,null,null,null,null,null,null,null,null,null,{"$f":"VLOOKUP(B532,Kode!A2:E215,5,FALSE)","v":{"$error":"#N/A"}},null,null,null,null,null,null,null,{"$error":"#DIV/0!"}]
[{"$f":"VLOOKUP(B533,Kode!A2:C215,3,FALSE)","v":{"$error":"#N/A"}},null,{"$f":"VLOOKUP(B533,Kode!A2:D215,4,FALSE)","v":{"$error":"#N/A"}},null,null,null,null,null,null,null,null,null,null,null,null,null,{"$f":"VLOOKUP(B533,Kode!A2:E215,5,FALSE)","v":{"$error":"#N/A"}},null,null,null,null,null,null,null,{"$error":"#DIV/0!"}]
[{"$f":"VLOOKUP(B534,Kode!A2:C215,3,FALSE)","v":{"$error":"#N/A"}},null,{"$f":"VLOOKUP(B534,Kode!A2:D215,4,FALSE)","v":{"$error":"#N/A"}},null,null,null,null,null,null,null,null,null,null,null,null,null,{"$f":"VLOOKUP(B534,Kode!A2:E215,5,FALSE)","v":{"$error":"#N/A"}},null,null,null,null,null,null,null,{"$error":"#DIV/0!"}]
[{"$f":"VLOOKUP(B535,Kode!A2:C215,3,FALSE)","v":{"$error":"#N/A"}},null,{"$f":"VLOOKUP(B535,Kode!A2:D215,4,FALSE)","v":{"$error":"#N/A"}},null,null,null,null,null,null,null,null,null,null,null,null,null,{"$f":"VLOOKUP(B535,Kode!A2:E215,5,FALSE)","v":{"$error":"#N/A"}},null,null,null,null,null,null,null,{"$error":"#DIV/0!"}]
[{"$f":"VLOOKUP(B536,Kode!A2:C215,3,FALSE)","v":{"$error":"#N/A"}},null,{"$f":"VLOOKUP(B536,Kode!A2:D215,4,FALSE)","v":{"$error":"#N/A"}},null,null,null,null,null,null,null,null,null,null,null,null,null,{"$f":"VLOOKUP(B536,Kode!A2:E215,5,FALSE)","v":{"$error":"#N/A"}},null,null,null,null,null,null,null,{"$error":"#DIV/0!"}]
[{"$f":"VLOOKUP(B537,Kode!A2:C215,3,FALSE)","v":{"$error":"#N/A"}},null,{"$f":"VLOOKUP(B537,Kode!A2:D215,4,FALSE)","v":{"$error":"#N/A"}},null,null,null,null,null,null,null,null,null,null,null,null,null,{"$f":"VLOOKUP(B537,Kode!A2:E215,5,FALSE)","v":{"$error":"#N/A"}},null,null,null,null,null,null,null,{"$error":"#DIV/0!"}]
[{"$f":"VLOOKUP(B538,Kode!A2:C215,3,FALSE)","v":{"$error":"#N/A"}},null,{"$f":"VLOOKUP(B538,Kode!A2:D215,4,FALSE)","v":{"$error":"#N/A"}},null,null,null,null,null,null,null,null,null,null,null,null,null,{"$f":"VLOOKUP(B538,Kode!A2:E215,5,FALSE)","v":{"$error":"#N/A"}},null,null,null,null,null,null,null,{"$error":"#DIV/0!"}]
[{"$f":"VLOOKUP(B539,Kode!A2:C215,3,FALSE)","v":{"$error":"#N/A"}},null,{"$f":"VLOOKUP(B539,Kode!A2:D215,4,FALSE)","v":{"$error":"#N/A"}},null,null,null,null,null,null,null,null,null,null,null,null,null,{"$f":"VLOOKUP(B539,Kode!A2:E215,5,FALSE)","v":{"$error":"#N/A"}},null,null,null,null,null,null,null,{"$error":"#DIV/0!"}]
[{"$f":"VLOOKUP(B540,Kode!A2:C215,3,FALSE)","v":{"$error":"#N/A"}},null,{"$f":"VLOOKUP(B540,Kode!A2:D215,4,FALSE)","v":{"$error":"#N/A"}},null,null,null,null,null,null,null,null,null,null,null,null,null,{"$f":"VLOOKUP(B540,Kode!A2:E215,5,FALSE)","v":{"$error":"#N/A"}},null,null,null,null,null,null,null,{"$error":"#DIV/0!"}]
[{"$f":"VLOOKUP(B541,Kode!A2:C215,3,FALSE)","v":{"$error":"#N/A"}},null,{"$f":"VLOOKUP(B541,Kode!A2:D215,4,FALSE)","v":{"$error":"#N/A"}},null,null,null,null,null,null,null,null,null,null,null,null,null,{"$f":"VLOOKUP(B541,Kode!A2:E215,5,FALSE)","v":{"$error":"#N/A"}},null,null,null,null,null,null,null,{"$error":"#DIV/0!"}]
[{"$f":"VLOOKUP(B542,Kode!A2:C215,3,FALSE)","v":{"$error":"#N/A"}},null,{"$f":"VLOOKUP(B542,Kode!A2:D215,4,FALSE)","v":{"$error":"#N/A"}},null,null,null,null,null,null,null,null,null,null,null,null,null,{"$f":"VLOOKUP(B542,Kode!A2:E215,5,FALSE)","v":{"$error":"#N/A"}},null,null,null,null,null,null,null,{"$error":"#DIV/0!"}]
[{"$f":"VLOOKUP(B543,Kode!A2:C215,3,FALSE)","v":{"$error":"#N/A"}},null,{"$f":"VLOOKUP(B543,Kode!A2:D215,4,FALSE)","v":{"$error":"#N/A"}},null,null,null,null,null,null,null,null,null,null,null,null,null,{"$f":"VLOOKUP(B543,Kode!A2:E215,5,FALSE)","v":{"$error":"#N/A"}},null,null,null,null,null,null,null,{"$error":"#DIV/0!"}]
[{"$f":"VLOOKUP(B544,Kode!A2:C215,3,FALSE)","v":{"$error":"#N/A"}},null,{"$f":"VLOOKUP(B544,Kode!A2:D215,4,FALSE)","v":{"$error":"#N/A"}},null,null,null,null,null,null,null,null,null,null,null,null,null,{"$f":"VLOOKUP(B544,Kode!A2:E215,5,FALSE)","v":{"$error":"#N/A"}},null,null,null,null,null,null,null,{"$error":"#DIV/0!"}]
[{"$f":"VLOOKUP(B545,Kode!A2:C215,3,FALSE)","v":{"$error":"#N/A"}},null,{"$f":"VLOOKUP(B545,Kode!A2:D215,4,FALSE)","v":{"$error":"#N/A"}},null,null,null,null,null,null,null,null,null,null,null,null,null,{"$f":"VLOOKUP(B545,Kode!A2:E215,5,FALSE)","v":{"$error":"#N/A"}},null,null,null,null,null,null,null,{"$error":"#DIV/0!"}]
[{"$f":"VLOOKUP(B546,Kode!A2:C215,3,FALSE)","v":{"$error":"#N/A"}},null,{"$f":"VLOOKUP(B546,Kode!A2:D215,4,FALSE)","v":{"$error":"#N/A"}},null,null,null,null,null,null,null,null,null,null,null,null,null,{"$f":"VLOOKUP(B546,Kode!A2:E215,5,FALSE)","v":{"$error":"#N/A"}},null,null,null,null,null,null,null,{"$error":"#DIV/0!"}]
[{"$f":"VLOOKUP(B547,Kode!A2:C215,3,FALSE)","v":{"$error":"#N/A"}},null,{"$f":"VLOOKUP(B547,Kode!A2:D215,4,FALSE)","v":{"$error":"#N/A"}},null,null,null,null,null,null,null,null,null,null,null,null,null,{"$f":"VLOOKUP(B547,Kode!A2:E215,5,FALSE)","v":{"$error":"#N/A"}},null,null,null,null,null,null,null,{"$error":"#DIV/0!"}]
[{"$f":"VLOOKUP(B548,Kode!A2:C215,3,FALSE)","v":{"$error":"#N/A"}},null,{"$f":"VLOOKUP(B548,Kode!A2:D215,4,FALSE)","v":{"$error":"#N/A"}},null,null,null,null,null,null,null,null,null,null,null,null,null,{"$f":"VLOOKUP(B548,Kode!A2:E215,5,FALSE)","v":{"$error":"#N/A"}},null,null,null,null,null,null,null,{"$error":"#DIV/0!"}]
[{"$f":"VLOOKUP(B549,Kode!A2:C215,3,FALSE)","v":{"$error":"#N/A"}},null,{"$f":"VLOOKUP(B549,Kode!A2:D215,4,FALSE)","v":{"$error":"#N/A"}},null,null,null,null,null,null,null,null,null,null,null,null,null,{"$f":"VLOOKUP(B549,Kode!A2:E215,5,FALSE)","v":{"$error":"#N/A"}},null,null,null,null,null,null,null,{"$error":"#DIV/0!"}]
[{"$f":"VLOOKUP(B550,Kode!A2:C215,3,FALSE)","v":{"$error":"#N/A"}},null,{"$f":"VLOOKUP(B550,Kode!A2:D215,4,FALSE)","v":{"$error":"#N/A"}},null,null,null,null,null,null,null,null,null,null,null,null,null,{"$f":"VLOOKUP(B550,Kode!A2:E215,5,FALSE)","v":{"$error":"#N/A"}},null,null,null,null,null,null,null,{"$error":"#DIV/0!"}]
[{"$f":"VLOOKUP(B551,Kode!A2:C215,3,FALSE)","v":{"$error":"#N/A"}},null,{"$f":"VLOOKUP(B551,Kode!A2:D215,4,FALSE)","v":{"$error":"#N/A"}},null,null,null,null,null,null,null,null,null,null,null,null,null,{"$f":"VLOOKUP(B551,Kode!A2:E215,5,FALSE)","v":{"$error":"#N/A"}},null,null,null,null,null,null,null,{"$error":"#DIV/0!"}]
[{"$f":"VLOOKUP(B552,Kode!A2:C215,3,FALSE)","v":{"$error":"#N/A"}},null,{"$f":"VLOOKUP(B552,Kode!A2:D215,4,FALSE)","v":{"$error":"#N/A"}},null,null,null,null,null,null,null,null,null,null,null,null,null,{"$f":"VLOOKUP(B552,Kode!A2:E215,5,FALSE)","v":{"$error":"#N/A"}},null,null,null,null,null,null,null,{"$error":"#DIV/0!"}]
[{"$f":"VLOOKUP(B553,Kode!A2:C215,3,FALSE)","v":{"$error":"#N/A"}},null,{"$f":"VLOOKUP(B553,Kode!A2:D215,4,FALSE)","v":{"$error":"#N/A"}},null,null,null,null,null,null,null,null,null,null,null,null,null,{"$f":"VLOOKUP(B553,Kode!A2:E215,5,FALSE)","v":{"$error":"#N/A"}},null,null,null,null,null,null,null,{"$error":"#DIV/0!"}]
[{"$f":"VLOOKUP(B554,Kode!A2:C215,3,FALSE)","v":{"$error":"#N/A"}},null,{"$f":"VLOOKUP(B554,Kode!A2:D215,4,FALSE)","v":{"$error":"#N/A"}},null,null,null,null,null,null,null,null,null,null,null,null,null,{"$f":"VLOOKUP(B554,Kode!A2:E215,5,FALSE)","v":{"$error":"#N/A"}},null,null,null,null,null,null,null,{"$error":"#DIV/0!"}]
[{"$f":"VLOOKUP(B555,Kode!A2:C215,3,FALSE)","v":{"$error":"#N/A"}},null,{"$f":"VLOOKUP(B555,Kode!A2:D215,4,FALSE)","v":{"$error":"#N/A"}},null,null,null,null,null,null,null,null,null,null,null,null,null,{"$f":"VLOOKUP(B555,Kode!A2:E215,5,FALSE)","v":{"$error":"#N/A"}},null,null,null,null,null,null,null,{"$error":"#DIV/0!"}]
[{"$f":"VLOOKUP(B556,Kode!A2:C215,3,FALSE)","v":{"$error":"#N/A"}},null,{"$f":"VLOOKUP(B556,Kode!A2:D215,4,FALSE)","v":{"$error":"#N/A"}},null,null,null,null,null,null,null,null,null,null,null,null,null,{"$f":"VLOOKUP(B556,Kode!A2:E215,5,FALSE)","v":{"$error":"#N/A"}},null,null,null,null,null,null,null,{"$error":"#DIV/0!"}]
[{"$f":"VLOOKUP(B557,Kode!A2:C215,3,FALSE)","v":{"$error":"#N/A"}},null,{"$f":"VLOOKUP(B557,Kode!A2:D215,4,FALSE)","v":{"$error":"#N/A"}},null,null,null,null,null,null,null,null,null,null,null,null,null,{"$f":"VLOOKUP(B557,Kode!A2:E215,5,FALSE)","v":{"$error":"#N/A"}},null,null,null,null,null,null,null,{"$error":"#DIV/0!"}]
[{"$f":"VLOOKUP(B558,Kode!A2:C215,3,FALSE)","v":{"$error":"#N/A"}},null,{"$f":"VLOOKUP(B558,Kode!A2:D215,4,FALSE)","v":{"$error":"#N/A"}},null,null,null,null,null,null,null,null,null,null,null,null,null,{"$f":"VLOOKUP(B558,Kode!A2:E215,5,FALSE)","v":{"$error":"#N/A"}},null,null,null,null,null,null,null,{"$error":"#DIV/0!"}]
[{"$f":"VLOOKUP(B559,Kode!A2:C215,3,FALSE)","v":{"$error":"#N/A"}},null,{"$f":"VLOOKUP(B559,Kode!A2:D215,4,FALSE)","v":{"$error":"#N/A"}},null,null,null,null,null,null,null,null,null,null,null,null,null,{"$f":"VLOOKUP(B559,Kode!A2:E215,5,FALSE)","v":{"$error":"#N/A"}},null,null,null,null,null,null,null,{"$error":"#DIV/0!"}]
[{"$f":"VLOOKUP(B560,Kode!A2:C215,3,FALSE)","v":{"$error":"#N/A"}},null,{"$f":"VLOOKUP(B560,Kode!A2:D215,4,FALSE)","v":{"$error":"#N/A"}},null,null,null,null,null,null,null,null,null,null,null,null,null,{"$f":"VLOOKUP(B560,Kode!A2:E215,5,FALSE)","v":{"$error":"#N/A"}},null,null,null,null,null,null,null,{"$error":"#DIV/0!"}]
[{"$f":"VLOOKUP(B561,Kode!A2:C215,3,FALSE)","v":{"$error":"#N/A"}},null,{"$f":"VLOOKUP(B561,Kode!A2:D215,4,FALSE)","v":{"$error":"#N/A"}},null,null,null,null,null,null,null,null,null,null,null,null,null,{"$f":"VLOOKUP(B561,Kode!A2:E215,5,FALSE)","v":{"$error":"#N/A"}},null,null,null,null,null,null,null,{"$error":"#DIV/0!"}]
[{"$f":"VLOOKUP(B562,Kode!A2:C215,3,FALSE)","v":{"$error":"#N/A"}},null,{"$f":"VLOOKUP(B562,Kode!A2:D215,4,FALSE)","v":{"$error":"#N/A"}},null,null,null,null,null,null,null,null,null,null,null,null,null,{"$f":"VLOOKUP(B562,Kode!A2:E215,5,FALSE)","v":{"$error":"#N/A"}},null,null,null,null,null,null,null,{"$error":"#DIV/0!"}]
[{"$f":"VLOOKUP(B563,Kode!A2:C215,3,FALSE)","v":{"$error":"#N/A"}},null,{"$f":"VLOOKUP(B563,Kode!A2:D215,4,FALSE)","v":{"$error":"#N/A"}},null,null,null,null,null,null,null,null,null,null,null,null,null,{"$f":"VLOOKUP(B563,Kode!A2:E215,5,FALSE)","v":{"$error":"#N/A"}},null,null,null,null,null,null,null,{"$error":"#DIV/0!"}]
[{"$f":"VLOOKUP(B564,Kode!A2:C215,3,FALSE)","v":{"$error":"#N/A"}},null,{"$f":"VLOOKUP(B564,Kode!A2:D215,4,FALSE)","v":{"$error":"#N/A"}},null,null,null,null,null,null,null,null,null,null,null,null,null,{"$f":"VLOOKUP(B564,Kode!A2:E215,5,FALSE)","v":{"$error":"#N/A"}},null,null,null,null,null,null,null,{"$error":"#DIV/0!"}]
[{"$f":"VLOOKUP(B565,Kode!A2:C215,3,FALSE)","v":{"$error":"#N/A"}},null,{"$f":"VLOOKUP(B565,Kode!A2:D215,4,FALSE)","v":{"$error":"#N/A"}},null,null,null,null,null,null,null,null,null,null,null,null,null,{"$f":"VLOOKUP(B565,Kode!A2:E215,5,FALSE)","v":{"$error":"#N/A"}},null,null,null,null,null,null,null,{"$error":"#DIV/0!"}]
[{"$f":"VLOOKUP(B566,Kode!A2:C215,3,FALSE)","v":{"$error":"#N/A"}},null,{"$f":"VLOOKUP(B566,Kode!A2:D215,4,FALSE)","v":{"$error":"#N/A"}},null,null,null,null,null,null,null,null,null,null,null,null,null,{"$f":"VLOOKUP(B566,Kode!A2:E215,5,FALSE)","v":{"$error":"#N/A"}},null,null,null,null,null,null,null,{"$error":"#DIV/0!"}]
[{"$f":"VLOOKUP(B567,Kode!A2:C215,3,FALSE)","v":{"$error":"#N/A"}},null,{"$f":"VLOOKUP(B567,Kode!A2:D215,4,FALSE)","v":{"$error":"#N/A"}},null,null,null,null,null,null,null,null,null,null,null,null,null,{"$f":"VLOOKUP(B567,Kode!A2:E215,5,FALSE)","v":{"$error":"#N/A"}},null,null,null,null,null,null,null,{"$error":"#DIV/0!"}]
[{"$f":"VLOOKUP(B568,Kode!A2:C215,3,FALSE)","v":{"$error":"#N/A"}},null,{"$f":"VLOOKUP(B568,Kode!A2:D215,4,FALSE)","v":{"$error":"#N/A"}},null,null,null,null,null,null,null,null,null,null,null,null,null,{"$f":"VLOOKUP(B568,Kode!A2:E215,5,FALSE)","v":{"$error":"#N/A"}},null,null,null,null,null,null,null,{"$error":"#DIV/0!"}]
[{"$f":"VLOOKUP(B569,Kode!A2:C215,3,FALSE)","v":{"$error":"#N/A"}},null,{"$f":"VLOOKUP(B569,Kode!A2:D215,4,FALSE)","v":{"$error":"#N/A"}},null,null,null,null,null,null,null,null,null,null,null,null,null,{"$f":"VLOOKUP(B569,Kode!A2:E215,5,FALSE)","v":{"$error":"#N/A"}},null,null,null,null,null,null,null,{"$error":"#DIV/0!"}]
[{"$f":"VLOOKUP(B570,Kode!A2:C215,3,FALSE)","v":{"$error":"#N/A"}},null,{"$f":"VLOOKUP(B570,Kode!A2:D215,4,FALSE)","v":{"$error":"#N/A"}},null,null,null,null,null,null,null,null,null,null,null,null,null,{"$f":"VLOOKUP(B570,Kode!A2:E215,5,FALSE)","v":{"$error":"#N/A"}},null,null,null,null,null,null,null,{"$error":"#DIV/0!"}]
[{"$f":"VLOOKUP(B571,Kode!A2:C215,3,FALSE)","v":{"$error":"#N/A"}},null,{"$f":"VLOOKUP(B571,Kode!A2:D215,4,FALSE)","v":{"$error":"#N/A"}},null,null,null,null,null,null,null,null,null,null,null,null,null,{"$f":"VLOOKUP(B571,Kode!A2:E215,5,FALSE)","v":{"$error":"#N/A"}},null,null,null,null,null,null,null,{"$error":"#DIV/0!"}]
[{"$f":"VLOOKUP(B572,Kode!A2:C215,3,FALSE)","v":{"$error":"#N/A"}},null,{"$f":"VLOOKUP(B572,Kode!A2:D215,4,FALSE)","v":{"$error":"#N/A"}},null,null,null,null,null,null,null,null,null,null,null,null,null,{"$f":"VLOOKUP(B572,Kode!A2:E215,5,FALSE)","v":{"$error":"#N/A"}},null,null,null,null,null,null,null,{"$error":"#DIV/0!"}]
[{"$f":"VLOOKUP(B573,Kode!A2:C215,3,FALSE)","v":{"$error":"#N/A"}},null,{"$f":"VLOOKUP(B573,Kode!A2:D215,4,FALSE)","v":{"$error":"#N/A"}},null,null,null,null,null,null,null,null,null,null,null,null,null,{"$f":"VLOOKUP(B573,Kode!A2:E215,5,FALSE)","v":{"$error":"#N/A"}},null,null,null,null,null,null,null,{"$error":"#DIV/0!"}]
[{"$f":"VLOOKUP(B574,Kode!A2:C215,3,FALSE)","v":{"$error":"#N/A"}},null,{"$f":"VLOOKUP(B574,Kode!A2:D215,4,FALSE)","v":{"$error":"#N/A"}},null,null,null,null,null,null,null,null,null,null,null,null,null,{"$f":"VLOOKUP(B574,Kode!A2:E215,5,FALSE)","v":{"$error":"#N/A"}},null,null,null,null,null,null,null,{"$error":"#DIV/0!"}]
[{"$f":"VLOOKUP(B575,Kode!A2:C215,3,FALSE)","v":{"$error":"#N/A"}},null,{"$f":"VLOOKUP(B575,Kode!A2:D215,4,FALSE)","v":{"$error":"#N/A"}},null,null,null,null,null,null,null,null,null,null,null,null,null,{"$f":"VLOOKUP(B575,Kode!A2:E215,5,FALSE)","v":{"$error":"#N/A"}},null,null,null,null,null,null,null,{"$error":"#DIV/0!"}]
[{"$f":"VLOOKUP(B576,Kode!A2:C215,3,FALSE)","v":{"$error":"#N/A"}},null,{"$f":"VLOOKUP(B576,Kode!A2:D215,4,FALSE)","v":{"$error":"#N/A"}},null,null,null,null,null,null,null,null,null,null,null,null,null,{"$f":"VLOOKUP(B576,Kode!A2:E215,5,FALSE)","v":{"$error":"#N/A"}},null,null,null,null,null,null,null,{"$error":"#DIV/0!"}]
[{"$f":"VLOOKUP(B577,Kode!A2:C215,3,FALSE)","v":{"$error":"#N/A"}},null,{"$f":"VLOOKUP(B577,Kode!A2:D215,4,FALSE)","v":{"$error":"#N/A"}},null,null,null,null,null,null,null,null,null,null,null,null,null,{"$f":"VLOOKUP(B577,Kode!A2:E215,5,FALSE)","v":{"$error":"#N/A"}},null,null,null,null,null,null,null,{"$error":"#DIV/0!"}]
[{"$f":"VLOOKUP(B578,Kode!A2:C215,3,FALSE)","v":{"$error":"#N/A"}},null,{"$f":"VLOOKUP(B578,Kode!A2:D215,4,FALSE)","v":{"$error":"#N/A"}},null,null,null,null,null,null,null,null,null,null,null,null,null,{"$f":"VLOOKUP(B578,Kode!A2:E215,5,FALSE)","v":{"$error":"#N/A"}},null,null,null,null,null,null,null,{"$error":"#DIV/0!"}]
[{"$f":"VLOOKUP(B579,Kode!A2:C215,3,FALSE)","v":{"$error":"#N/A"}},null,{"$f":"VLOOKUP(B579,Kode!A2:D215,4,FALSE)","v":{"$error":"#N/A"}},null,null,null,null,null,null,null,null,null,null,null,null,null,{"$f":"VLOOKUP(B579,Kode!A2:E215,5,FALSE)","v":{"$error":"#N/A"}},null,null,null,null,null,null,null,{"$f":"U579/S579*100","v":{"$error":"#DIV/0!"}}]
[{"$f":"VLOOKUP(B580,Kode!A2:C215,3,FALSE)","v":{"$error":"#N/A"}},null,{"$f":"VLOOKUP(B580,Kode!A2:D215,4,FALSE)","v":{"$error":"#N/A"}},null,null,null,null,null,null,null,null,null,null,null,null,null,{"$f":"VLOOKUP(B580,Kode!A2:E215,5,FALSE)","v":{"$error":"#N/A"}},null,null,null,null,null,null,null,{"$error":"#DIV/0!"}]
[{"$f":"VLOOKUP(B581,Kode!A2:C215,3,FALSE)","v":{"$error":"#N/A"}},null,{"$f":"VLOOKUP(B581,Kode!A2:D215,4,FALSE)","v":{"$error":"#N/A"}},null,null,null,null,null,null,null,null,null,null,null,null,null,{"$f":"VLOOKUP(B581,Kode!A2:E215,5,FALSE)","v":{"$error":"#N/A"}},null,null,null,null,null,null,null,{"$error":"#DIV/0!"}]
[{"$f":"VLOOKUP(B582,Kode!A2:C215,3,FALSE)","v":{"$error":"#N/A"}},null,{"$f":"VLOOKUP(B582,Kode!A2:D215,4,FALSE)","v":{"$error":"#N/A"}},null,null,null,null,null,null,null,null,null,null,null,null,null,{"$f":"VLOOKUP(B582,Kode!A2:E215,5,FALSE)","v":{"$error":"#N/A"}},null,null,null,null,null,null,null,{"$error":"#DIV/0!"}]
[{"$f":"VLOOKUP(B583,Kode!A2:C215,3,FALSE)","v":{"$error":"#N/A"}},null,{"$f":"VLOOKUP(B583,Kode!A2:D215,4,FALSE)","v":{"$error":"#N/A"}},null,null,null,null,null,null,null,null,null,null,null,null,null,{"$f":"VLOOKUP(B583,Kode!A2:E215,5,FALSE)","v":{"$error":"#N/A"}},null,null,null,null,null,null,null,{"$error":"#DIV/0!"}]
[{"$f":"VLOOKUP(B584,Kode!A2:C215,3,FALSE)","v":{"$error":"#N/A"}},null,{"$f":"VLOOKUP(B584,Kode!A2:D215,4,FALSE)","v":{"$error":"#N/A"}},null,null,null,null,null,null,null,null,null,null,null,null,null,{"$f":"VLOOKUP(B584,Kode!A2:E215,5,FALSE)","v":{"$error":"#N/A"}},null,null,null,null,null,null,null,{"$error":"#DIV/0!"}]
[{"$f":"VLOOKUP(B585,Kode!A2:C215,3,FALSE)","v":{"$error":"#N/A"}},null,{"$f":"VLOOKUP(B585,Kode!A2:D215,4,FALSE)","v":{"$error":"#N/A"}},null,null,null,null,null,null,null,null,null,null,null,null,null,{"$f":"VLOOKUP(B585,Kode!A2:E215,5,FALSE)","v":{"$error":"#N/A"}},null,null,null,null,null,null,null,{"$error":"#DIV/0!"}]
[{"$f":"VLOOKUP(B586,Kode!A2:C215,3,FALSE)","v":{"$error":"#N/A"}},null,{"$f":"VLOOKUP(B586,Kode!A2:D215,4,FALSE)","v":{"$error":"#N/A"}},null,null,null,null,null,null,null,null,null,null,null,null,null,{"$f":"VLOOKUP(B586,Kode!A2:E215,5,FALSE)","v":{"$error":"#N/A"}},null,null,null,null,null,null,null,{"$error":"#DIV/0!"}]
[{"$f":"VLOOKUP(B587,Kode!A2:C215,3,FALSE)","v":{"$error":"#N/A"}},null,{"$f":"VLOOKUP(B587,Kode!A2:D215,4,FALSE)","v":{"$error":"#N/A"}},null,null,null,null,null,null,null,null,null,null,null,null,null,{"$f":"VLOOKUP(B587,Kode!A2:E215,5,FALSE)","v":{"$error":"#N/A"}},null,null,null,null,null,null,null,{"$error":"#DIV/0!"}]
[{"$f":"VLOOKUP(B588,Kode!A2:C215,3,FALSE)","v":{"$error":"#N/A"}},null,{"$f":"VLOOKUP(B588,Kode!A2:D215,4,FALSE)","v":{"$error":"#N/A"}},null,null,null,null,null,null,null,null,null,null,null,null,null,{"$f":"VLOOKUP(B588,Kode!A2:E215,5,FALSE)","v":{"$error":"#N/A"}},null,null,null,null,null,null,null,{"$error":"#DIV/0!"}]
[{"$f":"VLOOKUP(B589,Kode!A2:C215,3,FALSE)","v":{"$error":"#N/A"}},null,{"$f":"VLOOKUP(B589,Kode!A2:D215,4,FALSE)","v":{"$error":"#N/A"}},null,null,null,null,null,null,null,null,null,null,null,null,null,{"$f":"VLOOKUP(B589,Kode!A2:E215,5,FALSE)","v":{"$error":"#N/A"}},null,null,null,null,null,null,null,{"$error":"#DIV/0!"}]
[{"$f":"VLOOKUP(B590,Kode!A2:C215,3,FALSE)","v":{"$error":"#N/A"}},null,{"$f":"VLOOKUP(B590,Kode!A2:D215,4,FALSE)","v":{"$error":"#N/A"}},null,null,null,null,null,null,null,null,null,null,null,null,null,{"$f":"VLOOKUP(B590,Kode!A2:E215,5,FALSE)","v":{"$error":"#N/A"}},null,null,null,null,null,null,null,{"$error":"#DIV/0!"}]
[{"$f":"VLOOKUP(B591,Kode!A2:C215,3,FALSE)","v":{"$error":"#N/A"}},null,{"$f":"VLOOKUP(B591,Kode!A2:D215,4,FALSE)","v":{"$error":"#N/A"}},null,null,null,null,null,null,null,null,null,null,null,null,null,{"$f":"VLOOKUP(B591,Kode!A2:E215,5,FALSE)","v":{"$error":"#N/A"}},null,null,null,null,null,null,null,{"$error":"#DIV/0!"}]
[{"$f":"VLOOKUP(B592,Kode!A2:C215,3,FALSE)","v":{"$error":"#N/A"}},null,{"$f":"VLOOKUP(B592,Kode!A2:D215,4,FALSE)","v":{"$error":"#N/A"}},null,null,null,null,null,null,null,null,null,null,null,null,null,{"$f":"VLOOKUP(B592,Kode!A2:E215,5,FALSE)","v":{"$error":"#N/A"}},null,null,null,null,null,null,null,{"$error":"#DIV/0!"}]
[{"$f":"VLOOKUP(B593,Kode!A2:C215,3,FALSE)","v":{"$error":"#N/A"}},null,{"$f":"VLOOKUP(B593,Kode!A2:D215,4,FALSE)","v":{"$error":"#N/A"}},null,null,null,null,null,null,null,null,null,null,null,null,null,{"$f":"VLOOKUP(B593,Kode!A2:E215,5,FALSE)","v":{"$error":"#N/A"}},null,null,null,null,null,null,null,{"$error":"#DIV/0!"}]
[{"$f":"VLOOKUP(B594,Kode!A2:C215,3,FALSE)","v":{"$error":"#N/A"}},null,{"$f":"VLOOKUP(B594,Kode!A2:D215,4,FALSE)","v":{"$error":"#N/A"}},null,null,null,null,null,null,null,null,null,null,null,null,null,{"$f":"VLOOKUP(B594,Kode!A2:E215,5,FALSE)","v":{"$error":"#N/A"}},null,null,null,null,null,null,null,{"$error":"#DIV/0!"}]
[{"$f":"VLOOKUP(B595,Kode!A2:C215,3,FALSE)","v":{"$error":"#N/A"}},null,{"$f":"VLOOKUP(B595,Kode!A2:D215,4,FALSE)","v":{"$error":"#N/A"}},null,null,null,null,null,null,null,null,null,null,null,null,null,{"$f":"VLOOKUP(B595,Kode!A2:E215,5,FALSE)","v":{"$error":"#N/A"}},null,null,null,null,null,null,null,{"$error":"#DIV/0!"}]
[{"$f":"VLOOKUP(B596,Kode!A2:C215,3,FALSE)","v":{"$error":"#N/A"}},null,{"$f":"VLOOKUP(B596,Kode!A2:D215,4,FALSE)","v":{"$error":"#N/A"}},null,null,null,null,null,null,null,null,null,null,null,null,null,{"$f":"VLOOKUP(B596,Kode!A2:E215,5,FALSE)","v":{"$error":"#N/A"}},null,null,null,null,null,null,null,{"$error":"#DIV/0!"}]
[{"$f":"VLOOKUP(B597,Kode!A2:C215,3,FALSE)","v":{"$error":"#N/A"}},null,{"$f":"VLOOKUP(B597,Kode!A2:D215,4,FALSE)","v":{"$error":"#N/A"}},null,null,null,null,null,null,null,null,null,null,null,null,null,{"$f":"VLOOKUP(B597,Kode!A2:E215,5,FALSE)","v":{"$error":"#N/A"}},null,null,null,null,null,null,null,{"$error":"#DIV/0!"}]
[{"$f":"VLOOKUP(B598,Kode!A2:C215,3,FALSE)","v":{"$error":"#N/A"}},null,{"$f":"VLOOKUP(B598,Kode!A2:D215,4,FALSE)","v":{"$error":"#N/A"}},null,null,null,null,null,null,null,null,null,null,null,null,null,{"$f":"VLOOKUP(B598,Kode!A2:E215,5,FALSE)","v":{"$error":"#N/A"}},null,null,null,null,null,null,null,{"$error":"#DIV/0!"}]
[{"$f":"VLOOKUP(B599,Kode!A2:C215,3,FALSE)","v":{"$error":"#N/A"}},null,{"$f":"VLOOKUP(B599,Kode!A2:D215,4,FALSE)","v":{"$error":"#N/A"}},null,null,null,null,null,null,null,null,null,null,null,null,null,{"$f":"VLOOKUP(B599,Kode!A2:E215,5,FALSE)","v":{"$error":"#N/A"}},null,null,null,null,null,null,null,{"$error":"#DIV/0!"}]
[{"$f":"VLOOKUP(B600,Kode!A2:C215,3,FALSE)","v":{"$error":"#N/A"}},null,{"$f":"VLOOKUP(B600,Kode!A2:D215,4,FALSE)","v":{"$error":"#N/A"}},null,null,null,null,null,null,null,null,null,null,null,null,null,{"$f":"VLOOKUP(B600,Kode!A2:E215,5,FALSE)","v":{"$error":"#N/A"}},null,null,null,null,null,null,null,{"$error":"#DIV/0!"}]
[{"$f":"VLOOKUP(B601,Kode!A2:C215,3,FALSE)","v":{"$error":"#N/A"}},null,{"$f":"VLOOKUP(B601,Kode!A2:D215,4,FALSE)","v":{"$error":"#N/A"}},null,null,null,null,null,null,null,null,null,null,null,null,null,{"$f":"VLOOKUP(B601,Kode!A2:E215,5,FALSE)","v":{"$error":"#N/A"}},null,null,null,null,null,null,null,{"$error":"#DIV/0!"}]
[{"$f":"VLOOKUP(B602,Kode!A2:C215,3,FALSE)","v":{"$error":"#N/A"}},null,{"$f":"VLOOKUP(B602,Kode!A2:D215,4,FALSE)","v":{"$error":"#N/A"}},null,null,null,null,null,null,null,null,null,null,null,null,null,{"$f":"VLOOKUP(B602,Kode!A2:E215,5,FALSE)","v":{"$error":"#N/A"}},null,null,null,null,null,null,null,{"$error":"#DIV/0!"}]
[{"$f":"VLOOKUP(B603,Kode!A2:C215,3,FALSE)","v":{"$error":"#N/A"}},null,{"$f":"VLOOKUP(B603,Kode!A2:D215,4,FALSE)","v":{"$error":"#N/A"}},null,null,null,null,null,null,null,null,null,null,null,null,null,{"$f":"VLOOKUP(B603,Kode!A2:E215,5,FALSE)","v":{"$error":"#N/A"}},null,null,null,null,null,null,null,{"$error":"#DIV/0!"}]
[{"$f":"VLOOKUP(B604,Kode!A2:C215,3,FALSE)","v":{"$error":"#N/A"}},null,{"$f":"VLOOKUP(B604,Kode!A2:D215,4,FALSE)","v":{"$error":"#N/A"}},null,null,null,null,null,null,null,null,null,null,null,null,null,{"$f":"VLOOKUP(B604,Kode!A2:E215,5,FALSE)","v":{"$error":"#N/A"}},null,null,null,null,null,null,null,{"$error":"#DIV/0!"}]
[{"$f":"VLOOKUP(B605,Kode!A2:C215,3,FALSE)","v":{"$error":"#N/A"}},null,{"$f":"VLOOKUP(B605,Kode!A2:D215,4,FALSE)","v":{"$error":"#N/A"}},null,null,null,null,null,null,null,null,null,null,null,null,null,{"$f":"VLOOKUP(B605,Kode!A2:E215,5,FALSE)","v":{"$error":"#N/A"}},null,null,null,null,null,null,null,{"$error":"#DIV/0!"}]
[{"$f":"VLOOKUP(B606,Kode!A2:C215,3,FALSE)","v":{"$error":"#N/A"}},null,{"$f":"VLOOKUP(B606,Kode!A2:D215,4,FALSE)","v":{"$error":"#N/A"}},null,null,null,null,null,null,null,null,null,null,null,null,null,{"$f":"VLOOKUP(B606,Kode!A2:E215,5,FALSE)","v":{"$error":"#N/A"}},null,null,null,null,null,null,null,{"$error":"#DIV/0!"}]
[{"$f":"VLOOKUP(B607,Kode!A2:C215,3,FALSE)","v":{"$error":"#N/A"}},null,{"$f":"VLOOKUP(B607,Kode!A2:D215,4,FALSE)","v":{"$error":"#N/A"}},null,null,null,null,null,null,null,null,null,null,null,null,null,{"$f":"VLOOKUP(B607,Kode!A2:E215,5,FALSE)","v":{"$error":"#N/A"}},null,null,null,null,null,null,null,{"$error":"#DIV/0!"}]
[{"$f":"VLOOKUP(B608,Kode!A2:C215,3,FALSE)","v":{"$error":"#N/A"}},null,{"$f":"VLOOKUP(B608,Kode!A2:D215,4,FALSE)","v":{"$error":"#N/A"}},null,null,null,null,null,null,null,null,null,null,null,null,null,{"$f":"VLOOKUP(B608,Kode!A2:E215,5,FALSE)","v":{"$error":"#N/A"}},null,null,null,null,null,null,null,{"$error":"#DIV/0!"}]
[{"$f":"VLOOKUP(B609,Kode!A2:C215,3,FALSE)","v":{"$error":"#N/A"}},null,{"$f":"VLOOKUP(B609,Kode!A2:D215,4,FALSE)","v":{"$error":"#N/A"}},null,null,null,null,null,null,null,null,null,null,null,null,null,{"$f":"VLOOKUP(B609,Kode!A2:E215,5,FALSE)","v":{"$error":"#N/A"}},null,null,null,null,null,null,null,{"$error":"#DIV/0!"}]
[{"$f":"VLOOKUP(B610,Kode!A2:C215,3,FALSE)","v":{"$error":"#N/A"}},null,{"$f":"VLOOKUP(B610,Kode!A2:D215,4,FALSE)","v":{"$error":"#N/A"}},null,null,null,null,null,null,null,null,null,null,null,null,null,{"$f":"VLOOKUP(B610,Kode!A2:E215,5,FALSE)","v":{"$error":"#N/A"}},null,null,null,null,null,null,null,{"$error":"#DIV/0!"}]
[{"$f":"VLOOKUP(B611,Kode!A2:C215,3,FALSE)","v":{"$error":"#N/A"}},null,{"$f":"VLOOKUP(B611,Kode!A2:D215,4,FALSE)","v":{"$error":"#N/A"}},null,null,null,null,null,null,null,null,null,null,null,null,null,{"$f":"VLOOKUP(B611,Kode!A2:E215,5,FALSE)","v":{"$error":"#N/A"}},null,null,null,null,null,null,null,{"$error":"#DIV/0!"}]
[{"$f":"VLOOKUP(B612,Kode!A2:C215,3,FALSE)","v":{"$error":"#N/A"}},null,{"$f":"VLOOKUP(B612,Kode!A2:D215,4,FALSE)","v":{"$error":"#N/A"}},null,null,null,null,null,null,null,null,null,null,null,null,null,{"$f":"VLOOKUP(B612,Kode!A2:E215,5,FALSE)","v":{"$error":"#N/A"}},null,null,null,null,null,null,null,{"$error":"#DIV/0!"}]
[{"$f":"VLOOKUP(B613,Kode!A2:C215,3,FALSE)","v":{"$error":"#N/A"}},null,{"$f":"VLOOKUP(B613,Kode!A2:D215,4,FALSE)","v":{"$error":"#N/A"}},null,null,null,null,null,null,null,null,null,null,null,null,null,{"$f":"VLOOKUP(B613,Kode!A2:E215,5,FALSE)","v":{"$error":"#N/A"}},null,null,null,null,null,null,null,{"$error":"#DIV/0!"}]
[{"$f":"VLOOKUP(B614,Kode!A2:C215,3,FALSE)","v":{"$error":"#N/A"}},null,{"$f":"VLOOKUP(B614,Kode!A2:D215,4,FALSE)","v":{"$error":"#N/A"}},null,null,null,null,null,null,null,null,null,null,null,null,null,{"$f":"VLOOKUP(B614,Kode!A2:E215,5,FALSE)","v":{"$error":"#N/A"}},null,null,null,null,null,null,null,{"$error":"#DIV/0!"}]
[{"$f":"VLOOKUP(B615,Kode!A2:C215,3,FALSE)","v":{"$error":"#N/A"}},null,{"$f":"VLOOKUP(B615,Kode!A2:D215,4,FALSE)","v":{"$error":"#N/A"}},null,null,null,null,null,null,null,null,null,null,null,null,null,{"$f":"VLOOKUP(B615,Kode!A2:E215,5,FALSE)","v":{"$error":"#N/A"}},null,null,null,null,null,null,null,{"$error":"#DIV/0!"}]
[{"$f":"VLOOKUP(B616,Kode!A2:C215,3,FALSE)","v":{"$error":"#N/A"}},null,{"$f":"VLOOKUP(B616,Kode!A2:D215,4,FALSE)","v":{"$error":"#N/A"}},null,null,null,null,null,null,null,null,null,null,null,null,null,{"$f":"VLOOKUP(B616,Kode!A2:E215,5,FALSE)","v":{"$error":"#N/A"}},null,null,null,null,null,null,null,{"$error":"#DIV/0!"}]
[{"$f":"VLOOKUP(B617,Kode!A2:C215,3,FALSE)","v":{"$error":"#N/A"}},null,{"$f":"VLOOKUP(B617,Kode!A2:D215,4,FALSE)","v":{"$error":"#N/A"}},null,null,null,null,null,null,null,null,null,null,null,null,null,{"$f":"VLOOKUP(B617,Kode!A2:E215,5,FALSE)","v":{"$error":"#N/A"}},null,null,null,null,null,null,null,{"$error":"#DIV/0!"}]
[{"$f":"VLOOKUP(B618,Kode!A2:C215,3,FALSE)","v":{"$error":"#N/A"}},null,{"$f":"VLOOKUP(B618,Kode!A2:D215,4,FALSE)","v":{"$error":"#N/A"}},null,null,null,null,null,null,null,null,null,null,null,null,null,{"$f":"VLOOKUP(B618,Kode!A2:E215,5,FALSE)","v":{"$error":"#N/A"}},null,null,null,null,null,null,null,{"$error":"#DIV/0!"}]
[{"$f":"VLOOKUP(B619,Kode!A2:C215,3,FALSE)","v":{"$error":"#N/A"}},null,{"$f":"VLOOKUP(B619,Kode!A2:D215,4,FALSE)","v":{"$error":"#N/A"}},null,null,null,null,null,null,null,null,null,null,null,null,null,{"$f":"VLOOKUP(B619,Kode!A2:E215,5,FALSE)","v":{"$error":"#N/A"}},null,null,null,null,null,null,null,{"$error":"#DIV/0!"}]
[{"$f":"VLOOKUP(B620,Kode!A2:C215,3,FALSE)","v":{"$error":"#N/A"}},null,{"$f":"VLOOKUP(B620,Kode!A2:D215,4,FALSE)","v":{"$error":"#N/A"}},null,null,null,null,null,null,null,null,null,null,null,null,null,{"$f":"VLOOKUP(B620,Kode!A2:E215,5,FALSE)","v":{"$error":"#N/A"}},null,null,null,null,null,null,null,{"$error":"#DIV/0!"}]
[{"$f":"VLOOKUP(B621,Kode!A2:C215,3,FALSE)","v":{"$error":"#N/A"}},null,{"$f":"VLOOKUP(B621,Kode!A2:D215,4,FALSE)","v":{"$error":"#N/A"}},null,null,null,null,null,null,null,null,null,null,null,null,null,{"$f":"VLOOKUP(B621,Kode!A2:E215,5,FALSE)","v":{"$error":"#N/A"}},null,null,null,null,null,null,null,{"$error":"#DIV/0!"}]
[{"$f":"VLOOKUP(B622,Kode!A2:C215,3,FALSE)","v":{"$error":"#N/A"}},null,{"$f":"VLOOKUP(B622,Kode!A2:D215,4,FALSE)","v":{"$error":"#N/A"}},null,null,null,null,null,null,null,null,null,null,null,null,null,{"$f":"VLOOKUP(B622,Kode!A2:E215,5,FALSE)","v":{"$error":"#N/A"}},null,null,null,null,null,null,null,{"$error":"#DIV/0!"}]
[{"$f":"VLOOKUP(B623,Kode!A2:C215,3,FALSE)","v":{"$error":"#N/A"}},null,{"$f":"VLOOKUP(B623,Kode!A2:D215,4,FALSE)","v":{"$error":"#N/A"}},null,null,null,null,null,null,null,null,null,null,null,null,null,{"$f":"VLOOKUP(B623,Kode!A2:E215,5,FALSE)","v":{"$error":"#N/A"}},null,null,null,null,null,null,null,{"$error":"#DIV/0!"}]
[{"$f":"VLOOKUP(B624,Kode!A2:C215,3,FALSE)","v":{"$error":"#N/A"}},null,{"$f":"VLOOKUP(B624,Kode!A2:D215,4,FALSE)","v":{"$error":"#N/A"}},null,null,null,null,null,null,null,null,null,null,null,null,null,{"$f":"VLOOKUP(B624,Kode!A2:E215,5,FALSE)","v":{"$error":"#N/A"}},null,null,null,null,null,null,null,{"$error":"#DIV/0!"}]
[{"$f":"VLOOKUP(B625,Kode!A2:C215,3,FALSE)","v":{"$error":"#N/A"}},null,{"$f":"VLOOKUP(B625,Kode!A2:D215,4,FALSE)","v":{"$error":"#N/A"}},null,null,null,null,null,null,null,null,null,null,null,null,null,{"$f":"VLOOKUP(B625,Kode!A2:E215,5,FALSE)","v":{"$error":"#N/A"}},null,null,null,null,null,null,null,{"$error":"#DIV/0!"}]
[{"$f":"VLOOKUP(B626,Kode!A2:C215,3,FALSE)","v":{"$error":"#N/A"}},null,{"$f":"VLOOKUP(B626,Kode!A2:D215,4,FALSE)","v":{"$error":"#N/A"}},null,null,null,null,null,null,null,null,null,null,null,null,null,{"$f":"VLOOKUP(B626,Kode!A2:E215,5,FALSE)","v":{"$error":"#N/A"}},null,null,null,null,null,null,null,{"$error":"#DIV/0!"}]
[{"$f":"VLOOKUP(B627,Kode!A2:C215,3,FALSE)","v":{"$error":"#N/A"}},null,{"$f":"VLOOKUP(B627,Kode!A2:D215,4,FALSE)","v":{"$error":"#N/A"}},null,null,null,null,null,null,null,null,null,null,null,null,null,{"$f":"VLOOKUP(B627,Kode!A2:E215,5,FALSE)","v":{"$error":"#N/A"}},null,null,null,null,null,null,null,{"$error":"#DIV/0!"}]
[{"$f":"VLOOKUP(B628,Kode!A2:C215,3,FALSE)","v":{"$error":"#N/A"}},null,{"$f":"VLOOKUP(B628,Kode!A2:D215,4,FALSE)","v":{"$error":"#N/A"}},null,null,null,null,null,null,null,null,null,null,null,null,null,{"$f":"VLOOKUP(B628,Kode!A2:E215,5,FALSE)","v":{"$error":"#N/A"}},null,null,null,null,null,null,null,{"$error":"#DIV/0!"}]
[{"$f":"VLOOKUP(B629,Kode!A2:C215,3,FALSE)","v":{"$error":"#N/A"}},null,{"$f":"VLOOKUP(B629,Kode!A2:D215,4,FALSE)","v":{"$error":"#N/A"}},null,null,null,null,null,null,null,null,null,null,null,null,null,{"$f":"VLOOKUP(B629,Kode!A2:E215,5,FALSE)","v":{"$error":"#N/A"}},null,null,null,null,null,null,null,{"$error":"#DIV/0!"}]
[{"$f":"VLOOKUP(B630,Kode!A2:C215,3,FALSE)","v":{"$error":"#N/A"}},null,{"$f":"VLOOKUP(B630,Kode!A2:D215,4,FALSE)","v":{"$error":"#N/A"}},null,null,null,null,null,null,null,null,null,null,null,null,null,{"$f":"VLOOKUP(B630,Kode!A2:E215,5,FALSE)","v":{"$error":"#N/A"}},null,null,null,null,null,null,null,{"$error":"#DIV/0!"}]
[{"$f":"VLOOKUP(B631,Kode!A2:C215,3,FALSE)","v":{"$error":"#N/A"}},null,{"$f":"VLOOKUP(B631,Kode!A2:D215,4,FALSE)","v":{"$error":"#N/A"}},null,null,null,null,null,null,null,null,null,null,null,null,null,{"$f":"VLOOKUP(B631,Kode!A2:E215,5,FALSE)","v":{"$error":"#N/A"}},null,null,null,null,null,null,null,{"$error":"#DIV/0!"}]
[{"$f":"VLOOKUP(B632,Kode!A2:C215,3,FALSE)","v":{"$error":"#N/A"}},null,{"$f":"VLOOKUP(B632,Kode!A2:D215,4,FALSE)","v":{"$error":"#N/A"}},null,null,null,null,null,null,null,null,null,null,null,null,null,{"$f":"VLOOKUP(B632,Kode!A2:E215,5,FALSE)","v":{"$error":"#N/A"}},null,null,null,null,null,null,null,{"$error":"#DIV/0!"}]
[{"$f":"VLOOKUP(B633,Kode!A2:C215,3,FALSE)","v":{"$error":"#N/A"}},null,{"$f":"VLOOKUP(B633,Kode!A2:D215,4,FALSE)","v":{"$error":"#N/A"}},null,null,null,null,null,null,null,null,null,null,null,null,null,{"$f":"VLOOKUP(B633,Kode!A2:E215,5,FALSE)","v":{"$error":"#N/A"}},null,null,null,null,null,null,null,{"$error":"#DIV/0!"}]
[{"$f":"VLOOKUP(B634,Kode!A2:C215,3,FALSE)","v":{"$error":"#N/A"}},null,{"$f":"VLOOKUP(B634,Kode!A2:D215,4,FALSE)","v":{"$error":"#N/A"}},null,null,null,null,null,null,null,null,null,null,null,null,null,{"$f":"VLOOKUP(B634,Kode!A2:E215,5,FALSE)","v":{"$error":"#N/A"}},null,null,null,null,null,null,null,{"$error":"#DIV/0!"}]
[{"$f":"VLOOKUP(B635,Kode!A2:C215,3,FALSE)","v":{"$error":"#N/A"}},null,{"$f":"VLOOKUP(B635,Kode!A2:D215,4,FALSE)","v":{"$error":"#N/A"}},null,null,null,null,null,null,null,null,null,null,null,null,null,{"$f":"VLOOKUP(B635,Kode!A2:E215,5,FALSE)","v":{"$error":"#N/A"}},null,null,null,null,null,null,null,{"$error":"#DIV/0!"}]
[{"$f":"VLOOKUP(B636,Kode!A2:C215,3,FALSE)","v":{"$error":"#N/A"}},null,{"$f":"VLOOKUP(B636,Kode!A2:D215,4,FALSE)","v":{"$error":"#N/A"}},null,null,null,null,null,null,null,null,null,null,null,null,null,{"$f":"VLOOKUP(B636,Kode!A2:E215,5,FALSE)","v":{"$error":"#N/A"}},null,null,null,null,null,null,null,{"$error":"#DIV/0!"}]
[{"$f":"VLOOKUP(B637,Kode!A2:C215,3,FALSE)","v":{"$error":"#N/A"}},null,{"$f":"VLOOKUP(B637,Kode!A2:D215,4,FALSE)","v":{"$error":"#N/A"}},null,null,null,null,null,null,null,null,null,null,null,null,null,{"$f":"VLOOKUP(B637,Kode!A2:E215,5,FALSE)","v":{"$error":"#N/A"}},null,null,null,null,null,null,null,{"$error":"#DIV/0!"}]
[{"$f":"VLOOKUP(B638,Kode!A2:C215,3,FALSE)","v":{"$error":"#N/A"}},null,{"$f":"VLOOKUP(B638,Kode!A2:D215,4,FALSE)","v":{"$error":"#N/A"}},null,null,null,null,null,null,null,null,null,null,null,null,null,{"$f":"VLOOKUP(B638,Kode!A2:E215,5,FALSE)","v":{"$error":"#N/A"}},null,null,null,null,null,null,null,{"$error":"#DIV/0!"}]
[{"$f":"VLOOKUP(B639,Kode!A2:C215,3,FALSE)","v":{"$error":"#N/A"}},null,{"$f":"VLOOKUP(B639,Kode!A2:D215,4,FALSE)","v":{"$error":"#N/A"}},null,null,null,null,null,null,null,null,null,null,null,null,null,{"$f":"VLOOKUP(B639,Kode!A2:E215,5,FALSE)","v":{"$error":"#N/A"}},null,null,null,null,null,null,null,{"$error":"#DIV/0!"}]
[{"$f":"VLOOKUP(B640,Kode!A2:C215,3,FALSE)","v":{"$error":"#N/A"}},null,{"$f":"VLOOKUP(B640,Kode!A2:D215,4,FALSE)","v":{"$error":"#N/A"}},null,null,null,null,null,null,null,null,null,null,null,null,null,{"$f":"VLOOKUP(B640,Kode!A2:E215,5,FALSE)","v":{"$error":"#N/A"}},null,null,null,null,null,null,null,{"$error":"#DIV/0!"}]
[{"$f":"VLOOKUP(B641,Kode!A2:C215,3,FALSE)","v":{"$error":"#N/A"}},null,{"$f":"VLOOKUP(B641,Kode!A2:D215,4,FALSE)","v":{"$error":"#N/A"}},null,null,null,null,null,null,null,null,null,null,null,null,null,{"$f":"VLOOKUP(B641,Kode!A2:E215,5,FALSE)","v":{"$error":"#N/A"}},null,null,null,null,null,null,null,{"$error":"#DIV/0!"}]
[{"$f":"VLOOKUP(B642,Kode!A2:C215,3,FALSE)","v":{"$error":"#N/A"}},null,{"$f":"VLOOKUP(B642,Kode!A2:D215,4,FALSE)","v":{"$error":"#N/A"}},null,null,null,null,null,null,null,null,null,null,null,null,null,{"$f":"VLOOKUP(B642,Kode!A2:E215,5,FALSE)","v":{"$error":"#N/A"}},null,null,null,null,null,null,null,{"$error":"#DIV/0!"}]
[{"$f":"VLOOKUP(B643,Kode!A2:C215,3,FALSE)","v":{"$error":"#N/A"}},null,{"$f":"VLOOKUP(B643,Kode!A2:D215,4,FALSE)","v":{"$error":"#N/A"}},null,null,null,null,null,null,null,null,null,null,null,null,null,{"$f":"VLOOKUP(B643,Kode!A2:E215,5,FALSE)","v":{"$error":"#N/A"}},null,null,null,null,null,null,null,{"$f":"U643/S643*100","v":{"$error":"#DIV/0!"}}]
[{"$f":"VLOOKUP(B644,Kode!A2:C215,3,FALSE)","v":{"$error":"#N/A"}},null,{"$f":"VLOOKUP(B644,Kode!A2:D215,4,FALSE)","v":{"$error":"#N/A"}},null,null,null,null,null,null,null,null,null,null,null,null,null,{"$f":"VLOOKUP(B644,Kode!A2:E215,5,FALSE)","v":{"$error":"#N/A"}},null,null,null,null,null,null,null,{"$error":"#DIV/0!"}]
[{"$f":"VLOOKUP(B645,Kode!A2:C215,3,FALSE)","v":{"$error":"#N/A"}},null,{"$f":"VLOOKUP(B645,Kode!A2:D215,4,FALSE)","v":{"$error":"#N/A"}},null,null,null,null,null,null,null,null,null,null,null,null,null,{"$f":"VLOOKUP(B645,Kode!A2:E215,5,FALSE)","v":{"$error":"#N/A"}},null,null,null,null,null,null,null,{"$error":"#DIV/0!"}]
[{"$f":"VLOOKUP(B646,Kode!A2:C215,3,FALSE)","v":{"$error":"#N/A"}},null,{"$f":"VLOOKUP(B646,Kode!A2:D215,4,FALSE)","v":{"$error":"#N/A"}},null,null,null,null,null,null,null,null,null,null,null,null,null,{"$f":"VLOOKUP(B646,Kode!A2:E215,5,FALSE)","v":{"$error":"#N/A"}},null,null,null,null,null,null,null,{"$error":"#DIV/0!"}]
[{"$f":"VLOOKUP(B647,Kode!A2:C215,3,FALSE)","v":{"$error":"#N/A"}},null,{"$f":"VLOOKUP(B647,Kode!A2:D215,4,FALSE)","v":{"$error":"#N/A"}},null,null,null,null,null,null,null,null,null,null,null,null,null,{"$f":"VLOOKUP(B647,Kode!A2:E215,5,FALSE)","v":{"$error":"#N/A"}},null,null,null,null,null,null,null,{"$error":"#DIV/0!"}]
[{"$f":"VLOOKUP(B648,Kode!A2:C215,3,FALSE)","v":{"$error":"#N/A"}},null,{"$f":"VLOOKUP(B648,Kode!A2:D215,4,FALSE)","v":{"$error":"#N/A"}},null,null,null,null,null,null,null,null,null,null,null,null,null,{"$f":"VLOOKUP(B648,Kode!A2:E215,5,FALSE)","v":{"$error":"#N/A"}},null,null,null,null,null,null,null,{"$error":"#DIV/0!"}]
[{"$f":"VLOOKUP(B649,Kode!A2:C215,3,FALSE)","v":{"$error":"#N/A"}},null,{"$f":"VLOOKUP(B649,Kode!A2:D215,4,FALSE)","v":{"$error":"#N/A"}},null,null,null,null,null,null,null,null,null,null,null,null,null,{"$f":"VLOOKUP(B649,Kode!A2:E215,5,FALSE)","v":{"$error":"#N/A"}},null,null,null,null,null,null,null,{"$error":"#DIV/0!"}]
[{"$f":"VLOOKUP(B650,Kode!A2:C215,3,FALSE)","v":{"$error":"#N/A"}},null,{"$f":"VLOOKUP(B650,Kode!A2:D215,4,FALSE)","v":{"$error":"#N/A"}},null,null,null,null,null,null,null,null,null,null,null,null,null,{"$f":"VLOOKUP(B650,Kode!A2:E215,5,FALSE)","v":{"$error":"#N/A"}},null,null,null,null,null,null,null,{"$error":"#DIV/0!"}]
[{"$f":"VLOOKUP(B651,Kode!A2:C215,3,FALSE)","v":{"$error":"#N/A"}},null,{"$f":"VLOOKUP(B651,Kode!A2:D215,4,FALSE)","v":{"$error":"#N/A"}},null,null,null,null,null,null,null,null,null,null,null,null,null,{"$f":"VLOOKUP(B651,Kode!A2:E215,5,FALSE)","v":{"$error":"#N/A"}},null,null,null,null,null,null,null,{"$error":"#DIV/0!"}]
[{"$f":"VLOOKUP(B652,Kode!A2:C215,3,FALSE)","v":{"$error":"#N/A"}},null,{"$f":"VLOOKUP(B652,Kode!A2:D215,4,FALSE)","v":{"$error":"#N/A"}},null,null,null,null,null,null,null,null,null,null,null,null,null,{"$f":"VLOOKUP(B652,Kode!A2:E215,5,FALSE)","v":{"$error":"#N/A"}},null,null,null,null,null,null,null,{"$error":"#DIV/0!"}]
[{"$f":"VLOOKUP(B653,Kode!A2:C215,3,FALSE)","v":{"$error":"#N/A"}},null,{"$f":"VLOOKUP(B653,Kode!A2:D215,4,FALSE)","v":{"$error":"#N/A"}},null,null,null,null,null,null,null,null,null,null,null,null,null,{"$f":"VLOOKUP(B653,Kode!A2:E215,5,FALSE)","v":{"$error":"#N/A"}},null,null,null,null,null,null,null,{"$error":"#DIV/0!"}]
[{"$f":"VLOOKUP(B654,Kode!A2:C215,3,FALSE)","v":{"$error":"#N/A"}},null,{"$f":"VLOOKUP(B654,Kode!A2:D215,4,FALSE)","v":{"$error":"#N/A"}},null,null,null,null,null,null,null,null,null,null,null,null,null,{"$f":"VLOOKUP(B654,Kode!A2:E215,5,FALSE)","v":{"$error":"#N/A"}},null,null,null,null,null,null,null,{"$error":"#DIV/0!"}]
[{"$f":"VLOOKUP(B655,Kode!A2:C215,3,FALSE)","v":{"$error":"#N/A"}},null,{"$f":"VLOOKUP(B655,Kode!A2:D215,4,FALSE)","v":{"$error":"#N/A"}},null,null,null,null,null,null,null,null,null,null,null,null,null,{"$f":"VLOOKUP(B655,Kode!A2:E215,5,FALSE)","v":{"$error":"#N/A"}},null,null,null,null,null,null,null,{"$error":"#DIV/0!"}]
[{"$f":"VLOOKUP(B656,Kode!A2:C215,3,FALSE)","v":{"$error":"#N/A"}},null,{"$f":"VLOOKUP(B656,Kode!A2:D215,4,FALSE)","v":{"$error":"#N/A"}},null,null,null,null,null,null,null,null,null,null,null,null,null,{"$f":"VLOOKUP(B656,Kode!A2:E215,5,FALSE)","v":{"$error":"#N/A"}},null,null,null,null,null,null,null,{"$error":"#DIV/0!"}]
[{"$f":"VLOOKUP(B657,Kode!A2:C215,3,FALSE)","v":{"$error":"#N/A"}},null,{"$f":"VLOOKUP(B657,Kode!A2:D215,4,FALSE)","v":{"$error":"#N/A"}},null,null,null,null,null,null,null,null,null,null,null,null,null,{"$f":"VLOOKUP(B657,Kode!A2:E215,5,FALSE)","v":{"$error":"#N/A"}},null,null,null,null,null,null,null,{"$error":"#DIV/0!"}]
[{"$f":"VLOOKUP(B658,Kode!A2:C215,3,FALSE)","v":{"$error":"#N/A"}},null,{"$f":"VLOOKUP(B658,Kode!A2:D215,4,FALSE)","v":{"$error":"#N/A"}},null,null,null,null,null,null,null,null,null,null,null,null,null,{"$f":"VLOOKUP(B658,Kode!A2:E215,5,FALSE)","v":{"$error":"#N/A"}},null,null,null,null,null,null,null,{"$error":"#DIV/0!"}]
[{"$f":"VLOOKUP(B659,Kode!A2:C215,3,FALSE)","v":{"$error":"#N/A"}},null,{"$f":"VLOOKUP(B659,Kode!A2:D215,4,FALSE)","v":{"$error":"#N/A"}},null,null,null,null,null,null,null,null,null,null,null,null,null,{"$f":"VLOOKUP(B659,Kode!A2:E215,5,FALSE)","v":{"$error":"#N/A"}},null,null,null,null,null,null,null,{"$error":"#DIV/0!"}]
[{"$f":"VLOOKUP(B660,Kode!A2:C215,3,FALSE)","v":{"$error":"#N/A"}},null,{"$f":"VLOOKUP(B660,Kode!A2:D215,4,FALSE)","v":{"$error":"#N/A"}},null,null,null,null,null,null,null,null,null,null,null,null,null,{"$f":"VLOOKUP(B660,Kode!A2:E215,5,FALSE)","v":{"$error":"#N/A"}},null,null,null,null,null,null,null,{"$error":"#DIV/0!"}]
[{"$f":"VLOOKUP(B661,Kode!A2:C215,3,FALSE)","v":{"$error":"#N/A"}},null,{"$f":"VLOOKUP(B661,Kode!A2:D215,4,FALSE)","v":{"$error":"#N/A"}},null,null,null,null,null,null,null,null,null,null,null,null,null,{"$f":"VLOOKUP(B661,Kode!A2:E215,5,FALSE)","v":{"$error":"#N/A"}},null,null,null,null,null,null,null,{"$error":"#DIV/0!"}]
[{"$f":"VLOOKUP(B662,Kode!A2:C215,3,FALSE)","v":{"$error":"#N/A"}},null,{"$f":"VLOOKUP(B662,Kode!A2:D215,4,FALSE)","v":{"$error":"#N/A"}},null,null,null,null,null,null,null,null,null,null,null,null,null,{"$f":"VLOOKUP(B662,Kode!A2:E215,5,FALSE)","v":{"$error":"#N/A"}},null,null,null,null,null,null,null,{"$error":"#DIV/0!"}]
[{"$f":"VLOOKUP(B663,Kode!A2:C215,3,FALSE)","v":{"$error":"#N/A"}},null,{"$f":"VLOOKUP(B663,Kode!A2:D215,4,FALSE)","v":{"$error":"#N/A"}},null,null,null,null,null,null,null,null,null,null,null,null,null,{"$f":"VLOOKUP(B663,Kode!A2:E215,5,FALSE)","v":{"$error":"#N/A"}},null,null,null,null,null,null,null,{"$error":"#DIV/0!"}]
[{"$f":"VLOOKUP(B664,Kode!A2:C215,3,FALSE)","v":{"$error":"#N/A"}},null,{"$f":"VLOOKUP(B664,Kode!A2:D215,4,FALSE)","v":{"$error":"#N/A"}},null,null,null,null,null,null,null,null,null,null,null,null,null,{"$f":"VLOOKUP(B664,Kode!A2:E215,5,FALSE)","v":{"$error":"#N/A"}},null,null,null,null,null,null,null,{"$error":"#DIV/0!"}]
[{"$f":"VLOOKUP(B665,Kode!A2:C215,3,FALSE)","v":{"$error":"#N/A"}},null,{"$f":"VLOOKUP(B665,Kode!A2:D215,4,FALSE)","v":{"$error":"#N/A"}},null,null,null,null,null,null,null,null,null,null,null,null,null,{"$f":"VLOOKUP(B665,Kode!A2:E215,5,FALSE)","v":{"$error":"#N/A"}},null,null,null,null,null,null,null,{"$error":"#DIV/0!"}]
[{"$f":"VLOOKUP(B666,Kode!A2:C215,3,FALSE)","v":{"$error":"#N/A"}},null,{"$f":"VLOOKUP(B666,Kode!A2:D215,4,FALSE)","v":{"$error":"#N/A"}},null,null,null,null,null,null,null,null,null,null,null,null,null,{"$f":"VLOOKUP(B666,Kode!A2:E215,5,FALSE)","v":{"$error":"#N/A"}},null,null,null,null,null,null,null,{"$error":"#DIV/0!"}]
[{"$f":"VLOOKUP(B667,Kode!A2:C215,3,FALSE)","v":{"$error":"#N/A"}},null,{"$f":"VLOOKUP(B667,Kode!A2:D215,4,FALSE)","v":{"$error":"#N/A"}},null,null,null,null,null,null,null,null,null,null,null,null,null,{"$f":"VLOOKUP(B667,Kode!A2:E215,5,FALSE)","v":{"$error":"#N/A"}},null,null,null,null,null,null,null,{"$error":"#DIV/0!"}]
[{"$f":"VLOOKUP(B668,Kode!A2:C215,3,FALSE)","v":{"$error":"#N/A"}},null,{"$f":"VLOOKUP(B668,Kode!A2:D215,4,FALSE)","v":{"$error":"#N/A"}},null,null,null,null,null,null,null,null,null,null,null,null,null,{"$f":"VLOOKUP(B668,Kode!A2:E215,5,FALSE)","v":{"$error":"#N/A"}},null,null,null,null,null,null,null,{"$error":"#DIV/0!"}]
[{"$f":"VLOOKUP(B669,Kode!A2:C215,3,FALSE)","v":{"$error":"#N/A"}},null,{"$f":"VLOOKUP(B669,Kode!A2:D215,4,FALSE)","v":{"$error":"#N/A"}},null,null,null,null,null,null,null,null,null,null,null,null,null,{"$f":"VLOOKUP(B669,Kode!A2:E215,5,FALSE)","v":{"$error":"#N/A"}},null,null,null,null,null,null,null,{"$error":"#DIV/0!"}]
[{"$f":"VLOOKUP(B670,Kode!A2:C215,3,FALSE)","v":{"$error":"#N/A"}},null,{"$f":"VLOOKUP(B670,Kode!A2:D215,4,FALSE)","v":{"$error":"#N/A"}},null,null,null,null,null,null,null,null,null,null,null,null,null,{"$f":"VLOOKUP(B670,Kode!A2:E215,5,FALSE)","v":{"$error":"#N/A"}},null,null,null,null,null,null,null,{"$error":"#DIV/0!"}]
[{"$f":"VLOOKUP(B671,Kode!A2:C215,3,FALSE)","v":{"$error":"#N/A"}},null,{"$f":"VLOOKUP(B671,Kode!A2:D215,4,FALSE)","v":{"$error":"#N/A"}},null,null,null,null,null,null,null,null,null,null,null,null,null,{"$f":"VLOOKUP(B671,Kode!A2:E215,5,FALSE)","v":{"$error":"#N/A"}},null,null,null,null,null,null,null,{"$error":"#DIV/0!"}]
[{"$f":"VLOOKUP(B672,Kode!A2:C215,3,FALSE)","v":{"$error":"#N/A"}},null,{"$f":"VLOOKUP(B672,Kode!A2:D215,4,FALSE)","v":{"$error":"#N/A"}},null,null,null,null,null,null,null,null,null,null,null,null,null,{"$f":"VLOOKUP(B672,Kode!A2:E215,5,FALSE)","v":{"$error":"#N/A"}},null,null,null,null,null,null,null,{"$error":"#DIV/0!"}]
[{"$f":"VLOOKUP(B673,Kode!A2:C215,3,FALSE)","v":{"$error":"#N/A"}},null,{"$f":"VLOOKUP(B673,Kode!A2:D215,4,FALSE)","v":{"$error":"#N/A"}},null,null,null,null,null,null,null,null,null,null,null,null,null,{"$f":"VLOOKUP(B673,Kode!A2:E215,5,FALSE)","v":{"$error":"#N/A"}},null,null,null,null,null,null,null,{"$error":"#DIV/0!"}]
[{"$f":"VLOOKUP(B674,Kode!A2:C215,3,FALSE)","v":{"$error":"#N/A"}},null,{"$f":"VLOOKUP(B674,Kode!A2:D215,4,FALSE)","v":{"$error":"#N/A"}},null,null,null,null,null,null,null,null,null,null,null,null,null,{"$f":"VLOOKUP(B674,Kode!A2:E215,5,FALSE)","v":{"$error":"#N/A"}},null,null,null,null,null,null,null,{"$error":"#DIV/0!"}]
[{"$f":"VLOOKUP(B675,Kode!A2:C215,3,FALSE)","v":{"$error":"#N/A"}},null,{"$f":"VLOOKUP(B675,Kode!A2:D215,4,FALSE)","v":{"$error":"#N/A"}},null,null,null,null,null,null,null,null,null,null,null,null,null,{"$f":"VLOOKUP(B675,Kode!A2:E215,5,FALSE)","v":{"$error":"#N/A"}},null,null,null,null,null,null,null,{"$error":"#DIV/0!"}]
[{"$f":"VLOOKUP(B676,Kode!A2:C215,3,FALSE)","v":{"$error":"#N/A"}},null,{"$f":"VLOOKUP(B676,Kode!A2:D215,4,FALSE)","v":{"$error":"#N/A"}},null,null,null,null,null,null,null,null,null,null,null,null,null,{"$f":"VLOOKUP(B676,Kode!A2:E215,5,FALSE)","v":{"$error":"#N/A"}},null,null,null,null,null,null,null,{"$error":"#DIV/0!"}]
[{"$f":"VLOOKUP(B677,Kode!A2:C215,3,FALSE)","v":{"$error":"#N/A"}},null,{"$f":"VLOOKUP(B677,Kode!A2:D215,4,FALSE)","v":{"$error":"#N/A"}},null,null,null,null,null,null,null,null,null,null,null,null,null,{"$f":"VLOOKUP(B677,Kode!A2:E215,5,FALSE)","v":{"$error":"#N/A"}},null,null,null,null,null,null,null,{"$error":"#DIV/0!"}]
[{"$f":"VLOOKUP(B678,Kode!A2:C215,3,FALSE)","v":{"$error":"#N/A"}},null,{"$f":"VLOOKUP(B678,Kode!A2:D215,4,FALSE)","v":{"$error":"#N/A"}},null,null,null,null,null,null,null,null,null,null,null,null,null,{"$f":"VLOOKUP(B678,Kode!A2:E215,5,FALSE)","v":{"$error":"#N/A"}},null,null,null,null,null,null,null,{"$error":"#DIV/0!"}]
[{"$f":"VLOOKUP(B679,Kode!A2:C215,3,FALSE)","v":{"$error":"#N/A"}},null,{"$f":"VLOOKUP(B679,Kode!A2:D215,4,FALSE)","v":{"$error":"#N/A"}},null,null,null,null,null,null,null,null,null,null,null,null,null,{"$f":"VLOOKUP(B679,Kode!A2:E215,5,FALSE)","v":{"$error":"#N/A"}},null,null,null,null,null,null,null,{"$error":"#DIV/0!"}]
[{"$f":"VLOOKUP(B680,Kode!A2:C215,3,FALSE)","v":{"$error":"#N/A"}},null,{"$f":"VLOOKUP(B680,Kode!A2:D215,4,FALSE)","v":{"$error":"#N/A"}},null,null,null,null,null,null,null,null,null,null,null,null,null,{"$f":"VLOOKUP(B680,Kode!A2:E215,5,FALSE)","v":{"$error":"#N/A"}},null,null,null,null,null,null,null,{"$error":"#DIV/0!"}]
[{"$f":"VLOOKUP(B681,Kode!A2:C215,3,FALSE)","v":{"$error":"#N/A"}},null,{"$f":"VLOOKUP(B681,Kode!A2:D215,4,FALSE)","v":{"$error":"#N/A"}},null,null,null,null,null,null,null,null,null,null,null,null,null,{"$f":"VLOOKUP(B681,Kode!A2:E215,5,FALSE)","v":{"$error":"#N/A"}},null,null,null,null,null,null,null,{"$error":"#DIV/0!"}]
[{"$f":"VLOOKUP(B682,Kode!A2:C215,3,FALSE)","v":{"$error":"#N/A"}},null,{"$f":"VLOOKUP(B682,Kode!A2:D215,4,FALSE)","v":{"$error":"#N/A"}},null,null,null,null,null,null,null,null,null,null,null,null,null,{"$f":"VLOOKUP(B682,Kode!A2:E215,5,FALSE)","v":{"$error":"#N/A"}},null,null,null,null,null,null,null,{"$error":"#DIV/0!"}]
[{"$f":"VLOOKUP(B683,Kode!A2:C215,3,FALSE)","v":{"$error":"#N/A"}},null,{"$f":"VLOOKUP(B683,Kode!A2:D215,4,FALSE)","v":{"$error":"#N/A"}},null,null,null,null,null,null,null,null,null,null,null,null,null,{"$f":"VLOOKUP(B683,Kode!A2:E215,5,FALSE)","v":{"$error":"#N/A"}},null,null,null,null,null,null,null,{"$error":"#DIV/0!"}]
[{"$f":"VLOOKUP(B684,Kode!A2:C215,3,FALSE)","v":{"$error":"#N/A"}},null,{"$f":"VLOOKUP(B684,Kode!A2:D215,4,FALSE)","v":{"$error":"#N/A"}},null,null,null,null,null,null,null,null,null,null,null,null,null,{"$f":"VLOOKUP(B684,Kode!A2:E215,5,FALSE)","v":{"$error":"#N/A"}},null,null,null,null,null,null,null,{"$error":"#DIV/0!"}]
[{"$f":"VLOOKUP(B685,Kode!A2:C215,3,FALSE)","v":{"$error":"#N/A"}},null,{"$f":"VLOOKUP(B685,Kode!A2:D215,4,FALSE)","v":{"$error":"#N/A"}},null,null,null,null,null,null,null,null,null,null,null,null,null,{"$f":"VLOOKUP(B685,Kode!A2:E215,5,FALSE)","v":{"$error":"#N/A"}},null,null,null,null,null,null,null,{"$error":"#DIV/0!"}]
[{"$f":"VLOOKUP(B686,Kode!A2:C215,3,FALSE)","v":{"$error":"#N/A"}},null,{"$f":"VLOOKUP(B686,Kode!A2:D215,4,FALSE)","v":{"$error":"#N/A"}},null,null,null,null,null,null,null,null,null,null,null,null,null,{"$f":"VLOOKUP(B686,Kode!A2:E215,5,FALSE)","v":{"$error":"#N/A"}},null,null,null,null,null,null,null,{"$error":"#DIV/0!"}]
[{"$f":"VLOOKUP(B687,Kode!A2:C215,3,FALSE)","v":{"$error":"#N/A"}},null,{"$f":"VLOOKUP(B687,Kode!A2:D215,4,FALSE)","v":{"$error":"#N/A"}},null,null,null,null,null,null,null,null,null,null,null,null,null,{"$f":"VLOOKUP(B687,Kode!A2:E215,5,FALSE)","v":{"$error":"#N/A"}},null,null,null,null,null,null,null,{"$error":"#DIV/0!"}]
[{"$f":"VLOOKUP(B688,Kode!A2:C215,3,FALSE)","v":{"$error":"#N/A"}},null,{"$f":"VLOOKUP(B688,Kode!A2:D215,4,FALSE)","v":{"$error":"#N/A"}},null,null,null,null,null,null,null,null,null,null,null,null,null,{"$f":"VLOOKUP(B688,Kode!A2:E215,5,FALSE)","v":{"$error":"#N/A"}},null,null,null,null,null,null,null,{"$error":"#DIV/0!"}]
[{"$f":"VLOOKUP(B689,Kode!A2:C215,3,FALSE)","v":{"$error":"#N/A"}},null,{"$f":"VLOOKUP(B689,Kode!A2:D215,4,FALSE)","v":{"$error":"#N/A"}},null,null,null,null,null,null,null,null,null,null,null,null,null,{"$f":"VLOOKUP(B689,Kode!A2:E215,5,FALSE)","v":{"$error":"#N/A"}},null,null,null,null,null,null,null,{"$error":"#DIV/0!"}]
[{"$f":"VLOOKUP(B690,Kode!A2:C215,3,FALSE)","v":{"$error":"#N/A"}},null,{"$f":"VLOOKUP(B690,Kode!A2:D215,4,FALSE)","v":{"$error":"#N/A"}},null,null,null,null,null,null,null,null,null,null,null,null,null,{"$f":"VLOOKUP(B690,Kode!A2:E215,5,FALSE)","v":{"$error":"#N/A"}},null,null,null,null,null,null,null,{"$error":"#DIV/0!"}]
[{"$f":"VLOOKUP(B691,Kode!A2:C215,3,FALSE)","v":{"$error":"#N/A"}},null,{"$f":"VLOOKUP(B691,Kode!A2:D215,4,FALSE)","v":{"$error":"#N/A"}},null,null,null,null,null,null,null,null,null,null,null,null,null,{"$f":"VLOOKUP(B691,Kode!A2:E215,5,FALSE)","v":{"$error":"#N/A"}},null,null,null,null,null,null,null,{"$error":"#DIV/0!"}]
[{"$f":"VLOOKUP(B692,Kode!A2:C215,3,FALSE)","v":{"$error":"#N/A"}},null,{"$f":"VLOOKUP(B692,Kode!A2:D215,4,FALSE)","v":{"$error":"#N/A"}},null,null,null,null,null,null,null,null,null,null,null,null,null,{"$f":"VLOOKUP(B692,Kode!A2:E215,5,FALSE)","v":{"$error":"#N/A"}},null,null,null,null,null,null,null,{"$error":"#DIV/0!"}]
[{"$f":"VLOOKUP(B693,Kode!A2:C215,3,FALSE)","v":{"$error":"#N/A"}},null,{"$f":"VLOOKUP(B693,Kode!A2:D215,4,FALSE)","v":{"$error":"#N/A"}},null,null,null,null,null,null,null,null,null,null,null,null,null,{"$f":"VLOOKUP(B693,Kode!A2:E215,5,FALSE)","v":{"$error":"#N/A"}},null,null,null,null,null,null,null,{"$error":"#DIV/0!"}]
[{"$f":"VLOOKUP(B694,Kode!A2:C215,3,FALSE)","v":{"$error":"#N/A"}},null,{"$f":"VLOOKUP(B694,Kode!A2:D215,4,FALSE)","v":{"$error":"#N/A"}},null,null,null,null,null,null,null,null,null,null,null,null,null,{"$f":"VLOOKUP(B694,Kode!A2:E215,5,FALSE)","v":{"$error":"#N/A"}},null,null,null,null,null,null,null,{"$error":"#DIV/0!"}]
[{"$f":"VLOOKUP(B695,Kode!A2:C215,3,FALSE)","v":{"$error":"#N/A"}},null,{"$f":"VLOOKUP(B695,Kode!A2:D215,4,FALSE)","v":{"$error":"#N/A"}},null,null,null,null,null,null,null,null,null,null,null,null,null,{"$f":"VLOOKUP(B695,Kode!A2:E215,5,FALSE)","v":{"$error":"#N/A"}},null,null,null,null,null,null,null,{"$error":"#DIV/0!"}]
[{"$f":"VLOOKUP(B696,Kode!A2:C215,3,FALSE)","v":{"$error":"#N/A"}},null,{"$f":"VLOOKUP(B696,Kode!A2:D215,4,FALSE)","v":{"$error":"#N/A"}},null,null,null,null,null,null,null,null,null,null,null,null,null,{"$f":"VLOOKUP(B696,Kode!A2:E215,5,FALSE)","v":{"$error":"#N/A"}},null,null,null,null,null,null,null,{"$error":"#DIV/0!"}]
[{"$f":"VLOOKUP(B697,Kode!A2:C215,3,FALSE)","v":{"$error":"#N/A"}},null,{"$f":"VLOOKUP(B697,Kode!A2:D215,4,FALSE)","v":{"$error":"#N/A"}},null,null,null,null,null,null,null,null,null,null,null,null,null,{"$f":"VLOOKUP(B697,Kode!A2:E215,5,FALSE)","v":{"$error":"#N/A"}},null,null,null,null,null,null,null,{"$error":"#DIV/0!"}]
[{"$f":"VLOOKUP(B698,Kode!A2:C215,3,FALSE)","v":{"$error":"#N/A"}},null,{"$f":"VLOOKUP(B698,Kode!A2:D215,4,FALSE)","v":{"$error":"#N/A"}},null,null,null,null,null,null,null,null,null,null,null,null,null,{"$f":"VLOOKUP(B698,Kode!A2:E215,5,FALSE)","v":{"$error":"#N/A"}},null,null,null,null,null,null,null,{"$error":"#DIV/0!"}]
[{"$f":"VLOOKUP(B699,Kode!A2:C215,3,FALSE)","v":{"$error":"#N/A"}},null,{"$f":"VLOOKUP(B699,Kode!A2:D215,4,FALSE)","v":{"$error":"#N/A"}},null,null,null,null,null,null,null,null,null,null,null,null,null,{"$f":"VLOOKUP(B699,Kode!A2:E215,5,FALSE)","v":{"$error":"#N/A"}},null,null,null,null,null,null,null,{"$error":"#DIV/0!"}]
[{"$f":"VLOOKUP(B700,Kode!A2:C215,3,FALSE)","v":{"$error":"#N/A"}},null,{"$f":"VLOOKUP(B700,Kode!A2:D215,4,FALSE)","v":{"$error":"#N/A"}},null,null,null,null,null,null,null,null,null,null,null,null,null,{"$f":"VLOOKUP(B700,Kode!A2:E215,5,FALSE)","v":{"$error":"#N/A"}},null,null,null,null,null,null,null,{"$error":"#DIV/0!"}]
[{"$f":"VLOOKUP(B701,Kode!A2:C215,3,FALSE)","v":{"$error":"#N/A"}},null,{"$f":"VLOOKUP(B701,Kode!A2:D215,4,FALSE)","v":{"$error":"#N/A"}},null,null,null,null,null,null,null,null,null,null,null,null,null,{"$f":"VLOOKUP(B701,Kode!A2:E215,5,FALSE)","v":{"$error":"#N/A"}},null,null,null,null,null,null,null,{"$error":"#DIV/0!"}]
[{"$f":"VLOOKUP(B702,Kode!A2:C215,3,FALSE)","v":{"$error":"#N/A"}},null,{"$f":"VLOOKUP(B702,Kode!A2:D215,4,FALSE)","v":{"$error":"#N/A"}},null,null,null,null,null,null,null,null,null,null,null,null,null,{"$f":"VLOOKUP(B702,Kode!A2:E215,5,FALSE)","v":{"$error":"#N/A"}},null,null,null,null,null,null,null,{"$error":"#DIV/0!"}]
[{"$f":"VLOOKUP(B703,Kode!A2:C215,3,FALSE)","v":{"$error":"#N/A"}},null,{"$f":"VLOOKUP(B703,Kode!A2:D215,4,FALSE)","v":{"$error":"#N/A"}},null,null,null,null,null,null,null,null,null,null,null,null,null,{"$f":"VLOOKUP(B703,Kode!A2:E215,5,FALSE)","v":{"$error":"#N/A"}},null,null,null,null,null,null,null,{"$error":"#DIV/0!"}]
[{"$f":"VLOOKUP(B704,Kode!A2:C215,3,FALSE)","v":{"$error":"#N/A"}},null,{"$f":"VLOOKUP(B704,Kode!A2:D215,4,FALSE)","v":{"$error":"#N/A"}},null,null,null,null,null,null,null,null,null,null,null,null,null,{"$f":"VLOOKUP(B704,Kode!A2:E215,5,FALSE)","v":{"$error":"#N/A"}},null,null,null,null,null,null,null,{"$error":"#DIV/0!"}]
[{"$f":"VLOOKUP(B705,Kode!A2:C215,3,FALSE)","v":{"$error":"#N/A"}},null,{"$f":"VLOOKUP(B705,Kode!A2:D215,4,FALSE)","v":{"$error":"#N/A"}},null,null,null,null,null,null,null,null,null,null,null,null,null,{"$f":"VLOOKUP(B705,Kode!A2:E215,5,FALSE)","v":{"$error":"#N/A"}},null,null,null,null,null,null,null,{"$error":"#DIV/0!"}]
[{"$f":"VLOOKUP(B706,Kode!A2:C215,3,FALSE)","v":{"$error":"#N/A"}},null,{"$f":"VLOOKUP(B706,Kode!A2:D215,4,FALSE)","v":{"$error":"#N/A"}},null,null,null,null,null,null,null,null,null,null,null,null,null,{"$f":"VLOOKUP(B706,Kode!A2:E215,5,FALSE)","v":{"$error":"#N/A"}},null,null,null,null,null,null,null,{"$error":"#DIV/0!"}]
[{"$f":"VLOOKUP(B707,Kode!A2:C215,3,FALSE)","v":{"$error":"#N/A"}},null,{"$f":"VLOOKUP(B707,Kode!A2:D215,4,FALSE)","v":{"$error":"#N/A"}},null,null,null,null,null,null,null,null,null,null,null,null,null,{"$f":"VLOOKUP(B707,Kode!A2:E215,5,FALSE)","v":{"$error":"#N/A"}},null,null,null,null,null,null,null,{"$f":"U707/S707*100","v":{"$error":"#DIV/0!"}}]
[{"$f":"VLOOKUP(B708,Kode!A2:C215,3,FALSE)","v":{"$error":"#N/A"}},null,{"$f":"VLOOKUP(B708,Kode!A2:D215,4,FALSE)","v":{"$error":"#N/A"}},null,null,null,null,null,null,null,null,null,null,null,null,null,{"$f":"VLOOKUP(B708,Kode!A2:E215,5,FALSE)","v":{"$error":"#N/A"}},null,null,null,null,null,null,null,{"$error":"#DIV/0!"}]
[{"$f":"VLOOKUP(B709,Kode!A2:C215,3,FALSE)","v":{"$error":"#N/A"}},null,{"$f":"VLOOKUP(B709,Kode!A2:D215,4,FALSE)","v":{"$error":"#N/A"}},null,null,null,null,null,null,null,null,null,null,null,null,null,{"$f":"VLOOKUP(B709,Kode!A2:E215,5,FALSE)","v":{"$error":"#N/A"}},null,null,null,null,null,null,null,{"$error":"#DIV/0!"}]
[{"$f":"VLOOKUP(B710,Kode!A2:C215,3,FALSE)","v":{"$error":"#N/A"}},null,{"$f":"VLOOKUP(B710,Kode!A2:D215,4,FALSE)","v":{"$error":"#N/A"}},null,null,null,null,null,null,null,null,null,null,null,null,null,{"$f":"VLOOKUP(B710,Kode!A2:E215,5,FALSE)","v":{"$error":"#N/A"}},null,null,null,null,null,null,null,{"$error":"#DIV/0!"}]
[{"$f":"VLOOKUP(B711,Kode!A2:C215,3,FALSE)","v":{"$error":"#N/A"}},null,{"$f":"VLOOKUP(B711,Kode!A2:D215,4,FALSE)","v":{"$error":"#N/A"}},null,null,null,null,null,null,null,null,null,null,null,null,null,{"$f":"VLOOKUP(B711,Kode!A2:E215,5,FALSE)","v":{"$error":"#N/A"}},null,null,null,null,null,null,null,{"$error":"#DIV/0!"}]
[{"$f":"VLOOKUP(B712,Kode!A2:C215,3,FALSE)","v":{"$error":"#N/A"}},null,{"$f":"VLOOKUP(B712,Kode!A2:D215,4,FALSE)","v":{"$error":"#N/A"}},null,null,null,null,null,null,null,null,null,null,null,null,null,{"$f":"VLOOKUP(B712,Kode!A2:E215,5,FALSE)","v":{"$error":"#N/A"}},null,null,null,null,null,null,null,{"$error":"#DIV/0!"}]
[{"$f":"VLOOKUP(B713,Kode!A2:C215,3,FALSE)","v":{"$error":"#N/A"}},null,{"$f":"VLOOKUP(B713,Kode!A2:D215,4,FALSE)","v":{"$error":"#N/A"}},null,null,null,null,null,null,null,null,null,null,null,null,null,{"$f":"VLOOKUP(B713,Kode!A2:E215,5,FALSE)","v":{"$error":"#N/A"}},null,null,null,null,null,null,null,{"$error":"#DIV/0!"}]
[{"$f":"VLOOKUP(B714,Kode!A2:C215,3,FALSE)","v":{"$error":"#N/A"}},null,{"$f":"VLOOKUP(B714,Kode!A2:D215,4,FALSE)","v":{"$error":"#N/A"}},null,null,null,null,null,null,null,null,null,null,null,null,null,{"$f":"VLOOKUP(B714,Kode!A2:E215,5,FALSE)","v":{"$error":"#N/A"}},null,null,null,null,null,null,null,{"$error":"#DIV/0!"}]
[{"$f":"VLOOKUP(B715,Kode!A2:C215,3,FALSE)","v":{"$error":"#N/A"}},null,{"$f":"VLOOKUP(B715,Kode!A2:D215,4,FALSE)","v":{"$error":"#N/A"}},null,null,null,null,null,null,null,null,null,null,null,null,null,{"$f":"VLOOKUP(B715,Kode!A2:E215,5,FALSE)","v":{"$error":"#N/A"}},null,null,null,null,null,null,null,{"$error":"#DIV/0!"}]
[{"$f":"VLOOKUP(B716,Kode!A2:C215,3,FALSE)","v":{"$error":"#N/A"}},null,{"$f":"VLOOKUP(B716,Kode!A2:D215,4,FALSE)","v":{"$error":"#N/A"}},null,null,null,null,null,null,null,null,null,null,null,null,null,{"$f":"VLOOKUP(B716,Kode!A2:E215,5,FALSE)","v":{"$error":"#N/A"}},null,null,null,null,null,null,null,{"$error":"#DIV/0!"}]
[{"$f":"VLOOKUP(B717,Kode!A2:C215,3,FALSE)","v":{"$error":"#N/A"}},null,{"$f":"VLOOKUP(B717,Kode!A2:D215,4,FALSE)","v":{"$error":"#N/A"}},null,null,null,null,null,null,null,null,null,null,null,null,null,{"$f":"VLOOKUP(B717,Kode!A2:E215,5,FALSE)","v":{"$error":"#N/A"}},null,null,null,null,null,null,null,{"$error":"#DIV/0!"}]
[{"$f":"VLOOKUP(B718,Kode!A2:C215,3,FALSE)","v":{"$error":"#N/A"}},null,{"$f":"VLOOKUP(B718,Kode!A2:D215,4,FALSE)","v":{"$error":"#N/A"}},null,null,null,null,null,null,null,null,null,null,null,null,null,{"$f":"VLOOKUP(B718,Kode!A2:E215,5,FALSE)","v":{"$error":"#N/A"}},null,null,null,null,null,null,null,{"$error":"#DIV/0!"}]
[{"$f":"VLOOKUP(B719,Kode!A2:C215,3,FALSE)","v":{"$error":"#N/A"}},null,{"$f":"VLOOKUP(B719,Kode!A2:D215,4,FALSE)","v":{"$error":"#N/A"}},null,null,null,null,null,null,null,null,null,null,null,null,null,{"$f":"VLOOKUP(B719,Kode!A2:E215,5,FALSE)","v":{"$error":"#N/A"}},null,null,null,null,null,null,null,{"$error":"#DIV/0!"}]
[{"$f":"VLOOKUP(B720,Kode!A2:C215,3,FALSE)","v":{"$error":"#N/A"}},null,{"$f":"VLOOKUP(B720,Kode!A2:D215,4,FALSE)","v":{"$error":"#N/A"}},null,null,null,null,null,null,null,null,null,null,null,null,null,{"$f":"VLOOKUP(B720,Kode!A2:E215,5,FALSE)","v":{"$error":"#N/A"}},null,null,null,null,null,null,null,{"$error":"#DIV/0!"}]
[{"$f":"VLOOKUP(B721,Kode!A2:C215,3,FALSE)","v":{"$error":"#N/A"}},null,{"$f":"VLOOKUP(B721,Kode!A2:D215,4,FALSE)","v":{"$error":"#N/A"}},null,null,null,null,null,null,null,null,null,null,null,null,null,{"$f":"VLOOKUP(B721,Kode!A2:E215,5,FALSE)","v":{"$error":"#N/A"}},null,null,null,null,null,null,null,{"$error":"#DIV/0!"}]
[{"$f":"VLOOKUP(B722,Kode!A2:C215,3,FALSE)","v":{"$error":"#N/A"}},null,{"$f":"VLOOKUP(B722,Kode!A2:D215,4,FALSE)","v":{"$error":"#N/A"}},null,null,null,null,null,null,null,null,null,null,null,null,null,{"$f":"VLOOKUP(B722,Kode!A2:E215,5,FALSE)","v":{"$error":"#N/A"}},null,null,null,null,null,null,null,{"$error":"#DIV/0!"}]
[{"$f":"VLOOKUP(B723,Kode!A2:C215,3,FALSE)","v":{"$error":"#N/A"}},null,{"$f":"VLOOKUP(B723,Kode!A2:D215,4,FALSE)","v":{"$error":"#N/A"}},null,null,null,null,null,null,null,null,null,null,null,null,null,{"$f":"VLOOKUP(B723,Kode!A2:E215,5,FALSE)","v":{"$error":"#N/A"}},null,null,null,null,null,null,null,{"$error":"#DIV/0!"}]
[{"$f":"VLOOKUP(B724,Kode!A2:C215,3,FALSE)","v":{"$error":"#N/A"}},null,{"$f":"VLOOKUP(B724,Kode!A2:D215,4,FALSE)","v":{"$error":"#N/A"}},null,null,null,null,null,null,null,null,null,null,null,null,null,{"$f":"VLOOKUP(B724,Kode!A2:E215,5,FALSE)","v":{"$error":"#N/A"}},null,null,null,null,null,null,null,{"$error":"#DIV/0!"}]
[{"$f":"VLOOKUP(B725,Kode!A2:C215,3,FALSE)","v":{"$error":"#N/A"}},null,{"$f":"VLOOKUP(B725,Kode!A2:D215,4,FALSE)","v":{"$error":"#N/A"}},null,null,null,null,null,null,null,null,null,null,null,null,null,{"$f":"VLOOKUP(B725,Kode!A2:E215,5,FALSE)","v":{"$error":"#N/A"}},null,null,null,null,null,null,null,{"$error":"#DIV/0!"}]
[{"$f":"VLOOKUP(B726,Kode!A2:C215,3,FALSE)","v":{"$error":"#N/A"}},null,{"$f":"VLOOKUP(B726,Kode!A2:D215,4,FALSE)","v":{"$error":"#N/A"}},null,null,null,null,null,null,null,null,null,null,null,null,null,{"$f":"VLOOKUP(B726,Kode!A2:E215,5,FALSE)","v":{"$error":"#N/A"}},null,null,null,null,null,null,null,{"$error":"#DIV/0!"}]
[{"$f":"VLOOKUP(B727,Kode!A2:C215,3,FALSE)","v":{"$error":"#N/A"}},null,{"$f":"VLOOKUP(B727,Kode!A2:D215,4,FALSE)","v":{"$error":"#N/A"}},null,null,null,null,null,null,null,null,null,null,null,null,null,{"$f":"VLOOKUP(B727,Kode!A2:E215,5,FALSE)","v":{"$error":"#N/A"}},null,null,null,null,null,null,null,{"$error":"#DIV/0!"}]
[{"$f":"VLOOKUP(B728,Kode!A2:C215,3,FALSE)","v":{"$error":"#N/A"}},null,{"$f":"VLOOKUP(B728,Kode!A2:D215,4,FALSE)","v":{"$error":"#N/A"}},null,null,null,null,null,null,null,null,null,null,null,null,null,{"$f":"VLOOKUP(B728,Kode!A2:E215,5,FALSE)","v":{"$error":"#N/A"}},null,null,null,null,null,null,null,{"$error":"#DIV/0!"}]
[{"$f":"VLOOKUP(B729,Kode!A2:C215,3,FALSE)","v":{"$error":"#N/A"}},null,{"$f":"VLOOKUP(B729,Kode!A2:D215,4,FALSE)","v":{"$error":"#N/A"}},null,null,null,null,null,null,null,null,null,null,null,null,null,{"$f":"VLOOKUP(B729,Kode!A2:E215,5,FALSE)","v":{"$error":"#N/A"}},null,null,null,null,null,null,null,{"$error":"#DIV/0!"}]
[{"$f":"VLOOKUP(B730,Kode!A2:C215,3,FALSE)","v":{"$error":"#N/A"}},null,{"$f":"VLOOKUP(B730,Kode!A2:D215,4,FALSE)","v":{"$error":"#N/A"}},null,null,null,null,null,null,null,null,null,null,null,null,null,{"$f":"VLOOKUP(B730,Kode!A2:E215,5,FALSE)","v":{"$error":"#N/A"}},null,null,null,null,null,null,null,{"$error":"#DIV/0!"}]
[{"$f":"VLOOKUP(B731,Kode!A2:C215,3,FALSE)","v":{"$error":"#N/A"}},null,{"$f":"VLOOKUP(B731,Kode!A2:D215,4,FALSE)","v":{"$error":"#N/A"}},null,null,null,null,null,null,null,null,null,null,null,null,null,{"$f":"VLOOKUP(B731,Kode!A2:E215,5,FALSE)","v":{"$error":"#N/A"}},null,null,null,null,null,null,null,{"$error":"#DIV/0!"}]
[{"$f":"VLOOKUP(B732,Kode!A2:C215,3,FALSE)","v":{"$error":"#N/A"}},null,{"$f":"VLOOKUP(B732,Kode!A2:D215,4,FALSE)","v":{"$error":"#N/A"}},null,null,null,null,null,null,null,null,null,null,null,null,null,{"$f":"VLOOKUP(B732,Kode!A2:E215,5,FALSE)","v":{"$error":"#N/A"}},null,null,null,null,null,null,null,{"$error":"#DIV/0!"}]
[{"$f":"VLOOKUP(B733,Kode!A2:C215,3,FALSE)","v":{"$error":"#N/A"}},null,{"$f":"VLOOKUP(B733,Kode!A2:D215,4,FALSE)","v":{"$error":"#N/A"}},null,null,null,null,null,null,null,null,null,null,null,null,null,{"$f":"VLOOKUP(B733,Kode!A2:E215,5,FALSE)","v":{"$error":"#N/A"}},null,null,null,null,null,null,null,{"$error":"#DIV/0!"}]
[{"$f":"VLOOKUP(B734,Kode!A2:C215,3,FALSE)","v":{"$error":"#N/A"}},null,{"$f":"VLOOKUP(B734,Kode!A2:D215,4,FALSE)","v":{"$error":"#N/A"}},null,null,null,null,null,null,null,null,null,null,null,null,null,{"$f":"VLOOKUP(B734,Kode!A2:E215,5,FALSE)","v":{"$error":"#N/A"}},null,null,null,null,null,null,null,{"$error":"#DIV/0!"}]
[{"$f":"VLOOKUP(B735,Kode!A2:C215,3,FALSE)","v":{"$error":"#N/A"}},null,{"$f":"VLOOKUP(B735,Kode!A2:D215,4,FALSE)","v":{"$error":"#N/A"}},null,null,null,null,null,null,null,null,null,null,null,null,null,{"$f":"VLOOKUP(B735,Kode!A2:E215,5,FALSE)","v":{"$error":"#N/A"}},null,null,null,null,null,null,null,{"$error":"#DIV/0!"}]
[{"$f":"VLOOKUP(B736,Kode!A2:C215,3,FALSE)","v":{"$error":"#N/A"}},null,{"$f":"VLOOKUP(B736,Kode!A2:D215,4,FALSE)","v":{"$error":"#N/A"}},null,null,null,null,null,null,null,null,null,null,null,null,null,{"$f":"VLOOKUP(B736,Kode!A2:E215,5,FALSE)","v":{"$error":"#N/A"}},null,null,null,null,null,null,null,{"$error":"#DIV/0!"}]
[{"$f":"VLOOKUP(B737,Kode!A2:C215,3,FALSE)","v":{"$error":"#N/A"}},null,{"$f":"VLOOKUP(B737,Kode!A2:D215,4,FALSE)","v":{"$error":"#N/A"}},null,null,null,null,null,null,null,null,null,null,null,null,null,{"$f":"VLOOKUP(B737,Kode!A2:E215,5,FALSE)","v":{"$error":"#N/A"}},null,null,null,null,null,null,null,{"$error":"#DIV/0!"}]
[{"$f":"VLOOKUP(B738,Kode!A2:C215,3,FALSE)","v":{"$error":"#N/A"}},null,{"$f":"VLOOKUP(B738,Kode!A2:D215,4,FALSE)","v":{"$error":"#N/A"}},null,null,null,null,null,null,null,null,null,null,null,null,null,{"$f":"VLOOKUP(B738,Kode!A2:E215,5,FALSE)","v":{"$error":"#N/A"}},null,null,null,null,null,null,null,{"$error":"#DIV/0!"}]
[{"$f":"VLOOKUP(B739,Kode!A2:C215,3,FALSE)","v":{"$error":"#N/A"}},null,{"$f":"VLOOKUP(B739,Kode!A2:D215,4,FALSE)","v":{"$error":"#N/A"}},null,null,null,null,null,null,null,null,null,null,null,null,null,{"$f":"VLOOKUP(B739,Kode!A2:E215,5,FALSE)","v":{"$error":"#N/A"}},null,null,null,null,null,null,null,{"$error":"#DIV/0!"}]
[{"$f":"VLOOKUP(B740,Kode!A2:C215,3,FALSE)","v":{"$error":"#N/A"}},null,{"$f":"VLOOKUP(B740,Kode!A2:D215,4,FALSE)","v":{"$error":"#N/A"}},null,null,null,null,null,null,null,null,null,null,null,null,null,{"$f":"VLOOKUP(B740,Kode!A2:E215,5,FALSE)","v":{"$error":"#N/A"}},null,null,null,null,null,null,null,{"$error":"#DIV/0!"}]
[{"$f":"VLOOKUP(B741,Kode!A2:C215,3,FALSE)","v":{"$error":"#N/A"}},null,{"$f":"VLOOKUP(B741,Kode!A2:D215,4,FALSE)","v":{"$error":"#N/A"}},null,null,null,null,null,null,null,null,null,null,null,null,null,{"$f":"VLOOKUP(B741,Kode!A2:E215,5,FALSE)","v":{"$error":"#N/A"}},null,null,null,null,null,null,null,{"$error":"#DIV/0!"}]
[{"$f":"VLOOKUP(B742,Kode!A2:C215,3,FALSE)","v":{"$error":"#N/A"}},null,{"$f":"VLOOKUP(B742,Kode!A2:D215,4,FALSE)","v":{"$error":"#N/A"}},null,null,null,null,null,null,null,null,null,null,null,null,null,{"$f":"VLOOKUP(B742,Kode!A2:E215,5,FALSE)","v":{"$error":"#N/A"}},null,null,null,null,null,null,null,{"$error":"#DIV/0!"}]
[{"$f":"VLOOKUP(B743,Kode!A2:C215,3,FALSE)","v":{"$error":"#N/A"}},null,{"$f":"VLOOKUP(B743,Kode!A2:D215,4,FALSE)","v":{"$error":"#N/A"}},null,null,null,null,null,null,null,null,null,null,null,null,null,{"$f":"VLOOKUP(B743,Kode!A2:E215,5,FALSE)","v":{"$error":"#N/A"}},null,null,null,null,null,null,null,{"$error":"#DIV/0!"}]
[{"$f":"VLOOKUP(B744,Kode!A2:C215,3,FALSE)","v":{"$error":"#N/A"}},null,{"$f":"VLOOKUP(B744,Kode!A2:D215,4,FALSE)","v":{"$error":"#N/A"}},null,null,null,null,null,null,null,null,null,null,null,null,null,{"$f":"VLOOKUP(B744,Kode!A2:E215,5,FALSE)","v":{"$error":"#N/A"}},null,null,null,null,null,null,null,{"$error":"#DIV/0!"}]
[{"$f":"VLOOKUP(B745,Kode!A2:C215,3,FALSE)","v":{"$error":"#N/A"}},null,{"$f":"VLOOKUP(B745,Kode!A2:D215,4,FALSE)","v":{"$error":"#N/A"}},null,null,null,null,null,null,null,null,null,null,null,null,null,{"$f":"VLOOKUP(B745,Kode!A2:E215,5,FALSE)","v":{"$error":"#N/A"}},null,null,null,null,null,null,null,{"$error":"#DIV/0!"}]
[{"$f":"VLOOKUP(B746,Kode!A2:C215,3,FALSE)","v":{"$error":"#N/A"}},null,{"$f":"VLOOKUP(B746,Kode!A2:D215,4,FALSE)","v":{"$error":"#N/A"}},null,null,null,null,null,null,null,null,null,null,null,null,null,{"$f":"VLOOKUP(B746,Kode!A2:E215,5,FALSE)","v":{"$error":"#N/A"}},null,null,null,null,null,null,null,{"$error":"#DIV/0!"}]
[{"$f":"VLOOKUP(B747,Kode!A2:C215,3,FALSE)","v":{"$error":"#N/A"}},null,{"$f":"VLOOKUP(B747,Kode!A2:D215,4,FALSE)","v":{"$error":"#N/A"}},null,null,null,null,null,null,null,null,null,null,null,null,null,{"$f":"VLOOKUP(B747,Kode!A2:E215,5,FALSE)","v":{"$error":"#N/A"}},null,null,null,null,null,null,null,{"$error":"#DIV/0!"}]
[{"$f":"VLOOKUP(B748,Kode!A2:C215,3,FALSE)","v":{"$error":"#N/A"}},null,{"$f":"VLOOKUP(B748,Kode!A2:D215,4,FALSE)","v":{"$error":"#N/A"}},null,null,null,null,null,null,null,null,null,null,null,null,null,{"$f":"VLOOKUP(B748,Kode!A2:E215,5,FALSE)","v":{"$error":"#N/A"}},null,null,null,null,null,null,null,{"$error":"#DIV/0!"}]
[{"$f":"VLOOKUP(B749,Kode!A2:C215,3,FALSE)","v":{"$error":"#N/A"}},null,{"$f":"VLOOKUP(B749,Kode!A2:D215,4,FALSE)","v":{"$error":"#N/A"}},null,null,null,null,null,null,null,null,null,null,null,null,null,{"$f":"VLOOKUP(B749,Kode!A2:E215,5,FALSE)","v":{"$error":"#N/A"}},null,null,null,null,null,null,null,{"$error":"#DIV/0!"}]
[{"$f":"VLOOKUP(B750,Kode!A2:C215,3,FALSE)","v":{"$error":"#N/A"}},null,{"$f":"VLOOKUP(B750,Kode!A2:D215,4,FALSE)","v":{"$error":"#N/A"}},null,null,null,null,null,null,null,null,null,null,null,null,null,{"$f":"VLOOKUP(B750,Kode!A2:E215,5,FALSE)","v":{"$error":"#N/A"}},null,null,null,null,null,null,null,{"$error":"#DIV/0!"}]
[{"$f":"VLOOKUP(B751,Kode!A2:C215,3,FALSE)","v":{"$error":"#N/A"}},null,{"$f":"VLOOKUP(B751,Kode!A2:D215,4,FALSE)","v":{"$error":"#N/A"}},null,null,null,null,null,null,null,null,null,null,null,null,null,{"$f":"VLOOKUP(B751,Kode!A2:E215,5,FALSE)","v":{"$error":"#N/A"}},null,null,null,null,null,null,null,{"$error":"#DIV/0!"}]
[{"$f":"VLOOKUP(B752,Kode!A2:C215,3,FALSE)","v":{"$error":"#N/A"}},null,{"$f":"VLOOKUP(B752,Kode!A2:D215,4,FALSE)","v":{"$error":"#N/A"}},null,null,null,null,null,null,null,null,null,null,null,null,null,{"$f":"VLOOKUP(B752,Kode!A2:E215,5,FALSE)","v":{"$error":"#N/A"}},null,null,null,null,null,null,null,{"$error":"#DIV/0!"}]
[{"$f":"VLOOKUP(B753,Kode!A2:C215,3,FALSE)","v":{"$error":"#N/A"}},null,{"$f":"VLOOKUP(B753,Kode!A2:D215,4,FALSE)","v":{"$error":"#N/A"}},null,null,null,null,null,null,null,null,null,null,null,null,null,{"$f":"VLOOKUP(B753,Kode!A2:E215,5,FALSE)","v":{"$error":"#N/A"}},null,null,null,null,null,null,null,{"$error":"#DIV/0!"}]
[{"$f":"VLOOKUP(B754,Kode!A2:C215,3,FALSE)","v":{"$error":"#N/A"}},null,{"$f":"VLOOKUP(B754,Kode!A2:D215,4,FALSE)","v":{"$error":"#N/A"}},null,null,null,null,null,null,null,null,null,null,null,null,null,{"$f":"VLOOKUP(B754,Kode!A2:E215,5,FALSE)","v":{"$error":"#N/A"}},null,null,null,null,null,null,null,{"$error":"#DIV/0!"}]
[{"$f":"VLOOKUP(B755,Kode!A2:C215,3,FALSE)","v":{"$error":"#N/A"}},null,{"$f":"VLOOKUP(B755,Kode!A2:D215,4,FALSE)","v":{"$error":"#N/A"}},null,null,null,null,null,null,null,null,null,null,null,null,null,{"$f":"VLOOKUP(B755,Kode!A2:E215,5,FALSE)","v":{"$error":"#N/A"}},null,null,null,null,null,null,null,{"$error":"#DIV/0!"}]
[{"$f":"VLOOKUP(B756,Kode!A2:C215,3,FALSE)","v":{"$error":"#N/A"}},null,{"$f":"VLOOKUP(B756,Kode!A2:D215,4,FALSE)","v":{"$error":"#N/A"}},null,null,null,null,null,null,null,null,null,null,null,null,null,{"$f":"VLOOKUP(B756,Kode!A2:E215,5,FALSE)","v":{"$error":"#N/A"}},null,null,null,null,null,null,null,{"$error":"#DIV/0!"}]
[{"$f":"VLOOKUP(B757,Kode!A2:C215,3,FALSE)","v":{"$error":"#N/A"}},null,{"$f":"VLOOKUP(B757,Kode!A2:D215,4,FALSE)","v":{"$error":"#N/A"}},null,null,null,null,null,null,null,null,null,null,null,null,null,{"$f":"VLOOKUP(B757,Kode!A2:E215,5,FALSE)","v":{"$error":"#N/A"}},null,null,null,null,null,null,null,{"$error":"#DIV/0!"}]
[{"$f":"VLOOKUP(B758,Kode!A2:C215,3,FALSE)","v":{"$error":"#N/A"}},null,{"$f":"VLOOKUP(B758,Kode!A2:D215,4,FALSE)","v":{"$error":"#N/A"}},null,null,null,null,null,null,null,null,null,null,null,null,null,{"$f":"VLOOKUP(B758,Kode!A2:E215,5,FALSE)","v":{"$error":"#N/A"}},null,null,null,null,null,null,null,{"$error":"#DIV/0!"}]
[{"$f":"VLOOKUP(B759,Kode!A2:C215,3,FALSE)","v":{"$error":"#N/A"}},null,{"$f":"VLOOKUP(B759,Kode!A2:D215,4,FALSE)","v":{"$error":"#N/A"}},null,null,null,null,null,null,null,null,null,null,null,null,null,{"$f":"VLOOKUP(B759,Kode!A2:E215,5,FALSE)","v":{"$error":"#N/A"}},null,null,null,null,null,null,null,{"$error":"#DIV/0!"}]
[{"$f":"VLOOKUP(B760,Kode!A2:C215,3,FALSE)","v":{"$error":"#N/A"}},null,{"$f":"VLOOKUP(B760,Kode!A2:D215,4,FALSE)","v":{"$error":"#N/A"}},null,null,null,null,null,null,null,null,null,null,null,null,null,{"$f":"VLOOKUP(B760,Kode!A2:E215,5,FALSE)","v":{"$error":"#N/A"}},null,null,null,null,null,null,null,{"$error":"#DIV/0!"}]
[{"$f":"VLOOKUP(B761,Kode!A2:C215,3,FALSE)","v":{"$error":"#N/A"}},null,{"$f":"VLOOKUP(B761,Kode!A2:D215,4,FALSE)","v":{"$error":"#N/A"}},null,null,null,null,null,null,null,null,null,null,null,null,null,{"$f":"VLOOKUP(B761,Kode!A2:E215,5,FALSE)","v":{"$error":"#N/A"}},null,null,null,null,null,null,null,{"$error":"#DIV/0!"}]
[{"$f":"VLOOKUP(B762,Kode!A2:C215,3,FALSE)","v":{"$error":"#N/A"}},null,{"$f":"VLOOKUP(B762,Kode!A2:D215,4,FALSE)","v":{"$error":"#N/A"}},null,null,null,null,null,null,null,null,null,null,null,null,null,{"$f":"VLOOKUP(B762,Kode!A2:E215,5,FALSE)","v":{"$error":"#N/A"}},null,null,null,null,null,null,null,{"$error":"#DIV/0!"}]
[{"$f":"VLOOKUP(B763,Kode!A2:C215,3,FALSE)","v":{"$error":"#N/A"}},null,{"$f":"VLOOKUP(B763,Kode!A2:D215,4,FALSE)","v":{"$error":"#N/A"}},null,null,null,null,null,null,null,null,null,null,null,null,null,{"$f":"VLOOKUP(B763,Kode!A2:E215,5,FALSE)","v":{"$error":"#N/A"}},null,null,null,null,null,null,null,{"$error":"#DIV/0!"}]
[{"$f":"VLOOKUP(B764,Kode!A2:C215,3,FALSE)","v":{"$error":"#N/A"}},null,{"$f":"VLOOKUP(B764,Kode!A2:D215,4,FALSE)","v":{"$error":"#N/A"}},null,null,null,null,null,null,null,null,null,null,null,null,null,{"$f":"VLOOKUP(B764,Kode!A2:E215,5,FALSE)","v":{"$error":"#N/A"}},null,null,null,null,null,null,null,{"$error":"#DIV/0!"}]
[{"$f":"VLOOKUP(B765,Kode!A2:C215,3,FALSE)","v":{"$error":"#N/A"}},null,{"$f":"VLOOKUP(B765,Kode!A2:D215,4,FALSE)","v":{"$error":"#N/A"}},null,null,null,null,null,null,null,null,null,null,null,null,null,{"$f":"VLOOKUP(B765,Kode!A2:E215,5,FALSE)","v":{"$error":"#N/A"}},null,null,null,null,null,null,null,{"$error":"#DIV/0!"}]
[{"$f":"VLOOKUP(B766,Kode!A2:C215,3,FALSE)","v":{"$error":"#N/A"}},null,{"$f":"VLOOKUP(B766,Kode!A2:D215,4,FALSE)","v":{"$error":"#N/A"}},null,null,null,null,null,null,null,null,null,null,null,null,null,{"$f":"VLOOKUP(B766,Kode!A2:E215,5,FALSE)","v":{"$error":"#N/A"}},null,null,null,null,null,null,null,{"$error":"#DIV/0!"}]
[{"$f":"VLOOKUP(B767,Kode!A2:C215,3,FALSE)","v":{"$error":"#N/A"}},null,{"$f":"VLOOKUP(B767,Kode!A2:D215,4,FALSE)","v":{"$error":"#N/A"}},null,null,null,null,null,null,null,null,null,null,null,null,null,{"$f":"VLOOKUP(B767,Kode!A2:E215,5,FALSE)","v":{"$error":"#N/A"}},null,null,null,null,null,null,null,{"$error":"#DIV/0!"}]
[{"$f":"VLOOKUP(B768,Kode!A2:C215,3,FALSE)","v":{"$error":"#N/A"}},null,{"$f":"VLOOKUP(B768,Kode!A2:D215,4,FALSE)","v":{"$error":"#N/A"}},null,null,null,null,null,null,null,null,null,null,null,null,null,{"$f":"VLOOKUP(B768,Kode!A2:E215,5,FALSE)","v":{"$error":"#N/A"}},null,null,null,null,null,null,null,{"$error":"#DIV/0!"}]
[{"$f":"VLOOKUP(B769,Kode!A2:C215,3,FALSE)","v":{"$error":"#N/A"}},null,{"$f":"VLOOKUP(B769,Kode!A2:D215,4,FALSE)","v":{"$error":"#N/A"}},null,null,null,null,null,null,null,null,null,null,null,null,null,{"$f":"VLOOKUP(B769,Kode!A2:E215,5,FALSE)","v":{"$error":"#N/A"}},null,null,null,null,null,null,null,{"$error":"#DIV/0!"}]
[{"$f":"VLOOKUP(B770,Kode!A2:C215,3,FALSE)","v":{"$error":"#N/A"}},null,{"$f":"VLOOKUP(B770,Kode!A2:D215,4,FALSE)","v":{"$error":"#N/A"}},null,null,null,null,null,null,null,null,null,null,null,null,null,{"$f":"VLOOKUP(B770,Kode!A2:E215,5,FALSE)","v":{"$error":"#N/A"}},null,null,null,null,null,null,null,{"$error":"#DIV/0!"}]
[{"$f":"VLOOKUP(B771,Kode!A2:C215,3,FALSE)","v":{"$error":"#N/A"}},null,{"$f":"VLOOKUP(B771,Kode!A2:D215,4,FALSE)","v":{"$error":"#N/A"}},null,null,null,null,null,null,null,null,null,null,null,null,null,{"$f":"VLOOKUP(B771,Kode!A2:E215,5,FALSE)","v":{"$error":"#N/A"}},null,null,null,null,null,null,null,{"$f":"U771/S771*100","v":{"$error":"#DIV/0!"}}]
[{"$f":"VLOOKUP(B772,Kode!A2:C215,3,FALSE)","v":{"$error":"#N/A"}},null,{"$f":"VLOOKUP(B772,Kode!A2:D215,4,FALSE)","v":{"$error":"#N/A"}},null,null,null,null,null,null,null,null,null,null,null,null,null,{"$f":"VLOOKUP(B772,Kode!A2:E215,5,FALSE)","v":{"$error":"#N/A"}},null,null,null,null,null,null,null,{"$error":"#DIV/0!"}]
[{"$f":"VLOOKUP(B773,Kode!A2:C215,3,FALSE)","v":{"$error":"#N/A"}},null,{"$f":"VLOOKUP(B773,Kode!A2:D215,4,FALSE)","v":{"$error":"#N/A"}},null,null,null,null,null,null,null,null,null,null,null,null,null,{"$f":"VLOOKUP(B773,Kode!A2:E215,5,FALSE)","v":{"$error":"#N/A"}},null,null,null,null,null,null,null,{"$error":"#DIV/0!"}]
[{"$f":"VLOOKUP(B774,Kode!A2:C215,3,FALSE)","v":{"$error":"#N/A"}},null,{"$f":"VLOOKUP(B774,Kode!A2:D215,4,FALSE)","v":{"$error":"#N/A"}},null,null,null,null,null,null,null,null,null,null,null,null,null,{"$f":"VLOOKUP(B774,Kode!A2:E215,5,FALSE)","v":{"$error":"#N/A"}},null,null,null,null,null,null,null,{"$error":"#DIV/0!"}]
[{"$f":"VLOOKUP(B775,Kode!A2:C215,3,FALSE)","v":{"$error":"#N/A"}},null,{"$f":"VLOOKUP(B775,Kode!A2:D215,4,FALSE)","v":{"$error":"#N/A"}},null,null,null,null,null,null,null,null,null,null,null,null,null,{"$f":"VLOOKUP(B775,Kode!A2:E215,5,FALSE)","v":{"$error":"#N/A"}},null,null,null,null,null,null,null,{"$error":"#DIV/0!"}]
[{"$f":"VLOOKUP(B776,Kode!A2:C215,3,FALSE)","v":{"$error":"#N/A"}},null,{"$f":"VLOOKUP(B776,Kode!A2:D215,4,FALSE)","v":{"$error":"#N/A"}},null,null,null,null,null,null,null,null,null,null,null,null,null,{"$f":"VLOOKUP(B776,Kode!A2:E215,5,FALSE)","v":{"$error":"#N/A"}},null,null,null,null,null,null,null,{"$error":"#DIV/0!"}]
[{"$f":"VLOOKUP(B777,Kode!A2:C215,3,FALSE)","v":{"$error":"#N/A"}},null,{"$f":"VLOOKUP(B777,Kode!A2:D215,4,FALSE)","v":{"$error":"#N/A"}},null,null,null,null,null,null,null,null,null,null,null,null,null,{"$f":"VLOOKUP(B777,Kode!A2:E215,5,FALSE)","v":{"$error":"#N/A"}},null,null,null,null,null,null,null,{"$error":"#DIV/0!"}]
[{"$f":"VLOOKUP(B778,Kode!A2:C215,3,FALSE)","v":{"$error":"#N/A"}},null,{"$f":"VLOOKUP(B778,Kode!A2:D215,4,FALSE)","v":{"$error":"#N/A"}},null,null,null,null,null,null,null,null,null,null,null,null,null,{"$f":"VLOOKUP(B778,Kode!A2:E215,5,FALSE)","v":{"$error":"#N/A"}},null,null,null,null,null,null,null,{"$error":"#DIV/0!"}]
[{"$f":"VLOOKUP(B779,Kode!A2:C215,3,FALSE)","v":{"$error":"#N/A"}},null,{"$f":"VLOOKUP(B779,Kode!A2:D215,4,FALSE)","v":{"$error":"#N/A"}},null,null,null,null,null,null,null,null,null,null,null,null,null,{"$f":"VLOOKUP(B779,Kode!A2:E215,5,FALSE)","v":{"$error":"#N/A"}},null,null,null,null,null,null,null,{"$error":"#DIV/0!"}]
[{"$f":"VLOOKUP(B780,Kode!A2:C215,3,FALSE)","v":{"$error":"#N/A"}},null,{"$f":"VLOOKUP(B780,Kode!A2:D215,4,FALSE)","v":{"$error":"#N/A"}},null,null,null,null,null,null,null,null,null,null,null,null,null,{"$f":"VLOOKUP(B780,Kode!A2:E215,5,FALSE)","v":{"$error":"#N/A"}},null,null,null,null,null,null,null,{"$error":"#DIV/0!"}]
[{"$f":"VLOOKUP(B781,Kode!A2:C215,3,FALSE)","v":{"$error":"#N/A"}},null,{"$f":"VLOOKUP(B781,Kode!A2:D215,4,FALSE)","v":{"$error":"#N/A"}},null,null,null,null,null,null,null,null,null,null,null,null,null,{"$f":"VLOOKUP(B781,Kode!A2:E215,5,FALSE)","v":{"$error":"#N/A"}},null,null,null,null,null,null,null,{"$error":"#DIV/0!"}]
[{"$f":"VLOOKUP(B782,Kode!A2:C215,3,FALSE)","v":{"$error":"#N/A"}},null,{"$f":"VLOOKUP(B782,Kode!A2:D215,4,FALSE)","v":{"$error":"#N/A"}},null,null,null,null,null,null,null,null,null,null,null,null,null,{"$f":"VLOOKUP(B782,Kode!A2:E215,5,FALSE)","v":{"$error":"#N/A"}},null,null,null,null,null,null,null,{"$error":"#DIV/0!"}]
[{"$f":"VLOOKUP(B783,Kode!A2:C215,3,FALSE)","v":{"$error":"#N/A"}},null,{"$f":"VLOOKUP(B783,Kode!A2:D215,4,FALSE)","v":{"$error":"#N/A"}},null,null,null,null,null,null,null,null,null,null,null,null,null,{"$f":"VLOOKUP(B783,Kode!A2:E215,5,FALSE)","v":{"$error":"#N/A"}},null,null,null,null,null,null,null,{"$error":"#DIV/0!"}]
[{"$f":"VLOOKUP(B784,Kode!A2:C215,3,FALSE)","v":{"$error":"#N/A"}},null,{"$f":"VLOOKUP(B784,Kode!A2:D215,4,FALSE)","v":{"$error":"#N/A"}},null,null,null,null,null,null,null,null,null,null,null,null,null,{"$f":"VLOOKUP(B784,Kode!A2:E215,5,FALSE)","v":{"$error":"#N/A"}},null,null,null,null,null,null,null,{"$error":"#DIV/0!"}]
[{"$f":"VLOOKUP(B785,Kode!A2:C215,3,FALSE)","v":{"$error":"#N/A"}},null,{"$f":"VLOOKUP(B785,Kode!A2:D215,4,FALSE)","v":{"$error":"#N/A"}},null,null,null,null,null,null,null,null,null,null,null,null,null,{"$f":"VLOOKUP(B785,Kode!A2:E215,5,FALSE)","v":{"$error":"#N/A"}},null,null,null,null,null,null,null,{"$error":"#DIV/0!"}]
[{"$f":"VLOOKUP(B786,Kode!A2:C215,3,FALSE)","v":{"$error":"#N/A"}},null,{"$f":"VLOOKUP(B786,Kode!A2:D215,4,FALSE)","v":{"$error":"#N/A"}},null,null,null,null,null,null,null,null,null,null,null,null,null,{"$f":"VLOOKUP(B786,Kode!A2:E215,5,FALSE)","v":{"$error":"#N/A"}},null,null,null,null,null,null,null,{"$error":"#DIV/0!"}]
[{"$f":"VLOOKUP(B787,Kode!A2:C215,3,FALSE)","v":{"$error":"#N/A"}},null,{"$f":"VLOOKUP(B787,Kode!A2:D215,4,FALSE)","v":{"$error":"#N/A"}},null,null,null,null,null,null,null,null,null,null,null,null,null,{"$f":"VLOOKUP(B787,Kode!A2:E215,5,FALSE)","v":{"$error":"#N/A"}},null,null,null,null,null,null,null,{"$error":"#DIV/0!"}]
[{"$f":"VLOOKUP(B788,Kode!A2:C215,3,FALSE)","v":{"$error":"#N/A"}},null,{"$f":"VLOOKUP(B788,Kode!A2:D215,4,FALSE)","v":{"$error":"#N/A"}},null,null,null,null,null,null,null,null,null,null,null,null,null,{"$f":"VLOOKUP(B788,Kode!A2:E215,5,FALSE)","v":{"$error":"#N/A"}},null,null,null,null,null,null,null,{"$error":"#DIV/0!"}]
[{"$f":"VLOOKUP(B789,Kode!A2:C215,3,FALSE)","v":{"$error":"#N/A"}},null,{"$f":"VLOOKUP(B789,Kode!A2:D215,4,FALSE)","v":{"$error":"#N/A"}},null,null,null,null,null,null,null,null,null,null,null,null,null,{"$f":"VLOOKUP(B789,Kode!A2:E215,5,FALSE)","v":{"$error":"#N/A"}},null,null,null,null,null,null,null,{"$error":"#DIV/0!"}]
[{"$f":"VLOOKUP(B790,Kode!A2:C215,3,FALSE)","v":{"$error":"#N/A"}},null,{"$f":"VLOOKUP(B790,Kode!A2:D215,4,FALSE)","v":{"$error":"#N/A"}},null,null,null,null,null,null,null,null,null,null,null,null,null,{"$f":"VLOOKUP(B790,Kode!A2:E215,5,FALSE)","v":{"$error":"#N/A"}},null,null,null,null,null,null,null,{"$error":"#DIV/0!"}]
[{"$f":"VLOOKUP(B791,Kode!A2:C215,3,FALSE)","v":{"$error":"#N/A"}},null,{"$f":"VLOOKUP(B791,Kode!A2:D215,4,FALSE)","v":{"$error":"#N/A"}},null,null,null,null,null,null,null,null,null,null,null,null,null,{"$f":"VLOOKUP(B791,Kode!A2:E215,5,FALSE)","v":{"$error":"#N/A"}},null,null,null,null,null,null,null,{"$error":"#DIV/0!"}]
[{"$f":"VLOOKUP(B792,Kode!A2:C215,3,FALSE)","v":{"$error":"#N/A"}},null,{"$f":"VLOOKUP(B792,Kode!A2:D215,4,FALSE)","v":{"$error":"#N/A"}},null,null,null,null,null,null,null,null,null,null,null,null,null,{"$f":"VLOOKUP(B792,Kode!A2:E215,5,FALSE)","v":{"$error":"#N/A"}},null,null,null,null,null,null,null,{"$error":"#DIV/0!"}]
[{"$f":"VLOOKUP(B793,Kode!A2:C215,3,FALSE)","v":{"$error":"#N/A"}},null,{"$f":"VLOOKUP(B793,Kode!A2:D215,4,FALSE)","v":{"$error":"#N/A"}},null,null,null,null,null,null,null,null,null,null,null,null,null,{"$f":"VLOOKUP(B793,Kode!A2:E215,5,FALSE)","v":{"$error":"#N/A"}},null,null,null,null,null,null,null,{"$error":"#DIV/0!"}]
[{"$f":"VLOOKUP(B794,Kode!A2:C215,3,FALSE)","v":{"$error":"#N/A"}},null,{"$f":"VLOOKUP(B794,Kode!A2:D215,4,FALSE)","v":{"$error":"#N/A"}},null,null,null,null,null,null,null,null,null,null,null,null,null,{"$f":"VLOOKUP(B794,Kode!A2:E215,5,FALSE)","v":{"$error":"#N/A"}},null,null,null,null,null,null,null,{"$error":"#DIV/0!"}]
[{"$f":"VLOOKUP(B795,Kode!A2:C215,3,FALSE)","v":{"$error":"#N/A"}},null,{"$f":"VLOOKUP(B795,Kode!A2:D215,4,FALSE)","v":{"$error":"#N/A"}},null,null,null,null,null,null,null,null,null,null,null,null,null,{"$f":"VLOOKUP(B795,Kode!A2:E215,5,FALSE)","v":{"$error":"#N/A"}},null,null,null,null,null,null,null,{"$error":"#DIV/0!"}]
[{"$f":"VLOOKUP(B796,Kode!A2:C215,3,FALSE)","v":{"$error":"#N/A"}},null,{"$f":"VLOOKUP(B796,Kode!A2:D215,4,FALSE)","v":{"$error":"#N/A"}},null,null,null,null,null,null,null,null,null,null,null,null,null,{"$f":"VLOOKUP(B796,Kode!A2:E215,5,FALSE)","v":{"$error":"#N/A"}},null,null,null,null,null,null,null,{"$error":"#DIV/0!"}]
[{"$f":"VLOOKUP(B797,Kode!A2:C215,3,FALSE)","v":{"$error":"#N/A"}},null,{"$f":"VLOOKUP(B797,Kode!A2:D215,4,FALSE)","v":{"$error":"#N/A"}},null,null,null,null,null,null,null,null,null,null,null,null,null,{"$f":"VLOOKUP(B797,Kode!A2:E215,5,FALSE)","v":{"$error":"#N/A"}},null,null,null,null,null,null,null,{"$error":"#DIV/0!"}]
[{"$f":"VLOOKUP(B798,Kode!A2:C215,3,FALSE)","v":{"$error":"#N/A"}},null,{"$f":"VLOOKUP(B798,Kode!A2:D215,4,FALSE)","v":{"$error":"#N/A"}},null,null,null,null,null,null,null,null,null,null,null,null,null,{"$f":"VLOOKUP(B798,Kode!A2:E215,5,FALSE)","v":{"$error":"#N/A"}},null,null,null,null,null,null,null,{"$error":"#DIV/0!"}]
[{"$f":"VLOOKUP(B799,Kode!A2:C215,3,FALSE)","v":{"$error":"#N/A"}},null,{"$f":"VLOOKUP(B799,Kode!A2:D215,4,FALSE)","v":{"$error":"#N/A"}},null,null,null,null,null,null,null,null,null,null,null,null,null,{"$f":"VLOOKUP(B799,Kode!A2:E215,5,FALSE)","v":{"$error":"#N/A"}},null,null,null,null,null,null,null,{"$error":"#DIV/0!"}]
[{"$f":"VLOOKUP(B800,Kode!A2:C215,3,FALSE)","v":{"$error":"#N/A"}},null,{"$f":"VLOOKUP(B800,Kode!A2:D215,4,FALSE)","v":{"$error":"#N/A"}},null,null,null,null,null,null,null,null,null,null,null,null,null,{"$f":"VLOOKUP(B800,Kode!A2:E215,5,FALSE)","v":{"$error":"#N/A"}},null,null,null,null,null,null,null,{"$error":"#DIV/0!"}]
[{"$f":"VLOOKUP(B801,Kode!A2:C215,3,FALSE)","v":{"$error":"#N/A"}},null,{"$f":"VLOOKUP(B801,Kode!A2:D215,4,FALSE)","v":{"$error":"#N/A"}},null,null,null,null,null,null,null,null,null,null,null,null,null,{"$f":"VLOOKUP(B801,Kode!A2:E215,5,FALSE)","v":{"$error":"#N/A"}},null,null,null,null,null,null,null,{"$error":"#DIV/0!"}]
[{"$f":"VLOOKUP(B802,Kode!A2:C215,3,FALSE)","v":{"$error":"#N/A"}},null,{"$f":"VLOOKUP(B802,Kode!A2:D215,4,FALSE)","v":{"$error":"#N/A"}},null,null,null,null,null,null,null,null,null,null,null,null,null,{"$f":"VLOOKUP(B802,Kode!A2:E215,5,FALSE)","v":{"$error":"#N/A"}},null,null,null,null,null,null,null,{"$error":"#DIV/0!"}]
[{"$f":"VLOOKUP(B803,Kode!A2:C215,3,FALSE)","v":{"$error":"#N/A"}},null,{"$f":"VLOOKUP(B803,Kode!A2:D215,4,FALSE)","v":{"$error":"#N/A"}},null,null,null,null,null,null,null,null,null,null,null,null,null,{"$f":"VLOOKUP(B803,Kode!A2:E215,5,FALSE)","v":{"$error":"#N/A"}},null,null,null,null,null,null,null,{"$error":"#DIV/0!"}]
[{"$f":"VLOOKUP(B804,Kode!A2:C215,3,FALSE)","v":{"$error":"#N/A"}},null,{"$f":"VLOOKUP(B804,Kode!A2:D215,4,FALSE)","v":{"$error":"#N/A"}},null,null,null,null,null,null,null,null,null,null,null,null,null,{"$f":"VLOOKUP(B804,Kode!A2:E215,5,FALSE)","v":{"$error":"#N/A"}},null,null,null,null,null,null,null,{"$error":"#DIV/0!"}]
[{"$f":"VLOOKUP(B805,Kode!A2:C215,3,FALSE)","v":{"$error":"#N/A"}},null,{"$f":"VLOOKUP(B805,Kode!A2:D215,4,FALSE)","v":{"$error":"#N/A"}},null,null,null,null,null,null,null,null,null,null,null,null,null,{"$f":"VLOOKUP(B805,Kode!A2:E215,5,FALSE)","v":{"$error":"#N/A"}},null,null,null,null,null,null,null,{"$error":"#DIV/0!"}]
[{"$f":"VLOOKUP(B806,Kode!A2:C215,3,FALSE)","v":{"$error":"#N/A"}},null,{"$f":"VLOOKUP(B806,Kode!A2:D215,4,FALSE)","v":{"$error":"#N/A"}},null,null,null,null,null,null,null,null,null,null,null,null,null,{"$f":"VLOOKUP(B806,Kode!A2:E215,5,FALSE)","v":{"$error":"#N/A"}},null,null,null,null,null,null,null,{"$error":"#DIV/0!"}]
[{"$f":"VLOOKUP(B807,Kode!A2:C215,3,FALSE)","v":{"$error":"#N/A"}},null,{"$f":"VLOOKUP(B807,Kode!A2:D215,4,FALSE)","v":{"$error":"#N/A"}},null,null,null,null,null,null,null,null,null,null,null,null,null,{"$f":"VLOOKUP(B807,Kode!A2:E215,5,FALSE)","v":{"$error":"#N/A"}},null,null,null,null,null,null,null,{"$error":"#DIV/0!"}]
[{"$f":"VLOOKUP(B808,Kode!A2:C215,3,FALSE)","v":{"$error":"#N/A"}},null,{"$f":"VLOOKUP(B808,Kode!A2:D215,4,FALSE)","v":{"$error":"#N/A"}},null,null,null,null,null,null,null,null,null,null,null,null,null,{"$f":"VLOOKUP(B808,Kode!A2:E215,5,FALSE)","v":{"$error":"#N/A"}},null,null,null,null,null,null,null,{"$error":"#DIV/0!"}]
[{"$f":"VLOOKUP(B809,Kode!A2:C215,3,FALSE)","v":{"$error":"#N/A"}},null,{"$f":"VLOOKUP(B809,Kode!A2:D215,4,FALSE)","v":{"$error":"#N/A"}},null,null,null,null,null,null,null,null,null,null,null,null,null,{"$f":"VLOOKUP(B809,Kode!A2:E215,5,FALSE)","v":{"$error":"#N/A"}},null,null,null,null,null,null,null,{"$error":"#DIV/0!"}]
[{"$f":"VLOOKUP(B810,Kode!A2:C215,3,FALSE)","v":{"$error":"#N/A"}},null,{"$f":"VLOOKUP(B810,Kode!A2:D215,4,FALSE)","v":{"$error":"#N/A"}},null,null,null,null,null,null,null,null,null,null,null,null,null,{"$f":"VLOOKUP(B810,Kode!A2:E215,5,FALSE)","v":{"$error":"#N/A"}},null,null,null,null,null,null,null,{"$error":"#DIV/0!"}]
[{"$f":"VLOOKUP(B811,Kode!A2:C215,3,FALSE)","v":{"$error":"#N/A"}},null,{"$f":"VLOOKUP(B811,Kode!A2:D215,4,FALSE)","v":{"$error":"#N/A"}},null,null,null,null,null,null,null,null,null,null,null,null,null,{"$f":"VLOOKUP(B811,Kode!A2:E215,5,FALSE)","v":{"$error":"#N/A"}},null,null,null,null,null,null,null,{"$error":"#DIV/0!"}]
[{"$f":"VLOOKUP(B812,Kode!A2:C215,3,FALSE)","v":{"$error":"#N/A"}},null,{"$f":"VLOOKUP(B812,Kode!A2:D215,4,FALSE)","v":{"$error":"#N/A"}},null,null,null,null,null,null,null,null,null,null,null,null,null,{"$f":"VLOOKUP(B812,Kode!A2:E215,5,FALSE)","v":{"$error":"#N/A"}},null,null,null,null,null,null,null,{"$error":"#DIV/0!"}]
[{"$f":"VLOOKUP(B813,Kode!A2:C215,3,FALSE)","v":{"$error":"#N/A"}},null,{"$f":"VLOOKUP(B813,Kode!A2:D215,4,FALSE)","v":{"$error":"#N/A"}},null,null,null,null,null,null,null,null,null,null,null,null,null,{"$f":"VLOOKUP(B813,Kode!A2:E215,5,FALSE)","v":{"$error":"#N/A"}},null,null,null,null,null,null,null,{"$error":"#DIV/0!"}]
[{"$f":"VLOOKUP(B814,Kode!A2:C215,3,FALSE)","v":{"$error":"#N/A"}},null,{"$f":"VLOOKUP(B814,Kode!A2:D215,4,FALSE)","v":{"$error":"#N/A"}},null,null,null,null,null,null,null,null,null,null,null,null,null,{"$f":"VLOOKUP(B814,Kode!A2:E215,5,FALSE)","v":{"$error":"#N/A"}},null,null,null,null,null,null,null,{"$error":"#DIV/0!"}]
[{"$f":"VLOOKUP(B815,Kode!A2:C215,3,FALSE)","v":{"$error":"#N/A"}},null,{"$f":"VLOOKUP(B815,Kode!A2:D215,4,FALSE)","v":{"$error":"#N/A"}},null,null,null,null,null,null,null,null,null,null,null,null,null,{"$f":"VLOOKUP(B815,Kode!A2:E215,5,FALSE)","v":{"$error":"#N/A"}},null,null,null,null,null,null,null,{"$error":"#DIV/0!"}]
[{"$f":"VLOOKUP(B816,Kode!A2:C215,3,FALSE)","v":{"$error":"#N/A"}},null,{"$f":"VLOOKUP(B816,Kode!A2:D215,4,FALSE)","v":{"$error":"#N/A"}},null,null,null,null,null,null,null,null,null,null,null,null,null,{"$f":"VLOOKUP(B816,Kode!A2:E215,5,FALSE)","v":{"$error":"#N/A"}},null,null,null,null,null,null,null,{"$error":"#DIV/0!"}]
[{"$f":"VLOOKUP(B817,Kode!A2:C215,3,FALSE)","v":{"$error":"#N/A"}},null,{"$f":"VLOOKUP(B817,Kode!A2:D215,4,FALSE)","v":{"$error":"#N/A"}},null,null,null,null,null,null,null,null,null,null,null,null,null,{"$f":"VLOOKUP(B817,Kode!A2:E215,5,FALSE)","v":{"$error":"#N/A"}},null,null,null,null,null,null,null,{"$error":"#DIV/0!"}]
[{"$f":"VLOOKUP(B818,Kode!A2:C215,3,FALSE)","v":{"$error":"#N/A"}},null,{"$f":"VLOOKUP(B818,Kode!A2:D215,4,FALSE)","v":{"$error":"#N/A"}},null,null,null,null,null,null,null,null,null,null,null,null,null,{"$f":"VLOOKUP(B818,Kode!A2:E215,5,FALSE)","v":{"$error":"#N/A"}},null,null,null,null,null,null,null,{"$error":"#DIV/0!"}]
[{"$f":"VLOOKUP(B819,Kode!A2:C215,3,FALSE)","v":{"$error":"#N/A"}},null,{"$f":"VLOOKUP(B819,Kode!A2:D215,4,FALSE)","v":{"$error":"#N/A"}},null,null,null,null,null,null,null,null,null,null,null,null,null,{"$f":"VLOOKUP(B819,Kode!A2:E215,5,FALSE)","v":{"$error":"#N/A"}},null,null,null,null,null,null,null,{"$error":"#DIV/0!"}]
[{"$f":"VLOOKUP(B820,Kode!A2:C215,3,FALSE)","v":{"$error":"#N/A"}},null,{"$f":"VLOOKUP(B820,Kode!A2:D215,4,FALSE)","v":{"$error":"#N/A"}},null,null,null,null,null,null,null,null,null,null,null,null,null,{"$f":"VLOOKUP(B820,Kode!A2:E215,5,FALSE)","v":{"$error":"#N/A"}},null,null,null,null,null,null,null,{"$error":"#DIV/0!"}]
[{"$f":"VLOOKUP(B821,Kode!A2:C215,3,FALSE)","v":{"$error":"#N/A"}},null,{"$f":"VLOOKUP(B821,Kode!A2:D215,4,FALSE)","v":{"$error":"#N/A"}},null,null,null,null,null,null,null,null,null,null,null,null,null,{"$f":"VLOOKUP(B821,Kode!A2:E215,5,FALSE)","v":{"$error":"#N/A"}},null,null,null,null,null,null,null,{"$error":"#DIV/0!"}]
[{"$f":"VLOOKUP(B822,Kode!A2:C215,3,FALSE)","v":{"$error":"#N/A"}},null,{"$f":"VLOOKUP(B822,Kode!A2:D215,4,FALSE)","v":{"$error":"#N/A"}},null,null,null,null,null,null,null,null,null,null,null,null,null,{"$f":"VLOOKUP(B822,Kode!A2:E215,5,FALSE)","v":{"$error":"#N/A"}},null,null,null,null,null,null,null,{"$error":"#DIV/0!"}]
[{"$f":"VLOOKUP(B823,Kode!A2:C215,3,FALSE)","v":{"$error":"#N/A"}},null,{"$f":"VLOOKUP(B823,Kode!A2:D215,4,FALSE)","v":{"$error":"#N/A"}},null,null,null,null,null,null,null,null,null,null,null,null,null,{"$f":"VLOOKUP(B823,Kode!A2:E215,5,FALSE)","v":{"$error":"#N/A"}},null,null,null,null,null,null,null,{"$error":"#DIV/0!"}]
[{"$f":"VLOOKUP(B824,Kode!A2:C215,3,FALSE)","v":{"$error":"#N/A"}},null,{"$f":"VLOOKUP(B824,Kode!A2:D215,4,FALSE)","v":{"$error":"#N/A"}},null,null,null,null,null,null,null,null,null,null,null,null,null,{"$f":"VLOOKUP(B824,Kode!A2:E215,5,FALSE)","v":{"$error":"#N/A"}},null,null,null,null,null,null,null,{"$error":"#DIV/0!"}]
[{"$f":"VLOOKUP(B825,Kode!A2:C215,3,FALSE)","v":{"$error":"#N/A"}},null,{"$f":"VLOOKUP(B825,Kode!A2:D215,4,FALSE)","v":{"$error":"#N/A"}},null,null,null,null,null,null,null,null,null,null,null,null,null,{"$f":"VLOOKUP(B825,Kode!A2:E215,5,FALSE)","v":{"$error":"#N/A"}},null,null,null,null,null,null,null,{"$error":"#DIV/0!"}]
[{"$f":"VLOOKUP(B826,Kode!A2:C215,3,FALSE)","v":{"$error":"#N/A"}},null,{"$f":"VLOOKUP(B826,Kode!A2:D215,4,FALSE)","v":{"$error":"#N/A"}},null,null,null,null,null,null,null,null,null,null,null,null,null,{"$f":"VLOOKUP(B826,Kode!A2:E215,5,FALSE)","v":{"$error":"#N/A"}},null,null,null,null,null,null,null,{"$error":"#DIV/0!"}]
[{"$f":"VLOOKUP(B827,Kode!A2:C215,3,FALSE)","v":{"$error":"#N/A"}},null,{"$f":"VLOOKUP(B827,Kode!A2:D215,4,FALSE)","v":{"$error":"#N/A"}},null,null,null,null,null,null,null,null,null,null,null,null,null,{"$f":"VLOOKUP(B827,Kode!A2:E215,5,FALSE)","v":{"$error":"#N/A"}},null,null,null,null,null,null,null,{"$error":"#DIV/0!"}]
[{"$f":"VLOOKUP(B828,Kode!A2:C215,3,FALSE)","v":{"$error":"#N/A"}},null,{"$f":"VLOOKUP(B828,Kode!A2:D215,4,FALSE)","v":{"$error":"#N/A"}},null,null,null,null,null,null,null,null,null,null,null,null,null,{"$f":"VLOOKUP(B828,Kode!A2:E215,5,FALSE)","v":{"$error":"#N/A"}},null,null,null,null,null,null,null,{"$error":"#DIV/0!"}]
[{"$f":"VLOOKUP(B829,Kode!A2:C215,3,FALSE)","v":{"$error":"#N/A"}},null,{"$f":"VLOOKUP(B829,Kode!A2:D215,4,FALSE)","v":{"$error":"#N/A"}},null,null,null,null,null,null,null,null,null,null,null,null,null,{"$f":"VLOOKUP(B829,Kode!A2:E215,5,FALSE)","v":{"$error":"#N/A"}},null,null,null,null,null,null,null,{"$error":"#DIV/0!"}]
[{"$f":"VLOOKUP(B830,Kode!A2:C215,3,FALSE)","v":{"$error":"#N/A"}},null,{"$f":"VLOOKUP(B830,Kode!A2:D215,4,FALSE)","v":{"$error":"#N/A"}},null,null,null,null,null,null,null,null,null,null,null,null,null,{"$f":"VLOOKUP(B830,Kode!A2:E215,5,FALSE)","v":{"$error":"#N/A"}},null,null,null,null,null,null,null,{"$error":"#DIV/0!"}]
[{"$f":"VLOOKUP(B831,Kode!A2:C215,3,FALSE)","v":{"$error":"#N/A"}},null,{"$f":"VLOOKUP(B831,Kode!A2:D215,4,FALSE)","v":{"$error":"#N/A"}},null,null,null,null,null,null,null,null,null,null,null,null,null,{"$f":"VLOOKUP(B831,Kode!A2:E215,5,FALSE)","v":{"$error":"#N/A"}},null,null,null,null,null,null,null,{"$error":"#DIV/0!"}]
[{"$f":"VLOOKUP(B832,Kode!A2:C215,3,FALSE)","v":{"$error":"#N/A"}},null,{"$f":"VLOOKUP(B832,Kode!A2:D215,4,FALSE)","v":{"$error":"#N/A"}},null,null,null,null,null,null,null,null,null,null,null,null,null,{"$f":"VLOOKUP(B832,Kode!A2:E215,5,FALSE)","v":{"$error":"#N/A"}},null,null,null,null,null,null,null,{"$error":"#DIV/0!"}]
[{"$f":"VLOOKUP(B833,Kode!A2:C215,3,FALSE)","v":{"$error":"#N/A"}},null,{"$f":"VLOOKUP(B833,Kode!A2:D215,4,FALSE)","v":{"$error":"#N/A"}},null,null,null,null,null,null,null,null,null,null,null,null,null,{"$f":"VLOOKUP(B833,Kode!A2:E215,5,FALSE)","v":{"$error":"#N/A"}},null,null,null,null,null,null,null,{"$error":"#DIV/0!"}]
[{"$f":"VLOOKUP(B834,Kode!A2:C215,3,FALSE)","v":{"$error":"#N/A"}},null,{"$f":"VLOOKUP(B834,Kode!A2:D215,4,FALSE)","v":{"$error":"#N/A"}},null,null,null,null,null,null,null,null,null,null,null,null,null,{"$f":"VLOOKUP(B834,Kode!A2:E215,5,FALSE)","v":{"$error":"#N/A"}},null,null,null,null,null,null,null,{"$error":"#DIV/0!"}]
[{"$f":"VLOOKUP(B835,Kode!A2:C215,3,FALSE)","v":{"$error":"#N/A"}},null,{"$f":"VLOOKUP(B835,Kode!A2:D215,4,FALSE)","v":{"$error":"#N/A"}},null,null,null,null,null,null,null,null,null,null,null,null,null,{"$f":"VLOOKUP(B835,Kode!A2:E215,5,FALSE)","v":{"$error":"#N/A"}},null,null,null,null,null,null,null,{"$f":"U835/S835*100","v":{"$error":"#DIV/0!"}}]
[{"$f":"VLOOKUP(B836,Kode!A2:C215,3,FALSE)","v":{"$error":"#N/A"}},null,{"$f":"VLOOKUP(B836,Kode!A2:D215,4,FALSE)","v":{"$error":"#N/A"}},null,null,null,null,null,null,null,null,null,null,null,null,null,{"$f":"VLOOKUP(B836,Kode!A2:E215,5,FALSE)","v":{"$error":"#N/A"}},null,null,null,null,null,null,null,{"$error":"#DIV/0!"}]
[{"$f":"VLOOKUP(B837,Kode!A2:C215,3,FALSE)","v":{"$error":"#N/A"}},null,{"$f":"VLOOKUP(B837,Kode!A2:D215,4,FALSE)","v":{"$error":"#N/A"}},null,null,null,null,null,null,null,null,null,null,null,null,null,{"$f":"VLOOKUP(B837,Kode!A2:E215,5,FALSE)","v":{"$error":"#N/A"}},null,null,null,null,null,null,null,{"$error":"#DIV/0!"}]
[{"$f":"VLOOKUP(B838,Kode!A2:C215,3,FALSE)","v":{"$error":"#N/A"}},null,{"$f":"VLOOKUP(B838,Kode!A2:D215,4,FALSE)","v":{"$error":"#N/A"}},null,null,null,null,null,null,null,null,null,null,null,null,null,{"$f":"VLOOKUP(B838,Kode!A2:E215,5,FALSE)","v":{"$error":"#N/A"}},null,null,null,null,null,null,null,{"$error":"#DIV/0!"}]
[{"$f":"VLOOKUP(B839,Kode!A2:C215,3,FALSE)","v":{"$error":"#N/A"}},null,{"$f":"VLOOKUP(B839,Kode!A2:D215,4,FALSE)","v":{"$error":"#N/A"}},null,null,null,null,null,null,null,null,null,null,null,null,null,{"$f":"VLOOKUP(B839,Kode!A2:E215,5,FALSE)","v":{"$error":"#N/A"}},null,null,null,null,null,null,null,{"$error":"#DIV/0!"}]
[{"$f":"VLOOKUP(B840,Kode!A2:C215,3,FALSE)","v":{"$error":"#N/A"}},null,{"$f":"VLOOKUP(B840,Kode!A2:D215,4,FALSE)","v":{"$error":"#N/A"}},null,null,null,null,null,null,null,null,null,null,null,null,null,{"$f":"VLOOKUP(B840,Kode!A2:E215,5,FALSE)","v":{"$error":"#N/A"}},null,null,null,null,null,null,null,{"$error":"#DIV/0!"}]
[{"$f":"VLOOKUP(B841,Kode!A2:C215,3,FALSE)","v":{"$error":"#N/A"}},null,{"$f":"VLOOKUP(B841,Kode!A2:D215,4,FALSE)","v":{"$error":"#N/A"}},null,null,null,null,null,null,null,null,null,null,null,null,null,{"$f":"VLOOKUP(B841,Kode!A2:E215,5,FALSE)","v":{"$error":"#N/A"}},null,null,null,null,null,null,null,{"$error":"#DIV/0!"}]
[{"$f":"VLOOKUP(B842,Kode!A2:C215,3,FALSE)","v":{"$error":"#N/A"}},null,{"$f":"VLOOKUP(B842,Kode!A2:D215,4,FALSE)","v":{"$error":"#N/A"}},null,null,null,null,null,null,null,null,null,null,null,null,null,{"$f":"VLOOKUP(B842,Kode!A2:E215,5,FALSE)","v":{"$error":"#N/A"}},null,null,null,null,null,null,null,{"$error":"#DIV/0!"}]
[{"$f":"VLOOKUP(B843,Kode!A2:C215,3,FALSE)","v":{"$error":"#N/A"}},null,{"$f":"VLOOKUP(B843,Kode!A2:D215,4,FALSE)","v":{"$error":"#N/A"}},null,null,null,null,null,null,null,null,null,null,null,null,null,{"$f":"VLOOKUP(B843,Kode!A2:E215,5,FALSE)","v":{"$error":"#N/A"}},null,null,null,null,null,null,null,{"$error":"#DIV/0!"}]
[{"$f":"VLOOKUP(B844,Kode!A2:C215,3,FALSE)","v":{"$error":"#N/A"}},null,{"$f":"VLOOKUP(B844,Kode!A2:D215,4,FALSE)","v":{"$error":"#N/A"}},null,null,null,null,null,null,null,null,null,null,null,null,null,{"$f":"VLOOKUP(B844,Kode!A2:E215,5,FALSE)","v":{"$error":"#N/A"}},null,null,null,null,null,null,null,{"$error":"#DIV/0!"}]
[{"$f":"VLOOKUP(B845,Kode!A2:C215,3,FALSE)","v":{"$error":"#N/A"}},null,{"$f":"VLOOKUP(B845,Kode!A2:D215,4,FALSE)","v":{"$error":"#N/A"}},null,null,null,null,null,null,null,null,null,null,null,null,null,{"$f":"VLOOKUP(B845,Kode!A2:E215,5,FALSE)","v":{"$error":"#N/A"}},null,null,null,null,null,null,null,{"$error":"#DIV/0!"}]
[{"$f":"VLOOKUP(B846,Kode!A2:C215,3,FALSE)","v":{"$error":"#N/A"}},null,{"$f":"VLOOKUP(B846,Kode!A2:D215,4,FALSE)","v":{"$error":"#N/A"}},null,null,null,null,null,null,null,null,null,null,null,null,null,{"$f":"VLOOKUP(B846,Kode!A2:E215,5,FALSE)","v":{"$error":"#N/A"}},null,null,null,null,null,null,null,{"$error":"#DIV/0!"}]
[{"$f":"VLOOKUP(B847,Kode!A2:C215,3,FALSE)","v":{"$error":"#N/A"}},null,{"$f":"VLOOKUP(B847,Kode!A2:D215,4,FALSE)","v":{"$error":"#N/A"}},null,null,null,null,null,null,null,null,null,null,null,null,null,{"$f":"VLOOKUP(B847,Kode!A2:E215,5,FALSE)","v":{"$error":"#N/A"}},null,null,null,null,null,null,null,{"$error":"#DIV/0!"}]
[{"$f":"VLOOKUP(B848,Kode!A2:C215,3,FALSE)","v":{"$error":"#N/A"}},null,{"$f":"VLOOKUP(B848,Kode!A2:D215,4,FALSE)","v":{"$error":"#N/A"}},null,null,null,null,null,null,null,null,null,null,null,null,null,{"$f":"VLOOKUP(B848,Kode!A2:E215,5,FALSE)","v":{"$error":"#N/A"}},null,null,null,null,null,null,null,{"$error":"#DIV/0!"}]
[{"$f":"VLOOKUP(B849,Kode!A2:C215,3,FALSE)","v":{"$error":"#N/A"}},null,{"$f":"VLOOKUP(B849,Kode!A2:D215,4,FALSE)","v":{"$error":"#N/A"}},null,null,null,null,null,null,null,null,null,null,null,null,null,{"$f":"VLOOKUP(B849,Kode!A2:E215,5,FALSE)","v":{"$error":"#N/A"}},null,null,null,null,null,null,null,{"$error":"#DIV/0!"}]
[{"$f":"VLOOKUP(B850,Kode!A2:C215,3,FALSE)","v":{"$error":"#N/A"}},null,{"$f":"VLOOKUP(B850,Kode!A2:D215,4,FALSE)","v":{"$error":"#N/A"}},null,null,null,null,null,null,null,null,null,null,null,null,null,{"$f":"VLOOKUP(B850,Kode!A2:E215,5,FALSE)","v":{"$error":"#N/A"}},null,null,null,null,null,null,null,{"$error":"#DIV/0!"}]
[{"$f":"VLOOKUP(B851,Kode!A2:C215,3,FALSE)","v":{"$error":"#N/A"}},null,{"$f":"VLOOKUP(B851,Kode!A2:D215,4,FALSE)","v":{"$error":"#N/A"}},null,null,null,null,null,null,null,null,null,null,null,null,null,{"$f":"VLOOKUP(B851,Kode!A2:E215,5,FALSE)","v":{"$error":"#N/A"}},null,null,null,null,null,null,null,{"$error":"#DIV/0!"}]
[{"$f":"VLOOKUP(B852,Kode!A2:C215,3,FALSE)","v":{"$error":"#N/A"}},null,{"$f":"VLOOKUP(B852,Kode!A2:D215,4,FALSE)","v":{"$error":"#N/A"}},null,null,null,null,null,null,null,null,null,null,null,null,null,{"$f":"VLOOKUP(B852,Kode!A2:E215,5,FALSE)","v":{"$error":"#N/A"}},null,null,null,null,null,null,null,{"$error":"#DIV/0!"}]
[{"$f":"VLOOKUP(B853,Kode!A2:C215,3,FALSE)","v":{"$error":"#N/A"}},null,{"$f":"VLOOKUP(B853,Kode!A2:D215,4,FALSE)","v":{"$error":"#N/A"}},null,null,null,null,null,null,null,null,null,null,null,null,null,{"$f":"VLOOKUP(B853,Kode!A2:E215,5,FALSE)","v":{"$error":"#N/A"}},null,null,null,null,null,null,null,{"$error":"#DIV/0!"}]
[{"$f":"VLOOKUP(B854,Kode!A2:C215,3,FALSE)","v":{"$error":"#N/A"}},null,{"$f":"VLOOKUP(B854,Kode!A2:D215,4,FALSE)","v":{"$error":"#N/A"}},null,null,null,null,null,null,null,null,null,null,null,null,null,{"$f":"VLOOKUP(B854,Kode!A2:E215,5,FALSE)","v":{"$error":"#N/A"}},null,null,null,null,null,null,null,{"$error":"#DIV/0!"}]
[{"$f":"VLOOKUP(B855,Kode!A2:C215,3,FALSE)","v":{"$error":"#N/A"}},null,{"$f":"VLOOKUP(B855,Kode!A2:D215,4,FALSE)","v":{"$error":"#N/A"}},null,null,null,null,null,null,null,null,null,null,null,null,null,{"$f":"VLOOKUP(B855,Kode!A2:E215,5,FALSE)","v":{"$error":"#N/A"}},null,null,null,null,null,null,null,{"$error":"#DIV/0!"}]
[{"$f":"VLOOKUP(B856,Kode!A2:C215,3,FALSE)","v":{"$error":"#N/A"}},null,{"$f":"VLOOKUP(B856,Kode!A2:D215,4,FALSE)","v":{"$error":"#N/A"}},null,null,null,null,null,null,null,null,null,null,null,null,null,{"$f":"VLOOKUP(B856,Kode!A2:E215,5,FALSE)","v":{"$error":"#N/A"}},null,null,null,null,null,null,null,{"$error":"#DIV/0!"}]
[{"$f":"VLOOKUP(B857,Kode!A2:C215,3,FALSE)","v":{"$error":"#N/A"}},null,{"$f":"VLOOKUP(B857,Kode!A2:D215,4,FALSE)","v":{"$error":"#N/A"}},null,null,null,null,null,null,null,null,null,null,null,null,null,{"$f":"VLOOKUP(B857,Kode!A2:E215,5,FALSE)","v":{"$error":"#N/A"}},null,null,null,null,null,null,null,{"$error":"#DIV/0!"}]
[{"$f":"VLOOKUP(B858,Kode!A2:C215,3,FALSE)","v":{"$error":"#N/A"}},null,{"$f":"VLOOKUP(B858,Kode!A2:D215,4,FALSE)","v":{"$error":"#N/A"}},null,null,null,null,null,null,null,null,null,null,null,null,null,{"$f":"VLOOKUP(B858,Kode!A2:E215,5,FALSE)","v":{"$error":"#N/A"}},null,null,null,null,null,null,null,{"$error":"#DIV/0!"}]
[{"$f":"VLOOKUP(B859,Kode!A2:C215,3,FALSE)","v":{"$error":"#N/A"}},null,{"$f":"VLOOKUP(B859,Kode!A2:D215,4,FALSE)","v":{"$error":"#N/A"}},null,null,null,null,null,null,null,null,null,null,null,null,null,{"$f":"VLOOKUP(B859,Kode!A2:E215,5,FALSE)","v":{"$error":"#N/A"}},null,null,null,null,null,null,null,{"$error":"#DIV/0!"}]
[{"$f":"VLOOKUP(B860,Kode!A2:C215,3,FALSE)","v":{"$error":"#N/A"}},null,{"$f":"VLOOKUP(B860,Kode!A2:D215,4,FALSE)","v":{"$error":"#N/A"}},null,null,null,null,null,null,null,null,null,null,null,null,null,{"$f":"VLOOKUP(B860,Kode!A2:E215,5,FALSE)","v":{"$error":"#N/A"}},null,null,null,null,null,null,null,{"$error":"#DIV/0!"}]
[{"$f":"VLOOKUP(B861,Kode!A2:C215,3,FALSE)","v":{"$error":"#N/A"}},null,{"$f":"VLOOKUP(B861,Kode!A2:D215,4,FALSE)","v":{"$error":"#N/A"}},null,null,null,null,null,null,null,null,null,null,null,null,null,{"$f":"VLOOKUP(B861,Kode!A2:E215,5,FALSE)","v":{"$error":"#N/A"}},null,null,null,null,null,null,null,{"$error":"#DIV/0!"}]
[{"$f":"VLOOKUP(B862,Kode!A2:C215,3,FALSE)","v":{"$error":"#N/A"}},null,{"$f":"VLOOKUP(B862,Kode!A2:D215,4,FALSE)","v":{"$error":"#N/A"}},null,null,null,null,null,null,null,null,null,null,null,null,null,{"$f":"VLOOKUP(B862,Kode!A2:E215,5,FALSE)","v":{"$error":"#N/A"}},null,null,null,null,null,null,null,{"$error":"#DIV/0!"}]
[{"$f":"VLOOKUP(B863,Kode!A2:C215,3,FALSE)","v":{"$error":"#N/A"}},null,{"$f":"VLOOKUP(B863,Kode!A2:D215,4,FALSE)","v":{"$error":"#N/A"}},null,null,null,null,null,null,null,null,null,null,null,null,null,{"$f":"VLOOKUP(B863,Kode!A2:E215,5,FALSE)","v":{"$error":"#N/A"}},null,null,null,null,null,null,null,{"$error":"#DIV/0!"}]
[{"$f":"VLOOKUP(B864,Kode!A2:C215,3,FALSE)","v":{"$error":"#N/A"}},null,{"$f":"VLOOKUP(B864,Kode!A2:D215,4,FALSE)","v":{"$error":"#N/A"}},null,null,null,null,null,null,null,null,null,null,null,null,null,{"$f":"VLOOKUP(B864,Kode!A2:E215,5,FALSE)","v":{"$error":"#N/A"}},null,null,null,null,null,null,null,{"$error":"#DIV/0!"}]
[{"$f":"VLOOKUP(B865,Kode!A2:C215,3,FALSE)","v":{"$error":"#N/A"}},null,{"$f":"VLOOKUP(B865,Kode!A2:D215,4,FALSE)","v":{"$error":"#N/A"}},null,null,null,null,null,null,null,null,null,null,null,null,null,{"$f":"VLOOKUP(B865,Kode!A2:E215,5,FALSE)","v":{"$error":"#N/A"}},null,null,null,null,null,null,null,{"$error":"#DIV/0!"}]
[{"$f":"VLOOKUP(B866,Kode!A2:C215,3,FALSE)","v":{"$error":"#N/A"}},null,{"$f":"VLOOKUP(B866,Kode!A2:D215,4,FALSE)","v":{"$error":"#N/A"}},null,null,null,null,null,null,null,null,null,null,null,null,null,{"$f":"VLOOKUP(B866,Kode!A2:E215,5,FALSE)","v":{"$error":"#N/A"}},null,null,null,null,null,null,null,{"$error":"#DIV/0!"}]
[{"$f":"VLOOKUP(B867,Kode!A2:C215,3,FALSE)","v":{"$error":"#N/A"}},null,{"$f":"VLOOKUP(B867,Kode!A2:D215,4,FALSE)","v":{"$error":"#N/A"}},null,null,null,null,null,null,null,null,null,null,null,null,null,{"$f":"VLOOKUP(B867,Kode!A2:E215,5,FALSE)","v":{"$error":"#N/A"}},null,null,null,null,null,null,null,{"$error":"#DIV/0!"}]
[{"$f":"VLOOKUP(B868,Kode!A2:C215,3,FALSE)","v":{"$error":"#N/A"}},null,{"$f":"VLOOKUP(B868,Kode!A2:D215,4,FALSE)","v":{"$error":"#N/A"}},null,null,null,null,null,null,null,null,null,null,null,null,null,{"$f":"VLOOKUP(B868,Kode!A2:E215,5,FALSE)","v":{"$error":"#N/A"}},null,null,null,null,null,null,null,{"$error":"#DIV/0!"}]
[{"$f":"VLOOKUP(B869,Kode!A2:C215,3,FALSE)","v":{"$error":"#N/A"}},null,{"$f":"VLOOKUP(B869,Kode!A2:D215,4,FALSE)","v":{"$error":"#N/A"}},null,null,null,null,null,null,null,null,null,null,null,null,null,{"$f":"VLOOKUP(B869,Kode!A2:E215,5,FALSE)","v":{"$error":"#N/A"}},null,null,null,null,null,null,null,{"$error":"#DIV/0!"}]
[{"$f":"VLOOKUP(B870,Kode!A2:C215,3,FALSE)","v":{"$error":"#N/A"}},null,{"$f":"VLOOKUP(B870,Kode!A2:D215,4,FALSE)","v":{"$error":"#N/A"}},null,null,null,null,null,null,null,null,null,null,null,null,null,{"$f":"VLOOKUP(B870,Kode!A2:E215,5,FALSE)","v":{"$error":"#N/A"}},null,null,null,null,null,null,null,{"$error":"#DIV/0!"}]
[{"$f":"VLOOKUP(B871,Kode!A2:C215,3,FALSE)","v":{"$error":"#N/A"}},null,{"$f":"VLOOKUP(B871,Kode!A2:D215,4,FALSE)","v":{"$error":"#N/A"}},null,null,null,null,null,null,null,null,null,null,null,null,null,{"$f":"VLOOKUP(B871,Kode!A2:E215,5,FALSE)","v":{"$error":"#N/A"}},null,null,null,null,null,null,null,{"$error":"#DIV/0!"}]
[{"$f":"VLOOKUP(B872,Kode!A2:C215,3,FALSE)","v":{"$error":"#N/A"}},null,{"$f":"VLOOKUP(B872,Kode!A2:D215,4,FALSE)","v":{"$error":"#N/A"}},null,null,null,null,null,null,null,null,null,null,null,null,null,{"$f":"VLOOKUP(B872,Kode!A2:E215,5,FALSE)","v":{"$error":"#N/A"}},null,null,null,null,null,null,null,{"$error":"#DIV/0!"}]
[{"$f":"VLOOKUP(B873,Kode!A2:C215,3,FALSE)","v":{"$error":"#N/A"}},null,{"$f":"VLOOKUP(B873,Kode!A2:D215,4,FALSE)","v":{"$error":"#N/A"}},null,null,null,null,null,null,null,null,null,null,null,null,null,{"$f":"VLOOKUP(B873,Kode!A2:E215,5,FALSE)","v":{"$error":"#N/A"}},null,null,null,null,null,null,null,{"$error":"#DIV/0!"}]
[{"$f":"VLOOKUP(B874,Kode!A2:C215,3,FALSE)","v":{"$error":"#N/A"}},null,{"$f":"VLOOKUP(B874,Kode!A2:D215,4,FALSE)","v":{"$error":"#N/A"}},null,null,null,null,null,null,null,null,null,null,null,null,null,{"$f":"VLOOKUP(B874,Kode!A2:E215,5,FALSE)","v":{"$error":"#N/A"}},null,null,null,null,null,null,null,{"$error":"#DIV/0!"}]
[{"$f":"VLOOKUP(B875,Kode!A2:C215,3,FALSE)","v":{"$error":"#N/A"}},null,{"$f":"VLOOKUP(B875,Kode!A2:D215,4,FALSE)","v":{"$error":"#N/A"}},null,null,null,null,null,null,null,null,null,null,null,null,null,{"$f":"VLOOKUP(B875,Kode!A2:E215,5,FALSE)","v":{"$error":"#N/A"}},null,null,null,null,null,null,null,{"$error":"#DIV/0!"}]
[{"$f":"VLOOKUP(B876,Kode!A2:C215,3,FALSE)","v":{"$error":"#N/A"}},null,{"$f":"VLOOKUP(B876,Kode!A2:D215,4,FALSE)","v":{"$error":"#N/A"}},null,null,null,null,null,null,null,null,null,null,null,null,null,{"$f":"VLOOKUP(B876,Kode!A2:E215,5,FALSE)","v":{"$error":"#N/A"}},null,null,null,null,null,null,null,{"$error":"#DIV/0!"}]
[{"$f":"VLOOKUP(B877,Kode!A2:C215,3,FALSE)","v":{"$error":"#N/A"}},null,{"$f":"VLOOKUP(B877,Kode!A2:D215,4,FALSE)","v":{"$error":"#N/A"}},null,null,null,null,null,null,null,null,null,null,null,null,null,{"$f":"VLOOKUP(B877,Kode!A2:E215,5,FALSE)","v":{"$error":"#N/A"}},null,null,null,null,null,null,null,{"$error":"#DIV/0!"}]
[{"$f":"VLOOKUP(B878,Kode!A2:C215,3,FALSE)","v":{"$error":"#N/A"}},null,{"$f":"VLOOKUP(B878,Kode!A2:D215,4,FALSE)","v":{"$error":"#N/A"}},null,null,null,null,null,null,null,null,null,null,null,null,null,{"$f":"VLOOKUP(B878,Kode!A2:E215,5,FALSE)","v":{"$error":"#N/A"}},null,null,null,null,null,null,null,{"$error":"#DIV/0!"}]
[{"$f":"VLOOKUP(B879,Kode!A2:C215,3,FALSE)","v":{"$error":"#N/A"}},null,{"$f":"VLOOKUP(B879,Kode!A2:D215,4,FALSE)","v":{"$error":"#N/A"}},null,null,null,null,null,null,null,null,null,null,null,null,null,{"$f":"VLOOKUP(B879,Kode!A2:E215,5,FALSE)","v":{"$error":"#N/A"}},null,null,null,null,null,null,null,{"$error":"#DIV/0!"}]
[{"$f":"VLOOKUP(B880,Kode!A2:C215,3,FALSE)","v":{"$error":"#N/A"}},null,{"$f":"VLOOKUP(B880,Kode!A2:D215,4,FALSE)","v":{"$error":"#N/A"}},null,null,null,null,null,null,null,null,null,null,null,null,null,{"$f":"VLOOKUP(B880,Kode!A2:E215,5,FALSE)","v":{"$error":"#N/A"}},null,null,null,null,null,null,null,{"$error":"#DIV/0!"}]
[{"$f":"VLOOKUP(B881,Kode!A2:C215,3,FALSE)","v":{"$error":"#N/A"}},null,{"$f":"VLOOKUP(B881,Kode!A2:D215,4,FALSE)","v":{"$error":"#N/A"}},null,null,null,null,null,null,null,null,null,null,null,null,null,{"$f":"VLOOKUP(B881,Kode!A2:E215,5,FALSE)","v":{"$error":"#N/A"}},null,null,null,null,null,null,null,{"$error":"#DIV/0!"}]
[{"$f":"VLOOKUP(B882,Kode!A2:C215,3,FALSE)","v":{"$error":"#N/A"}},null,{"$f":"VLOOKUP(B882,Kode!A2:D215,4,FALSE)","v":{"$error":"#N/A"}},null,null,null,null,null,null,null,null,null,null,null,null,null,{"$f":"VLOOKUP(B882,Kode!A2:E215,5,FALSE)","v":{"$error":"#N/A"}},null,null,null,null,null,null,null,{"$error":"#DIV/0!"}]
[{"$f":"VLOOKUP(B883,Kode!A2:C215,3,FALSE)","v":{"$error":"#N/A"}},null,{"$f":"VLOOKUP(B883,Kode!A2:D215,4,FALSE)","v":{"$error":"#N/A"}},null,null,null,null,null,null,null,null,null,null,null,null,null,{"$f":"VLOOKUP(B883,Kode!A2:E215,5,FALSE)","v":{"$error":"#N/A"}},null,null,null,null,null,null,null,{"$error":"#DIV/0!"}]
[{"$f":"VLOOKUP(B884,Kode!A2:C215,3,FALSE)","v":{"$error":"#N/A"}},null,{"$f":"VLOOKUP(B884,Kode!A2:D215,4,FALSE)","v":{"$error":"#N/A"}},null,null,null,null,null,null,null,null,null,null,null,null,null,{"$f":"VLOOKUP(B884,Kode!A2:E215,5,FALSE)","v":{"$error":"#N/A"}},null,null,null,null,null,null,null,{"$error":"#DIV/0!"}]
[{"$f":"VLOOKUP(B885,Kode!A2:C215,3,FALSE)","v":{"$error":"#N/A"}},null,{"$f":"VLOOKUP(B885,Kode!A2:D215,4,FALSE)","v":{"$error":"#N/A"}},null,null,null,null,null,null,null,null,null,null,null,null,null,{"$f":"VLOOKUP(B885,Kode!A2:E215,5,FALSE)","v":{"$error":"#N/A"}},null,null,null,null,null,null,null,{"$error":"#DIV/0!"}]
[{"$f":"VLOOKUP(B886,Kode!A2:C215,3,FALSE)","v":{"$error":"#N/A"}},null,{"$f":"VLOOKUP(B886,Kode!A2:D215,4,FALSE)","v":{"$error":"#N/A"}},null,null,null,null,null,null,null,null,null,null,null,null,null,{"$f":"VLOOKUP(B886,Kode!A2:E215,5,FALSE)","v":{"$error":"#N/A"}},null,null,null,null,null,null,null,{"$error":"#DIV/0!"}]
[{"$f":"VLOOKUP(B887,Kode!A2:C215,3,FALSE)","v":{"$error":"#N/A"}},null,{"$f":"VLOOKUP(B887,Kode!A2:D215,4,FALSE)","v":{"$error":"#N/A"}},null,null,null,null,null,null,null,null,null,null,null,null,null,{"$f":"VLOOKUP(B887,Kode!A2:E215,5,FALSE)","v":{"$error":"#N/A"}},null,null,null,null,null,null,null,{"$error":"#DIV/0!"}]
[{"$f":"VLOOKUP(B888,Kode!A2:C215,3,FALSE)","v":{"$error":"#N/A"}},null,{"$f":"VLOOKUP(B888,Kode!A2:D215,4,FALSE)","v":{"$error":"#N/A"}},null,null,null,null,null,null,null,null,null,null,null,null,null,{"$f":"VLOOKUP(B888,Kode!A2:E215,5,FALSE)","v":{"$error":"#N/A"}},null,null,null,null,null,null,null,{"$error":"#DIV/0!"}]
[{"$f":"VLOOKUP(B889,Kode!A2:C215,3,FALSE)","v":{"$error":"#N/A"}},null,{"$f":"VLOOKUP(B889,Kode!A2:D215,4,FALSE)","v":{"$error":"#N/A"}},null,null,null,null,null,null,null,null,null,null,null,null,null,{"$f":"VLOOKUP(B889,Kode!A2:E215,5,FALSE)","v":{"$error":"#N/A"}},null,null,null,null,null,null,null,{"$error":"#DIV/0!"}]
[{"$f":"VLOOKUP(B890,Kode!A2:C215,3,FALSE)","v":{"$error":"#N/A"}},null,{"$f":"VLOOKUP(B890,Kode!A2:D215,4,FALSE)","v":{"$error":"#N/A"}},null,null,null,null,null,null,null,null,null,null,null,null,null,{"$f":"VLOOKUP(B890,Kode!A2:E215,5,FALSE)","v":{"$error":"#N/A"}},null,null,null,null,null,null,null,{"$error":"#DIV/0!"}]
[{"$f":"VLOOKUP(B891,Kode!A2:C215,3,FALSE)","v":{"$error":"#N/A"}},null,{"$f":"VLOOKUP(B891,Kode!A2:D215,4,FALSE)","v":{"$error":"#N/A"}},null,null,null,null,null,null,null,null,null,null,null,null,null,{"$f":"VLOOKUP(B891,Kode!A2:E215,5,FALSE)","v":{"$error":"#N/A"}},null,null,null,null,null,null,null,{"$error":"#DIV/0!"}]
[{"$f":"VLOOKUP(B892,Kode!A2:C215,3,FALSE)","v":{"$error":"#N/A"}},null,{"$f":"VLOOKUP(B892,Kode!A2:D215,4,FALSE)","v":{"$error":"#N/A"}},null,null,null,null,null,null,null,null,null,null,null,null,null,{"$f":"VLOOKUP(B892,Kode!A2:E215,5,FALSE)","v":{"$error":"#N/A"}},null,null,null,null,null,null,null,{"$error":"#DIV/0!"}]
[{"$f":"VLOOKUP(B893,Kode!A2:C215,3,FALSE)","v":{"$error":"#N/A"}},null,{"$f":"VLOOKUP(B893,Kode!A2:D215,4,FALSE)","v":{"$error":"#N/A"}},null,null,null,null,null,null,null,null,null,null,null,null,null,{"$f":"VLOOKUP(B893,Kode!A2:E215,5,FALSE)","v":{"$error":"#N/A"}},null,null,null,null,null,null,null,{"$error":"#DIV/0!"}]
[{"$f":"VLOOKUP(B894,Kode!A2:C215,3,FALSE)","v":{"$error":"#N/A"}},null,{"$f":"VLOOKUP(B894,Kode!A2:D215,4,FALSE)","v":{"$error":"#N/A"}},null,null,null,null,null,null,null,null,null,null,null,null,null,{"$f":"VLOOKUP(B894,Kode!A2:E215,5,FALSE)","v":{"$error":"#N/A"}},null,null,null,null,null,null,null,{"$error":"#DIV/0!"}]
[{"$f":"VLOOKUP(B895,Kode!A2:C215,3,FALSE)","v":{"$error":"#N/A"}},null,{"$f":"VLOOKUP(B895,Kode!A2:D215,4,FALSE)","v":{"$error":"#N/A"}},null,null,null,null,null,null,null,null,null,null,null,null,null,{"$f":"VLOOKUP(B895,Kode!A2:E215,5,FALSE)","v":{"$error":"#N/A"}},null,null,null,null,null,null,null,{"$error":"#DIV/0!"}]
[{"$f":"VLOOKUP(B896,Kode!A2:C215,3,FALSE)","v":{"$error":"#N/A"}},null,{"$f":"VLOOKUP(B896,Kode!A2:D215,4,FALSE)","v":{"$error":"#N/A"}},null,null,null,null,null,null,null,null,null,null,null,null,null,{"$f":"VLOOKUP(B896,Kode!A2:E215,5,FALSE)","v":{"$error":"#N/A"}},null,null,null,null,null,null,null,{"$error":"#DIV/0!"}]
[{"$f":"VLOOKUP(B897,Kode!A2:C215,3,FALSE)","v":{"$error":"#N/A"}},null,{"$f":"VLOOKUP(B897,Kode!A2:D215,4,FALSE)","v":{"$error":"#N/A"}},null,null,null,null,null,null,null,null,null,null,null,null,null,{"$f":"VLOOKUP(B897,Kode!A2:E215,5,FALSE)","v":{"$error":"#N/A"}},null,null,null,null,null,null,null,{"$error":"#DIV/0!"}]
[{"$f":"VLOOKUP(B898,Kode!A2:C215,3,FALSE)","v":{"$error":"#N/A"}},null,{"$f":"VLOOKUP(B898,Kode!A2:D215,4,FALSE)","v":{"$error":"#N/A"}},null,null,null,null,null,null,null,null,null,null,null,null,null,{"$f":"VLOOKUP(B898,Kode!A2:E215,5,FALSE)","v":{"$error":"#N/A"}},null,null,null,null,null,null,null,{"$error":"#DIV/0!"}]
[{"$f":"VLOOKUP(B899,Kode!A2:C215,3,FALSE)","v":{"$error":"#N/A"}},null,{"$f":"VLOOKUP(B899,Kode!A2:D215,4,FALSE)","v":{"$error":"#N/A"}},null,null,null,null,null,null,null,null,null,null,null,null,null,{"$f":"VLOOKUP(B899,Kode!A2:E215,5,FALSE)","v":{"$error":"#N/A"}},null,null,null,null,null,null,null,{"$f":"U899/S899*100","v":{"$error":"#DIV/0!"}}]
[{"$f":"VLOOKUP(B900,Kode!A2:C215,3,FALSE)","v":{"$error":"#N/A"}},null,{"$f":"VLOOKUP(B900,Kode!A2:D215,4,FALSE)","v":{"$error":"#N/A"}},null,null,null,null,null,null,null,null,null,null,null,null,null,{"$f":"VLOOKUP(B900,Kode!A2:E215,5,FALSE)","v":{"$error":"#N/A"}},null,null,null,null,null,null,null,{"$error":"#DIV/0!"}]
[{"$f":"VLOOKUP(B901,Kode!A2:C215,3,FALSE)","v":{"$error":"#N/A"}},null,{"$f":"VLOOKUP(B901,Kode!A2:D215,4,FALSE)","v":{"$error":"#N/A"}},null,null,null,null,null,null,null,null,null,null,null,null,null,{"$f":"VLOOKUP(B901,Kode!A2:E215,5,FALSE)","v":{"$error":"#N/A"}},null,null,null,null,null,null,null,{"$error":"#DIV/0!"}]
[{"$f":"VLOOKUP(B902,Kode!A2:C215,3,FALSE)","v":{"$error":"#N/A"}},null,{"$f":"VLOOKUP(B902,Kode!A2:D215,4,FALSE)","v":{"$error":"#N/A"}},null,null,null,null,null,null,null,null,null,null,null,null,null,{"$f":"VLOOKUP(B902,Kode!A2:E215,5,FALSE)","v":{"$error":"#N/A"}},null,null,null,null,null,null,null,{"$error":"#DIV/0!"}]
[{"$f":"VLOOKUP(B903,Kode!A2:C215,3,FALSE)","v":{"$error":"#N/A"}},null,{"$f":"VLOOKUP(B903,Kode!A2:D215,4,FALSE)","v":{"$error":"#N/A"}},null,null,null,null,null,null,null,null,null,null,null,null,null,{"$f":"VLOOKUP(B903,Kode!A2:E215,5,FALSE)","v":{"$error":"#N/A"}},null,null,null,null,null,null,null,{"$error":"#DIV/0!"}]
[{"$f":"VLOOKUP(B904,Kode!A2:C215,3,FALSE)","v":{"$error":"#N/A"}},null,{"$f":"VLOOKUP(B904,Kode!A2:D215,4,FALSE)","v":{"$error":"#N/A"}},null,null,null,null,null,null,null,null,null,null,null,null,null,{"$f":"VLOOKUP(B904,Kode!A2:E215,5,FALSE)","v":{"$error":"#N/A"}},null,null,null,null,null,null,null,{"$error":"#DIV/0!"}]
[{"$f":"VLOOKUP(B905,Kode!A2:C215,3,FALSE)","v":{"$error":"#N/A"}},null,{"$f":"VLOOKUP(B905,Kode!A2:D215,4,FALSE)","v":{"$error":"#N/A"}},null,null,null,null,null,null,null,null,null,null,null,null,null,{"$f":"VLOOKUP(B905,Kode!A2:E215,5,FALSE)","v":{"$error":"#N/A"}},null,null,null,null,null,null,null,{"$error":"#DIV/0!"}]
[{"$f":"VLOOKUP(B906,Kode!A2:C215,3,FALSE)","v":{"$error":"#N/A"}},null,{"$f":"VLOOKUP(B906,Kode!A2:D215,4,FALSE)","v":{"$error":"#N/A"}},null,null,null,null,null,null,null,null,null,null,null,null,null,{"$f":"VLOOKUP(B906,Kode!A2:E215,5,FALSE)","v":{"$error":"#N/A"}},null,null,null,null,null,null,null,{"$error":"#DIV/0!"}]
[{"$f":"VLOOKUP(B907,Kode!A2:C215,3,FALSE)","v":{"$error":"#N/A"}},null,{"$f":"VLOOKUP(B907,Kode!A2:D215,4,FALSE)","v":{"$error":"#N/A"}},null,null,null,null,null,null,null,null,null,null,null,null,null,{"$f":"VLOOKUP(B907,Kode!A2:E215,5,FALSE)","v":{"$error":"#N/A"}},null,null,null,null,null,null,null,{"$error":"#DIV/0!"}]
[{"$f":"VLOOKUP(B908,Kode!A2:C215,3,FALSE)","v":{"$error":"#N/A"}},null,{"$f":"VLOOKUP(B908,Kode!A2:D215,4,FALSE)","v":{"$error":"#N/A"}},null,null,null,null,null,null,null,null,null,null,null,null,null,{"$f":"VLOOKUP(B908,Kode!A2:E215,5,FALSE)","v":{"$error":"#N/A"}},null,null,null,null,null,null,null,{"$error":"#DIV/0!"}]
[{"$f":"VLOOKUP(B909,Kode!A2:C215,3,FALSE)","v":{"$error":"#N/A"}},null,{"$f":"VLOOKUP(B909,Kode!A2:D215,4,FALSE)","v":{"$error":"#N/A"}},null,null,null,null,null,null,null,null,null,null,null,null,null,{"$f":"VLOOKUP(B909,Kode!A2:E215,5,FALSE)","v":{"$error":"#N/A"}},null,null,null,null,null,null,null,{"$error":"#DIV/0!"}]
[{"$f":"VLOOKUP(B910,Kode!A2:C215,3,FALSE)","v":{"$error":"#N/A"}},null,{"$f":"VLOOKUP(B910,Kode!A2:D215,4,FALSE)","v":{"$error":"#N/A"}},null,null,null,null,null,null,null,null,null,null,null,null,null,{"$f":"VLOOKUP(B910,Kode!A2:E215,5,FALSE)","v":{"$error":"#N/A"}},null,null,null,null,null,null,null,{"$error":"#DIV/0!"}]
[{"$f":"VLOOKUP(B911,Kode!A2:C215,3,FALSE)","v":{"$error":"#N/A"}},null,{"$f":"VLOOKUP(B911,Kode!A2:D215,4,FALSE)","v":{"$error":"#N/A"}},null,null,null,null,null,null,null,null,null,null,null,null,null,{"$f":"VLOOKUP(B911,Kode!A2:E215,5,FALSE)","v":{"$error":"#N/A"}},null,null,null,null,null,null,null,{"$error":"#DIV/0!"}]
[{"$f":"VLOOKUP(B912,Kode!A2:C215,3,FALSE)","v":{"$error":"#N/A"}},null,{"$f":"VLOOKUP(B912,Kode!A2:D215,4,FALSE)","v":{"$error":"#N/A"}},null,null,null,null,null,null,null,null,null,null,null,null,null,{"$f":"VLOOKUP(B912,Kode!A2:E215,5,FALSE)","v":{"$error":"#N/A"}},null,null,null,null,null,null,null,{"$error":"#DIV/0!"}]
[{"$f":"VLOOKUP(B913,Kode!A2:C215,3,FALSE)","v":{"$error":"#N/A"}},null,{"$f":"VLOOKUP(B913,Kode!A2:D215,4,FALSE)","v":{"$error":"#N/A"}},null,null,null,null,null,null,null,null,null,null,null,null,null,{"$f":"VLOOKUP(B913,Kode!A2:E215,5,FALSE)","v":{"$error":"#N/A"}},null,null,null,null,null,null,null,{"$error":"#DIV/0!"}]
[{"$f":"VLOOKUP(B914,Kode!A2:C215,3,FALSE)","v":{"$error":"#N/A"}},null,{"$f":"VLOOKUP(B914,Kode!A2:D215,4,FALSE)","v":{"$error":"#N/A"}},null,null,null,null,null,null,null,null,null,null,null,null,null,{"$f":"VLOOKUP(B914,Kode!A2:E215,5,FALSE)","v":{"$error":"#N/A"}},null,null,null,null,null,null,null,{"$error":"#DIV/0!"}]
[{"$f":"VLOOKUP(B915,Kode!A2:C215,3,FALSE)","v":{"$error":"#N/A"}},null,{"$f":"VLOOKUP(B915,Kode!A2:D215,4,FALSE)","v":{"$error":"#N/A"}},null,null,null,null,null,null,null,null,null,null,null,null,null,{"$f":"VLOOKUP(B915,Kode!A2:E215,5,FALSE)","v":{"$error":"#N/A"}},null,null,null,null,null,null,null,{"$error":"#DIV/0!"}]
[{"$f":"VLOOKUP(B916,Kode!A2:C215,3,FALSE)","v":{"$error":"#N/A"}},null,{"$f":"VLOOKUP(B916,Kode!A2:D215,4,FALSE)","v":{"$error":"#N/A"}},null,null,null,null,null,null,null,null,null,null,null,null,null,{"$f":"VLOOKUP(B916,Kode!A2:E215,5,FALSE)","v":{"$error":"#N/A"}},null,null,null,null,null,null,null,{"$error":"#DIV/0!"}]
[{"$f":"VLOOKUP(B917,Kode!A2:C215,3,FALSE)","v":{"$error":"#N/A"}},null,{"$f":"VLOOKUP(B917,Kode!A2:D215,4,FALSE)","v":{"$error":"#N/A"}},null,null,null,null,null,null,null,null,null,null,null,null,null,{"$f":"VLOOKUP(B917,Kode!A2:E215,5,FALSE)","v":{"$error":"#N/A"}},null,null,null,null,null,null,null,{"$error":"#DIV/0!"}]
[{"$f":"VLOOKUP(B918,Kode!A2:C215,3,FALSE)","v":{"$error":"#N/A"}},null,{"$f":"VLOOKUP(B918,Kode!A2:D215,4,FALSE)","v":{"$error":"#N/A"}},null,null,null,null,null,null,null,null,null,null,null,null,null,{"$f":"VLOOKUP(B918,Kode!A2:E215,5,FALSE)","v":{"$error":"#N/A"}},null,null,null,null,null,null,null,{"$error":"#DIV/0!"}]
[{"$f":"VLOOKUP(B919,Kode!A2:C215,3,FALSE)","v":{"$error":"#N/A"}},null,{"$f":"VLOOKUP(B919,Kode!A2:D215,4,FALSE)","v":{"$error":"#N/A"}},null,null,null,null,null,null,null,null,null,null,null,null,null,{"$f":"VLOOKUP(B919,Kode!A2:E215,5,FALSE)","v":{"$error":"#N/A"}},null,null,null,null,null,null,null,{"$error":"#DIV/0!"}]
[{"$f":"VLOOKUP(B920,Kode!A2:C215,3,FALSE)","v":{"$error":"#N/A"}},null,{"$f":"VLOOKUP(B920,Kode!A2:D215,4,FALSE)","v":{"$error":"#N/A"}},null,null,null,null,null,null,null,null,null,null,null,null,null,{"$f":"VLOOKUP(B920,Kode!A2:E215,5,FALSE)","v":{"$error":"#N/A"}},null,null,null,null,null,null,null,{"$error":"#DIV/0!"}]
[{"$f":"VLOOKUP(B921,Kode!A2:C215,3,FALSE)","v":{"$error":"#N/A"}},null,{"$f":"VLOOKUP(B921,Kode!A2:D215,4,FALSE)","v":{"$error":"#N/A"}},null,null,null,null,null,null,null,null,null,null,null,null,null,{"$f":"VLOOKUP(B921,Kode!A2:E215,5,FALSE)","v":{"$error":"#N/A"}},null,null,null,null,null,null,null,{"$error":"#DIV/0!"}]
[{"$f":"VLOOKUP(B922,Kode!A2:C215,3,FALSE)","v":{"$error":"#N/A"}},null,{"$f":"VLOOKUP(B922,Kode!A2:D215,4,FALSE)","v":{"$error":"#N/A"}},null,null,null,null,null,null,null,null,null,null,null,null,null,{"$f":"VLOOKUP(B922,Kode!A2:E215,5,FALSE)","v":{"$error":"#N/A"}},null,null,null,null,null,null,null,{"$error":"#DIV/0!"}]
[{"$f":"VLOOKUP(B923,Kode!A2:C215,3,FALSE)","v":{"$error":"#N/A"}},null,{"$f":"VLOOKUP(B923,Kode!A2:D215,4,FALSE)","v":{"$error":"#N/A"}},null,null,null,null,null,null,null,null,null,null,null,null,null,{"$f":"VLOOKUP(B923,Kode!A2:E215,5,FALSE)","v":{"$error":"#N/A"}},null,null,null,null,null,null,null,{"$error":"#DIV/0!"}]
[{"$f":"VLOOKUP(B924,Kode!A2:C215,3,FALSE)","v":{"$error":"#N/A"}},null,{"$f":"VLOOKUP(B924,Kode!A2:D215,4,FALSE)","v":{"$error":"#N/A"}},null,null,null,null,null,null,null,null,null,null,null,null,null,{"$f":"VLOOKUP(B924,Kode!A2:E215,5,FALSE)","v":{"$error":"#N/A"}},null,null,null,null,null,null,null,{"$error":"#DIV/0!"}]
[{"$f":"VLOOKUP(B925,Kode!A2:C215,3,FALSE)","v":{"$error":"#N/A"}},null,{"$f":"VLOOKUP(B925,Kode!A2:D215,4,FALSE)","v":{"$error":"#N/A"}},null,null,null,null,null,null,null,null,null,null,null,null,null,{"$f":"VLOOKUP(B925,Kode!A2:E215,5,FALSE)","v":{"$error":"#N/A"}},null,null,null,null,null,null,null,{"$error":"#DIV/0!"}]
[{"$f":"VLOOKUP(B926,Kode!A2:C215,3,FALSE)","v":{"$error":"#N/A"}},null,{"$f":"VLOOKUP(B926,Kode!A2:D215,4,FALSE)","v":{"$error":"#N/A"}},null,null,null,null,null,null,null,null,null,null,null,null,null,{"$f":"VLOOKUP(B926,Kode!A2:E215,5,FALSE)","v":{"$error":"#N/A"}},null,null,null,null,null,null,null,{"$error":"#DIV/0!"}]
[{"$f":"VLOOKUP(B927,Kode!A2:C215,3,FALSE)","v":{"$error":"#N/A"}},null,{"$f":"VLOOKUP(B927,Kode!A2:D215,4,FALSE)","v":{"$error":"#N/A"}},null,null,null,null,null,null,null,null,null,null,null,null,null,{"$f":"VLOOKUP(B927,Kode!A2:E215,5,FALSE)","v":{"$error":"#N/A"}},null,null,null,null,null,null,null,{"$error":"#DIV/0!"}]
[{"$f":"VLOOKUP(B928,Kode!A2:C215,3,FALSE)","v":{"$error":"#N/A"}},null,{"$f":"VLOOKUP(B928,Kode!A2:D215,4,FALSE)","v":{"$error":"#N/A"}},null,null,null,null,null,null,null,null,null,null,null,null,null,{"$f":"VLOOKUP(B928,Kode!A2:E215,5,FALSE)","v":{"$error":"#N/A"}},null,null,null,null,null,null,null,{"$error":"#DIV/0!"}]
[{"$f":"VLOOKUP(B929,Kode!A2:C215,3,FALSE)","v":{"$error":"#N/A"}},null,{"$f":"VLOOKUP(B929,Kode!A2:D215,4,FALSE)","v":{"$error":"#N/A"}},null,null,null,null,null,null,null,null,null,null,null,null,null,{"$f":"VLOOKUP(B929,Kode!A2:E215,5,FALSE)","v":{"$error":"#N/A"}},null,null,null,null,null,null,null,{"$error":"#DIV/0!"}]
[{"$f":"VLOOKUP(B930,Kode!A2:C215,3,FALSE)","v":{"$error":"#N/A"}},null,{"$f":"VLOOKUP(B930,Kode!A2:D215,4,FALSE)","v":{"$error":"#N/A"}},null,null,null,null,null,null,null,null,null,null,null,null,null,{"$f":"VLOOKUP(B930,Kode!A2:E215,5,FALSE)","v":{"$error":"#N/A"}},null,null,null,null,null,null,null,{"$error":"#DIV/0!"}]
[{"$f":"VLOOKUP(B931,Kode!A2:C215,3,FALSE)","v":{"$error":"#N/A"}},null,{"$f":"VLOOKUP(B931,Kode!A2:D215,4,FALSE)","v":{"$error":"#N/A"}},null,null,null,null,null,null,null,null,null,null,null,null,null,{"$f":"VLOOKUP(B931,Kode!A2:E215,5,FALSE)","v":{"$error":"#N/A"}},null,null,null,null,null,null,null,{"$error":"#DIV/0!"}]
[{"$f":"VLOOKUP(B932,Kode!A2:C215,3,FALSE)","v":{"$error":"#N/A"}},null,{"$f":"VLOOKUP(B932,Kode!A2:D215,4,FALSE)","v":{"$error":"#N/A"}},null,null,null,null,null,null,null,null,null,null,null,null,null,{"$f":"VLOOKUP(B932,Kode!A2:E215,5,FALSE)","v":{"$error":"#N/A"}},null,null,null,null,null,null,null,{"$error":"#DIV/0!"}]
[{"$f":"VLOOKUP(B933,Kode!A2:C215,3,FALSE)","v":{"$error":"#N/A"}},null,{"$f":"VLOOKUP(B933,Kode!A2:D215,4,FALSE)","v":{"$error":"#N/A"}},null,null,null,null,null,null,null,null,null,null,null,null,null,{"$f":"VLOOKUP(B933,Kode!A2:E215,5,FALSE)","v":{"$error":"#N/A"}},null,null,null,null,null,null,null,{"$error":"#DIV/0!"}]
[{"$f":"VLOOKUP(B934,Kode!A2:C215,3,FALSE)","v":{"$error":"#N/A"}},null,{"$f":"VLOOKUP(B934,Kode!A2:D215,4,FALSE)","v":{"$error":"#N/A"}},null,null,null,null,null,null,null,null,null,null,null,null,null,{"$f":"VLOOKUP(B934,Kode!A2:E215,5,FALSE)","v":{"$error":"#N/A"}},null,null,null,null,null,null,null,{"$error":"#DIV/0!"}]
[{"$f":"VLOOKUP(B935,Kode!A2:C215,3,FALSE)","v":{"$error":"#N/A"}},null,{"$f":"VLOOKUP(B935,Kode!A2:D215,4,FALSE)","v":{"$error":"#N/A"}},null,null,null,null,null,null,null,null,null,null,null,null,null,{"$f":"VLOOKUP(B935,Kode!A2:E215,5,FALSE)","v":{"$error":"#N/A"}},null,null,null,null,null,null,null,{"$error":"#DIV/0!"}]
[{"$f":"VLOOKUP(B936,Kode!A2:C215,3,FALSE)","v":{"$error":"#N/A"}},null,{"$f":"VLOOKUP(B936,Kode!A2:D215,4,FALSE)","v":{"$error":"#N/A"}},null,null,null,null,null,null,null,null,null,null,null,null,null,{"$f":"VLOOKUP(B936,Kode!A2:E215,5,FALSE)","v":{"$error":"#N/A"}},null,null,null,null,null,null,null,{"$error":"#DIV/0!"}]
[{"$f":"VLOOKUP(B937,Kode!A2:C215,3,FALSE)","v":{"$error":"#N/A"}},null,{"$f":"VLOOKUP(B937,Kode!A2:D215,4,FALSE)","v":{"$error":"#N/A"}},null,null,null,null,null,null,null,null,null,null,null,null,null,{"$f":"VLOOKUP(B937,Kode!A2:E215,5,FALSE)","v":{"$error":"#N/A"}},null,null,null,null,null,null,null,{"$error":"#DIV/0!"}]
[{"$f":"VLOOKUP(B938,Kode!A2:C215,3,FALSE)","v":{"$error":"#N/A"}},null,{"$f":"VLOOKUP(B938,Kode!A2:D215,4,FALSE)","v":{"$error":"#N/A"}},null,null,null,null,null,null,null,null,null,null,null,null,null,{"$f":"VLOOKUP(B938,Kode!A2:E215,5,FALSE)","v":{"$error":"#N/A"}},null,null,null,null,null,null,null,{"$error":"#DIV/0!"}]
[{"$f":"VLOOKUP(B939,Kode!A2:C215,3,FALSE)","v":{"$error":"#N/A"}},null,{"$f":"VLOOKUP(B939,Kode!A2:D215,4,FALSE)","v":{"$error":"#N/A"}},null,null,null,null,null,null,null,null,null,null,null,null,null,{"$f":"VLOOKUP(B939,Kode!A2:E215,5,FALSE)","v":{"$error":"#N/A"}},null,null,null,null,null,null,null,{"$error":"#DIV/0!"}]
[{"$f":"VLOOKUP(B940,Kode!A2:C215,3,FALSE)","v":{"$error":"#N/A"}},null,{"$f":"VLOOKUP(B940,Kode!A2:D215,4,FALSE)","v":{"$error":"#N/A"}},null,null,null,null,null,null,null,null,null,null,null,null,null,{"$f":"VLOOKUP(B940,Kode!A2:E215,5,FALSE)","v":{"$error":"#N/A"}},null,null,null,null,null,null,null,{"$error":"#DIV/0!"}]
[{"$f":"VLOOKUP(B941,Kode!A2:C215,3,FALSE)","v":{"$error":"#N/A"}},null,{"$f":"VLOOKUP(B941,Kode!A2:D215,4,FALSE)","v":{"$error":"#N/A"}},null,null,null,null,null,null,null,null,null,null,null,null,null,{"$f":"VLOOKUP(B941,Kode!A2:E215,5,FALSE)","v":{"$error":"#N/A"}},null,null,null,null,null,null,null,{"$error":"#DIV/0!"}]
[{"$f":"VLOOKUP(B942,Kode!A2:C215,3,FALSE)","v":{"$error":"#N/A"}},null,{"$f":"VLOOKUP(B942,Kode!A2:D215,4,FALSE)","v":{"$error":"#N/A"}},null,null,null,null,null,null,null,null,null,null,null,null,null,{"$f":"VLOOKUP(B942,Kode!A2:E215,5,FALSE)","v":{"$error":"#N/A"}},null,null,null,null,null,null,null,{"$error":"#DIV/0!"}]
[{"$f":"VLOOKUP(B943,Kode!A2:C215,3,FALSE)","v":{"$error":"#N/A"}},null,{"$f":"VLOOKUP(B943,Kode!A2:D215,4,FALSE)","v":{"$error":"#N/A"}},null,null,null,null,null,null,null,null,null,null,null,null,null,{"$f":"VLOOKUP(B943,Kode!A2:E215,5,FALSE)","v":{"$error":"#N/A"}},null,null,null,null,null,null,null,{"$error":"#DIV/0!"}]
[{"$f":"VLOOKUP(B944,Kode!A2:C215,3,FALSE)","v":{"$error":"#N/A"}},null,{"$f":"VLOOKUP(B944,Kode!A2:D215,4,FALSE)","v":{"$error":"#N/A"}},null,null,null,null,null,null,null,null,null,null,null,null,null,{"$f":"VLOOKUP(B944,Kode!A2:E215,5,FALSE)","v":{"$error":"#N/A"}},null,null,null,null,null,null,null,{"$error":"#DIV/0!"}]
[{"$f":"VLOOKUP(B945,Kode!A2:C215,3,FALSE)","v":{"$error":"#N/A"}},null,{"$f":"VLOOKUP(B945,Kode!A2:D215,4,FALSE)","v":{"$error":"#N/A"}},null,null,null,null,null,null,null,null,null,null,null,null,null,{"$f":"VLOOKUP(B945,Kode!A2:E215,5,FALSE)","v":{"$error":"#N/A"}},null,null,null,null,null,null,null,{"$error":"#DIV/0!"}]
[{"$f":"VLOOKUP(B946,Kode!A2:C215,3,FALSE)","v":{"$error":"#N/A"}},null,{"$f":"VLOOKUP(B946,Kode!A2:D215,4,FALSE)","v":{"$error":"#N/A"}},null,null,null,null,null,null,null,null,null,null,null,null,null,{"$f":"VLOOKUP(B946,Kode!A2:E215,5,FALSE)","v":{"$error":"#N/A"}},null,null,null,null,null,null,null,{"$error":"#DIV/0!"}]
[{"$f":"VLOOKUP(B947,Kode!A2:C215,3,FALSE)","v":{"$error":"#N/A"}},null,{"$f":"VLOOKUP(B947,Kode!A2:D215,4,FALSE)","v":{"$error":"#N/A"}},null,null,null,null,null,null,null,null,null,null,null,null,null,{"$f":"VLOOKUP(B947,Kode!A2:E215,5,FALSE)","v":{"$error":"#N/A"}},null,null,null,null,null,null,null,{"$error":"#DIV/0!"}]
[{"$f":"VLOOKUP(B948,Kode!A2:C215,3,FALSE)","v":{"$error":"#N/A"}},null,{"$f":"VLOOKUP(B948,Kode!A2:D215,4,FALSE)","v":{"$error":"#N/A"}},null,null,null,null,null,null,null,null,null,null,null,null,null,{"$f":"VLOOKUP(B948,Kode!A2:E215,5,FALSE)","v":{"$error":"#N/A"}},null,null,null,null,null,null,null,{"$error":"#DIV/0!"}]
[{"$f":"VLOOKUP(B949,Kode!A2:C215,3,FALSE)","v":{"$error":"#N/A"}},null,{"$f":"VLOOKUP(B949,Kode!A2:D215,4,FALSE)","v":{"$error":"#N/A"}},null,null,null,null,null,null,null,null,null,null,null,null,null,{"$f":"VLOOKUP(B949,Kode!A2:E215,5,FALSE)","v":{"$error":"#N/A"}},null,null,null,null,null,null,null,{"$error":"#DIV/0!"}]
[{"$f":"VLOOKUP(B950,Kode!A2:C215,3,FALSE)","v":{"$error":"#N/A"}},null,{"$f":"VLOOKUP(B950,Kode!A2:D215,4,FALSE)","v":{"$error":"#N/A"}},null,null,null,null,null,null,null,null,null,null,null,null,null,{"$f":"VLOOKUP(B950,Kode!A2:E215,5,FALSE)","v":{"$error":"#N/A"}},null,null,null,null,null,null,null,{"$error":"#DIV/0!"}]
[{"$f":"VLOOKUP(B951,Kode!A2:C215,3,FALSE)","v":{"$error":"#N/A"}},null,{"$f":"VLOOKUP(B951,Kode!A2:D215,4,FALSE)","v":{"$error":"#N/A"}},null,null,null,null,null,null,null,null,null,null,null,null,null,{"$f":"VLOOKUP(B951,Kode!A2:E215,5,FALSE)","v":{"$error":"#N/A"}},null,null,null,null,null,null,null,{"$error":"#DIV/0!"}]
[{"$f":"VLOOKUP(B952,Kode!A2:C215,3,FALSE)","v":{"$error":"#N/A"}},null,{"$f":"VLOOKUP(B952,Kode!A2:D215,4,FALSE)","v":{"$error":"#N/A"}},null,null,null,null,null,null,null,null,null,null,null,null,null,{"$f":"VLOOKUP(B952,Kode!A2:E215,5,FALSE)","v":{"$error":"#N/A"}},null,null,null,null,null,null,null,{"$error":"#DIV/0!"}]
[{"$f":"VLOOKUP(B953,Kode!A2:C215,3,FALSE)","v":{"$error":"#N/A"}},null,{"$f":"VLOOKUP(B953,Kode!A2:D215,4,FALSE)","v":{"$error":"#N/A"}},null,null,null,null,null,null,null,null,null,null,null,null,null,{"$f":"VLOOKUP(B953,Kode!A2:E215,5,FALSE)","v":{"$error":"#N/A"}},null,null,null,null,null,null,null,{"$error":"#DIV/0!"}]
[{"$f":"VLOOKUP(B954,Kode!A2:C215,3,FALSE)","v":{"$error":"#N/A"}},null,{"$f":"VLOOKUP(B954,Kode!A2:D215,4,FALSE)","v":{"$error":"#N/A"}},null,null,null,null,null,null,null,null,null,null,null,null,null,{"$f":"VLOOKUP(B954,Kode!A2:E215,5,FALSE)","v":{"$error":"#N/A"}},null,null,null,null,null,null,null,{"$error":"#DIV/0!"}]
[{"$f":"VLOOKUP(B955,Kode!A2:C215,3,FALSE)","v":{"$error":"#N/A"}},null,{"$f":"VLOOKUP(B955,Kode!A2:D215,4,FALSE)","v":{"$error":"#N/A"}},null,null,null,null,null,null,null,null,null,null,null,null,null,{"$f":"VLOOKUP(B955,Kode!A2:E215,5,FALSE)","v":{"$error":"#N/A"}},null,null,null,null,null,null,null,{"$error":"#DIV/0!"}]
[{"$f":"VLOOKUP(B956,Kode!A2:C215,3,FALSE)","v":{"$error":"#N/A"}},null,{"$f":"VLOOKUP(B956,Kode!A2:D215,4,FALSE)","v":{"$error":"#N/A"}},null,null,null,null,null,null,null,null,null,null,null,null,null,{"$f":"VLOOKUP(B956,Kode!A2:E215,5,FALSE)","v":{"$error":"#N/A"}},null,null,null,null,null,null,null,{"$error":"#DIV/0!"}]
[{"$f":"VLOOKUP(B957,Kode!A2:C215,3,FALSE)","v":{"$error":"#N/A"}},null,{"$f":"VLOOKUP(B957,Kode!A2:D215,4,FALSE)","v":{"$error":"#N/A"}},null,null,null,null,null,null,null,null,null,null,null,null,null,{"$f":"VLOOKUP(B957,Kode!A2:E215,5,FALSE)","v":{"$error":"#N/A"}},null,null,null,null,null,null,null,{"$error":"#DIV/0!"}]
[{"$f":"VLOOKUP(B958,Kode!A2:C215,3,FALSE)","v":{"$error":"#N/A"}},null,{"$f":"VLOOKUP(B958,Kode!A2:D215,4,FALSE)","v":{"$error":"#N/A"}},null,null,null,null,null,null,null,null,null,null,null,null,null,{"$f":"VLOOKUP(B958,Kode!A2:E215,5,FALSE)","v":{"$error":"#N/A"}},null,null,null,null,null,null,null,{"$error":"#DIV/0!"}]
[{"$f":"VLOOKUP(B959,Kode!A2:C215,3,FALSE)","v":{"$error":"#N/A"}},null,{"$f":"VLOOKUP(B959,Kode!A2:D215,4,FALSE)","v":{"$error":"#N/A"}},null,null,null,null,null,null,null,null,null,null,null,null,null,{"$f":"VLOOKUP(B959,Kode!A2:E215,5,FALSE)","v":{"$error":"#N/A"}},null,null,null,null,null,null,null,{"$error":"#DIV/0!"}]
[{"$f":"VLOOKUP(B960,Kode!A2:C215,3,FALSE)","v":{"$error":"#N/A"}},null,{"$f":"VLOOKUP(B960,Kode!A2:D215,4,FALSE)","v":{"$error":"#N/A"}},null,null,null,null,null,null,null,null,null,null,null,null,null,{"$f":"VLOOKUP(B960,Kode!A2:E215,5,FALSE)","v":{"$error":"#N/A"}},null,null,null,null,null,null,null,{"$error":"#DIV/0!"}]
[{"$f":"VLOOKUP(B961,Kode!A2:C215,3,FALSE)","v":{"$error":"#N/A"}},null,{"$f":"VLOOKUP(B961,Kode!A2:D215,4,FALSE)","v":{"$error":"#N/A"}},null,null,null,null,null,null,null,null,null,null,null,null,null,{"$f":"VLOOKUP(B961,Kode!A2:E215,5,FALSE)","v":{"$error":"#N/A"}},null,null,null,null,null,null,null,{"$error":"#DIV/0!"}]
[{"$f":"VLOOKUP(B962,Kode!A2:C215,3,FALSE)","v":{"$error":"#N/A"}},null,{"$f":"VLOOKUP(B962,Kode!A2:D215,4,FALSE)","v":{"$error":"#N/A"}},null,null,null,null,null,null,null,null,null,null,null,null,null,{"$f":"VLOOKUP(B962,Kode!A2:E215,5,FALSE)","v":{"$error":"#N/A"}},null,null,null,null,null,null,null,{"$error":"#DIV/0!"}]
[{"$f":"VLOOKUP(B963,Kode!A2:C215,3,FALSE)","v":{"$error":"#N/A"}},null,{"$f":"VLOOKUP(B963,Kode!A2:D215,4,FALSE)","v":{"$error":"#N/A"}},null,null,null,null,null,null,null,null,null,null,null,null,null,{"$f":"VLOOKUP(B963,Kode!A2:E215,5,FALSE)","v":{"$error":"#N/A"}},null,null,null,null,null,null,null,{"$f":"U963/S963*100","v":{"$error":"#DIV/0!"}}]
[{"$f":"VLOOKUP(B964,Kode!A2:C215,3,FALSE)","v":{"$error":"#N/A"}},null,{"$f":"VLOOKUP(B964,Kode!A2:D215,4,FALSE)","v":{"$error":"#N/A"}},null,null,null,null,null,null,null,null,null,null,null,null,null,{"$f":"VLOOKUP(B964,Kode!A2:E215,5,FALSE)","v":{"$error":"#N/A"}},null,null,null,null,null,null,null,{"$error":"#DIV/0!"}]
[{"$f":"VLOOKUP(B965,Kode!A2:C215,3,FALSE)","v":{"$error":"#N/A"}},null,{"$f":"VLOOKUP(B965,Kode!A2:D215,4,FALSE)","v":{"$error":"#N/A"}},null,null,null,null,null,null,null,null,null,null,null,null,null,{"$f":"VLOOKUP(B965,Kode!A2:E215,5,FALSE)","v":{"$error":"#N/A"}},null,null,null,null,null,null,null,{"$error":"#DIV/0!"}]
[{"$f":"VLOOKUP(B966,Kode!A2:C215,3,FALSE)","v":{"$error":"#N/A"}},null,{"$f":"VLOOKUP(B966,Kode!A2:D215,4,FALSE)","v":{"$error":"#N/A"}},null,null,null,null,null,null,null,null,null,null,null,null,null,{"$f":"VLOOKUP(B966,Kode!A2:E215,5,FALSE)","v":{"$error":"#N/A"}},null,null,null,null,null,null,null,{"$error":"#DIV/0!"}]
[{"$f":"VLOOKUP(B967,Kode!A2:C215,3,FALSE)","v":{"$error":"#N/A"}},null,{"$f":"VLOOKUP(B967,Kode!A2:D215,4,FALSE)","v":{"$error":"#N/A"}},null,null,null,null,null,null,null,null,null,null,null,null,null,{"$f":"VLOOKUP(B967,Kode!A2:E215,5,FALSE)","v":{"$error":"#N/A"}},null,null,null,null,null,null,null,{"$error":"#DIV/0!"}]
[{"$f":"VLOOKUP(B968,Kode!A2:C215,3,FALSE)","v":{"$error":"#N/A"}},null,{"$f":"VLOOKUP(B968,Kode!A2:D215,4,FALSE)","v":{"$error":"#N/A"}},null,null,null,null,null,null,null,null,null,null,null,null,null,{"$f":"VLOOKUP(B968,Kode!A2:E215,5,FALSE)","v":{"$error":"#N/A"}},null,null,null,null,null,null,null,{"$error":"#DIV/0!"}]
[{"$f":"VLOOKUP(B969,Kode!A2:C215,3,FALSE)","v":{"$error":"#N/A"}},null,{"$f":"VLOOKUP(B969,Kode!A2:D215,4,FALSE)","v":{"$error":"#N/A"}},null,null,null,null,null,null,null,null,null,null,null,null,null,{"$f":"VLOOKUP(B969,Kode!A2:E215,5,FALSE)","v":{"$error":"#N/A"}},null,null,null,null,null,null,null,{"$error":"#DIV/0!"}]
[{"$f":"VLOOKUP(B970,Kode!A2:C215,3,FALSE)","v":{"$error":"#N/A"}},null,{"$f":"VLOOKUP(B970,Kode!A2:D215,4,FALSE)","v":{"$error":"#N/A"}},null,null,null,null,null,null,null,null,null,null,null,null,null,{"$f":"VLOOKUP(B970,Kode!A2:E215,5,FALSE)","v":{"$error":"#N/A"}},null,null,null,null,null,null,null,{"$error":"#DIV/0!"}]
[{"$f":"VLOOKUP(B971,Kode!A2:C215,3,FALSE)","v":{"$error":"#N/A"}},null,{"$f":"VLOOKUP(B971,Kode!A2:D215,4,FALSE)","v":{"$error":"#N/A"}},null,null,null,null,null,null,null,null,null,null,null,null,null,{"$f":"VLOOKUP(B971,Kode!A2:E215,5,FALSE)","v":{"$error":"#N/A"}},null,null,null,null,null,null,null,{"$error":"#DIV/0!"}]
[{"$f":"VLOOKUP(B972,Kode!A2:C215,3,FALSE)","v":{"$error":"#N/A"}},null,{"$f":"VLOOKUP(B972,Kode!A2:D215,4,FALSE)","v":{"$error":"#N/A"}},null,null,null,null,null,null,null,null,null,null,null,null,null,{"$f":"VLOOKUP(B972,Kode!A2:E215,5,FALSE)","v":{"$error":"#N/A"}},null,null,null,null,null,null,null,{"$error":"#DIV/0!"}]
[{"$f":"VLOOKUP(B973,Kode!A2:C215,3,FALSE)","v":{"$error":"#N/A"}},null,{"$f":"VLOOKUP(B973,Kode!A2:D215,4,FALSE)","v":{"$error":"#N/A"}},null,null,null,null,null,null,null,null,null,null,null,null,null,{"$f":"VLOOKUP(B973,Kode!A2:E215,5,FALSE)","v":{"$error":"#N/A"}},null,null,null,null,null,null,null,{"$error":"#DIV/0!"}]
[{"$f":"VLOOKUP(B974,Kode!A2:C215,3,FALSE)","v":{"$error":"#N/A"}},null,{"$f":"VLOOKUP(B974,Kode!A2:D215,4,FALSE)","v":{"$error":"#N/A"}},null,null,null,null,null,null,null,null,null,null,null,null,null,{"$f":"VLOOKUP(B974,Kode!A2:E215,5,FALSE)","v":{"$error":"#N/A"}},null,null,null,null,null,null,null,{"$error":"#DIV/0!"}]
[{"$f":"VLOOKUP(B975,Kode!A2:C215,3,FALSE)","v":{"$error":"#N/A"}},null,{"$f":"VLOOKUP(B975,Kode!A2:D215,4,FALSE)","v":{"$error":"#N/A"}},null,null,null,null,null,null,null,null,null,null,null,null,null,{"$f":"VLOOKUP(B975,Kode!A2:E215,5,FALSE)","v":{"$error":"#N/A"}},null,null,null,null,null,null,null,{"$error":"#DIV/0!"}]
[{"$f":"VLOOKUP(B976,Kode!A2:C215,3,FALSE)","v":{"$error":"#N/A"}},null,{"$f":"VLOOKUP(B976,Kode!A2:D215,4,FALSE)","v":{"$error":"#N/A"}},null,null,null,null,null,null,null,null,null,null,null,null,null,{"$f":"VLOOKUP(B976,Kode!A2:E215,5,FALSE)","v":{"$error":"#N/A"}},null,null,null,null,null,null,null,{"$error":"#DIV/0!"}]
[{"$f":"VLOOKUP(B977,Kode!A2:C215,3,FALSE)","v":{"$error":"#N/A"}},null,{"$f":"VLOOKUP(B977,Kode!A2:D215,4,FALSE)","v":{"$error":"#N/A"}},null,null,null,null,null,null,null,null,null,null,null,null,null,{"$f":"VLOOKUP(B977,Kode!A2:E215,5,FALSE)","v":{"$error":"#N/A"}},null,null,null,null,null,null,null,{"$error":"#DIV/0!"}]
[{"$f":"VLOOKUP(B978,Kode!A2:C215,3,FALSE)","v":{"$error":"#N/A"}},null,{"$f":"VLOOKUP(B978,Kode!A2:D215,4,FALSE)","v":{"$error":"#N/A"}},null,null,null,null,null,null,null,null,null,null,null,null,null,{"$f":"VLOOKUP(B978,Kode!A2:E215,5,FALSE)","v":{"$error":"#N/A"}},null,null,null,null,null,null,null,{"$error":"#DIV/0!"}]
[{"$f":"VLOOKUP(B979,Kode!A2:C215,3,FALSE)","v":{"$error":"#N/A"}},null,{"$f":"VLOOKUP(B979,Kode!A2:D215,4,FALSE)","v":{"$error":"#N/A"}},null,null,null,null,null,null,null,null,null,null,null,null,null,{"$f":"VLOOKUP(B979,Kode!A2:E215,5,FALSE)","v":{"$error":"#N/A"}},null,null,null,null,null,null,null,{"$error":"#DIV/0!"}]
[{"$f":"VLOOKUP(B980,Kode!A2:C215,3,FALSE)","v":{"$error":"#N/A"}},null,{"$f":"VLOOKUP(B980,Kode!A2:D215,4,FALSE)","v":{"$error":"#N/A"}},null,null,null,null,null,null,null,null,null,null,null,null,null,{"$f":"VLOOKUP(B980,Kode!A2:E215,5,FALSE)","v":{"$error":"#N/A"}},null,null,null,null,null,null,null,{"$error":"#DIV/0!"}]
[{"$f":"VLOOKUP(B981,Kode!A2:C215,3,FALSE)","v":{"$error":"#N/A"}},null,{"$f":"VLOOKUP(B981,Kode!A2:D215,4,FALSE)","v":{"$error":"#N/A"}},null,null,null,null,null,null,null,null,null,null,null,null,null,{"$f":"VLOOKUP(B981,Kode!A2:E215,5,FALSE)","v":{"$error":"#N/A"}},null,null,null,null,null,null,null,{"$error":"#DIV/0!"}]
[{"$f":"VLOOKUP(B982,Kode!A2:C215,3,FALSE)","v":{"$error":"#N/A"}},null,{"$f":"VLOOKUP(B982,Kode!A2:D215,4,FALSE)","v":{"$error":"#N/A"}},null,null,null,null,null,null,null,null,null,null,null,null,null,{"$f":"VLOOKUP(B982,Kode!A2:E215,5,FALSE)","v":{"$error":"#N/A"}},null,null,null,null,null,null,null,{"$error":"#DIV/0!"}]
[{"$f":"VLOOKUP(B983,Kode!A2:C215,3,FALSE)","v":{"$error":"#N/A"}},null,{"$f":"VLOOKUP(B983,Kode!A2:D215,4,FALSE)","v":{"$error":"#N/A"}},null,null,null,null,null,null,null,null,null,null,null,null,null,{"$f":"VLOOKUP(B983,Kode!A2:E215,5,FALSE)","v":{"$error":"#N/A"}},null,null,null,null,null,null,null,{"$error":"#DIV/0!"}]
[{"$f":"VLOOKUP(B984,Kode!A2:C215,3,FALSE)","v":{"$error":"#N/A"}},null,{"$f":"VLOOKUP(B984,Kode!A2:D215,4,FALSE)","v":{"$error":"#N/A"}},null,null,null,null,null,null,null,null,null,null,null,null,null,{"$f":"VLOOKUP(B984,Kode!A2:E215,5,FALSE)","v":{"$error":"#N/A"}},null,null,null,null,null,null,null,{"$error":"#DIV/0!"}]
[{"$f":"VLOOKUP(B985,Kode!A2:C215,3,FALSE)","v":{"$error":"#N/A"}},null,{"$f":"VLOOKUP(B985,Kode!A2:D215,4,FALSE)","v":{"$error":"#N/A"}},null,null,null,null,null,null,null,null,null,null,null,null,null,{"$f":"VLOOKUP(B985,Kode!A2:E215,5,FALSE)","v":{"$error":"#N/A"}},null,null,null,null,null,null,null,{"$error":"#DIV/0!"}]
[{"$f":"VLOOKUP(B986,Kode!A2:C215,3,FALSE)","v":{"$error":"#N/A"}},null,{"$f":"VLOOKUP(B986,Kode!A2:D215,4,FALSE)","v":{"$error":"#N/A"}},null,null,null,null,null,null,null,null,null,null,null,null,null,{"$f":"VLOOKUP(B986,Kode!A2:E215,5,FALSE)","v":{"$error":"#N/A"}},null,null,null,null,null,null,null,{"$error":"#DIV/0!"}]
[{"$f":"VLOOKUP(B987,Kode!A2:C215,3,FALSE)","v":{"$error":"#N/A"}},null,{"$f":"VLOOKUP(B987,Kode!A2:D215,4,FALSE)","v":{"$error":"#N/A"}},null,null,null,null,null,null,null,null,null,null,null,null,null,{"$f":"VLOOKUP(B987,Kode!A2:E215,5,FALSE)","v":{"$error":"#N/A"}},null,null,null,null,null,null,null,{"$error":"#DIV/0!"}]
[{"$f":"VLOOKUP(B988,Kode!A2:C215,3,FALSE)","v":{"$error":"#N/A"}},null,{"$f":"VLOOKUP(B988,Kode!A2:D215,4,FALSE)","v":{"$error":"#N/A"}},null,null,null,null,null,null,null,null,null,null,null,null,null,{"$f":"VLOOKUP(B988,Kode!A2:E215,5,FALSE)","v":{"$error":"#N/A"}},null,null,null,null,null,null,null,{"$error":"#DIV/0!"}]
[{"$f":"VLOOKUP(B989,Kode!A2:C215,3,FALSE)","v":{"$error":"#N/A"}},null,{"$f":"VLOOKUP(B989,Kode!A2:D215,4,FALSE)","v":{"$error":"#N/A"}},null,null,null,null,null,null,null,null,null,null,null,null,null,{"$f":"VLOOKUP(B989,Kode!A2:E215,5,FALSE)","v":{"$error":"#N/A"}},null,null,null,null,null,null,null,{"$error":"#DIV/0!"}]
[{"$f":"VLOOKUP(B990,Kode!A2:C215,3,FALSE)","v":{"$error":"#N/A"}},null,{"$f":"VLOOKUP(B990,Kode!A2:D215,4,FALSE)","v":{"$error":"#N/A"}},null,null,null,null,null,null,null,null,null,null,null,null,null,{"$f":"VLOOKUP(B990,Kode!A2:E215,5,FALSE)","v":{"$error":"#N/A"}},null,null,null,null,null,null,null,{"$error":"#DIV/0!"}]
[{"$f":"VLOOKUP(B991,Kode!A2:C215,3,FALSE)","v":{"$error":"#N/A"}},null,{"$f":"VLOOKUP(B991,Kode!A2:D215,4,FALSE)","v":{"$error":"#N/A"}},null,null,null,null,null,null,null,null,null,null,null,null,null,{"$f":"VLOOKUP(B991,Kode!A2:E215,5,FALSE)","v":{"$error":"#N/A"}},null,null,null,null,null,null,null,{"$error":"#DIV/0!"}]
[{"$f":"VLOOKUP(B992,Kode!A2:C215,3,FALSE)","v":{"$error":"#N/A"}},null,{"$f":"VLOOKUP(B992,Kode!A2:D215,4,FALSE)","v":{"$error":"#N/A"}},null,null,null,null,null,null,null,null,null,null,null,null,null,{"$f":"VLOOKUP(B992,Kode!A2:E215,5,FALSE)","v":{"$error":"#N/A"}},null,null,null,null,null,null,null,{"$error":"#DIV/0!"}]
[{"$f":"VLOOKUP(B993,Kode!A2:C215,3,FALSE)","v":{"$error":"#N/A"}},null,{"$f":"VLOOKUP(B993,Kode!A2:D215,4,FALSE)","v":{"$error":"#N/A"}},null,null,null,null,null,null,null,null,null,null,null,null,null,{"$f":"VLOOKUP(B993,Kode!A2:E215,5,FALSE)","v":{"$error":"#N/A"}},null,null,null,null,null,null,null,{"$error":"#DIV/0!"}]
[{"$f":"VLOOKUP(B994,Kode!A2:C215,3,FALSE)","v":{"$error":"#N/A"}},null,{"$f":"VLOOKUP(B994,Kode!A2:D215,4,FALSE)","v":{"$error":"#N/A"}},null,null,null,null,null,null,null,null,null,null,null,null,null,{"$f":"VLOOKUP(B994,Kode!A2:E215,5,FALSE)","v":{"$error":"#N/A"}},null,null,null,null,null,null,null,{"$error":"#DIV/0!"}]
[{"$f":"VLOOKUP(B995,Kode!A2:C215,3,FALSE)","v":{"$error":"#N/A"}},null,{"$f":"VLOOKUP(B995,Kode!A2:D215,4,FALSE)","v":{"$error":"#N/A"}},null,null,null,null,null,null,null,null,null,null,null,null,null,{"$f":"VLOOKUP(B995,Kode!A2:E215,5,FALSE)","v":{"$error":"#N/A"}},null,null,null,null,null,null,null,{"$error":"#DIV/0!"}]
[{"$f":"VLOOKUP(B996,Kode!A2:C215,3,FALSE)","v":{"$error":"#N/A"}},null,{"$f":"VLOOKUP(B996,Kode!A2:D215,4,FALSE)","v":{"$error":"#N/A"}},null,null,null,null,null,null,null,null,null,null,null,null,null,{"$f":"VLOOKUP(B996,Kode!A2:E215,5,FALSE)","v":{"$error":"#N/A"}},null,null,null,null,null,null,null,{"$error":"#DIV/0!"}]
[{"$f":"VLOOKUP(B997,Kode!A2:C215,3,FALSE)","v":{"$error":"#N/A"}},null,{"$f":"VLOOKUP(B997,Kode!A2:D215,4,FALSE)","v":{"$error":"#N/A"}},null,null,null,null,null,null,null,null,null,null,null,null,null,{"$f":"VLOOKUP(B997,Kode!A2:E215,5,FALSE)","v":{"$error":"#N/A"}},null,null,null,null,null,null,null,{"$error":"#DIV/0!"}]
[{"$f":"VLOOKUP(B998,Kode!A2:C215,3,FALSE)","v":{"$error":"#N/A"}},null,{"$f":"VLOOKUP(B998,Kode!A2:D215,4,FALSE)","v":{"$error":"#N/A"}},null,null,null,null,null,null,null,null,null,null,null,null,null,{"$f":"VLOOKUP(B998,Kode!A2:E215,5,FALSE)","v":{"$error":"#N/A"}},null,null,null,null,null,null,null,{"$error":"#DIV/0!"}]
[{"$f":"VLOOKUP(B999,Kode!A2:C215,3,FALSE)","v":{"$error":"#N/A"}},null,{"$f":"VLOOKUP(B999,Kode!A2:D215,4,FALSE)","v":{"$error":"#N/A"}},null,null,null,null,null,null,null,null,null,null,null,null,null,{"$f":"VLOOKUP(B999,Kode!A2:E215,5,FALSE)","v":{"$error":"#N/A"}},null,null,null,null,null,null,null,{"$error":"#DIV/0!"}]
[{"$f":"VLOOKUP(B1000,Kode!A2:C215,3,FALSE)","v":{"$error":"#N/A"}},null,{"$f":"VLOOKUP(B1000,Kode!A2:D215,4,FALSE)","v":{"$error":"#N/A"}},null,null,null,null,null,null,null,null,null,null,null,null,null,{"$f":"VLOOKUP(B1000,Kode!A2:E215,5,FALSE)","v":{"$error":"#N/A"}},null,null,null,null,null,null,null,{"$error":"#DIV/0!"}]

{"sheet":"Kode","index":1,"n_rows":213,"n_cols":12,"rows_kept":213,"cut":false,"hidden":true,"merged":[]}
["ID sheme pomoči","Kratek naziv sheme","MŠ dajalca pomoči","Naziv sheme pomoči","Pravna podlaga sheme pomoči","Šifra občine","Šifra instrumenta","Šifra namena","Opis ukrepa","Investicija","Člen uredbe","Šifra dejavnosti"]
["SA.44248 (2016/XA)","MKGP - žledolom (PRP)",2399253000,"Odprava škode v gozdovih zaradi žledoloma, PRP 2014–2020","Uredba o ukrepih za sanacijo in obnovo gozda po naravni nesreči žledu med 30. januarjem in 10. februarjem 2014 iz Programa razvoja podeželja Republike Slovenije za obdobje 2014–2020","001",1,"5.0.04.1","a","da",14,"01.1"]
["SA.51965 (2018/XA)","MKGP - podlubniki (PRP) - do 2019",2399253000,"Odprava škode v gozdovih zaradi napada prenamnoženih populacij podlubnikov kot posledica žledoloma – PRP 2014–2020 ","Uredba o ukrepih za sanacijo in obnovo gozda po naravni nesreči žledu med 30. januarjem in 10. februarjem 2014 iz Programa razvoja podeželja Republike Slovenije za obdobje 2014–2020","002",5,"5.0.04.2","b","ne",15,"01.2"]
["SA.52268 (2018/N)","MKGP - sodelovanje v gozdarstvu (PRP)",2399253000,"Pomoč za sodelovanje v gozdarskem sektorju PRP 2014–2020 ","Uredba o izvajanju ukrepa Sodelovanje iz Programa razvoja podeželja Republike Slovenije za obdobje 2014–2020","003",10,"5.0.04.4","c",null,16,"01.3"]
["SA.52702 (2018/XA)","MKGP - vetrolom 2017 (PRP)",2399253000,"Odprava škode v gozdovih zaradi vetroloma v letu 2017 iz PRP 2014–2020 ","Uredba o ukrepih za sanacijo in obnovo gozda po naravni nesreči vetrolomu iz Programa razvoja podeželja Republike Slovenije za obdobje 2014–2020","004",20,"5.0.04.5","d",null,17,"01.4"]
["SA.53384 (2019/XA)","MKGP - prenos znanja v gozdarstvu - PRP (od 2019)",2399253000,"Prenos znanja in informiranja v gozdarskem sektorju, PRP 2014-2020 ","Uredba o ukrepih prenosa znanja in svetovanja iz Programa razvoja podeželja Republike Slovenije za obdobje 2014–2020","005",25,"5.0.05.3","e",null,18,"01.5"]
["SA.54634 (2019/XA)","MKGP - podlubniki (PRP) - od 2019 do 2020",2399253000,"Odprava škode v gozdovih zaradi napada prenamnoženih populacij podlubnikov kot posledica žledoloma – PRP 2014–2020 ","Uredba o ukrepih za sanacijo in obnovo gozda po naravni nesreči žledu med 30. januarjem in 10. februarjem 2014 iz Programa razvoja podeželja Republike Slovenije za obdobje 2014–2020","006",28,"5.0.05.4","f",null,19,"02.1"]
["SA.54635 (2019/XA)","MKGP - vetrolom 2018 (PRP)",2399253000,"Odprava škode v gozdovih zaradi vetroloma v letu 2018 iz PRP 2014–2020 ","Uredba o ukrepih za sanacijo in obnovo gozda po naravni nesreči vetrolomu iz Programa razvoja podeželja Republike Slovenije za obdobje 2014–2020","007",40,"5.0.06.0","g",null,20,"02.2"]
["SA.57337 (2020/XA)","MKGP - podlubniki (PRP) - od 2020",2399253000,"Odprava škode v gozdovih zaradi napada prenamnoženih populacij podlubnikov kot posledica žledoloma – PRP 2014–2020","Uredba o ukrepih za sanacijo in obnovo gozda po naravni nesreči žledu med 30. januarjem in 10. februarjem 2014 iz Programa razvoja podeželja Republike Slovenije za obdobje 2014–2020","008",43,"5.0.07.0","h",null,21,"03.1"]
["SA.57725 (2020/XA)","MKGP - naložbe ŽPI in gozdarstvo - PRP (MSP) - od 2020",2399253000,"Pomoč za naložbe v zvezi s predelavo kmetijskih proizvodov v nekmetijske proizvode in naložbe v gozdarski sektor –  PRP 2014–2020","Uredba o izvajanju ukrepa naložbe v osnovna sredstva in podukrepa podpora za naložbe v gozdarske tehnologije ter predelavo, mobilizacijo in trženje gozdarskih proizvodov iz Programa razvoja podeželja Republike Slovenije za obdobje 2014–2020","009",48,"5.0.10.0",null,null,22,"03.2"]
["SA.57725 (2020/XA)","MKGP - naložbe v gozdarstvo od 2020",2399253000,"Pomoč za naložbe v zvezi s predelavo kmetijskih proizvodov v nekmetijske proizvode in naložbe v gozdarski sektor –  PRP 2014–2020","Uredba o izvajanju ukrepa naložbe v osnovna sredstva in podukrepa podpora za naložbe v gozdarske tehnologije ter predelavo, mobilizacijo in trženje gozdarskih proizvodov iz Programa razvoja podeželja Republike Slovenije za obdobje 2014–2020","010",50,"5.0.11.2",null,null,23,"10.1"]
["SA.59150 (2020/N)","MKGP - naložbe ŽPI in gozdarstvo - PRP (velika podjetja) - od 2021",2399253000,"Pomoč za naložbe v zvezi s predelavo kmetijskih proizvodov v nekmetijske proizvode – velika podjetja – PRP 2014–2020","Uredba o izvajanju ukrepa naložbe v osnovna sredstva in podukrepa podpora za naložbe v gozdarske tehnologije ter predelavo, mobilizacijo in trženje gozdarskih proizvodov iz Programa razvoja podeželja Republike Slovenije za obdobje 2014–2020","011",70,"5.0.11.3",null,null,24,"10.3"]
["SA.62741 (2021/N)","MKGP - sofinanciranje reinjekcijskih vrtin",2399253000,"Sofinanciranje stroškov izdelave reinjekcijskih vrtin v kmetijski proizvodnji","Odlok o začasnem ukrepu sofinanciranja stroškov izdelave reinjekcijskih vrtin","012",75,"5.0.11.4",null,null,25,"10.4"]
["SA.64097 (2021/N)","MKGP - promocija sadja 2021-2023",2399253000,"Promocija in informiranje o kmetijskih proizvodih v sektorju sadja za obdobje 2021–2023","Odredba o Programu promocije sektorja sadja za obdobje 2021–2023","013",null,"5.0.11.5",null,null,26,"10.5"]
["SA.102674 (2022/N)","MKGP - promocija mesa 2023-2025",2399253000,"Promocija in informiranje o kmetijskih proizvodih v sektorju pridelave in predelave mesa za obdobje 2023–2025 ","Promocija in informiranje o kmetijskih proizvodih v sektorju pridelave in predelave mesa za obdobje 2023–2025","014",null,"5.0.11.6",null,null,"27(2)(a)","10.6"]
["SA.102922 (2022/N)","MKGP - promocija mleka 2023-2025",2399253000,"Promocija in informiranje o kmetijskih proizvodih v sektorju mleka za obdobje 2023–2025 ","Odredba o Programu promocije sektorja pridelave in predelave mleka za obdobje 2023–2025","015",null,"5.0.12.0",null,null,"27(2)(b)","10.8"]
["SA.106988","MKGP - protipožarna infrastruktura",2399253000,"Protipožarna infrastruktura – PRP 2014–2020","Uredba o izvajanju podukrepa podpora za preprečevanje škode v gozdovih zaradi gozdnih požarov ter naravnih nesreč in katastrofičnih dogodkov iz Programa razvoja podeželja Republike Slovenije za obdobje 2014–2020","016",null,"5.0.13.0",null,null,"27(2)(c)","10.9"]
["SA.107575 (2023/N)","MKGP - pomoč po suši 2022 za velika podjetja",2399253000,"Pomoč za odpravo posledic škode v kmetijstvu zaradi suše leta 2022","Program odprave posledic škode v kmetijstvu zaradi suše leta 2022","017",null,"5.0.14.1",null,null,"27(2)(d)","11.0"]
["SA.107776","MKGP - pomoč po suši 2022 za MSP",2399253000,"Pomoč za odpravo posledic škode v kmetijstvu zaradi suše leta 2022","Program odprave posledic škode v kmetijstvu zaradi suše leta 2022","018",null,"5.0.14.2",null,null,"27(2)(e)","16.1"]
["SA.108359 (2023/N)","MKGP - promocija sadja 2024-2026",2399253000,"Promocija in informiranje o kmetijskih proizvodih v sektorju sadja za obdobje 2024–2026","Odredba o Programu promocije sektorja pridelave in predelave sadja za obdobje 2024–2026","019",null,"5.0.14.3",null,null,"27(2)(f)","16.2"]
["SA.108530","UVHVVR - odstranitev in uničenje poginulih živali",2399253000,"Pomoč za kritje stroškov odstranitve in uničenja poginulih živali","Pravilnik o izvajanju javne veterinarske službe zbiranja, prevoza, skladiščenja in ravnanja z živalskimi trupli kot vrste živalskih stranskih proizvodov, ki niso namenjeni prehrani ljudi","020",null,"5.0.14.4",null,null,28,"46.1"]
["SA.108703 (2023/N)","MKGP - nadomestilo zaradi oviranega ribolova",2399253000,"Nadomestilo zaradi izpada dohodka zaradi oviranega gospodarskega ribolova","Zakon o ureditvi določenih vprašanj zaradi končne razsodbe arbitražnega sodišča na podlagi Arbitražnega sporazuma med Vlado Republike Slovenije in Vlado Republike Hrvaške","021",null,"5.0.15.0",null,null,29,"46.2"]
["SA.109125","UVHVVR - odškodnine za ZTR 2023-2026",2399253000,"Pomoč za odpravo škode zaradi zlate trsne rumenice v obdobju od 2023 do 2026 ","Uredba o ukrepih za zatiranje in preprečevanje širjenja zlate trsne rumenice","022",null,"5.1.01.0",null,null,30,"46.3"]
["SA.111030","MKGP - sofinanciranje zav. premij od 2023",2399253000,"Sofinanciranje zavarovalnih premij za zavarovanje primarne kmetijske proizvodnje ","Uredba o sofinanciranju zavarovalnih premij za zavarovanje primarne kmetijske proizvodnje","023",null,"5.1.02.0",null,null,31,"46.8"]
["SA.112957","MKGP - nadomestilo materialne škode zaradi poplav 2023",2399253000,"Pomoč za materialno škodo v primarni kmetijski proizvodnji zaradi poplav in zemeljskih plazov 4. avgusta 2023","Program za odpravo posledic škode v gospodarstvu, ki se nanaša na škodo v primarni kmetijski proizvodnji, zaradi poplav in zemeljskih plazov 4. avgusta 2023","024",null,"5.1.03.0",null,null,32,"46.9"]
["SA.113319","MKGP - gozdarske intervencije SN 23–27",2399253000,"Gozdarske intervencije SN 23–27","Uredba o izvajanju gozdarskih intervencij iz strateškega načrta Republike Slovenije za obdobje 2023–2027","025",null,"5.1.04.0",null,null,33,"47.1"]
["SA.114388","MKGP - dokončanje komasacijskih postopkov",2399253000,"Pomoč za dokončanje komasacijskih postopkov","Uredba o ukrepih kmetijske strukturne politike in kmetijske politike razvoja podeželja ","026",null,"5.1.05.0",null,null,34,"47.2"]
["SA.114660 (2024/N)","MKGP - pomoč velikim podjetjem po pozebi in neurjih 2023",2399253000,"Nadomestilo velikim podjetjem za škodo, povzročeno primarni kmetijski proizvodnji zaradi pozebe in toče v letu 2023","Program odprave posledic škode v kmetijstvu zaradi pozebe od 3. do 7. aprila 2023, neurij s točo od 10. maja do 1. avgusta 2023 in poplav od 3. do 6. avgusta in od 28. do 31. avgusta 2023","027",null,"5.1.06.0",null,null,35]
["SA.115114","MKGP - pomoč po pozebi in neurjih 2023",2399253000,"Pomoč za škodo v primarni kmetijski proizvodnji zaradi pozebe in neurij s točo leta 2023","Program odprave posledic škode v kmetijstvu zaradi pozebe od 3. do 7. aprila 2023, neurij s točo od 10. maja do 1. avgusta 2023 in poplav od 3. do 6. avgusta in od 28. do 31. avgusta 2023","028",null,"5.2.01.0",null,null,36]
["SA.115117","MKGP - pomoč po poplavah 2023",2399253000,"Pomoč za odpravo posledic škode kmetijstvu zaradi poplav avgusta 2023","Program odprave posledic škode v kmetijstvu zaradi pozebe od 3. do 7. aprila 2023, neurij s točo od 10. maja do 1. avgusta 2023 in poplav od 3. do 6. avgusta in od 28. do 31. avgusta 2023","029",null,"5.2.02.0",null,null,37]
["SA.115480","MKGP - nadomestilo škode v ribištvu 2023",2399253000,"Pomoč za odpravo škode v sektorju ribištva in akvakulture zaradi poplav 4. avgusta 2023","Program odprave posledic škode v gospodarstvu, ki se nanaša na škodo v sektorju ribištva in akvakulture zaradi poplav in zemeljskih plazov 4. avgusta 2023","030",null,"5.7.00.0",null,null,38]
["SA.115485","MKGP - pomoč za usposabljanja v gozdarstvu",2399253000,"Usposabljanje v gozdarskem sektorju","Uredba o izvajanju intervencije izmenjava znanja in prenos informacij ter usposabljanje svetovalcev iz strateškega načrta skupne kmetijske politike 2023–2027","031",null,"5.8.01.0",null,null,39]
["SA.115600","UVHVVR - nadomestilo perutninarjem zaradi salmonele",2399253000,"Nadomestilo rejcem perutnine za zaklane ali usmrčene in uničene živali zaradi ugotovitve zadevnih serovarov salmonel","Pravilnik o nadzoru salmonele pri perutnini vrste Gallus gallus in Meleagris gallopavo domestica","032",null,"5.8.02.0",null,null,40]
["SA.116121","MKGP - nadomestilo škode školjkarjem zaradi plenilcev",2399253000,"Pomoč zaradi pogina školjk zaradi naravnih plenilcev","Odlok o finančnem nadomestilu za škodo zaradi množičnega pogina klapavic zaradi naravnih plenilcev v letu 2024","033",null,"5.8.03.0",null,null,41]
["SA.116122","MKGP - promocija shem kakovosti 2024-2026",2399253000,"Promocija in informiranje javnosti o shemah kakovosti za obdobje 2024–2026","Odredba o Programu promocije in informiranja javnosti o shemah kakovosti za obdobje 2024–2026","034",null,"5.8.04.0",null,null,43]
["SA.118136 (2025/N)","MKGP - promocija žit 2025-2028",2399253000,"Promocija in informiranje o kmetijskih proizvodih v sektorju žit za obdobje 2025–2028 ","Odredba o Programu promocije sektorja pridelave in predelave žit za obdobje 2025–2027","035",null,"5.8.05.0",null,null,44]
["SA.118304","MKGP - sanacija gozdov SN 23-27",2399253000,"Sanacija gozdov SN 23–27","Uredba o izvajanju intervencije naložbe v sanacijo in obnovo gozdov po naravnih nesrečah in neugodnih vremenskih razmerah iz strateškega načrta skupne kmetijske politike 2023–2027","036",null,"5.8.06.0",null,null,45]
["SA.119191 (2025/N)","MKGP - pomoč po pozebi 2024 VP",2399253000,"Pomoč velikim podjetjem za odpravo posledic škode v primarni kmetijski proizvodnji zaradi pozebe leta 2024 ","Program odprave posledic škode v kmetijstvu zaradi pozebe med 17. in 22. aprilom 2024","037",null,"5.8.07.1",null,null,46]
["SA.119329 (2025/N)","MKGP - promocija mesa 2026-2029",2399253000,"Promocija in informiranje o kmetijskih proizvodih v sektorju pridelave in predelave mesa za obdobje 2026–2029","Odredba o Programu promocije sektorja pridelave in predelave mesa za obdobje 2026–2028","038",null,"5.8.07.2",null,null,47]
["SA.119330 (2025/N)","MKGP - promocija mleka 2026-2029",2399253000,"Promocija in informiranje o kmetijskih proizvodih v sektorju mleka za obdobje 2026–2029","Odredba o Programu promocije sektorja pridelave in predelave mleka za obdobje 2026–2028","039",null,"5.8.08.0",null,null,48]
["SA.119597","MKGP - pomoč po pozebi 2024 MSP",2399253000,"Pomoč mikro, malim in srednjim podjetjem za odpravo škode v primarni kmetijski proizvodnji zaradi pozebe v letu 2024","Program odprave posledic škode v kmetijstvu zaradi pozebe med 17. in 22. aprilom 2024","040",null,"5.8.09.0",null,null,49]
["SA.121701","MKGP - sofinanciranje zav. premij od 2026",2399253000,"Sofinanciranje zavarovalnih premij za zavarovanje primarne kmetijske proizvodnje ","Uredba o sofinanciranju zavarovalnih premij za zavarovanje primarne kmetijske proizvodnje","041",null,"5.8.10.0",null,null,50]
["SA.121961","UVHVVR - kastracija pujskov",2399253000,"Pomoč za kastracijo pujskov","Odlok o pomoči za kastracijo pujskov do sedmega dneva starosti","042",null,"5.8.11.0",null,null,51]
[null,null,null,null,null,"043",null,"5.8.12.0",null,null,52]
[null,null,null,null,null,"044",null,null,null,null,53]
[null,null,null,null,null,"045",null,null,null,null,54]
[null,null,null,null,null,"046",null,null,null,null,55]
[null,null,null,null,null,"047",null,null,null,null,56]
[null,null,null,null,null,"048",null,null,null,null,57]
[null,null,null,null,null,"049",null,null,null,null,58]
[null,null,null,null,null,"050",null,null,null,null,59]
[null,null,null,null,null,"051",null,null,null,null,60]
[null,null,null,null,null,"052",null,null,null,null,61]
[null,null,null,null,null,"053",null,null,null,null,"1.1.1.1."]
[null,null,null,null,null,"054",null,null,null,null,"1.1.1.2."]
[null,null,null,null,null,"055",null,null,null,null,"1.1.1.3."]
[null,null,null,null,null,"056",null,null,null,null,"1.1.2."]
[null,null,null,null,null,"057",null,null,null,null,"1.1.3."]
[null,null,null,null,null,"058",null,null,null,null,"1.1.4."]
[null,null,null,null,null,"059",null,null,null,null,"1.1.5. "]
[null,null,null,null,null,"060",null,null,null,null,"1.1.6."]
[null,null,null,null,null,"061",null,null,null,null,"1.1.7. "]
[null,null,null,null,null,"062",null,null,null,null,"1.1.8."]
[null,null,null,null,null,"063",null,null,null,null,"1.1.9. "]
[null,null,null,null,null,"064",null,null,null,null,"1.1.10.1. "]
[null,null,null,null,null,"065",null,null,null,null,"1.1.10.2. "]
[null,null,null,null,null,"066",null,null,null,null,"1.1.10.3. "]
[null,null,null,null,null,"067",null,null,null,null,"1.1.11."]
[null,null,null,null,null,"068",null,null,null,null,"1.2.1.1. "]
[null,null,null,null,null,"069",null,null,null,null,"1.2.1.2."]
[null,null,null,null,null,"070",null,null,null,null,"1.2.1.3. "]
[null,null,null,null,null,"071",null,null,null,null,"1.2.1.4. "]
[null,null,null,null,null,"072",null,null,null,null,"1.2.1.5."]
[null,null,null,null,null,"073",null,null,null,null,"1.2.1.6. "]
[null,null,null,null,null,"074",null,null,null,null,"1.3.4. "]
[null,null,null,null,null,"075",null,null,null,null,"1.3.6. "]
[null,null,null,null,null,"076",null,null,null,null,"1.3.7."]
[null,null,null,null,null,"077",null,null,null,null,"2.1.1. "]
[null,null,null,null,null,"078",null,null,null,null,"2.1.3. "]
[null,null,null,null,null,"079",null,null,null,null,"2.1.4. "]
[null,null,null,null,null,"080",null,null,null,null,"2.1.5. "]
[null,null,null,null,null,"081",null,null,null,null,"2.1.6. "]
[null,null,null,null,null,"082",null,null,null,null,"2.1.7."]
[null,null,null,null,null,"083",null,null,null,null,"2.2. "]
[null,null,null,null,null,"084",null,null,null,null,"2.3. "]
[null,null,null,null,null,"085",null,null,null,null,"2.4. "]
[null,null,null,null,null,"086",null,null,null,null,"2.5. "]
[null,null,null,null,null,"087",null,null,null,null,"2.6. "]
[null,null,null,null,null,"088",null,null,null,null,"2.7."]
[null,null,null,null,null,"089",null,null,null,null,"2.8.1."]
[null,null,null,null,null,"090",null,null,null,null,"2.8.2."]
[null,null,null,null,null,"091",null,null,null,null,"2.8.3."]
[null,null,null,null,null,"092",null,null,null,null,"2.8.4."]
[null,null,null,null,null,"093",null,null,null,null,"2.8.5."]
[null,null,null,null,null,"094",null,null,null,null,"2.9.1."]
[null,null,null,null,null,"095",null,null,null,null,"2.9.2."]
[null,null,null,null,null,"096",null,null,null,null,"3."]
[null,null,null,null,null,"097"]
[null,null,null,null,null,"098"]
[null,null,null,null,null,"099"]
[null,null,null,null,null,"100"]
[null,null,null,null,null,"101"]
[null,null,null,null,null,"102"]
[null,null,null,null,null,"103"]
[null,null,null,null,null,"104"]
[null,null,null,null,null,"105"]
[null,null,null,null,null,"106"]
[null,null,null,null,null,"107"]
[null,null,null,null,null,"108"]
[null,null,null,null,null,"109"]
[null,null,null,null,null,"110"]
[null,null,null,null,null,"111"]
[null,null,null,null,null,"112"]
[null,null,null,null,null,"113"]
[null,null,null,null,null,"114"]
[null,null,null,null,null,"115"]
[null,null,null,null,null,"116"]
[null,null,null,null,null,"117"]
[null,null,null,null,null,"118"]
[null,null,null,null,null,"119"]
[null,null,null,null,null,"120"]
[null,null,null,null,null,"121"]
[null,null,null,null,null,"122"]
[null,null,null,null,null,"123"]
[null,null,null,null,null,"124"]
[null,null,null,null,null,"125"]
[null,null,null,null,null,"126"]
[null,null,null,null,null,"127"]
[null,null,null,null,null,"128"]
[null,null,null,null,null,"129"]
[null,null,null,null,null,"130"]
[null,null,null,null,null,"131"]
[null,null,null,null,null,"132"]
[null,null,null,null,null,"133"]
[null,null,null,null,null,"134"]
[null,null,null,null,null,"135"]
[null,null,null,null,null,"136"]
[null,null,null,null,null,"137"]
[null,null,null,null,null,"138"]
[null,null,null,null,null,"139"]
[null,null,null,null,null,"140"]
[null,null,null,null,null,"141"]
[null,null,null,null,null,"142"]
[null,null,null,null,null,"143"]
[null,null,null,null,null,"144"]
[null,null,null,null,null,"146"]
[null,null,null,null,null,"147"]
[null,null,null,null,null,"148"]
[null,null,null,null,null,"149"]
[null,null,null,null,null,"150"]
[null,null,null,null,null,"151"]
[null,null,null,null,null,"152"]
[null,null,null,null,null,"153"]
[null,null,null,null,null,"154"]
[null,null,null,null,null,"155"]
[null,null,null,null,null,"156"]
[null,null,null,null,null,"157"]
[null,null,null,null,null,"158"]
[null,null,null,null,null,"159"]
[null,null,null,null,null,"160"]
[null,null,null,null,null,"161"]
[null,null,null,null,null,"162"]
[null,null,null,null,null,"163"]
[null,null,null,null,null,"164"]
[null,null,null,null,null,"165"]
[null,null,null,null,null,"166"]
[null,null,null,null,null,"167"]
[null,null,null,null,null,"168"]
[null,null,null,null,null,"169"]
[null,null,null,null,null,"170"]
[null,null,null,null,null,"171"]
[null,null,null,null,null,"172"]
[null,null,null,null,null,"173"]
[null,null,null,null,null,"174"]
[null,null,null,null,null,"175"]
[null,null,null,null,null,"176"]
[null,null,null,null,null,"177"]
[null,null,null,null,null,"178"]
[null,null,null,null,null,"179"]
[null,null,null,null,null,"180"]
[null,null,null,null,null,"181"]
[null,null,null,null,null,"182"]
[null,null,null,null,null,"183"]
[null,null,null,null,null,"184"]
[null,null,null,null,null,"185"]
[null,null,null,null,null,"186"]
[null,null,null,null,null,"187"]
[null,null,null,null,null,"188"]
[null,null,null,null,null,"189"]
[null,null,null,null,null,"190"]
[null,null,null,null,null,"191"]
[null,null,null,null,null,"192"]
[null,null,null,null,null,"193"]
[null,null,null,null,null,"194"]
[null,null,null,null,null,"195"]
[null,null,null,null,null,"196"]
[null,null,null,null,null,"197"]
[null,null,null,null,null,"198"]
[null,null,null,null,null,"199"]
[null,null,null,null,null,"200"]
[null,null,null,null,null,"201"]
[null,null,null,null,null,"202"]
[null,null,null,null,null,"203"]
[null,null,null,null,null,"204"]
[null,null,null,null,null,"205"]
[null,null,null,null,null,"206"]
[null,null,null,null,null,"207"]
[null,null,null,null,null,"208"]
[null,null,null,null,null,"209"]
[null,null,null,null,null,"210"]
[null,null,null,null,null,"211"]
[null,null,null,null,null,"212"]
[null,null,null,null,null,"213"]